Workbook

Sheet Výstup
A2: Hodnoty nastavené v textové části DP
A3: Hodnoty nastavitelné uživatelem | D3: Zdroj (PV = fotovoltaická el., Wind = větrná el.) | E3: Wind
D4: Země | E4: DE
D5: Počáteční realizační cena PPA (EUR/MWh) | E5: 110
D6: Cenový mechanismus | E6: Fixní
D7: Eskalace | E7: -
D8: Tržní poměr | E8: -
D9: Schéma dodávky | E9: Pay as produced
D10: Alokovaná kapacita (výkon) (MW) | E10: 2
D12: Diskontní sazba | E12: 0.1046
D14: Počátční rok platnosti kontraktu | E14: 2024
D15: Délka kontraktů | E15: 16
D17: Průměrný roční objem výroby PPA (MWh) | E17: =Výpočet!R11 -> 3679.931559
D19: NPV PPA - konzervativní scénář | E19: =NPV($E$12,F56:V56) -> 306982.5877
D20: NPV PPA - referenční scénář | E20: =NPV($E$12,F57:V57) -> 780278.0243
D21: NPV PPA - progresivní scénář | E21: =NPV($E$12,F58:V58) -> 3644395.745
D45: scénář | E45: rok | F45: 2024 | G45: 2025 | H45: 2026 | I45: 2027 | J45: 2028 | K45: 2029 | L45: 2030 | M45: 2031 | N45: 2032 | O45: 2033 | P45: 2034 | Q45: 2035 | R45: 2036 | S45: 2037 | T45: 2038 | U45: 2039 | V45: 2040
D46: konzervativní | E46: cena elektřiny - baseload | F46: =TRANSPOSE(G72:I88) -> 138 | G46: 124 | H46: 108 | I46: 96 | J46: 97.87755102 | K46: 99.75510204 | L46: 101.6326531 | M46: 105.6326531 | N46: 109.6326531 | O46: 113.6326531 | P46: 117.6326531 | Q46: 121.6326531 | R46: 123.5918367 | S46: 125.5510204 | T46: 127.5102041 | U46: 129.4693878 | V46: 131.4285714
D47: referenční | E47: cena elektřiny - baseload | F47: 138 | G47: 124 | H47: 108 | I47: 96 | J47: 97.60544218 | K47: 99.21088435 | L47: 100.8163265 | M47: 115.5918367 | N47: 130.3673469 | O47: 145.1428571 | P47: 159.9183673 | Q47: 174.6938776 | R47: 177.6326531 | S47: 180.5714286 | T47: 183.5102041 | U47: 186.4489796 | V47: 189.3877551
D48: progresivní | E48: cena elektřiny - baseload | F48: 138 | G48: 124 | H48: 108 | I48: 96 | J48: 152.8435374 | K48: 209.6870748 | L48: 266.5306122 | M48: 291.5102041 | N48: 316.4897959 | O48: 341.4693878 | P48: 366.4489796 | Q48: 391.4285714 | R48: 374.2857143 | S48: 357.1428571 | T48: 340 | U48: 322.8571429 | V48: 305.7142857
D49: - | E49: hodnota profilu výroby | F49: =Výpočet!$Z$19 -> 1.023216622 | G49: =Výpočet!$Z$19 -> 1.023216622 | H49: =$G$49+($L$49-$G$49)/5 -> 1.029903712 | I49: =$G$49+($L$49-$G$49)/5*2 -> 1.036590802 | J49: =$G$49+($L$49-$G$49)/5*3 -> 1.043277892 | K49: =$G$49+($L$49-$G$49)/5*4 -> 1.049964982 | L49: =Výpočet!Z20 -> 1.056652073 | M49: =$L$49+($Q$49-$L$49)/5 -> 1.063291403 | N49: =$L$49+($Q$49-$L$49)/5*2 -> 1.069930733 | O49: =$L$49+($Q$49-$L$49)/5*3 -> 1.076570063 | P49: =$L$49+($Q$49-$L$49)/5*4 -> 1.083209393 | Q49: =Výpočet!Z21 -> 1.089848723 | R49: =$Q$49+($V$49-$Q$49)/5 -> 1.096682056 | S49: =$Q$49+($V$49-$Q$49)/5*2 -> 1.10351539 | T49: =$Q$49+($V$49-$Q$49)/5*3 -> 1.110348724 | U49: =$Q$49+($V$49-$Q$49)/5*4 -> 1.117182057 | V49: =Výpočet!Z22 -> 1.124015391
D50: konzervativní | E50: průměrná tržní cena | F50: =F46*F$49 -> 141.2038938 | G50: 126.8788611 | H50: 111.2296009 | I50: 99.512717 | J50: 102.1134851 | K50: 104.739364 | L50: 107.3903535 | M50: 112.3182918 | N50: 117.2993448 | O50: 122.3335124 | P50: 127.4207947 | Q50: 132.5611916 | R50: 135.5409496 | S50: 138.5474833 | T50: 141.5807924 | U50: 144.640877 | V50: 147.7277371
D51: referenční | E51: průměrná tržní cena | F51: =F47*F$49 -> 141.2038938 | G51: 126.8788611 | H51: 111.2296009 | I51: 99.512717 | J51: 101.8296 | K51: 104.1679545 | L51: 106.5277804 | M51: 122.9078062 | N51: 139.484031 | O51: 156.2564548 | P51: 173.2250776 | Q51: 190.3898993 | R51: 194.8065432 | S51: 199.2633504 | T51: 203.7603209 | U51: 208.2974546 | V51: 212.8747516
D52: progresivní | E52: průměrná tržní cena | F52: =F48*F$49 -> 141.2038938 | G52: 126.8788611 | H52: 111.2296009 | I52: 99.512717 | J52: 159.4582836 | K52: 220.1640858 | L52: 281.6301239 | M52: 309.9602938 | N52: 338.6221592 | O52: 367.6157202 | P52: 396.9409766 | Q52: 426.5979285 | R52: 410.4724268 | S52: 394.1126393 | T52: 377.5185661 | U52: 360.6902071 | V52: 343.6275624
D53: konzervativní | E53: realizační cena | F53: =_xlfn.IFS($E$6="Tržní",F46*$E$8,$E$6="Fixní",$E$5,$E$6="Eskalace",$E$5*(1+$E$7)^(F$45-2024)) -> 110 | G53: =_xlfn.IFS($E$6="Tržní",G46*$E$8,$E$6="Fixní",$E$5,$E$6="Eskalace",$E$5*(1+$E$7)^(G$45-2024)) -> 110 | H53: =_xlfn.IFS($E$6="Tržní",H46*$E$8,$E$6="Fixní",$E$5,$E$6="Eskalace",$E$5*(1+$E$7)^(H$45-2024)) -> 110 | I53: =_xlfn.IFS($E$6="Tržní",I46*$E$8,$E$6="Fixní",$E$5,$E$6="Eskalace",$E$5*(1+$E$7)^(I$45-2024)) -> 110 | J53: =_xlfn.IFS($E$6="Tržní",J46*$E$8,$E$6="Fixní",$E$5,$E$6="Eskalace",$E$5*(1+$E$7)^(J$45-2024)) -> 110 | K53: =_xlfn.IFS($E$6="Tržní",K46*$E$8,$E$6="Fixní",$E$5,$E$6="Eskalace",$E$5*(1+$E$7)^(K$45-2024)) -> 110 | L53: =_xlfn.IFS($E$6="Tržní",L46*$E$8,$E$6="Fixní",$E$5,$E$6="Eskalace",$E$5*(1+$E$7)^(L$45-2024)) -> 110 | M53: =_xlfn.IFS($E$6="Tržní",M46*$E$8,$E$6="Fixní",$E$5,$E$6="Eskalace",$E$5*(1+$E$7)^(M$45-2024)) -> 110 | N53: =_xlfn.IFS($E$6="Tržní",N46*$E$8,$E$6="Fixní",$E$5,$E$6="Eskalace",$E$5*(1+$E$7)^(N$45-2024)) -> 110 | O53: =_xlfn.IFS($E$6="Tržní",O46*$E$8,$E$6="Fixní",$E$5,$E$6="Eskalace",$E$5*(1+$E$7)^(O$45-2024)) -> 110 | P53: =_xlfn.IFS($E$6="Tržní",P46*$E$8,$E$6="Fixní",$E$5,$E$6="Eskalace",$E$5*(1+$E$7)^(P$45-2024)) -> 110 | Q53: =_xlfn.IFS($E$6="Tržní",Q46*$E$8,$E$6="Fixní",$E$5,$E$6="Eskalace",$E$5*(1+$E$7)^(Q$45-2024)) -> 110 | R53: =_xlfn.IFS($E$6="Tržní",R46*$E$8,$E$6="Fixní",$E$5,$E$6="Eskalace",$E$5*(1+$E$7)^(R$45-2024)) -> 110 | S53: =_xlfn.IFS($E$6="Tržní",S46*$E$8,$E$6="Fixní",$E$5,$E$6="Eskalace",$E$5*(1+$E$7)^(S$45-2024)) -> 110 | T53: =_xlfn.IFS($E$6="Tržní",T46*$E$8,$E$6="Fixní",$E$5,$E$6="Eskalace",$E$5*(1+$E$7)^(T$45-2024)) -> 110 | U53: =_xlfn.IFS($E$6="Tržní",U46*$E$8,$E$6="Fixní",$E$5,$E$6="Eskalace",$E$5*(1+$E$7)^(U$45-2024)) -> 110 | V53: =_xlfn.IFS($E$6="Tržní",V46*$E$8,$E$6="Fixní",$E$5,$E$6="Eskalace",$E$5*(1+$E$7)^(V$45-2024)) -> 110
D54: referenční | E54: realizační cena | F54: =_xlfn.IFS($E$6="Tržní",F47*$E$8,$E$6="Fixní",$E$5,$E$6="Eskalace",$E$5*(1+$E$7)^(F$45-2024)) -> 110 | G54: =_xlfn.IFS($E$6="Tržní",G47*$E$8,$E$6="Fixní",$E$5,$E$6="Eskalace",$E$5*(1+$E$7)^(G$45-2024)) -> 110 | H54: =_xlfn.IFS($E$6="Tržní",H47*$E$8,$E$6="Fixní",$E$5,$E$6="Eskalace",$E$5*(1+$E$7)^(H$45-2024)) -> 110 | I54: =_xlfn.IFS($E$6="Tržní",I47*$E$8,$E$6="Fixní",$E$5,$E$6="Eskalace",$E$5*(1+$E$7)^(I$45-2024)) -> 110 | J54: =_xlfn.IFS($E$6="Tržní",J47*$E$8,$E$6="Fixní",$E$5,$E$6="Eskalace",$E$5*(1+$E$7)^(J$45-2024)) -> 110 | K54: =_xlfn.IFS($E$6="Tržní",K47*$E$8,$E$6="Fixní",$E$5,$E$6="Eskalace",$E$5*(1+$E$7)^(K$45-2024)) -> 110 | L54: =_xlfn.IFS($E$6="Tržní",L47*$E$8,$E$6="Fixní",$E$5,$E$6="Eskalace",$E$5*(1+$E$7)^(L$45-2024)) -> 110 | M54: =_xlfn.IFS($E$6="Tržní",M47*$E$8,$E$6="Fixní",$E$5,$E$6="Eskalace",$E$5*(1+$E$7)^(M$45-2024)) -> 110 | N54: =_xlfn.IFS($E$6="Tržní",N47*$E$8,$E$6="Fixní",$E$5,$E$6="Eskalace",$E$5*(1+$E$7)^(N$45-2024)) -> 110 | O54: =_xlfn.IFS($E$6="Tržní",O47*$E$8,$E$6="Fixní",$E$5,$E$6="Eskalace",$E$5*(1+$E$7)^(O$45-2024)) -> 110 | P54: =_xlfn.IFS($E$6="Tržní",P47*$E$8,$E$6="Fixní",$E$5,$E$6="Eskalace",$E$5*(1+$E$7)^(P$45-2024)) -> 110 | Q54: =_xlfn.IFS($E$6="Tržní",Q47*$E$8,$E$6="Fixní",$E$5,$E$6="Eskalace",$E$5*(1+$E$7)^(Q$45-2024)) -> 110 | R54: =_xlfn.IFS($E$6="Tržní",R47*$E$8,$E$6="Fixní",$E$5,$E$6="Eskalace",$E$5*(1+$E$7)^(R$45-2024)) -> 110 | S54: =_xlfn.IFS($E$6="Tržní",S47*$E$8,$E$6="Fixní",$E$5,$E$6="Eskalace",$E$5*(1+$E$7)^(S$45-2024)) -> 110 | T54: =_xlfn.IFS($E$6="Tržní",T47*$E$8,$E$6="Fixní",$E$5,$E$6="Eskalace",$E$5*(1+$E$7)^(T$45-2024)) -> 110 | U54: =_xlfn.IFS($E$6="Tržní",U47*$E$8,$E$6="Fixní",$E$5,$E$6="Eskalace",$E$5*(1+$E$7)^(U$45-2024)) -> 110 | V54: =_xlfn.IFS($E$6="Tržní",V47*$E$8,$E$6="Fixní",$E$5,$E$6="Eskalace",$E$5*(1+$E$7)^(V$45-2024)) -> 110
D55: progresivní | E55: realizační cena | F55: =_xlfn.IFS($E$6="Tržní",F48*$E$8,$E$6="Fixní",$E$5,$E$6="Eskalace",$E$5*(1+$E$7)^(F$45-2024)) -> 110 | G55: =_xlfn.IFS($E$6="Tržní",G48*$E$8,$E$6="Fixní",$E$5,$E$6="Eskalace",$E$5*(1+$E$7)^(G$45-2024)) -> 110 | H55: =_xlfn.IFS($E$6="Tržní",H48*$E$8,$E$6="Fixní",$E$5,$E$6="Eskalace",$E$5*(1+$E$7)^(H$45-2024)) -> 110 | I55: =_xlfn.IFS($E$6="Tržní",I48*$E$8,$E$6="Fixní",$E$5,$E$6="Eskalace",$E$5*(1+$E$7)^(I$45-2024)) -> 110 | J55: =_xlfn.IFS($E$6="Tržní",J48*$E$8,$E$6="Fixní",$E$5,$E$6="Eskalace",$E$5*(1+$E$7)^(J$45-2024)) -> 110 | K55: =_xlfn.IFS($E$6="Tržní",K48*$E$8,$E$6="Fixní",$E$5,$E$6="Eskalace",$E$5*(1+$E$7)^(K$45-2024)) -> 110 | L55: =_xlfn.IFS($E$6="Tržní",L48*$E$8,$E$6="Fixní",$E$5,$E$6="Eskalace",$E$5*(1+$E$7)^(L$45-2024)) -> 110 | M55: =_xlfn.IFS($E$6="Tržní",M48*$E$8,$E$6="Fixní",$E$5,$E$6="Eskalace",$E$5*(1+$E$7)^(M$45-2024)) -> 110 | N55: =_xlfn.IFS($E$6="Tržní",N48*$E$8,$E$6="Fixní",$E$5,$E$6="Eskalace",$E$5*(1+$E$7)^(N$45-2024)) -> 110 | O55: =_xlfn.IFS($E$6="Tržní",O48*$E$8,$E$6="Fixní",$E$5,$E$6="Eskalace",$E$5*(1+$E$7)^(O$45-2024)) -> 110 | P55: =_xlfn.IFS($E$6="Tržní",P48*$E$8,$E$6="Fixní",$E$5,$E$6="Eskalace",$E$5*(1+$E$7)^(P$45-2024)) -> 110 | Q55: =_xlfn.IFS($E$6="Tržní",Q48*$E$8,$E$6="Fixní",$E$5,$E$6="Eskalace",$E$5*(1+$E$7)^(Q$45-2024)) -> 110 | R55: =_xlfn.IFS($E$6="Tržní",R48*$E$8,$E$6="Fixní",$E$5,$E$6="Eskalace",$E$5*(1+$E$7)^(R$45-2024)) -> 110 | S55: =_xlfn.IFS($E$6="Tržní",S48*$E$8,$E$6="Fixní",$E$5,$E$6="Eskalace",$E$5*(1+$E$7)^(S$45-2024)) -> 110 | T55: =_xlfn.IFS($E$6="Tržní",T48*$E$8,$E$6="Fixní",$E$5,$E$6="Eskalace",$E$5*(1+$E$7)^(T$45-2024)) -> 110 | U55: =_xlfn.IFS($E$6="Tržní",U48*$E$8,$E$6="Fixní",$E$5,$E$6="Eskalace",$E$5*(1+$E$7)^(U$45-2024)) -> 110 | V55: =_xlfn.IFS($E$6="Tržní",V48*$E$8,$E$6="Fixní",$E$5,$E$6="Eskalace",$E$5*(1+$E$7)^(V$45-2024)) -> 110
D56: konzervativní | E56: cashflow virtuální PPA | F56: =(F50-F53)*$E$17 -> 114828.1935 | G56: 62113.0536 | H56: 4524.84709 | I56: -38592.48369 | J56: -29021.83497 | K56: -19358.78057 | L56: -9603.320486 | M56: 8531.1553 | N56: 26861.08933 | O56: 45386.48159 | P56: 64107.3321 | Q56: 83023.64084 | R56: 93988.94667 | S56: 105052.7846 | T56: 116215.1545 | U56: 127476.0565 | V56: 138835.4905
D57: referenční | E57: cashflow virtuální PPA | F57: =(F51-F54)*$E$17 -> 114828.1935 | G57: 62113.0536 | H57: 4524.84709 | I57: -38592.48369 | J57: -30066.51286 | K57: -21461.52847 | L57: -12777.53053 | M57: 47499.84346 | N57: 108499.2162 | O57: 170220.5878 | P57: 232663.9582 | Q57: 295829.3274 | R57: 312082.2748 | S57: 328483.0203 | T57: 345031.5639 | U57: 361727.9055 | V57: 378572.0452
D58: progresivní | E58: cashflow virtuální PPA | F58: =(F52-F55)*$E$17 -> 114828.1935 | G58: 62113.0536 | H58: 4524.84709 | I58: -38592.48369 | J58: 182003.0985 | K58: 405396.2962 | L58: 631587.1093 | M58: 735840.1957 | N58: 841313.8989 | O58: 948008.2188 | P58: 1055923.155 | Q58: 1165058.709 | R58: 1105717.966 | S58: 1045515.068 | T58: 984450.014 | U58: 922522.8048 | V58: 859733.4402
F67: Cenové predikce převzaté z Výpočtového souboru - Fyzické PPA
F69: Scénáře vývoje cen elektřiny v pásmu základního zatížení (baseload) | K69: 2025 | R69: 2030 | Y69: 2035 | AF69: 2040
C70: PV | F70: scenář | G70: konzervativní | H70: referenční | I70: progresivní | K70: Cenová charakteristika spotových cen | R70: Spotové ceny | Y70: Spotové ceny | AF70: Spotové ceny
C71: Wind | F71: rok/jednotka | G71: €/MWh | H71: €/MWh | I71: €/MWh | K71: měsíc | M71: den v týdnu | O71: hodina | R71: měsíc | T71: den v týdnu | V71: hodina | Y71: měsíc | AA71: den v týdnu | AC71: hodina | AF71: měsíc | AH71: den v týdnu | AJ71: hodina
F72: 2024 | G72: 138 | H72: 138 | I72: 138 | K72: 1 | L72: 1.17033424 | M72: 1 | N72: 1.05809357 | O72: 1 | P72: 0.7907983234 | R72: 1 | S72: 1.37033424 | T72: 1 | U72: 1.05809357 | V72: 1 | W72: 0.826092441 | Y72: 1 | Z72: 1.57033424 | AA72: 1 | AB72: 1.05809357 | AC72: 1 | AD72: 0.876092441 | AF72: 1 | AG72: 1.77033424 | AH72: 1 | AI72: 1.05809357 | AJ72: 1 | AK72: 0.926092441
F73: 2025 | G73: 124 | H73: 124 | I73: 124 | K73: 2 | L73: 0.9574117888 | M73: 2 | N73: 1.105430504 | O73: 2 | P73: 0.7451425469 | R73: 2 | S73: 1.057411789 | T73: 2 | U73: 1.105430504 | V73: 2 | W73: 0.7804366645 | Y73: 2 | Z73: 1.157411789 | AA73: 2 | AB73: 1.105430504 | AC73: 2 | AD73: 0.8304366645 | AF73: 2 | AG73: 1.257411789 | AH73: 2 | AI73: 1.105430504 | AJ73: 2 | AK73: 0.8804366645
F74: 2026 | G74: 108 | H74: 108 | I74: 108 | K74: 3 | L74: 0.8056128043 | M74: 3 | N74: 1.109689155 | O74: 3 | P74: 0.711034209 | R74: 3 | S74: 0.7556128043 | T74: 3 | U74: 1.109689155 | V74: 3 | W74: 0.7463283267 | Y74: 3 | Z74: 0.7056128043 | AA74: 3 | AB74: 1.109689155 | AC74: 3 | AD74: 0.7963283267 | AF74: 3 | AG74: 0.6306128043 | AH74: 3 | AI74: 1.109689155 | AJ74: 3 | AK74: 0.8463283267
F75: 2027 | G75: 96 | H75: 96 | I75: 96 | K75: 4 | L75: 0.7642370938 | M75: 4 | N75: 1.097806091 | O75: 4 | P75: 0.6893463234 | R75: 4 | S75: 0.7142370938 | T75: 4 | U75: 1.097806091 | V75: 4 | W75: 0.7246404411 | Y75: 4 | Z75: 0.6642370938 | AA75: 4 | AB75: 1.097806091 | AC75: 4 | AD75: 0.7746404411 | AF75: 4 | AG75: 0.5642370938 | AH75: 4 | AI75: 1.097806091 | AJ75: 4 | AK75: 0.8246404411
F76: 2028 | G76: 97.87755102 | H76: 97.60544218 | I76: 152.8435374 | K76: 5 | L76: 0.7856309323 | M76: 5 | N76: 1.054041103 | O76: 5 | P76: 0.7040846974 | R76: 5 | S76: 0.6856309323 | T76: 5 | U76: 1.054041103 | V76: 5 | W76: 0.739378815 | Y76: 5 | Z76: 0.5856309323 | AA76: 5 | AB76: 1.054041103 | AC76: 5 | AD76: 0.789378815 | AF76: 5 | AG76: 0.4856309323 | AH76: 5 | AI76: 1.054041103 | AJ76: 5 | AK76: 0.839378815
F77: 2029 | G77: 99.75510204 | H77: 99.21088435 | I77: 209.6870748 | K77: 6 | L77: 0.9138819264 | M77: 6 | N77: 0.8606344625 | O77: 6 | P77: 0.7654272013 | R77: 6 | S77: 0.8138819264 | T77: 6 | U77: 0.8606344625 | V77: 6 | W77: 0.8007213189 | Y77: 6 | Z77: 0.7138819264 | AA77: 6 | AB77: 0.8606344625 | AC77: 6 | AD77: 0.8507213189 | AF77: 6 | AG77: 0.6138819264 | AH77: 6 | AI77: 0.8606344625 | AJ77: 6 | AK77: 0.9007213189
F78: 2030 | G78: 101.6326531 | H78: 100.8163265 | I78: 266.5306122 | K78: 7 | L78: 1.03002146 | M78: 7 | N78: 0.7141300051 | O78: 7 | P78: 0.9549081416 | R78: 7 | S78: 0.93002146 | T78: 7 | U78: 0.7141300051 | V78: 7 | W78: 0.9902022592 | Y78: 7 | Z78: 0.83002146 | AA78: 7 | AB78: 0.7141300051 | AC78: 7 | AD78: 0.9777022592 | AF78: 7 | AG78: 0.73002146 | AH78: 7 | AI78: 0.7141300051 | AJ78: 7 | AK78: 0.9652022592
F79: 2031 | G79: 105.6326531 | H79: 115.5918367 | I79: 291.5102041 | K79: 8 | L79: 1.018835563 | O79: 8 | P79: 1.130081586 | R79: 8 | S79: 0.9188355628 | V79: 8 | W79: 1.165375703 | Y79: 8 | Z79: 0.8188355628 | AC79: 8 | AD79: 1.152875703 | AF79: 8 | AG79: 0.7188355628 | AJ79: 8 | AK79: 1.140375703
F80: 2032 | G80: 109.6326531 | H80: 130.3673469 | I80: 316.4897959 | K80: 9 | L80: 1.112709274 | O80: 9 | P80: 1.185646861 | R80: 9 | S80: 1.062709274 | V80: 9 | W80: 1.135646861 | Y80: 9 | Z80: 1.012709274 | AC80: 9 | AD80: 1.085646861 | AF80: 9 | AG80: 0.9377092736 | AJ80: 9 | AK80: 1.035646861
F81: 2033 | G81: 113.6326531 | H81: 145.1428571 | I81: 341.4693878 | K81: 10 | L81: 1.09833893 | O81: 10 | P81: 1.160591854 | R81: 10 | S81: 1.04833893 | V81: 10 | W81: 1.060591854 | Y81: 10 | Z81: 0.9983389303 | AC81: 10 | AD81: 0.9605918542 | AF81: 10 | AG81: 1.04833893 | AJ81: 10 | AK81: 0.8605918542
F82: 2034 | G82: 117.6326531 | H82: 159.9183673 | I82: 366.4489796 | K82: 11 | L82: 1.191632653 | O82: 11 | P82: 1.105807133 | R82: 11 | S82: 1.291632653 | V82: 11 | W82: 1.005807133 | Y82: 11 | Z82: 1.391632653 | AC82: 11 | AD82: 0.9058071327 | AF82: 11 | AG82: 1.491632653 | AJ82: 11 | AK82: 0.8058071327
F83: 2035 | G83: 121.6326531 | H83: 174.6938776 | I83: 391.4285714 | K83: 12 | L83: 1.151625889 | O83: 12 | P83: 1.086781129 | R83: 12 | S83: 1.351625889 | V83: 12 | W83: 0.9867811288 | Y83: 12 | Z83: 1.551625889 | AC83: 12 | AD83: 0.8867811288 | AF83: 12 | AG83: 1.751625889 | AJ83: 12 | AK83: 0.7867811288
F84: 2036 | G84: 123.5918367 | H84: 177.6326531 | I84: 374.2857143 | O84: 13 | P84: 1.05000476 | V84: 13 | W84: 0.9500047598 | AC84: 13 | AD84: 0.8500047598 | AJ84: 13 | AK84: 0.7500047598
F85: 2037 | G85: 125.5510204 | H85: 180.5714286 | I85: 357.1428571 | O85: 14 | P85: 1.013420127 | V85: 14 | W85: 0.9134201267 | AC85: 14 | AD85: 0.8134201267 | AJ85: 14 | AK85: 0.7134201267
F86: 2038 | G86: 127.5102041 | H86: 183.5102041 | I86: 340 | O86: 15 | P86: 0.986615429 | V86: 15 | W86: 0.936615429 | AC86: 15 | AD86: 0.886615429 | AJ86: 15 | AK86: 0.836615429
F87: 2039 | G87: 129.4693878 | H87: 186.4489796 | I87: 322.8571429 | O87: 16 | P87: 1.025638851 | V87: 16 | W87: 1.060932969 | AC87: 16 | AD87: 1.048432969 | AJ87: 16 | AK87: 1.035932969
F88: 2040 | G88: 131.4285714 | H88: 189.3877551 | I88: 305.7142857 | O88: 17 | P88: 1.086570106 | V88: 17 | W88: 1.121864223 | AC88: 17 | AD88: 1.109364223 | AJ88: 17 | AK88: 1.096864223
O89: 18 | P89: 1.187025599 | V89: 18 | W89: 1.222319716 | AC89: 18 | AD89: 1.272319716 | AJ89: 18 | AK89: 1.322319716
O90: 19 | P90: 1.252210943 | V90: 19 | W90: 1.287505061 | AC90: 19 | AD90: 1.337505061 | AJ90: 19 | AK90: 1.387505061
O91: 20 | P91: 1.281222316 | V91: 20 | W91: 1.316516434 | AC91: 20 | AD91: 1.366516434 | AJ91: 20 | AK91: 1.416516434
O92: 21 | P92: 1.196650084 | V92: 21 | W92: 1.231944201 | AC92: 21 | AD92: 1.281944201 | AJ92: 21 | AK92: 1.331944201
O93: 22 | P93: 1.064730539 | V93: 22 | W93: 1.100024656 | AC93: 22 | AD93: 1.150024656 | AJ93: 22 | AK93: 1.200024656
O94: 23 | P94: 0.9788316198 | V94: 23 | W94: 1.014125737 | AC94: 23 | AD94: 1.064125737 | AJ94: 23 | AK94: 1.114125737
O95: 24 | P95: 0.8440228555 | V95: 24 | W95: 0.8793169732 | AC95: 24 | AD95: 0.9293169732 | AJ95: 24 | AK95: 0.9793169732
E145: =IF(E6="Fixní",0,E7) -> 0 | F145: =IF(F6="Fixní",0,F7) -> 0 | G145: 0 | H145: 0 | I145: 0

Sheet Výpočet
Y2: Výroba 1
Y3: měsíc | AA3: den v týdnu | AC3: hodina
R4: =_xlfn.XLOOKUP(Výstup!E4,Data!C2:AC2,Data!C1:AC1) -> 6 | Y4: 1 | Z4: =SUMIFS($R$13:$R$8772,$M$13:$M$8772,Y4)/$R$11 -> 0.1353718205 | AA4: 1 | AB4: =SUMIFS($R$13:$R$8772,$L$13:$L$8772,AA4)/$R$11 -> 0.1436089701 | AC4: 1 | AD4: =SUMIFS($R$13:$R$8772,$K$13:$K$8772,AC4)/$R$11 -> 0.04069198955
Y5: 2 | Z5: 0.1128152814 | AA5: 2 | AB5: 0.1434762636 | AC5: 2 | AD5: 0.04035744678
Y6: 3 | Z6: 0.1099226343 | AA6: 3 | AB6: 0.1435955407 | AC6: 3 | AD6: 0.04013677289
Y7: 4 | Z7: 0.06813552356 | AA7: 4 | AB7: 0.1433480275 | AC7: 4 | AD7: 0.03980323782
Y8: 5 | Z8: 0.05524841788 | AA8: 5 | AB8: 0.139806037 | AC8: 5 | AD8: 0.03921209115
Y9: 6 | Z9: 0.04944058235 | AA9: 6 | AB9: 0.1469043551 | AC9: 6 | AD9: 0.03855257439
Y10: 7 | Z10: 0.05158756662 | AA10: 7 | AB10: 0.1392608061 | AC10: 7 | AD10: 0.03781949366
Q11: Suma výroby (MWh) | R11: =SUM(R13:R8772) -> 3679.931559 | Y11: 8 | Z11: 0.04764651731 | AC11: 8 | AD11: 0.03772267383
Q12: Hodina v roce | R12: Průměrná výroba (MWh) | Y12: 9 | Z12: 0.06373746819 | AC12: 9 | AD12: 0.03883077484
J13: 2021-01-01 | K13: 1 | L13: =WEEKDAY(J13) -> 6 | M13: =MONTH(J13:J8772) -> 1 | Q13: 1 | R13: =IF(Výstup!$E$9="Pay as produced",IF(Výstup!$E$3="Wind",INDEX(Data!$C$3:$AC$8762,Výpočet!Q13,Výpočet!$R$4),INDEX(Data!$AH$3:$BH$8762,Výpočet!Q13,Výpočet!$R$4))*Výstup!$E$10,Výstup!$E$10) -> 0.6705565517 | Y13: 10 | Z13: 0.0885957341 | AC13: 10 | AD13: 0.0409710311
J14: 2021-01-01 | K14: 2 | L14: =WEEKDAY(J14) -> 6 | M14: 1 | Q14: 2 | R14: =IF(Výstup!$E$9="Pay as produced",IF(Výstup!$E$3="Wind",INDEX(Data!$C$3:$AC$8762,Výpočet!Q14,Výpočet!$R$4),INDEX(Data!$AH$3:$BH$8762,Výpočet!Q14,Výpočet!$R$4))*Výstup!$E$10,Výstup!$E$10) -> 0.6493813793 | Y14: 11 | Z14: 0.09656562445 | AC14: 11 | AD14: 0.04321615531
J15: 2021-01-01 | K15: 3 | L15: 6 | M15: 1 | Q15: 3 | R15: =IF(Výstup!$E$9="Pay as produced",IF(Výstup!$E$3="Wind",INDEX(Data!$C$3:$AC$8762,Výpočet!Q15,Výpočet!$R$4),INDEX(Data!$AH$3:$BH$8762,Výpočet!Q15,Výpočet!$R$4))*Výstup!$E$10,Výstup!$E$10) -> 0.6337510345 | Y15: 12 | Z15: 0.1209328293 | AC15: 12 | AD15: 0.04494226425
J16: 2021-01-01 | K16: 4 | L16: 6 | M16: 1 | Q16: 4 | R16: =IF(Výstup!$E$9="Pay as produced",IF(Výstup!$E$3="Wind",INDEX(Data!$C$3:$AC$8762,Výpočet!Q16,Výpočet!$R$4),INDEX(Data!$AH$3:$BH$8762,Výpočet!Q16,Výpočet!$R$4))*Výstup!$E$10,Výstup!$E$10) -> 0.6186751724 | AC16: 13 | AD16: 0.04591293635
J17: 2021-01-01 | K17: 5 | L17: 6 | M17: 1 | Q17: 5 | R17: =IF(Výstup!$E$9="Pay as produced",IF(Výstup!$E$3="Wind",INDEX(Data!$C$3:$AC$8762,Výpočet!Q17,Výpočet!$R$4),INDEX(Data!$AH$3:$BH$8762,Výpočet!Q17,Výpočet!$R$4))*Výstup!$E$10,Výstup!$E$10) -> 0.607702069 | AC17: 14 | AD17: 0.04615588108
J18: 2021-01-01 | K18: 6 | L18: 6 | M18: 1 | Q18: 6 | R18: =IF(Výstup!$E$9="Pay as produced",IF(Výstup!$E$3="Wind",INDEX(Data!$C$3:$AC$8762,Výpočet!Q18,Výpočet!$R$4),INDEX(Data!$AH$3:$BH$8762,Výpočet!Q18,Výpočet!$R$4))*Výstup!$E$10,Výstup!$E$10) -> 0.6016213793 | Z18: Hodnota profilu | AC18: 15 | AD18: 0.0458669651
J19: 2021-01-01 | K19: 7 | L19: 6 | M19: 1 | Q19: 7 | R19: =IF(Výstup!$E$9="Pay as produced",IF(Výstup!$E$3="Wind",INDEX(Data!$C$3:$AC$8762,Výpočet!Q19,Výpočet!$R$4),INDEX(Data!$AH$3:$BH$8762,Výpočet!Q19,Výpočet!$R$4))*Výstup!$E$10,Výstup!$E$10) -> 0.5990296552 | Y19: 2025 | Z19: =SUMPRODUCT(Z4:Z15,$V$33:$V$44)*SUMPRODUCT(AB4:AB10,$X$33:$X$39)*SUMPRODUCT(AD4:AD27,$Z$33:$Z$56) -> 1.023216622 | AC19: 16 | AD19: 0.04516576353
J20: 2021-01-01 | K20: 8 | L20: 6 | M20: 1 | Q20: 8 | R20: =IF(Výstup!$E$9="Pay as produced",IF(Výstup!$E$3="Wind",INDEX(Data!$C$3:$AC$8762,Výpočet!Q20,Výpočet!$R$4),INDEX(Data!$AH$3:$BH$8762,Výpočet!Q20,Výpočet!$R$4))*Výstup!$E$10,Výstup!$E$10) -> 0.5976144828 | Y20: 2030 | Z20: =SUMPRODUCT(Z4:Z15,$AC$33:$AC$44)*SUMPRODUCT(AB4:AB10,$AE$33:$AE$39)*SUMPRODUCT(AD4:AD27,$AG$33:$AG$56) -> 1.056652073 | AC20: 17 | AD20: 0.04414718462
J21: 2021-01-01 | K21: 9 | L21: 6 | M21: 1 | Q21: 9 | R21: =IF(Výstup!$E$9="Pay as produced",IF(Výstup!$E$3="Wind",INDEX(Data!$C$3:$AC$8762,Výpočet!Q21,Výpočet!$R$4),INDEX(Data!$AH$3:$BH$8762,Výpočet!Q21,Výpočet!$R$4))*Výstup!$E$10,Výstup!$E$10) -> 0.5926365517 | Y21: 2035 | Z21: =SUMPRODUCT(Z4:Z15,$AJ$33:$AJ$44)*SUMPRODUCT(AB4:AB10,$AL$33:$AL$39)*SUMPRODUCT(AD4:AD27,$AN$33:$AN$56) -> 1.089848723 | AC21: 18 | AD21: 0.04268476687
J22: 2021-01-01 | K22: 10 | L22: 6 | M22: 1 | Q22: 10 | R22: =IF(Výstup!$E$9="Pay as produced",IF(Výstup!$E$3="Wind",INDEX(Data!$C$3:$AC$8762,Výpočet!Q22,Výpočet!$R$4),INDEX(Data!$AH$3:$BH$8762,Výpočet!Q22,Výpočet!$R$4))*Výstup!$E$10,Výstup!$E$10) -> 0.5805386207 | Y22: 2040 | Z22: =SUMPRODUCT(Z4:Z15,$AQ$33:$AQ$44)*SUMPRODUCT(AB4:AB10,$AS$33:$AS$39)*SUMPRODUCT(AD4:AD27,$AU$33:$AU$56) -> 1.124015391 | AC22: 19 | AD22: 0.04144523069
J23: 2021-01-01 | K23: 11 | L23: 6 | M23: 1 | Q23: 11 | R23: =IF(Výstup!$E$9="Pay as produced",IF(Výstup!$E$3="Wind",INDEX(Data!$C$3:$AC$8762,Výpočet!Q23,Výpočet!$R$4),INDEX(Data!$AH$3:$BH$8762,Výpočet!Q23,Výpočet!$R$4))*Výstup!$E$10,Výstup!$E$10) -> 0.5815786207 | AC23: 20 | AD23: 0.04115715562
J24: 2021-01-01 | K24: 12 | L24: 6 | M24: 1 | Q24: 12 | R24: =IF(Výstup!$E$9="Pay as produced",IF(Výstup!$E$3="Wind",INDEX(Data!$C$3:$AC$8762,Výpočet!Q24,Výpočet!$R$4),INDEX(Data!$AH$3:$BH$8762,Výpočet!Q24,Výpočet!$R$4))*Výstup!$E$10,Výstup!$E$10) -> 0.5861082759 | AC24: 21 | AD24: 0.04132687111
J25: 2021-01-01 | K25: 13 | L25: 6 | M25: 1 | Q25: 13 | R25: =IF(Výstup!$E$9="Pay as produced",IF(Výstup!$E$3="Wind",INDEX(Data!$C$3:$AC$8762,Výpočet!Q25,Výpočet!$R$4),INDEX(Data!$AH$3:$BH$8762,Výpočet!Q25,Výpočet!$R$4))*Výstup!$E$10,Výstup!$E$10) -> 0.5905517241 | AC25: 22 | AD25: 0.04141356687
J26: 2021-01-01 | K26: 14 | L26: 6 | M26: 1 | Q26: 14 | R26: =IF(Výstup!$E$9="Pay as produced",IF(Výstup!$E$3="Wind",INDEX(Data!$C$3:$AC$8762,Výpočet!Q26,Výpočet!$R$4),INDEX(Data!$AH$3:$BH$8762,Výpočet!Q26,Výpočet!$R$4))*Výstup!$E$10,Výstup!$E$10) -> 0.5962648276 | AC26: 23 | AD26: 0.04135318194
J27: 2021-01-01 | K27: 15 | L27: 6 | M27: 1 | Q27: 15 | R27: =IF(Výstup!$E$9="Pay as produced",IF(Výstup!$E$3="Wind",INDEX(Data!$C$3:$AC$8762,Výpočet!Q27,Výpočet!$R$4),INDEX(Data!$AH$3:$BH$8762,Výpočet!Q27,Výpočet!$R$4))*Výstup!$E$10,Výstup!$E$10) -> 0.6123765517 | AC27: 24 | AD27: 0.04095716596
J28: 2021-01-01 | K28: 16 | L28: 6 | M28: 1 | Q28: 16 | R28: =IF(Výstup!$E$9="Pay as produced",IF(Výstup!$E$3="Wind",INDEX(Data!$C$3:$AC$8762,Výpočet!Q28,Výpočet!$R$4),INDEX(Data!$AH$3:$BH$8762,Výpočet!Q28,Výpočet!$R$4))*Výstup!$E$10,Výstup!$E$10) -> 0.6374358621
J29: 2021-01-01 | K29: 17 | L29: 6 | M29: 1 | Q29: 17 | R29: =IF(Výstup!$E$9="Pay as produced",IF(Výstup!$E$3="Wind",INDEX(Data!$C$3:$AC$8762,Výpočet!Q29,Výpočet!$R$4),INDEX(Data!$AH$3:$BH$8762,Výpočet!Q29,Výpočet!$R$4))*Výstup!$E$10,Výstup!$E$10) -> 0.6568406897
J30: 2021-01-01 | K30: 18 | L30: 6 | M30: 1 | Q30: 18 | R30: =IF(Výstup!$E$9="Pay as produced",IF(Výstup!$E$3="Wind",INDEX(Data!$C$3:$AC$8762,Výpočet!Q30,Výpočet!$R$4),INDEX(Data!$AH$3:$BH$8762,Výpočet!Q30,Výpočet!$R$4))*Výstup!$E$10,Výstup!$E$10) -> 0.6686558621 | U30: 2025 | AB30: 2030 | AI30: 2035 | AP30: 2040
J31: 2021-01-01 | K31: 19 | L31: 6 | M31: 1 | Q31: 19 | R31: =IF(Výstup!$E$9="Pay as produced",IF(Výstup!$E$3="Wind",INDEX(Data!$C$3:$AC$8762,Výpočet!Q31,Výpočet!$R$4),INDEX(Data!$AH$3:$BH$8762,Výpočet!Q31,Výpočet!$R$4))*Výstup!$E$10,Výstup!$E$10) -> 0.6795075862 | U31: Spotové ceny | AB31: Spotové ceny | AI31: Spotové ceny | AP31: Spotové ceny
J32: 2021-01-01 | K32: 20 | L32: 6 | M32: 1 | Q32: 20 | R32: =IF(Výstup!$E$9="Pay as produced",IF(Výstup!$E$3="Wind",INDEX(Data!$C$3:$AC$8762,Výpočet!Q32,Výpočet!$R$4),INDEX(Data!$AH$3:$BH$8762,Výpočet!Q32,Výpočet!$R$4))*Výstup!$E$10,Výstup!$E$10) -> 0.6883786207 | U32: měsíc | W32: den v týdnu | Y32: hodina | AB32: měsíc | AD32: den v týdnu | AF32: hodina | AI32: měsíc | AK32: den v týdnu | AM32: hodina | AP32: měsíc | AR32: den v týdnu | AT32: hodina
J33: 2021-01-01 | K33: 21 | L33: 6 | M33: 1 | Q33: 21 | R33: =IF(Výstup!$E$9="Pay as produced",IF(Výstup!$E$3="Wind",INDEX(Data!$C$3:$AC$8762,Výpočet!Q33,Výpočet!$R$4),INDEX(Data!$AH$3:$BH$8762,Výpočet!Q33,Výpočet!$R$4))*Výstup!$E$10,Výstup!$E$10) -> 0.6962351724 | U33: 1 | V33: =Výstup!L72 -> 1.17033424 | W33: 1 | X33: =Výstup!N72 -> 1.05809357 | Y33: 1 | Z33: =Výstup!P72 -> 0.7907983234 | AB33: 1 | AC33: =Výstup!S72 -> 1.37033424 | AD33: 1 | AE33: =Výstup!U72 -> 1.05809357 | AF33: 1 | AG33: =Výstup!W72 -> 0.826092441 | AI33: 1 | AJ33: =Výstup!Z72 -> 1.57033424 | AK33: 1 | AL33: =Výstup!AB72 -> 1.05809357 | AM33: 1 | AN33: =Výstup!AD72 -> 0.876092441 | AP33: 1 | AQ33: =Výstup!AG72 -> 1.77033424 | AR33: 1 | AS33: =Výstup!AI72 -> 1.05809357 | AT33: 1 | AU33: =Výstup!AK72 -> 0.926092441
J34: 2021-01-01 | K34: 22 | L34: 6 | M34: 1 | Q34: 22 | R34: =IF(Výstup!$E$9="Pay as produced",IF(Výstup!$E$3="Wind",INDEX(Data!$C$3:$AC$8762,Výpočet!Q34,Výpočet!$R$4),INDEX(Data!$AH$3:$BH$8762,Výpočet!Q34,Výpočet!$R$4))*Výstup!$E$10,Výstup!$E$10) -> 0.6994537931 | U34: 2 | V34: =Výstup!L73 -> 0.9574117888 | W34: 2 | X34: =Výstup!N73 -> 1.105430504 | Y34: 2 | Z34: =Výstup!P73 -> 0.7451425469 | AB34: 2 | AC34: =Výstup!S73 -> 1.057411789 | AD34: 2 | AE34: =Výstup!U73 -> 1.105430504 | AF34: 2 | AG34: =Výstup!W73 -> 0.7804366645 | AI34: 2 | AJ34: =Výstup!Z73 -> 1.157411789 | AK34: 2 | AL34: =Výstup!AB73 -> 1.105430504 | AM34: 2 | AN34: =Výstup!AD73 -> 0.8304366645 | AP34: 2 | AQ34: =Výstup!AG73 -> 1.257411789 | AR34: 2 | AS34: =Výstup!AI73 -> 1.105430504 | AT34: 2 | AU34: =Výstup!AK73 -> 0.8804366645
J35: 2021-01-01 | K35: 23 | L35: 6 | M35: 1 | Q35: 23 | R35: =IF(Výstup!$E$9="Pay as produced",IF(Výstup!$E$3="Wind",INDEX(Data!$C$3:$AC$8762,Výpočet!Q35,Výpočet!$R$4),INDEX(Data!$AH$3:$BH$8762,Výpočet!Q35,Výpočet!$R$4))*Výstup!$E$10,Výstup!$E$10) -> 0.7015310345 | U35: 3 | V35: =Výstup!L74 -> 0.8056128043 | W35: 3 | X35: =Výstup!N74 -> 1.109689155 | Y35: 3 | Z35: =Výstup!P74 -> 0.711034209 | AB35: 3 | AC35: =Výstup!S74 -> 0.7556128043 | AD35: 3 | AE35: =Výstup!U74 -> 1.109689155 | AF35: 3 | AG35: =Výstup!W74 -> 0.7463283267 | AI35: 3 | AJ35: =Výstup!Z74 -> 0.7056128043 | AK35: 3 | AL35: =Výstup!AB74 -> 1.109689155 | AM35: 3 | AN35: =Výstup!AD74 -> 0.7963283267 | AP35: 3 | AQ35: =Výstup!AG74 -> 0.6306128043 | AR35: 3 | AS35: =Výstup!AI74 -> 1.109689155 | AT35: 3 | AU35: =Výstup!AK74 -> 0.8463283267
J36: 2021-01-01 | K36: 24 | L36: 6 | M36: 1 | Q36: 24 | R36: =IF(Výstup!$E$9="Pay as produced",IF(Výstup!$E$3="Wind",INDEX(Data!$C$3:$AC$8762,Výpočet!Q36,Výpočet!$R$4),INDEX(Data!$AH$3:$BH$8762,Výpočet!Q36,Výpočet!$R$4))*Výstup!$E$10,Výstup!$E$10) -> 0.7026075862 | U36: 4 | V36: =Výstup!L75 -> 0.7642370938 | W36: 4 | X36: =Výstup!N75 -> 1.097806091 | Y36: 4 | Z36: =Výstup!P75 -> 0.6893463234 | AB36: 4 | AC36: =Výstup!S75 -> 0.7142370938 | AD36: 4 | AE36: =Výstup!U75 -> 1.097806091 | AF36: 4 | AG36: =Výstup!W75 -> 0.7246404411 | AI36: 4 | AJ36: =Výstup!Z75 -> 0.6642370938 | AK36: 4 | AL36: =Výstup!AB75 -> 1.097806091 | AM36: 4 | AN36: =Výstup!AD75 -> 0.7746404411 | AP36: 4 | AQ36: =Výstup!AG75 -> 0.5642370938 | AR36: 4 | AS36: =Výstup!AI75 -> 1.097806091 | AT36: 4 | AU36: =Výstup!AK75 -> 0.8246404411
J37: 2021-01-02 | K37: 1 | L37: 7 | M37: 1 | Q37: 25 | R37: =IF(Výstup!$E$9="Pay as produced",IF(Výstup!$E$3="Wind",INDEX(Data!$C$3:$AC$8762,Výpočet!Q37,Výpočet!$R$4),INDEX(Data!$AH$3:$BH$8762,Výpočet!Q37,Výpočet!$R$4))*Výstup!$E$10,Výstup!$E$10) -> 0.7012227586 | U37: 5 | V37: =Výstup!L76 -> 0.7856309323 | W37: 5 | X37: =Výstup!N76 -> 1.054041103 | Y37: 5 | Z37: =Výstup!P76 -> 0.7040846974 | AB37: 5 | AC37: =Výstup!S76 -> 0.6856309323 | AD37: 5 | AE37: =Výstup!U76 -> 1.054041103 | AF37: 5 | AG37: =Výstup!W76 -> 0.739378815 | AI37: 5 | AJ37: =Výstup!Z76 -> 0.5856309323 | AK37: 5 | AL37: =Výstup!AB76 -> 1.054041103 | AM37: 5 | AN37: =Výstup!AD76 -> 0.789378815 | AP37: 5 | AQ37: =Výstup!AG76 -> 0.4856309323 | AR37: 5 | AS37: =Výstup!AI76 -> 1.054041103 | AT37: 5 | AU37: =Výstup!AK76 -> 0.839378815
J38: 2021-01-02 | K38: 2 | L38: 7 | M38: 1 | Q38: 26 | R38: =IF(Výstup!$E$9="Pay as produced",IF(Výstup!$E$3="Wind",INDEX(Data!$C$3:$AC$8762,Výpočet!Q38,Výpočet!$R$4),INDEX(Data!$AH$3:$BH$8762,Výpočet!Q38,Výpočet!$R$4))*Výstup!$E$10,Výstup!$E$10) -> 0.6970386207 | U38: 6 | V38: =Výstup!L77 -> 0.9138819264 | W38: 6 | X38: =Výstup!N77 -> 0.8606344625 | Y38: 6 | Z38: =Výstup!P77 -> 0.7654272013 | AB38: 6 | AC38: =Výstup!S77 -> 0.8138819264 | AD38: 6 | AE38: =Výstup!U77 -> 0.8606344625 | AF38: 6 | AG38: =Výstup!W77 -> 0.8007213189 | AI38: 6 | AJ38: =Výstup!Z77 -> 0.7138819264 | AK38: 6 | AL38: =Výstup!AB77 -> 0.8606344625 | AM38: 6 | AN38: =Výstup!AD77 -> 0.8507213189 | AP38: 6 | AQ38: =Výstup!AG77 -> 0.6138819264 | AR38: 6 | AS38: =Výstup!AI77 -> 0.8606344625 | AT38: 6 | AU38: =Výstup!AK77 -> 0.9007213189
J39: 2021-01-02 | K39: 3 | L39: 7 | M39: 1 | Q39: 27 | R39: =IF(Výstup!$E$9="Pay as produced",IF(Výstup!$E$3="Wind",INDEX(Data!$C$3:$AC$8762,Výpočet!Q39,Výpočet!$R$4),INDEX(Data!$AH$3:$BH$8762,Výpočet!Q39,Výpočet!$R$4))*Výstup!$E$10,Výstup!$E$10) -> 0.6929937931 | U39: 7 | V39: =Výstup!L78 -> 1.03002146 | W39: 7 | X39: =Výstup!N78 -> 0.7141300051 | Y39: 7 | Z39: =Výstup!P78 -> 0.9549081416 | AB39: 7 | AC39: =Výstup!S78 -> 0.93002146 | AD39: 7 | AE39: =Výstup!U78 -> 0.7141300051 | AF39: 7 | AG39: =Výstup!W78 -> 0.9902022592 | AI39: 7 | AJ39: =Výstup!Z78 -> 0.83002146 | AK39: 7 | AL39: =Výstup!AB78 -> 0.7141300051 | AM39: 7 | AN39: =Výstup!AD78 -> 0.9777022592 | AP39: 7 | AQ39: =Výstup!AG78 -> 0.73002146 | AR39: 7 | AS39: =Výstup!AI78 -> 0.7141300051 | AT39: 7 | AU39: =Výstup!AK78 -> 0.9652022592
J40: 2021-01-02 | K40: 4 | L40: 7 | M40: 1 | Q40: 28 | R40: =IF(Výstup!$E$9="Pay as produced",IF(Výstup!$E$3="Wind",INDEX(Data!$C$3:$AC$8762,Výpočet!Q40,Výpočet!$R$4),INDEX(Data!$AH$3:$BH$8762,Výpočet!Q40,Výpočet!$R$4))*Výstup!$E$10,Výstup!$E$10) -> 0.6837648276 | U40: 8 | V40: =Výstup!L79 -> 1.018835563 | Y40: 8 | Z40: =Výstup!P79 -> 1.130081586 | AB40: 8 | AC40: =Výstup!S79 -> 0.9188355628 | AF40: 8 | AG40: =Výstup!W79 -> 1.165375703 | AI40: 8 | AJ40: =Výstup!Z79 -> 0.8188355628 | AM40: 8 | AN40: =Výstup!AD79 -> 1.152875703 | AP40: 8 | AQ40: =Výstup!AG79 -> 0.7188355628 | AT40: 8 | AU40: =Výstup!AK79 -> 1.140375703
J41: 2021-01-02 | K41: 5 | L41: 7 | M41: 1 | Q41: 29 | R41: =IF(Výstup!$E$9="Pay as produced",IF(Výstup!$E$3="Wind",INDEX(Data!$C$3:$AC$8762,Výpočet!Q41,Výpočet!$R$4),INDEX(Data!$AH$3:$BH$8762,Výpočet!Q41,Výpočet!$R$4))*Výstup!$E$10,Výstup!$E$10) -> 0.6740703448 | U41: 9 | V41: =Výstup!L80 -> 1.112709274 | Y41: 9 | Z41: =Výstup!P80 -> 1.185646861 | AB41: 9 | AC41: =Výstup!S80 -> 1.062709274 | AF41: 9 | AG41: =Výstup!W80 -> 1.135646861 | AI41: 9 | AJ41: =Výstup!Z80 -> 1.012709274 | AM41: 9 | AN41: =Výstup!AD80 -> 1.085646861 | AP41: 9 | AQ41: =Výstup!AG80 -> 0.9377092736 | AT41: 9 | AU41: =Výstup!AK80 -> 1.035646861
J42: 2021-01-02 | K42: 6 | L42: 7 | M42: 1 | Q42: 30 | R42: =IF(Výstup!$E$9="Pay as produced",IF(Výstup!$E$3="Wind",INDEX(Data!$C$3:$AC$8762,Výpočet!Q42,Výpočet!$R$4),INDEX(Data!$AH$3:$BH$8762,Výpočet!Q42,Výpočet!$R$4))*Výstup!$E$10,Výstup!$E$10) -> 0.6659 | U42: 10 | V42: =Výstup!L81 -> 1.09833893 | Y42: 10 | Z42: =Výstup!P81 -> 1.160591854 | AB42: 10 | AC42: =Výstup!S81 -> 1.04833893 | AF42: 10 | AG42: =Výstup!W81 -> 1.060591854 | AI42: 10 | AJ42: =Výstup!Z81 -> 0.9983389303 | AM42: 10 | AN42: =Výstup!AD81 -> 0.9605918542 | AP42: 10 | AQ42: =Výstup!AG81 -> 1.04833893 | AT42: 10 | AU42: =Výstup!AK81 -> 0.8605918542
J43: 2021-01-02 | K43: 7 | L43: 7 | M43: 1 | Q43: 31 | R43: =IF(Výstup!$E$9="Pay as produced",IF(Výstup!$E$3="Wind",INDEX(Data!$C$3:$AC$8762,Výpočet!Q43,Výpočet!$R$4),INDEX(Data!$AH$3:$BH$8762,Výpočet!Q43,Výpočet!$R$4))*Výstup!$E$10,Výstup!$E$10) -> 0.6616868966 | U43: 11 | V43: =Výstup!L82 -> 1.191632653 | Y43: 11 | Z43: =Výstup!P82 -> 1.105807133 | AB43: 11 | AC43: =Výstup!S82 -> 1.291632653 | AF43: 11 | AG43: =Výstup!W82 -> 1.005807133 | AI43: 11 | AJ43: =Výstup!Z82 -> 1.391632653 | AM43: 11 | AN43: =Výstup!AD82 -> 0.9058071327 | AP43: 11 | AQ43: =Výstup!AG82 -> 1.491632653 | AT43: 11 | AU43: =Výstup!AK82 -> 0.8058071327
J44: 2021-01-02 | K44: 8 | L44: 7 | M44: 1 | Q44: 32 | R44: =IF(Výstup!$E$9="Pay as produced",IF(Výstup!$E$3="Wind",INDEX(Data!$C$3:$AC$8762,Výpočet!Q44,Výpočet!$R$4),INDEX(Data!$AH$3:$BH$8762,Výpočet!Q44,Výpočet!$R$4))*Výstup!$E$10,Výstup!$E$10) -> 0.6578682759 | U44: 12 | V44: =Výstup!L83 -> 1.151625889 | Y44: 12 | Z44: =Výstup!P83 -> 1.086781129 | AB44: 12 | AC44: =Výstup!S83 -> 1.351625889 | AF44: 12 | AG44: =Výstup!W83 -> 0.9867811288 | AI44: 12 | AJ44: =Výstup!Z83 -> 1.551625889 | AM44: 12 | AN44: =Výstup!AD83 -> 0.8867811288 | AP44: 12 | AQ44: =Výstup!AG83 -> 1.751625889 | AT44: 12 | AU44: =Výstup!AK83 -> 0.7867811288
J45: 2021-01-02 | K45: 9 | L45: 7 | M45: 1 | Q45: 33 | R45: =IF(Výstup!$E$9="Pay as produced",IF(Výstup!$E$3="Wind",INDEX(Data!$C$3:$AC$8762,Výpočet!Q45,Výpočet!$R$4),INDEX(Data!$AH$3:$BH$8762,Výpočet!Q45,Výpočet!$R$4))*Výstup!$E$10,Výstup!$E$10) -> 0.6495089655 | Y45: 13 | Z45: =Výstup!P84 -> 1.05000476 | AF45: 13 | AG45: =Výstup!W84 -> 0.9500047598 | AM45: 13 | AN45: =Výstup!AD84 -> 0.8500047598 | AT45: 13 | AU45: =Výstup!AK84 -> 0.7500047598
J46: 2021-01-02 | K46: 10 | L46: 7 | M46: 1 | Q46: 34 | R46: =IF(Výstup!$E$9="Pay as produced",IF(Výstup!$E$3="Wind",INDEX(Data!$C$3:$AC$8762,Výpočet!Q46,Výpočet!$R$4),INDEX(Data!$AH$3:$BH$8762,Výpočet!Q46,Výpočet!$R$4))*Výstup!$E$10,Výstup!$E$10) -> 0.6379089655 | Y46: 14 | Z46: =Výstup!P85 -> 1.013420127 | AF46: 14 | AG46: =Výstup!W85 -> 0.9134201267 | AM46: 14 | AN46: =Výstup!AD85 -> 0.8134201267 | AT46: 14 | AU46: =Výstup!AK85 -> 0.7134201267
J47: 2021-01-02 | K47: 11 | L47: 7 | M47: 1 | Q47: 35 | R47: =IF(Výstup!$E$9="Pay as produced",IF(Výstup!$E$3="Wind",INDEX(Data!$C$3:$AC$8762,Výpočet!Q47,Výpočet!$R$4),INDEX(Data!$AH$3:$BH$8762,Výpočet!Q47,Výpočet!$R$4))*Výstup!$E$10,Výstup!$E$10) -> 0.6346289655 | Y47: 15 | Z47: =Výstup!P86 -> 0.986615429 | AF47: 15 | AG47: =Výstup!W86 -> 0.936615429 | AM47: 15 | AN47: =Výstup!AD86 -> 0.886615429 | AT47: 15 | AU47: =Výstup!AK86 -> 0.836615429
J48: 2021-01-02 | K48: 12 | L48: 7 | M48: 1 | Q48: 36 | R48: =IF(Výstup!$E$9="Pay as produced",IF(Výstup!$E$3="Wind",INDEX(Data!$C$3:$AC$8762,Výpočet!Q48,Výpočet!$R$4),INDEX(Data!$AH$3:$BH$8762,Výpočet!Q48,Výpočet!$R$4))*Výstup!$E$10,Výstup!$E$10) -> 0.6315510345 | Y48: 16 | Z48: =Výstup!P87 -> 1.025638851 | AF48: 16 | AG48: =Výstup!W87 -> 1.060932969 | AM48: 16 | AN48: =Výstup!AD87 -> 1.048432969 | AT48: 16 | AU48: =Výstup!AK87 -> 1.035932969
J49: 2021-01-02 | K49: 13 | L49: 7 | M49: 1 | Q49: 37 | R49: =IF(Výstup!$E$9="Pay as produced",IF(Výstup!$E$3="Wind",INDEX(Data!$C$3:$AC$8762,Výpočet!Q49,Výpočet!$R$4),INDEX(Data!$AH$3:$BH$8762,Výpočet!Q49,Výpočet!$R$4))*Výstup!$E$10,Výstup!$E$10) -> 0.6206103448 | Y49: 17 | Z49: =Výstup!P88 -> 1.086570106 | AF49: 17 | AG49: =Výstup!W88 -> 1.121864223 | AM49: 17 | AN49: =Výstup!AD88 -> 1.109364223 | AT49: 17 | AU49: =Výstup!AK88 -> 1.096864223
J50: 2021-01-02 | K50: 14 | L50: 7 | M50: 1 | Q50: 38 | R50: =IF(Výstup!$E$9="Pay as produced",IF(Výstup!$E$3="Wind",INDEX(Data!$C$3:$AC$8762,Výpočet!Q50,Výpočet!$R$4),INDEX(Data!$AH$3:$BH$8762,Výpočet!Q50,Výpočet!$R$4))*Výstup!$E$10,Výstup!$E$10) -> 0.6067682759 | Y50: 18 | Z50: =Výstup!P89 -> 1.187025599 | AF50: 18 | AG50: =Výstup!W89 -> 1.222319716 | AM50: 18 | AN50: =Výstup!AD89 -> 1.272319716 | AT50: 18 | AU50: =Výstup!AK89 -> 1.322319716
J51: 2021-01-02 | K51: 15 | L51: 7 | M51: 1 | Q51: 39 | R51: =IF(Výstup!$E$9="Pay as produced",IF(Výstup!$E$3="Wind",INDEX(Data!$C$3:$AC$8762,Výpočet!Q51,Výpočet!$R$4),INDEX(Data!$AH$3:$BH$8762,Výpočet!Q51,Výpočet!$R$4))*Výstup!$E$10,Výstup!$E$10) -> 0.5979048276 | Y51: 19 | Z51: =Výstup!P90 -> 1.252210943 | AF51: 19 | AG51: =Výstup!W90 -> 1.287505061 | AM51: 19 | AN51: =Výstup!AD90 -> 1.337505061 | AT51: 19 | AU51: =Výstup!AK90 -> 1.387505061
J52: 2021-01-02 | K52: 16 | L52: 7 | M52: 1 | Q52: 40 | R52: =IF(Výstup!$E$9="Pay as produced",IF(Výstup!$E$3="Wind",INDEX(Data!$C$3:$AC$8762,Výpočet!Q52,Výpočet!$R$4),INDEX(Data!$AH$3:$BH$8762,Výpočet!Q52,Výpočet!$R$4))*Výstup!$E$10,Výstup!$E$10) -> 0.5886606897 | Y52: 20 | Z52: =Výstup!P91 -> 1.281222316 | AF52: 20 | AG52: =Výstup!W91 -> 1.316516434 | AM52: 20 | AN52: =Výstup!AD91 -> 1.366516434 | AT52: 20 | AU52: =Výstup!AK91 -> 1.416516434
J53: 2021-01-02 | K53: 17 | L53: 7 | M53: 1 | Q53: 41 | R53: =IF(Výstup!$E$9="Pay as produced",IF(Výstup!$E$3="Wind",INDEX(Data!$C$3:$AC$8762,Výpočet!Q53,Výpočet!$R$4),INDEX(Data!$AH$3:$BH$8762,Výpočet!Q53,Výpočet!$R$4))*Výstup!$E$10,Výstup!$E$10) -> 0.5756889655 | Y53: 21 | Z53: =Výstup!P92 -> 1.196650084 | AF53: 21 | AG53: =Výstup!W92 -> 1.231944201 | AM53: 21 | AN53: =Výstup!AD92 -> 1.281944201 | AT53: 21 | AU53: =Výstup!AK92 -> 1.331944201
J54: 2021-01-02 | K54: 18 | L54: 7 | M54: 1 | Q54: 42 | R54: =IF(Výstup!$E$9="Pay as produced",IF(Výstup!$E$3="Wind",INDEX(Data!$C$3:$AC$8762,Výpočet!Q54,Výpočet!$R$4),INDEX(Data!$AH$3:$BH$8762,Výpočet!Q54,Výpočet!$R$4))*Výstup!$E$10,Výstup!$E$10) -> 0.5624889655 | Y54: 22 | Z54: =Výstup!P93 -> 1.064730539 | AF54: 22 | AG54: =Výstup!W93 -> 1.100024656 | AM54: 22 | AN54: =Výstup!AD93 -> 1.150024656 | AT54: 22 | AU54: =Výstup!AK93 -> 1.200024656
J55: 2021-01-02 | K55: 19 | L55: 7 | M55: 1 | Q55: 43 | R55: =IF(Výstup!$E$9="Pay as produced",IF(Výstup!$E$3="Wind",INDEX(Data!$C$3:$AC$8762,Výpočet!Q55,Výpočet!$R$4),INDEX(Data!$AH$3:$BH$8762,Výpočet!Q55,Výpočet!$R$4))*Výstup!$E$10,Výstup!$E$10) -> 0.5507165517 | Y55: 23 | Z55: =Výstup!P94 -> 0.9788316198 | AF55: 23 | AG55: =Výstup!W94 -> 1.014125737 | AM55: 23 | AN55: =Výstup!AD94 -> 1.064125737 | AT55: 23 | AU55: =Výstup!AK94 -> 1.114125737
J56: 2021-01-02 | K56: 20 | L56: 7 | M56: 1 | Q56: 44 | R56: =IF(Výstup!$E$9="Pay as produced",IF(Výstup!$E$3="Wind",INDEX(Data!$C$3:$AC$8762,Výpočet!Q56,Výpočet!$R$4),INDEX(Data!$AH$3:$BH$8762,Výpočet!Q56,Výpočet!$R$4))*Výstup!$E$10,Výstup!$E$10) -> 0.5413296552 | Y56: 24 | Z56: =Výstup!P95 -> 0.8440228555 | AF56: 24 | AG56: =Výstup!W95 -> 0.8793169732 | AM56: 24 | AN56: =Výstup!AD95 -> 0.9293169732 | AT56: 24 | AU56: =Výstup!AK95 -> 0.9793169732
J57: 2021-01-02 | K57: 21 | L57: 7 | M57: 1 | Q57: 45 | R57: =IF(Výstup!$E$9="Pay as produced",IF(Výstup!$E$3="Wind",INDEX(Data!$C$3:$AC$8762,Výpočet!Q57,Výpočet!$R$4),INDEX(Data!$AH$3:$BH$8762,Výpočet!Q57,Výpočet!$R$4))*Výstup!$E$10,Výstup!$E$10) -> 0.5340441379
J58: 2021-01-02 | K58: 22 | L58: 7 | M58: 1 | Q58: 46 | R58: =IF(Výstup!$E$9="Pay as produced",IF(Výstup!$E$3="Wind",INDEX(Data!$C$3:$AC$8762,Výpočet!Q58,Výpočet!$R$4),INDEX(Data!$AH$3:$BH$8762,Výpočet!Q58,Výpočet!$R$4))*Výstup!$E$10,Výstup!$E$10) -> 0.5305365517
J59: 2021-01-02 | K59: 23 | L59: 7 | M59: 1 | Q59: 47 | R59: =IF(Výstup!$E$9="Pay as produced",IF(Výstup!$E$3="Wind",INDEX(Data!$C$3:$AC$8762,Výpočet!Q59,Výpočet!$R$4),INDEX(Data!$AH$3:$BH$8762,Výpočet!Q59,Výpočet!$R$4))*Výstup!$E$10,Výstup!$E$10) -> 0.5325193103
J60: 2021-01-02 | K60: 24 | L60: 7 | M60: 1 | Q60: 48 | R60: =IF(Výstup!$E$9="Pay as produced",IF(Výstup!$E$3="Wind",INDEX(Data!$C$3:$AC$8762,Výpočet!Q60,Výpočet!$R$4),INDEX(Data!$AH$3:$BH$8762,Výpočet!Q60,Výpočet!$R$4))*Výstup!$E$10,Výstup!$E$10) -> 0.5379124138
J61: 2021-01-03 | K61: 1 | L61: 1 | M61: 1 | Q61: 49 | R61: =IF(Výstup!$E$9="Pay as produced",IF(Výstup!$E$3="Wind",INDEX(Data!$C$3:$AC$8762,Výpočet!Q61,Výpočet!$R$4),INDEX(Data!$AH$3:$BH$8762,Výpočet!Q61,Výpočet!$R$4))*Výstup!$E$10,Výstup!$E$10) -> 0.5482186207
J62: 2021-01-03 | K62: 2 | L62: 1 | M62: 1 | Q62: 50 | R62: =IF(Výstup!$E$9="Pay as produced",IF(Výstup!$E$3="Wind",INDEX(Data!$C$3:$AC$8762,Výpočet!Q62,Výpočet!$R$4),INDEX(Data!$AH$3:$BH$8762,Výpočet!Q62,Výpočet!$R$4))*Výstup!$E$10,Výstup!$E$10) -> 0.5611062069
J63: 2021-01-03 | K63: 3 | L63: 1 | M63: 1 | Q63: 51 | R63: =IF(Výstup!$E$9="Pay as produced",IF(Výstup!$E$3="Wind",INDEX(Data!$C$3:$AC$8762,Výpočet!Q63,Výpočet!$R$4),INDEX(Data!$AH$3:$BH$8762,Výpočet!Q63,Výpočet!$R$4))*Výstup!$E$10,Výstup!$E$10) -> 0.5816896552
J64: 2021-01-03 | K64: 4 | L64: 1 | M64: 1 | Q64: 52 | R64: =IF(Výstup!$E$9="Pay as produced",IF(Výstup!$E$3="Wind",INDEX(Data!$C$3:$AC$8762,Výpočet!Q64,Výpočet!$R$4),INDEX(Data!$AH$3:$BH$8762,Výpočet!Q64,Výpočet!$R$4))*Výstup!$E$10,Výstup!$E$10) -> 0.5990158621
J65: 2021-01-03 | K65: 5 | L65: 1 | M65: 1 | Q65: 53 | R65: =IF(Výstup!$E$9="Pay as produced",IF(Výstup!$E$3="Wind",INDEX(Data!$C$3:$AC$8762,Výpočet!Q65,Výpočet!$R$4),INDEX(Data!$AH$3:$BH$8762,Výpočet!Q65,Výpočet!$R$4))*Výstup!$E$10,Výstup!$E$10) -> 0.6195193103
J66: 2021-01-03 | K66: 6 | L66: 1 | M66: 1 | Q66: 54 | R66: =IF(Výstup!$E$9="Pay as produced",IF(Výstup!$E$3="Wind",INDEX(Data!$C$3:$AC$8762,Výpočet!Q66,Výpočet!$R$4),INDEX(Data!$AH$3:$BH$8762,Výpočet!Q66,Výpočet!$R$4))*Výstup!$E$10,Výstup!$E$10) -> 0.6414475862
J67: 2021-01-03 | K67: 7 | L67: 1 | M67: 1 | Q67: 55 | R67: =IF(Výstup!$E$9="Pay as produced",IF(Výstup!$E$3="Wind",INDEX(Data!$C$3:$AC$8762,Výpočet!Q67,Výpočet!$R$4),INDEX(Data!$AH$3:$BH$8762,Výpočet!Q67,Výpočet!$R$4))*Výstup!$E$10,Výstup!$E$10) -> 0.6616986207
J68: 2021-01-03 | K68: 8 | L68: 1 | M68: 1 | Q68: 56 | R68: =IF(Výstup!$E$9="Pay as produced",IF(Výstup!$E$3="Wind",INDEX(Data!$C$3:$AC$8762,Výpočet!Q68,Výpočet!$R$4),INDEX(Data!$AH$3:$BH$8762,Výpočet!Q68,Výpočet!$R$4))*Výstup!$E$10,Výstup!$E$10) -> 0.6764965517
J69: 2021-01-03 | K69: 9 | L69: 1 | M69: 1 | Q69: 57 | R69: =IF(Výstup!$E$9="Pay as produced",IF(Výstup!$E$3="Wind",INDEX(Data!$C$3:$AC$8762,Výpočet!Q69,Výpočet!$R$4),INDEX(Data!$AH$3:$BH$8762,Výpočet!Q69,Výpočet!$R$4))*Výstup!$E$10,Výstup!$E$10) -> 0.6779951724
J70: 2021-01-03 | K70: 10 | L70: 1 | M70: 1 | Q70: 58 | R70: =IF(Výstup!$E$9="Pay as produced",IF(Výstup!$E$3="Wind",INDEX(Data!$C$3:$AC$8762,Výpočet!Q70,Výpočet!$R$4),INDEX(Data!$AH$3:$BH$8762,Výpočet!Q70,Výpočet!$R$4))*Výstup!$E$10,Výstup!$E$10) -> 0.6660834483
J71: 2021-01-03 | K71: 11 | L71: 1 | M71: 1 | Q71: 59 | R71: =IF(Výstup!$E$9="Pay as produced",IF(Výstup!$E$3="Wind",INDEX(Data!$C$3:$AC$8762,Výpočet!Q71,Výpočet!$R$4),INDEX(Data!$AH$3:$BH$8762,Výpočet!Q71,Výpočet!$R$4))*Výstup!$E$10,Výstup!$E$10) -> 0.6604696552
J72: 2021-01-03 | K72: 12 | L72: 1 | M72: 1 | Q72: 60 | R72: =IF(Výstup!$E$9="Pay as produced",IF(Výstup!$E$3="Wind",INDEX(Data!$C$3:$AC$8762,Výpočet!Q72,Výpočet!$R$4),INDEX(Data!$AH$3:$BH$8762,Výpočet!Q72,Výpočet!$R$4))*Výstup!$E$10,Výstup!$E$10) -> 0.6587731034
J73: 2021-01-03 | K73: 13 | L73: 1 | M73: 1 | Q73: 61 | R73: =IF(Výstup!$E$9="Pay as produced",IF(Výstup!$E$3="Wind",INDEX(Data!$C$3:$AC$8762,Výpočet!Q73,Výpočet!$R$4),INDEX(Data!$AH$3:$BH$8762,Výpočet!Q73,Výpočet!$R$4))*Výstup!$E$10,Výstup!$E$10) -> 0.6531531034
J74: 2021-01-03 | K74: 14 | L74: 1 | M74: 1 | Q74: 62 | R74: =IF(Výstup!$E$9="Pay as produced",IF(Výstup!$E$3="Wind",INDEX(Data!$C$3:$AC$8762,Výpočet!Q74,Výpočet!$R$4),INDEX(Data!$AH$3:$BH$8762,Výpočet!Q74,Výpočet!$R$4))*Výstup!$E$10,Výstup!$E$10) -> 0.6459910345
J75: 2021-01-03 | K75: 15 | L75: 1 | M75: 1 | Q75: 63 | R75: =IF(Výstup!$E$9="Pay as produced",IF(Výstup!$E$3="Wind",INDEX(Data!$C$3:$AC$8762,Výpočet!Q75,Výpočet!$R$4),INDEX(Data!$AH$3:$BH$8762,Výpočet!Q75,Výpočet!$R$4))*Výstup!$E$10,Výstup!$E$10) -> 0.6488937931
J76: 2021-01-03 | K76: 16 | L76: 1 | M76: 1 | Q76: 64 | R76: =IF(Výstup!$E$9="Pay as produced",IF(Výstup!$E$3="Wind",INDEX(Data!$C$3:$AC$8762,Výpočet!Q76,Výpočet!$R$4),INDEX(Data!$AH$3:$BH$8762,Výpočet!Q76,Výpočet!$R$4))*Výstup!$E$10,Výstup!$E$10) -> 0.6588558621
J77: 2021-01-03 | K77: 17 | L77: 1 | M77: 1 | Q77: 65 | R77: =IF(Výstup!$E$9="Pay as produced",IF(Výstup!$E$3="Wind",INDEX(Data!$C$3:$AC$8762,Výpočet!Q77,Výpočet!$R$4),INDEX(Data!$AH$3:$BH$8762,Výpočet!Q77,Výpočet!$R$4))*Výstup!$E$10,Výstup!$E$10) -> 0.6623393103
J78: 2021-01-03 | K78: 18 | L78: =WEEKDAY(J78) -> 1 | M78: 1 | Q78: 66 | R78: =IF(Výstup!$E$9="Pay as produced",IF(Výstup!$E$3="Wind",INDEX(Data!$C$3:$AC$8762,Výpočet!Q78,Výpočet!$R$4),INDEX(Data!$AH$3:$BH$8762,Výpočet!Q78,Výpočet!$R$4))*Výstup!$E$10,Výstup!$E$10) -> 0.657797931
J79: 2021-01-03 | K79: 19 | L79: 1 | M79: 1 | Q79: 67 | R79: =IF(Výstup!$E$9="Pay as produced",IF(Výstup!$E$3="Wind",INDEX(Data!$C$3:$AC$8762,Výpočet!Q79,Výpočet!$R$4),INDEX(Data!$AH$3:$BH$8762,Výpočet!Q79,Výpočet!$R$4))*Výstup!$E$10,Výstup!$E$10) -> 0.6511793103
J80: 2021-01-03 | K80: 20 | L80: 1 | M80: 1 | Q80: 68 | R80: =IF(Výstup!$E$9="Pay as produced",IF(Výstup!$E$3="Wind",INDEX(Data!$C$3:$AC$8762,Výpočet!Q80,Výpočet!$R$4),INDEX(Data!$AH$3:$BH$8762,Výpočet!Q80,Výpočet!$R$4))*Výstup!$E$10,Výstup!$E$10) -> 0.644037931
J81: 2021-01-03 | K81: 21 | L81: 1 | M81: 1 | Q81: 69 | R81: =IF(Výstup!$E$9="Pay as produced",IF(Výstup!$E$3="Wind",INDEX(Data!$C$3:$AC$8762,Výpočet!Q81,Výpočet!$R$4),INDEX(Data!$AH$3:$BH$8762,Výpočet!Q81,Výpočet!$R$4))*Výstup!$E$10,Výstup!$E$10) -> 0.6370131034
J82: 2021-01-03 | K82: 22 | L82: 1 | M82: 1 | Q82: 70 | R82: =IF(Výstup!$E$9="Pay as produced",IF(Výstup!$E$3="Wind",INDEX(Data!$C$3:$AC$8762,Výpočet!Q82,Výpočet!$R$4),INDEX(Data!$AH$3:$BH$8762,Výpočet!Q82,Výpočet!$R$4))*Výstup!$E$10,Výstup!$E$10) -> 0.6296275862
J83: 2021-01-03 | K83: 23 | L83: 1 | M83: 1 | Q83: 71 | R83: =IF(Výstup!$E$9="Pay as produced",IF(Výstup!$E$3="Wind",INDEX(Data!$C$3:$AC$8762,Výpočet!Q83,Výpočet!$R$4),INDEX(Data!$AH$3:$BH$8762,Výpočet!Q83,Výpočet!$R$4))*Výstup!$E$10,Výstup!$E$10) -> 0.6216165517
J84: 2021-01-03 | K84: 24 | L84: 1 | M84: 1 | Q84: 72 | R84: =IF(Výstup!$E$9="Pay as produced",IF(Výstup!$E$3="Wind",INDEX(Data!$C$3:$AC$8762,Výpočet!Q84,Výpočet!$R$4),INDEX(Data!$AH$3:$BH$8762,Výpočet!Q84,Výpočet!$R$4))*Výstup!$E$10,Výstup!$E$10) -> 0.6098765517
J85: 2021-01-04 | K85: 1 | L85: 2 | M85: 1 | Q85: 73 | R85: =IF(Výstup!$E$9="Pay as produced",IF(Výstup!$E$3="Wind",INDEX(Data!$C$3:$AC$8762,Výpočet!Q85,Výpočet!$R$4),INDEX(Data!$AH$3:$BH$8762,Výpočet!Q85,Výpočet!$R$4))*Výstup!$E$10,Výstup!$E$10) -> 0.5971827586
J86: 2021-01-04 | K86: 2 | L86: 2 | M86: 1 | Q86: 74 | R86: =IF(Výstup!$E$9="Pay as produced",IF(Výstup!$E$3="Wind",INDEX(Data!$C$3:$AC$8762,Výpočet!Q86,Výpočet!$R$4),INDEX(Data!$AH$3:$BH$8762,Výpočet!Q86,Výpočet!$R$4))*Výstup!$E$10,Výstup!$E$10) -> 0.5859262069
J87: 2021-01-04 | K87: 3 | L87: 2 | M87: 1 | Q87: 75 | R87: =IF(Výstup!$E$9="Pay as produced",IF(Výstup!$E$3="Wind",INDEX(Data!$C$3:$AC$8762,Výpočet!Q87,Výpočet!$R$4),INDEX(Data!$AH$3:$BH$8762,Výpočet!Q87,Výpočet!$R$4))*Výstup!$E$10,Výstup!$E$10) -> 0.5801075862
J88: 2021-01-04 | K88: 4 | L88: 2 | M88: 1 | Q88: 76 | R88: =IF(Výstup!$E$9="Pay as produced",IF(Výstup!$E$3="Wind",INDEX(Data!$C$3:$AC$8762,Výpočet!Q88,Výpočet!$R$4),INDEX(Data!$AH$3:$BH$8762,Výpočet!Q88,Výpočet!$R$4))*Výstup!$E$10,Výstup!$E$10) -> 0.5745468966
J89: 2021-01-04 | K89: 5 | L89: 2 | M89: 1 | Q89: 77 | R89: =IF(Výstup!$E$9="Pay as produced",IF(Výstup!$E$3="Wind",INDEX(Data!$C$3:$AC$8762,Výpočet!Q89,Výpočet!$R$4),INDEX(Data!$AH$3:$BH$8762,Výpočet!Q89,Výpočet!$R$4))*Výstup!$E$10,Výstup!$E$10) -> 0.5731662069
J90: 2021-01-04 | K90: 6 | L90: 2 | M90: 1 | Q90: 78 | R90: =IF(Výstup!$E$9="Pay as produced",IF(Výstup!$E$3="Wind",INDEX(Data!$C$3:$AC$8762,Výpočet!Q90,Výpočet!$R$4),INDEX(Data!$AH$3:$BH$8762,Výpočet!Q90,Výpočet!$R$4))*Výstup!$E$10,Výstup!$E$10) -> 0.5721096552
J91: 2021-01-04 | K91: 7 | L91: 2 | M91: 1 | Q91: 79 | R91: =IF(Výstup!$E$9="Pay as produced",IF(Výstup!$E$3="Wind",INDEX(Data!$C$3:$AC$8762,Výpočet!Q91,Výpočet!$R$4),INDEX(Data!$AH$3:$BH$8762,Výpočet!Q91,Výpočet!$R$4))*Výstup!$E$10,Výstup!$E$10) -> 0.571182069
J92: 2021-01-04 | K92: 8 | L92: 2 | M92: 1 | Q92: 80 | R92: =IF(Výstup!$E$9="Pay as produced",IF(Výstup!$E$3="Wind",INDEX(Data!$C$3:$AC$8762,Výpočet!Q92,Výpočet!$R$4),INDEX(Data!$AH$3:$BH$8762,Výpočet!Q92,Výpočet!$R$4))*Výstup!$E$10,Výstup!$E$10) -> 0.5710937931
J93: 2021-01-04 | K93: 9 | L93: 2 | M93: 1 | Q93: 81 | R93: =IF(Výstup!$E$9="Pay as produced",IF(Výstup!$E$3="Wind",INDEX(Data!$C$3:$AC$8762,Výpočet!Q93,Výpočet!$R$4),INDEX(Data!$AH$3:$BH$8762,Výpočet!Q93,Výpočet!$R$4))*Výstup!$E$10,Výstup!$E$10) -> 0.5645710345
J94: 2021-01-04 | K94: 10 | L94: 2 | M94: 1 | Q94: 82 | R94: =IF(Výstup!$E$9="Pay as produced",IF(Výstup!$E$3="Wind",INDEX(Data!$C$3:$AC$8762,Výpočet!Q94,Výpočet!$R$4),INDEX(Data!$AH$3:$BH$8762,Výpočet!Q94,Výpočet!$R$4))*Výstup!$E$10,Výstup!$E$10) -> 0.550077931
J95: 2021-01-04 | K95: 11 | L95: 2 | M95: 1 | Q95: 83 | R95: =IF(Výstup!$E$9="Pay as produced",IF(Výstup!$E$3="Wind",INDEX(Data!$C$3:$AC$8762,Výpočet!Q95,Výpočet!$R$4),INDEX(Data!$AH$3:$BH$8762,Výpočet!Q95,Výpočet!$R$4))*Výstup!$E$10,Výstup!$E$10) -> 0.5484813793
J96: 2021-01-04 | K96: 12 | L96: 2 | M96: 1 | Q96: 84 | R96: =IF(Výstup!$E$9="Pay as produced",IF(Výstup!$E$3="Wind",INDEX(Data!$C$3:$AC$8762,Výpočet!Q96,Výpočet!$R$4),INDEX(Data!$AH$3:$BH$8762,Výpočet!Q96,Výpočet!$R$4))*Výstup!$E$10,Výstup!$E$10) -> 0.5543434483
J97: 2021-01-04 | K97: 13 | L97: 2 | M97: 1 | Q97: 85 | R97: =IF(Výstup!$E$9="Pay as produced",IF(Výstup!$E$3="Wind",INDEX(Data!$C$3:$AC$8762,Výpočet!Q97,Výpočet!$R$4),INDEX(Data!$AH$3:$BH$8762,Výpočet!Q97,Výpočet!$R$4))*Výstup!$E$10,Výstup!$E$10) -> 0.5600841379
J98: 2021-01-04 | K98: 14 | L98: 2 | M98: 1 | Q98: 86 | R98: =IF(Výstup!$E$9="Pay as produced",IF(Výstup!$E$3="Wind",INDEX(Data!$C$3:$AC$8762,Výpočet!Q98,Výpočet!$R$4),INDEX(Data!$AH$3:$BH$8762,Výpočet!Q98,Výpočet!$R$4))*Výstup!$E$10,Výstup!$E$10) -> 0.5672882759
J99: 2021-01-04 | K99: 15 | L99: 2 | M99: 1 | Q99: 87 | R99: =IF(Výstup!$E$9="Pay as produced",IF(Výstup!$E$3="Wind",INDEX(Data!$C$3:$AC$8762,Výpočet!Q99,Výpočet!$R$4),INDEX(Data!$AH$3:$BH$8762,Výpočet!Q99,Výpočet!$R$4))*Výstup!$E$10,Výstup!$E$10) -> 0.5816227586
J100: 2021-01-04 | K100: 16 | L100: 2 | M100: 1 | Q100: 88 | R100: =IF(Výstup!$E$9="Pay as produced",IF(Výstup!$E$3="Wind",INDEX(Data!$C$3:$AC$8762,Výpočet!Q100,Výpočet!$R$4),INDEX(Data!$AH$3:$BH$8762,Výpočet!Q100,Výpočet!$R$4))*Výstup!$E$10,Výstup!$E$10) -> 0.5999337931
J101: 2021-01-04 | K101: 17 | L101: 2 | M101: 1 | Q101: 89 | R101: =IF(Výstup!$E$9="Pay as produced",IF(Výstup!$E$3="Wind",INDEX(Data!$C$3:$AC$8762,Výpočet!Q101,Výpočet!$R$4),INDEX(Data!$AH$3:$BH$8762,Výpočet!Q101,Výpočet!$R$4))*Výstup!$E$10,Výstup!$E$10) -> 0.6116096552
J102: 2021-01-04 | K102: 18 | L102: 2 | M102: 1 | Q102: 90 | R102: =IF(Výstup!$E$9="Pay as produced",IF(Výstup!$E$3="Wind",INDEX(Data!$C$3:$AC$8762,Výpočet!Q102,Výpočet!$R$4),INDEX(Data!$AH$3:$BH$8762,Výpočet!Q102,Výpočet!$R$4))*Výstup!$E$10,Výstup!$E$10) -> 0.6206165517
J103: 2021-01-04 | K103: 19 | L103: 2 | M103: 1 | Q103: 91 | R103: =IF(Výstup!$E$9="Pay as produced",IF(Výstup!$E$3="Wind",INDEX(Data!$C$3:$AC$8762,Výpočet!Q103,Výpočet!$R$4),INDEX(Data!$AH$3:$BH$8762,Výpočet!Q103,Výpočet!$R$4))*Výstup!$E$10,Výstup!$E$10) -> 0.6292310345
J104: 2021-01-04 | K104: 20 | L104: 2 | M104: 1 | Q104: 92 | R104: =IF(Výstup!$E$9="Pay as produced",IF(Výstup!$E$3="Wind",INDEX(Data!$C$3:$AC$8762,Výpočet!Q104,Výpočet!$R$4),INDEX(Data!$AH$3:$BH$8762,Výpočet!Q104,Výpočet!$R$4))*Výstup!$E$10,Výstup!$E$10) -> 0.6439124138
J105: 2021-01-04 | K105: 21 | L105: 2 | M105: 1 | Q105: 93 | R105: =IF(Výstup!$E$9="Pay as produced",IF(Výstup!$E$3="Wind",INDEX(Data!$C$3:$AC$8762,Výpočet!Q105,Výpočet!$R$4),INDEX(Data!$AH$3:$BH$8762,Výpočet!Q105,Výpočet!$R$4))*Výstup!$E$10,Výstup!$E$10) -> 0.6610062069
J106: 2021-01-04 | K106: 22 | L106: 2 | M106: 1 | Q106: 94 | R106: =IF(Výstup!$E$9="Pay as produced",IF(Výstup!$E$3="Wind",INDEX(Data!$C$3:$AC$8762,Výpočet!Q106,Výpočet!$R$4),INDEX(Data!$AH$3:$BH$8762,Výpočet!Q106,Výpočet!$R$4))*Výstup!$E$10,Výstup!$E$10) -> 0.6811751724
J107: 2021-01-04 | K107: 23 | L107: 2 | M107: 1 | Q107: 95 | R107: =IF(Výstup!$E$9="Pay as produced",IF(Výstup!$E$3="Wind",INDEX(Data!$C$3:$AC$8762,Výpočet!Q107,Výpočet!$R$4),INDEX(Data!$AH$3:$BH$8762,Výpočet!Q107,Výpočet!$R$4))*Výstup!$E$10,Výstup!$E$10) -> 0.6948565517
J108: 2021-01-04 | K108: 24 | L108: 2 | M108: 1 | Q108: 96 | R108: =IF(Výstup!$E$9="Pay as produced",IF(Výstup!$E$3="Wind",INDEX(Data!$C$3:$AC$8762,Výpočet!Q108,Výpočet!$R$4),INDEX(Data!$AH$3:$BH$8762,Výpočet!Q108,Výpočet!$R$4))*Výstup!$E$10,Výstup!$E$10) -> 0.7035675862
J109: 2021-01-05 | K109: 1 | L109: 3 | M109: 1 | Q109: 97 | R109: =IF(Výstup!$E$9="Pay as produced",IF(Výstup!$E$3="Wind",INDEX(Data!$C$3:$AC$8762,Výpočet!Q109,Výpočet!$R$4),INDEX(Data!$AH$3:$BH$8762,Výpočet!Q109,Výpočet!$R$4))*Výstup!$E$10,Výstup!$E$10) -> 0.7064082759
J110: 2021-01-05 | K110: 2 | L110: 3 | M110: 1 | Q110: 98 | R110: =IF(Výstup!$E$9="Pay as produced",IF(Výstup!$E$3="Wind",INDEX(Data!$C$3:$AC$8762,Výpočet!Q110,Výpočet!$R$4),INDEX(Data!$AH$3:$BH$8762,Výpočet!Q110,Výpočet!$R$4))*Výstup!$E$10,Výstup!$E$10) -> 0.7062448276
J111: 2021-01-05 | K111: 3 | L111: 3 | M111: 1 | Q111: 99 | R111: =IF(Výstup!$E$9="Pay as produced",IF(Výstup!$E$3="Wind",INDEX(Data!$C$3:$AC$8762,Výpočet!Q111,Výpočet!$R$4),INDEX(Data!$AH$3:$BH$8762,Výpočet!Q111,Výpočet!$R$4))*Výstup!$E$10,Výstup!$E$10) -> 0.7029310345
J112: 2021-01-05 | K112: 4 | L112: 3 | M112: 1 | Q112: 100 | R112: =IF(Výstup!$E$9="Pay as produced",IF(Výstup!$E$3="Wind",INDEX(Data!$C$3:$AC$8762,Výpočet!Q112,Výpočet!$R$4),INDEX(Data!$AH$3:$BH$8762,Výpočet!Q112,Výpočet!$R$4))*Výstup!$E$10,Výstup!$E$10) -> 0.6969455172
J113: 2021-01-05 | K113: 5 | L113: 3 | M113: 1 | Q113: 101 | R113: =IF(Výstup!$E$9="Pay as produced",IF(Výstup!$E$3="Wind",INDEX(Data!$C$3:$AC$8762,Výpočet!Q113,Výpočet!$R$4),INDEX(Data!$AH$3:$BH$8762,Výpočet!Q113,Výpočet!$R$4))*Výstup!$E$10,Výstup!$E$10) -> 0.6906193103
J114: 2021-01-05 | K114: 6 | L114: 3 | M114: 1 | Q114: 102 | R114: =IF(Výstup!$E$9="Pay as produced",IF(Výstup!$E$3="Wind",INDEX(Data!$C$3:$AC$8762,Výpočet!Q114,Výpočet!$R$4),INDEX(Data!$AH$3:$BH$8762,Výpočet!Q114,Výpočet!$R$4))*Výstup!$E$10,Výstup!$E$10) -> 0.685982069
J115: 2021-01-05 | K115: 7 | L115: 3 | M115: 1 | Q115: 103 | R115: =IF(Výstup!$E$9="Pay as produced",IF(Výstup!$E$3="Wind",INDEX(Data!$C$3:$AC$8762,Výpočet!Q115,Výpočet!$R$4),INDEX(Data!$AH$3:$BH$8762,Výpočet!Q115,Výpočet!$R$4))*Výstup!$E$10,Výstup!$E$10) -> 0.68188
J116: 2021-01-05 | K116: 8 | L116: 3 | M116: 1 | Q116: 104 | R116: =IF(Výstup!$E$9="Pay as produced",IF(Výstup!$E$3="Wind",INDEX(Data!$C$3:$AC$8762,Výpočet!Q116,Výpočet!$R$4),INDEX(Data!$AH$3:$BH$8762,Výpočet!Q116,Výpočet!$R$4))*Výstup!$E$10,Výstup!$E$10) -> 0.6762062069
J117: 2021-01-05 | K117: 9 | L117: 3 | M117: 1 | Q117: 105 | R117: =IF(Výstup!$E$9="Pay as produced",IF(Výstup!$E$3="Wind",INDEX(Data!$C$3:$AC$8762,Výpočet!Q117,Výpočet!$R$4),INDEX(Data!$AH$3:$BH$8762,Výpočet!Q117,Výpočet!$R$4))*Výstup!$E$10,Výstup!$E$10) -> 0.6622
J118: 2021-01-05 | K118: 10 | L118: 3 | M118: 1 | Q118: 106 | R118: =IF(Výstup!$E$9="Pay as produced",IF(Výstup!$E$3="Wind",INDEX(Data!$C$3:$AC$8762,Výpočet!Q118,Výpočet!$R$4),INDEX(Data!$AH$3:$BH$8762,Výpočet!Q118,Výpočet!$R$4))*Výstup!$E$10,Výstup!$E$10) -> 0.6469172414
J119: 2021-01-05 | K119: 11 | L119: 3 | M119: 1 | Q119: 107 | R119: =IF(Výstup!$E$9="Pay as produced",IF(Výstup!$E$3="Wind",INDEX(Data!$C$3:$AC$8762,Výpočet!Q119,Výpočet!$R$4),INDEX(Data!$AH$3:$BH$8762,Výpočet!Q119,Výpočet!$R$4))*Výstup!$E$10,Výstup!$E$10) -> 0.643102069
J120: 2021-01-05 | K120: 12 | L120: 3 | M120: 1 | Q120: 108 | R120: =IF(Výstup!$E$9="Pay as produced",IF(Výstup!$E$3="Wind",INDEX(Data!$C$3:$AC$8762,Výpočet!Q120,Výpočet!$R$4),INDEX(Data!$AH$3:$BH$8762,Výpočet!Q120,Výpočet!$R$4))*Výstup!$E$10,Výstup!$E$10) -> 0.6473834483
J121: 2021-01-05 | K121: 13 | L121: 3 | M121: 1 | Q121: 109 | R121: =IF(Výstup!$E$9="Pay as produced",IF(Výstup!$E$3="Wind",INDEX(Data!$C$3:$AC$8762,Výpočet!Q121,Výpočet!$R$4),INDEX(Data!$AH$3:$BH$8762,Výpočet!Q121,Výpočet!$R$4))*Výstup!$E$10,Výstup!$E$10) -> 0.6508448276
J122: 2021-01-05 | K122: 14 | L122: 3 | M122: 1 | Q122: 110 | R122: =IF(Výstup!$E$9="Pay as produced",IF(Výstup!$E$3="Wind",INDEX(Data!$C$3:$AC$8762,Výpočet!Q122,Výpočet!$R$4),INDEX(Data!$AH$3:$BH$8762,Výpočet!Q122,Výpočet!$R$4))*Výstup!$E$10,Výstup!$E$10) -> 0.66174
J123: 2021-01-05 | K123: 15 | L123: 3 | M123: 1 | Q123: 111 | R123: =IF(Výstup!$E$9="Pay as produced",IF(Výstup!$E$3="Wind",INDEX(Data!$C$3:$AC$8762,Výpočet!Q123,Výpočet!$R$4),INDEX(Data!$AH$3:$BH$8762,Výpočet!Q123,Výpočet!$R$4))*Výstup!$E$10,Výstup!$E$10) -> 0.6848682759
J124: 2021-01-05 | K124: 16 | L124: 3 | M124: 1 | Q124: 112 | R124: =IF(Výstup!$E$9="Pay as produced",IF(Výstup!$E$3="Wind",INDEX(Data!$C$3:$AC$8762,Výpočet!Q124,Výpočet!$R$4),INDEX(Data!$AH$3:$BH$8762,Výpočet!Q124,Výpočet!$R$4))*Výstup!$E$10,Výstup!$E$10) -> 0.7115372414
J125: 2021-01-05 | K125: 17 | L125: 3 | M125: 1 | Q125: 113 | R125: =IF(Výstup!$E$9="Pay as produced",IF(Výstup!$E$3="Wind",INDEX(Data!$C$3:$AC$8762,Výpočet!Q125,Výpočet!$R$4),INDEX(Data!$AH$3:$BH$8762,Výpočet!Q125,Výpočet!$R$4))*Výstup!$E$10,Výstup!$E$10) -> 0.7292089655
J126: 2021-01-05 | K126: 18 | L126: 3 | M126: 1 | Q126: 114 | R126: =IF(Výstup!$E$9="Pay as produced",IF(Výstup!$E$3="Wind",INDEX(Data!$C$3:$AC$8762,Výpočet!Q126,Výpočet!$R$4),INDEX(Data!$AH$3:$BH$8762,Výpočet!Q126,Výpočet!$R$4))*Výstup!$E$10,Výstup!$E$10) -> 0.7411262069
J127: 2021-01-05 | K127: 19 | L127: 3 | M127: 1 | Q127: 115 | R127: =IF(Výstup!$E$9="Pay as produced",IF(Výstup!$E$3="Wind",INDEX(Data!$C$3:$AC$8762,Výpočet!Q127,Výpočet!$R$4),INDEX(Data!$AH$3:$BH$8762,Výpočet!Q127,Výpočet!$R$4))*Výstup!$E$10,Výstup!$E$10) -> 0.7467344828
J128: 2021-01-05 | K128: 20 | L128: 3 | M128: 1 | Q128: 116 | R128: =IF(Výstup!$E$9="Pay as produced",IF(Výstup!$E$3="Wind",INDEX(Data!$C$3:$AC$8762,Výpočet!Q128,Výpočet!$R$4),INDEX(Data!$AH$3:$BH$8762,Výpočet!Q128,Výpočet!$R$4))*Výstup!$E$10,Výstup!$E$10) -> 0.7474344828
J129: 2021-01-05 | K129: 21 | L129: 3 | M129: 1 | Q129: 117 | R129: =IF(Výstup!$E$9="Pay as produced",IF(Výstup!$E$3="Wind",INDEX(Data!$C$3:$AC$8762,Výpočet!Q129,Výpočet!$R$4),INDEX(Data!$AH$3:$BH$8762,Výpočet!Q129,Výpočet!$R$4))*Výstup!$E$10,Výstup!$E$10) -> 0.7447565517
J130: 2021-01-05 | K130: 22 | L130: 3 | M130: 1 | Q130: 118 | R130: =IF(Výstup!$E$9="Pay as produced",IF(Výstup!$E$3="Wind",INDEX(Data!$C$3:$AC$8762,Výpočet!Q130,Výpočet!$R$4),INDEX(Data!$AH$3:$BH$8762,Výpočet!Q130,Výpočet!$R$4))*Výstup!$E$10,Výstup!$E$10) -> 0.7450206897
J131: 2021-01-05 | K131: 23 | L131: 3 | M131: 1 | Q131: 119 | R131: =IF(Výstup!$E$9="Pay as produced",IF(Výstup!$E$3="Wind",INDEX(Data!$C$3:$AC$8762,Výpočet!Q131,Výpočet!$R$4),INDEX(Data!$AH$3:$BH$8762,Výpočet!Q131,Výpočet!$R$4))*Výstup!$E$10,Výstup!$E$10) -> 0.7439648276
J132: 2021-01-05 | K132: 24 | L132: 3 | M132: 1 | Q132: 120 | R132: =IF(Výstup!$E$9="Pay as produced",IF(Výstup!$E$3="Wind",INDEX(Data!$C$3:$AC$8762,Výpočet!Q132,Výpočet!$R$4),INDEX(Data!$AH$3:$BH$8762,Výpočet!Q132,Výpočet!$R$4))*Výstup!$E$10,Výstup!$E$10) -> 0.7384924138
J133: 2021-01-06 | K133: 1 | L133: 4 | M133: 1 | Q133: 121 | R133: =IF(Výstup!$E$9="Pay as produced",IF(Výstup!$E$3="Wind",INDEX(Data!$C$3:$AC$8762,Výpočet!Q133,Výpočet!$R$4),INDEX(Data!$AH$3:$BH$8762,Výpočet!Q133,Výpočet!$R$4))*Výstup!$E$10,Výstup!$E$10) -> 0.729262069
J134: 2021-01-06 | K134: 2 | L134: 4 | M134: 1 | Q134: 122 | R134: =IF(Výstup!$E$9="Pay as produced",IF(Výstup!$E$3="Wind",INDEX(Data!$C$3:$AC$8762,Výpočet!Q134,Výpočet!$R$4),INDEX(Data!$AH$3:$BH$8762,Výpočet!Q134,Výpočet!$R$4))*Výstup!$E$10,Výstup!$E$10) -> 0.7192455172
J135: 2021-01-06 | K135: 3 | L135: 4 | M135: 1 | Q135: 123 | R135: =IF(Výstup!$E$9="Pay as produced",IF(Výstup!$E$3="Wind",INDEX(Data!$C$3:$AC$8762,Výpočet!Q135,Výpočet!$R$4),INDEX(Data!$AH$3:$BH$8762,Výpočet!Q135,Výpočet!$R$4))*Výstup!$E$10,Výstup!$E$10) -> 0.7098986207
J136: 2021-01-06 | K136: 4 | L136: 4 | M136: 1 | Q136: 124 | R136: =IF(Výstup!$E$9="Pay as produced",IF(Výstup!$E$3="Wind",INDEX(Data!$C$3:$AC$8762,Výpočet!Q136,Výpočet!$R$4),INDEX(Data!$AH$3:$BH$8762,Výpočet!Q136,Výpočet!$R$4))*Výstup!$E$10,Výstup!$E$10) -> 0.6978027586
J137: 2021-01-06 | K137: 5 | L137: 4 | M137: 1 | Q137: 125 | R137: =IF(Výstup!$E$9="Pay as produced",IF(Výstup!$E$3="Wind",INDEX(Data!$C$3:$AC$8762,Výpočet!Q137,Výpočet!$R$4),INDEX(Data!$AH$3:$BH$8762,Výpočet!Q137,Výpočet!$R$4))*Výstup!$E$10,Výstup!$E$10) -> 0.6855793103
J138: 2021-01-06 | K138: 6 | L138: 4 | M138: 1 | Q138: 126 | R138: =IF(Výstup!$E$9="Pay as produced",IF(Výstup!$E$3="Wind",INDEX(Data!$C$3:$AC$8762,Výpočet!Q138,Výpočet!$R$4),INDEX(Data!$AH$3:$BH$8762,Výpočet!Q138,Výpočet!$R$4))*Výstup!$E$10,Výstup!$E$10) -> 0.6814062069
J139: 2021-01-06 | K139: 7 | L139: 4 | M139: 1 | Q139: 127 | R139: =IF(Výstup!$E$9="Pay as produced",IF(Výstup!$E$3="Wind",INDEX(Data!$C$3:$AC$8762,Výpočet!Q139,Výpočet!$R$4),INDEX(Data!$AH$3:$BH$8762,Výpočet!Q139,Výpočet!$R$4))*Výstup!$E$10,Výstup!$E$10) -> 0.6808724138
J140: 2021-01-06 | K140: 8 | L140: 4 | M140: 1 | Q140: 128 | R140: =IF(Výstup!$E$9="Pay as produced",IF(Výstup!$E$3="Wind",INDEX(Data!$C$3:$AC$8762,Výpočet!Q140,Výpočet!$R$4),INDEX(Data!$AH$3:$BH$8762,Výpočet!Q140,Výpočet!$R$4))*Výstup!$E$10,Výstup!$E$10) -> 0.6805655172
J141: 2021-01-06 | K141: 9 | L141: 4 | M141: 1 | Q141: 129 | R141: =IF(Výstup!$E$9="Pay as produced",IF(Výstup!$E$3="Wind",INDEX(Data!$C$3:$AC$8762,Výpočet!Q141,Výpočet!$R$4),INDEX(Data!$AH$3:$BH$8762,Výpočet!Q141,Výpočet!$R$4))*Výstup!$E$10,Výstup!$E$10) -> 0.67126
J142: 2021-01-06 | K142: 10 | L142: =WEEKDAY(J142) -> 4 | M142: 1 | Q142: 130 | R142: =IF(Výstup!$E$9="Pay as produced",IF(Výstup!$E$3="Wind",INDEX(Data!$C$3:$AC$8762,Výpočet!Q142,Výpočet!$R$4),INDEX(Data!$AH$3:$BH$8762,Výpočet!Q142,Výpočet!$R$4))*Výstup!$E$10,Výstup!$E$10) -> 0.6593434483
J143: 2021-01-06 | K143: 11 | L143: 4 | M143: 1 | Q143: 131 | R143: =IF(Výstup!$E$9="Pay as produced",IF(Výstup!$E$3="Wind",INDEX(Data!$C$3:$AC$8762,Výpočet!Q143,Výpočet!$R$4),INDEX(Data!$AH$3:$BH$8762,Výpočet!Q143,Výpočet!$R$4))*Výstup!$E$10,Výstup!$E$10) -> 0.6584944828
J144: 2021-01-06 | K144: 12 | L144: 4 | M144: 1 | Q144: 132 | R144: =IF(Výstup!$E$9="Pay as produced",IF(Výstup!$E$3="Wind",INDEX(Data!$C$3:$AC$8762,Výpočet!Q144,Výpočet!$R$4),INDEX(Data!$AH$3:$BH$8762,Výpočet!Q144,Výpočet!$R$4))*Výstup!$E$10,Výstup!$E$10) -> 0.6690641379
J145: 2021-01-06 | K145: 13 | L145: 4 | M145: 1 | Q145: 133 | R145: =IF(Výstup!$E$9="Pay as produced",IF(Výstup!$E$3="Wind",INDEX(Data!$C$3:$AC$8762,Výpočet!Q145,Výpočet!$R$4),INDEX(Data!$AH$3:$BH$8762,Výpočet!Q145,Výpočet!$R$4))*Výstup!$E$10,Výstup!$E$10) -> 0.682557931
J146: 2021-01-06 | K146: 14 | L146: 4 | M146: 1 | Q146: 134 | R146: =IF(Výstup!$E$9="Pay as produced",IF(Výstup!$E$3="Wind",INDEX(Data!$C$3:$AC$8762,Výpočet!Q146,Výpočet!$R$4),INDEX(Data!$AH$3:$BH$8762,Výpočet!Q146,Výpočet!$R$4))*Výstup!$E$10,Výstup!$E$10) -> 0.69866
J147: 2021-01-06 | K147: 15 | L147: 4 | M147: 1 | Q147: 135 | R147: =IF(Výstup!$E$9="Pay as produced",IF(Výstup!$E$3="Wind",INDEX(Data!$C$3:$AC$8762,Výpočet!Q147,Výpočet!$R$4),INDEX(Data!$AH$3:$BH$8762,Výpočet!Q147,Výpočet!$R$4))*Výstup!$E$10,Výstup!$E$10) -> 0.7222524138
J148: 2021-01-06 | K148: 16 | L148: 4 | M148: 1 | Q148: 136 | R148: =IF(Výstup!$E$9="Pay as produced",IF(Výstup!$E$3="Wind",INDEX(Data!$C$3:$AC$8762,Výpočet!Q148,Výpočet!$R$4),INDEX(Data!$AH$3:$BH$8762,Výpočet!Q148,Výpočet!$R$4))*Výstup!$E$10,Výstup!$E$10) -> 0.7477510345
J149: 2021-01-06 | K149: 17 | L149: 4 | M149: 1 | Q149: 137 | R149: =IF(Výstup!$E$9="Pay as produced",IF(Výstup!$E$3="Wind",INDEX(Data!$C$3:$AC$8762,Výpočet!Q149,Výpočet!$R$4),INDEX(Data!$AH$3:$BH$8762,Výpočet!Q149,Výpočet!$R$4))*Výstup!$E$10,Výstup!$E$10) -> 0.7652717241
J150: 2021-01-06 | K150: 18 | L150: 4 | M150: 1 | Q150: 138 | R150: =IF(Výstup!$E$9="Pay as produced",IF(Výstup!$E$3="Wind",INDEX(Data!$C$3:$AC$8762,Výpočet!Q150,Výpočet!$R$4),INDEX(Data!$AH$3:$BH$8762,Výpočet!Q150,Výpočet!$R$4))*Výstup!$E$10,Výstup!$E$10) -> 0.7733462069
J151: 2021-01-06 | K151: 19 | L151: 4 | M151: 1 | Q151: 139 | R151: =IF(Výstup!$E$9="Pay as produced",IF(Výstup!$E$3="Wind",INDEX(Data!$C$3:$AC$8762,Výpočet!Q151,Výpočet!$R$4),INDEX(Data!$AH$3:$BH$8762,Výpočet!Q151,Výpočet!$R$4))*Výstup!$E$10,Výstup!$E$10) -> 0.77482
J152: 2021-01-06 | K152: 20 | L152: 4 | M152: 1 | Q152: 140 | R152: =IF(Výstup!$E$9="Pay as produced",IF(Výstup!$E$3="Wind",INDEX(Data!$C$3:$AC$8762,Výpočet!Q152,Výpočet!$R$4),INDEX(Data!$AH$3:$BH$8762,Výpočet!Q152,Výpočet!$R$4))*Výstup!$E$10,Výstup!$E$10) -> 0.7716055172
J153: 2021-01-06 | K153: 21 | L153: 4 | M153: 1 | Q153: 141 | R153: =IF(Výstup!$E$9="Pay as produced",IF(Výstup!$E$3="Wind",INDEX(Data!$C$3:$AC$8762,Výpočet!Q153,Výpočet!$R$4),INDEX(Data!$AH$3:$BH$8762,Výpočet!Q153,Výpočet!$R$4))*Výstup!$E$10,Výstup!$E$10) -> 0.7666068966
J154: 2021-01-06 | K154: 22 | L154: 4 | M154: 1 | Q154: 142 | R154: =IF(Výstup!$E$9="Pay as produced",IF(Výstup!$E$3="Wind",INDEX(Data!$C$3:$AC$8762,Výpočet!Q154,Výpočet!$R$4),INDEX(Data!$AH$3:$BH$8762,Výpočet!Q154,Výpočet!$R$4))*Výstup!$E$10,Výstup!$E$10) -> 0.7657593103
J155: 2021-01-06 | K155: 23 | L155: 4 | M155: 1 | Q155: 143 | R155: =IF(Výstup!$E$9="Pay as produced",IF(Výstup!$E$3="Wind",INDEX(Data!$C$3:$AC$8762,Výpočet!Q155,Výpočet!$R$4),INDEX(Data!$AH$3:$BH$8762,Výpočet!Q155,Výpočet!$R$4))*Výstup!$E$10,Výstup!$E$10) -> 0.7680648276
J156: 2021-01-06 | K156: 24 | L156: 4 | M156: 1 | Q156: 144 | R156: =IF(Výstup!$E$9="Pay as produced",IF(Výstup!$E$3="Wind",INDEX(Data!$C$3:$AC$8762,Výpočet!Q156,Výpočet!$R$4),INDEX(Data!$AH$3:$BH$8762,Výpočet!Q156,Výpočet!$R$4))*Výstup!$E$10,Výstup!$E$10) -> 0.771557931
J157: 2021-01-07 | K157: 1 | L157: 5 | M157: 1 | Q157: 145 | R157: =IF(Výstup!$E$9="Pay as produced",IF(Výstup!$E$3="Wind",INDEX(Data!$C$3:$AC$8762,Výpočet!Q157,Výpočet!$R$4),INDEX(Data!$AH$3:$BH$8762,Výpočet!Q157,Výpočet!$R$4))*Výstup!$E$10,Výstup!$E$10) -> 0.7726455172
J158: 2021-01-07 | K158: 2 | L158: 5 | M158: 1 | Q158: 146 | R158: =IF(Výstup!$E$9="Pay as produced",IF(Výstup!$E$3="Wind",INDEX(Data!$C$3:$AC$8762,Výpočet!Q158,Výpočet!$R$4),INDEX(Data!$AH$3:$BH$8762,Výpočet!Q158,Výpočet!$R$4))*Výstup!$E$10,Výstup!$E$10) -> 0.7690593103
J159: 2021-01-07 | K159: 3 | L159: 5 | M159: 1 | Q159: 147 | R159: =IF(Výstup!$E$9="Pay as produced",IF(Výstup!$E$3="Wind",INDEX(Data!$C$3:$AC$8762,Výpočet!Q159,Výpočet!$R$4),INDEX(Data!$AH$3:$BH$8762,Výpočet!Q159,Výpočet!$R$4))*Výstup!$E$10,Výstup!$E$10) -> 0.7665075862
J160: 2021-01-07 | K160: 4 | L160: 5 | M160: 1 | Q160: 148 | R160: =IF(Výstup!$E$9="Pay as produced",IF(Výstup!$E$3="Wind",INDEX(Data!$C$3:$AC$8762,Výpočet!Q160,Výpočet!$R$4),INDEX(Data!$AH$3:$BH$8762,Výpočet!Q160,Výpočet!$R$4))*Výstup!$E$10,Výstup!$E$10) -> 0.755202069
J161: 2021-01-07 | K161: 5 | L161: 5 | M161: 1 | Q161: 149 | R161: =IF(Výstup!$E$9="Pay as produced",IF(Výstup!$E$3="Wind",INDEX(Data!$C$3:$AC$8762,Výpočet!Q161,Výpočet!$R$4),INDEX(Data!$AH$3:$BH$8762,Výpočet!Q161,Výpočet!$R$4))*Výstup!$E$10,Výstup!$E$10) -> 0.7444758621
J162: 2021-01-07 | K162: 6 | L162: 5 | M162: 1 | Q162: 150 | R162: =IF(Výstup!$E$9="Pay as produced",IF(Výstup!$E$3="Wind",INDEX(Data!$C$3:$AC$8762,Výpočet!Q162,Výpočet!$R$4),INDEX(Data!$AH$3:$BH$8762,Výpočet!Q162,Výpočet!$R$4))*Výstup!$E$10,Výstup!$E$10) -> 0.7374586207
J163: 2021-01-07 | K163: 7 | L163: 5 | M163: 1 | Q163: 151 | R163: =IF(Výstup!$E$9="Pay as produced",IF(Výstup!$E$3="Wind",INDEX(Data!$C$3:$AC$8762,Výpočet!Q163,Výpočet!$R$4),INDEX(Data!$AH$3:$BH$8762,Výpočet!Q163,Výpočet!$R$4))*Výstup!$E$10,Výstup!$E$10) -> 0.7329248276
J164: 2021-01-07 | K164: 8 | L164: 5 | M164: 1 | Q164: 152 | R164: =IF(Výstup!$E$9="Pay as produced",IF(Výstup!$E$3="Wind",INDEX(Data!$C$3:$AC$8762,Výpočet!Q164,Výpočet!$R$4),INDEX(Data!$AH$3:$BH$8762,Výpočet!Q164,Výpočet!$R$4))*Výstup!$E$10,Výstup!$E$10) -> 0.7281951724
J165: 2021-01-07 | K165: 9 | L165: 5 | M165: 1 | Q165: 153 | R165: =IF(Výstup!$E$9="Pay as produced",IF(Výstup!$E$3="Wind",INDEX(Data!$C$3:$AC$8762,Výpočet!Q165,Výpočet!$R$4),INDEX(Data!$AH$3:$BH$8762,Výpočet!Q165,Výpočet!$R$4))*Výstup!$E$10,Výstup!$E$10) -> 0.7166117241
J166: 2021-01-07 | K166: 10 | L166: 5 | M166: 1 | Q166: 154 | R166: =IF(Výstup!$E$9="Pay as produced",IF(Výstup!$E$3="Wind",INDEX(Data!$C$3:$AC$8762,Výpočet!Q166,Výpočet!$R$4),INDEX(Data!$AH$3:$BH$8762,Výpočet!Q166,Výpočet!$R$4))*Výstup!$E$10,Výstup!$E$10) -> 0.6981151724
J167: 2021-01-07 | K167: 11 | L167: 5 | M167: 1 | Q167: 155 | R167: =IF(Výstup!$E$9="Pay as produced",IF(Výstup!$E$3="Wind",INDEX(Data!$C$3:$AC$8762,Výpočet!Q167,Výpočet!$R$4),INDEX(Data!$AH$3:$BH$8762,Výpočet!Q167,Výpočet!$R$4))*Výstup!$E$10,Výstup!$E$10) -> 0.691962069
J168: 2021-01-07 | K168: 12 | L168: 5 | M168: 1 | Q168: 156 | R168: =IF(Výstup!$E$9="Pay as produced",IF(Výstup!$E$3="Wind",INDEX(Data!$C$3:$AC$8762,Výpočet!Q168,Výpočet!$R$4),INDEX(Data!$AH$3:$BH$8762,Výpočet!Q168,Výpočet!$R$4))*Výstup!$E$10,Výstup!$E$10) -> 0.6960475862
J169: 2021-01-07 | K169: 13 | L169: 5 | M169: 1 | Q169: 157 | R169: =IF(Výstup!$E$9="Pay as produced",IF(Výstup!$E$3="Wind",INDEX(Data!$C$3:$AC$8762,Výpočet!Q169,Výpočet!$R$4),INDEX(Data!$AH$3:$BH$8762,Výpočet!Q169,Výpočet!$R$4))*Výstup!$E$10,Výstup!$E$10) -> 0.7025075862
J170: 2021-01-07 | K170: 14 | L170: 5 | M170: 1 | Q170: 158 | R170: =IF(Výstup!$E$9="Pay as produced",IF(Výstup!$E$3="Wind",INDEX(Data!$C$3:$AC$8762,Výpočet!Q170,Výpočet!$R$4),INDEX(Data!$AH$3:$BH$8762,Výpočet!Q170,Výpočet!$R$4))*Výstup!$E$10,Výstup!$E$10) -> 0.7154786207
J171: 2021-01-07 | K171: 15 | L171: 5 | M171: 1 | Q171: 159 | R171: =IF(Výstup!$E$9="Pay as produced",IF(Výstup!$E$3="Wind",INDEX(Data!$C$3:$AC$8762,Výpočet!Q171,Výpočet!$R$4),INDEX(Data!$AH$3:$BH$8762,Výpočet!Q171,Výpočet!$R$4))*Výstup!$E$10,Výstup!$E$10) -> 0.7389655172
J172: 2021-01-07 | K172: 16 | L172: 5 | M172: 1 | Q172: 160 | R172: =IF(Výstup!$E$9="Pay as produced",IF(Výstup!$E$3="Wind",INDEX(Data!$C$3:$AC$8762,Výpočet!Q172,Výpočet!$R$4),INDEX(Data!$AH$3:$BH$8762,Výpočet!Q172,Výpočet!$R$4))*Výstup!$E$10,Výstup!$E$10) -> 0.7749372414
J173: 2021-01-07 | K173: 17 | L173: 5 | M173: 1 | Q173: 161 | R173: =IF(Výstup!$E$9="Pay as produced",IF(Výstup!$E$3="Wind",INDEX(Data!$C$3:$AC$8762,Výpočet!Q173,Výpočet!$R$4),INDEX(Data!$AH$3:$BH$8762,Výpočet!Q173,Výpočet!$R$4))*Výstup!$E$10,Výstup!$E$10) -> 0.8019013793
J174: 2021-01-07 | K174: 18 | L174: 5 | M174: 1 | Q174: 162 | R174: =IF(Výstup!$E$9="Pay as produced",IF(Výstup!$E$3="Wind",INDEX(Data!$C$3:$AC$8762,Výpočet!Q174,Výpočet!$R$4),INDEX(Data!$AH$3:$BH$8762,Výpočet!Q174,Výpočet!$R$4))*Výstup!$E$10,Výstup!$E$10) -> 0.8172931034
J175: 2021-01-07 | K175: 19 | L175: 5 | M175: 1 | Q175: 163 | R175: =IF(Výstup!$E$9="Pay as produced",IF(Výstup!$E$3="Wind",INDEX(Data!$C$3:$AC$8762,Výpočet!Q175,Výpočet!$R$4),INDEX(Data!$AH$3:$BH$8762,Výpočet!Q175,Výpočet!$R$4))*Výstup!$E$10,Výstup!$E$10) -> 0.8259710345
J176: 2021-01-07 | K176: 20 | L176: 5 | M176: 1 | Q176: 164 | R176: =IF(Výstup!$E$9="Pay as produced",IF(Výstup!$E$3="Wind",INDEX(Data!$C$3:$AC$8762,Výpočet!Q176,Výpočet!$R$4),INDEX(Data!$AH$3:$BH$8762,Výpočet!Q176,Výpočet!$R$4))*Výstup!$E$10,Výstup!$E$10) -> 0.8303606897
J177: 2021-01-07 | K177: 21 | L177: 5 | M177: 1 | Q177: 165 | R177: =IF(Výstup!$E$9="Pay as produced",IF(Výstup!$E$3="Wind",INDEX(Data!$C$3:$AC$8762,Výpočet!Q177,Výpočet!$R$4),INDEX(Data!$AH$3:$BH$8762,Výpočet!Q177,Výpočet!$R$4))*Výstup!$E$10,Výstup!$E$10) -> 0.8274627586
J178: 2021-01-07 | K178: 22 | L178: 5 | M178: 1 | Q178: 166 | R178: =IF(Výstup!$E$9="Pay as produced",IF(Výstup!$E$3="Wind",INDEX(Data!$C$3:$AC$8762,Výpočet!Q178,Výpočet!$R$4),INDEX(Data!$AH$3:$BH$8762,Výpočet!Q178,Výpočet!$R$4))*Výstup!$E$10,Výstup!$E$10) -> 0.82464
J179: 2021-01-07 | K179: 23 | L179: 5 | M179: 1 | Q179: 167 | R179: =IF(Výstup!$E$9="Pay as produced",IF(Výstup!$E$3="Wind",INDEX(Data!$C$3:$AC$8762,Výpočet!Q179,Výpočet!$R$4),INDEX(Data!$AH$3:$BH$8762,Výpočet!Q179,Výpočet!$R$4))*Výstup!$E$10,Výstup!$E$10) -> 0.8194193103
J180: 2021-01-07 | K180: 24 | L180: 5 | M180: 1 | Q180: 168 | R180: =IF(Výstup!$E$9="Pay as produced",IF(Výstup!$E$3="Wind",INDEX(Data!$C$3:$AC$8762,Výpočet!Q180,Výpočet!$R$4),INDEX(Data!$AH$3:$BH$8762,Výpočet!Q180,Výpočet!$R$4))*Výstup!$E$10,Výstup!$E$10) -> 0.8084689655
J181: 2021-01-08 | K181: 1 | L181: 6 | M181: 1 | Q181: 169 | R181: =IF(Výstup!$E$9="Pay as produced",IF(Výstup!$E$3="Wind",INDEX(Data!$C$3:$AC$8762,Výpočet!Q181,Výpočet!$R$4),INDEX(Data!$AH$3:$BH$8762,Výpočet!Q181,Výpočet!$R$4))*Výstup!$E$10,Výstup!$E$10) -> 0.7890634483
J182: 2021-01-08 | K182: 2 | L182: 6 | M182: 1 | Q182: 170 | R182: =IF(Výstup!$E$9="Pay as produced",IF(Výstup!$E$3="Wind",INDEX(Data!$C$3:$AC$8762,Výpočet!Q182,Výpočet!$R$4),INDEX(Data!$AH$3:$BH$8762,Výpočet!Q182,Výpočet!$R$4))*Výstup!$E$10,Výstup!$E$10) -> 0.7662689655
J183: 2021-01-08 | K183: 3 | L183: 6 | M183: 1 | Q183: 171 | R183: =IF(Výstup!$E$9="Pay as produced",IF(Výstup!$E$3="Wind",INDEX(Data!$C$3:$AC$8762,Výpočet!Q183,Výpočet!$R$4),INDEX(Data!$AH$3:$BH$8762,Výpočet!Q183,Výpočet!$R$4))*Výstup!$E$10,Výstup!$E$10) -> 0.744342069
J184: 2021-01-08 | K184: 4 | L184: 6 | M184: 1 | Q184: 172 | R184: =IF(Výstup!$E$9="Pay as produced",IF(Výstup!$E$3="Wind",INDEX(Data!$C$3:$AC$8762,Výpočet!Q184,Výpočet!$R$4),INDEX(Data!$AH$3:$BH$8762,Výpočet!Q184,Výpočet!$R$4))*Výstup!$E$10,Výstup!$E$10) -> 0.7206268966
J185: 2021-01-08 | K185: 5 | L185: 6 | M185: 1 | Q185: 173 | R185: =IF(Výstup!$E$9="Pay as produced",IF(Výstup!$E$3="Wind",INDEX(Data!$C$3:$AC$8762,Výpočet!Q185,Výpočet!$R$4),INDEX(Data!$AH$3:$BH$8762,Výpočet!Q185,Výpočet!$R$4))*Výstup!$E$10,Výstup!$E$10) -> 0.6971089655
J186: 2021-01-08 | K186: 6 | L186: 6 | M186: 1 | Q186: 174 | R186: =IF(Výstup!$E$9="Pay as produced",IF(Výstup!$E$3="Wind",INDEX(Data!$C$3:$AC$8762,Výpočet!Q186,Výpočet!$R$4),INDEX(Data!$AH$3:$BH$8762,Výpočet!Q186,Výpočet!$R$4))*Výstup!$E$10,Výstup!$E$10) -> 0.6747227586
J187: 2021-01-08 | K187: 7 | L187: 6 | M187: 1 | Q187: 175 | R187: =IF(Výstup!$E$9="Pay as produced",IF(Výstup!$E$3="Wind",INDEX(Data!$C$3:$AC$8762,Výpočet!Q187,Výpočet!$R$4),INDEX(Data!$AH$3:$BH$8762,Výpočet!Q187,Výpočet!$R$4))*Výstup!$E$10,Výstup!$E$10) -> 0.657397931
J188: 2021-01-08 | K188: 8 | L188: 6 | M188: 1 | Q188: 176 | R188: =IF(Výstup!$E$9="Pay as produced",IF(Výstup!$E$3="Wind",INDEX(Data!$C$3:$AC$8762,Výpočet!Q188,Výpočet!$R$4),INDEX(Data!$AH$3:$BH$8762,Výpočet!Q188,Výpočet!$R$4))*Výstup!$E$10,Výstup!$E$10) -> 0.6409841379
J189: 2021-01-08 | K189: 9 | L189: 6 | M189: 1 | Q189: 177 | R189: =IF(Výstup!$E$9="Pay as produced",IF(Výstup!$E$3="Wind",INDEX(Data!$C$3:$AC$8762,Výpočet!Q189,Výpočet!$R$4),INDEX(Data!$AH$3:$BH$8762,Výpočet!Q189,Výpočet!$R$4))*Výstup!$E$10,Výstup!$E$10) -> 0.621102069
J190: 2021-01-08 | K190: 10 | L190: 6 | M190: 1 | Q190: 178 | R190: =IF(Výstup!$E$9="Pay as produced",IF(Výstup!$E$3="Wind",INDEX(Data!$C$3:$AC$8762,Výpočet!Q190,Výpočet!$R$4),INDEX(Data!$AH$3:$BH$8762,Výpočet!Q190,Výpočet!$R$4))*Výstup!$E$10,Výstup!$E$10) -> 0.5960462069
J191: 2021-01-08 | K191: 11 | L191: 6 | M191: 1 | Q191: 179 | R191: =IF(Výstup!$E$9="Pay as produced",IF(Výstup!$E$3="Wind",INDEX(Data!$C$3:$AC$8762,Výpočet!Q191,Výpočet!$R$4),INDEX(Data!$AH$3:$BH$8762,Výpočet!Q191,Výpočet!$R$4))*Výstup!$E$10,Výstup!$E$10) -> 0.5882165517
J192: 2021-01-08 | K192: 12 | L192: 6 | M192: 1 | Q192: 180 | R192: =IF(Výstup!$E$9="Pay as produced",IF(Výstup!$E$3="Wind",INDEX(Data!$C$3:$AC$8762,Výpočet!Q192,Výpočet!$R$4),INDEX(Data!$AH$3:$BH$8762,Výpočet!Q192,Výpočet!$R$4))*Výstup!$E$10,Výstup!$E$10) -> 0.596222069
J193: 2021-01-08 | K193: 13 | L193: 6 | M193: 1 | Q193: 181 | R193: =IF(Výstup!$E$9="Pay as produced",IF(Výstup!$E$3="Wind",INDEX(Data!$C$3:$AC$8762,Výpočet!Q193,Výpočet!$R$4),INDEX(Data!$AH$3:$BH$8762,Výpočet!Q193,Výpočet!$R$4))*Výstup!$E$10,Výstup!$E$10) -> 0.6073206897
J194: 2021-01-08 | K194: 14 | L194: 6 | M194: 1 | Q194: 182 | R194: =IF(Výstup!$E$9="Pay as produced",IF(Výstup!$E$3="Wind",INDEX(Data!$C$3:$AC$8762,Výpočet!Q194,Výpočet!$R$4),INDEX(Data!$AH$3:$BH$8762,Výpočet!Q194,Výpočet!$R$4))*Výstup!$E$10,Výstup!$E$10) -> 0.6198082759
J195: 2021-01-08 | K195: 15 | L195: 6 | M195: 1 | Q195: 183 | R195: =IF(Výstup!$E$9="Pay as produced",IF(Výstup!$E$3="Wind",INDEX(Data!$C$3:$AC$8762,Výpočet!Q195,Výpočet!$R$4),INDEX(Data!$AH$3:$BH$8762,Výpočet!Q195,Výpočet!$R$4))*Výstup!$E$10,Výstup!$E$10) -> 0.6379986207
J196: 2021-01-08 | K196: 16 | L196: 6 | M196: 1 | Q196: 184 | R196: =IF(Výstup!$E$9="Pay as produced",IF(Výstup!$E$3="Wind",INDEX(Data!$C$3:$AC$8762,Výpočet!Q196,Výpočet!$R$4),INDEX(Data!$AH$3:$BH$8762,Výpočet!Q196,Výpočet!$R$4))*Výstup!$E$10,Výstup!$E$10) -> 0.6591965517
J197: 2021-01-08 | K197: 17 | L197: 6 | M197: 1 | Q197: 185 | R197: =IF(Výstup!$E$9="Pay as produced",IF(Výstup!$E$3="Wind",INDEX(Data!$C$3:$AC$8762,Výpočet!Q197,Výpočet!$R$4),INDEX(Data!$AH$3:$BH$8762,Výpočet!Q197,Výpočet!$R$4))*Výstup!$E$10,Výstup!$E$10) -> 0.673437931
J198: 2021-01-08 | K198: 18 | L198: 6 | M198: 1 | Q198: 186 | R198: =IF(Výstup!$E$9="Pay as produced",IF(Výstup!$E$3="Wind",INDEX(Data!$C$3:$AC$8762,Výpočet!Q198,Výpočet!$R$4),INDEX(Data!$AH$3:$BH$8762,Výpočet!Q198,Výpočet!$R$4))*Výstup!$E$10,Výstup!$E$10) -> 0.6796310345
J199: 2021-01-08 | K199: 19 | L199: 6 | M199: 1 | Q199: 187 | R199: =IF(Výstup!$E$9="Pay as produced",IF(Výstup!$E$3="Wind",INDEX(Data!$C$3:$AC$8762,Výpočet!Q199,Výpočet!$R$4),INDEX(Data!$AH$3:$BH$8762,Výpočet!Q199,Výpočet!$R$4))*Výstup!$E$10,Výstup!$E$10) -> 0.6825586207
J200: 2021-01-08 | K200: 20 | L200: 6 | M200: 1 | Q200: 188 | R200: =IF(Výstup!$E$9="Pay as produced",IF(Výstup!$E$3="Wind",INDEX(Data!$C$3:$AC$8762,Výpočet!Q200,Výpočet!$R$4),INDEX(Data!$AH$3:$BH$8762,Výpočet!Q200,Výpočet!$R$4))*Výstup!$E$10,Výstup!$E$10) -> 0.6825041379
J201: 2021-01-08 | K201: 21 | L201: 6 | M201: 1 | Q201: 189 | R201: =IF(Výstup!$E$9="Pay as produced",IF(Výstup!$E$3="Wind",INDEX(Data!$C$3:$AC$8762,Výpočet!Q201,Výpočet!$R$4),INDEX(Data!$AH$3:$BH$8762,Výpočet!Q201,Výpočet!$R$4))*Výstup!$E$10,Výstup!$E$10) -> 0.681862069
... 4299 more rows

Sheet Data
B1: Wind | C1: 1 | D1: 2 | E1: 3 | F1: 4 | G1: 5 | H1: 6 | I1: 7 | J1: 8 | K1: 9 | L1: 10 | M1: 11 | N1: 12 | O1: 13 | P1: 14 | Q1: 15 | R1: 16 | S1: 17 | T1: 18 | U1: 19 | V1: 20 | W1: 21 | X1: 22 | Y1: 23 | Z1: 24 | AA1: 25 | AB1: 26 | AC1: 27 | AG1: PV
C2: AT | D2: BE | E2: BG | F2: CH | G2: CZ | H2: DE | I2: DK | J2: EE | K2: ES | L2: FI | M2: FR | N2: HR | O2: HU | P2: IE | Q2: IT | R2: LT | S2: LU | T2: LV | U2: NL | V2: NO | W2: PL | X2: PT | Y2: RO | Z2: SI | AA2: SK | AB2: SE | AC2: UK | AH2: AT | AI2: BE | AJ2: BG | AK2: CH | AL2: CZ | AM2: DE | AN2: DK | AO2: EE | AP2: ES | AQ2: FI | AR2: FR | AS2: HR | AT2: HU | AU2: IE | AV2: IT | AW2: LT | AX2: LU | AY2: LV | AZ2: NL | BA2: NO | BB2: PL | BC2: PT | BD2: RO | BE2: SI | BF2: SK | BG2: SE | BH2: UK
B3: 1 | C3: 0.3471551724 | D3: 0.3185941379 | E3: 0.29534 | F3: 0.3415793103 | G3: 0.3822944828 | H3: 0.3352782759 | I3: 0.220982069 | J3: 0.387927931 | K3: 0.4113796552 | L3: 0.2994858621 | M3: 0.3102472414 | N3: 0.2526189655 | O3: 0.2570613793 | P3: 0.4231027586 | Q3: 0.2572272414 | R3: 0.3814855172 | S3: 0.231322069 | T3: 0.2415841379 | U3: 0.3153862069 | V3: 0.297177931 | W3: 0.4161010345 | X3: 0.2692027586 | Y3: 0.3148151724 | Z3: 0.2066510345 | AA3: 0.2356375862 | AB3: 0.4203196552 | AC3: 0.3577192476 | AH3: 0 | AI3: 0 | AJ3: 0 | AK3: 0 | AL3: 0 | AM3: 0 | AN3: 0 | AO3: 0 | AP3: 0 | AQ3: 0 | AR3: 0 | AS3: 0 | AT3: 0 | AU3: 0 | AV3: 0 | AW3: 0 | AX3: 0 | AY3: 0 | AZ3: 0 | BA3: 0 | BB3: 0 | BC3: 0 | BD3: 0 | BE3: 0 | BF3: 0 | BG3: 0 | BH3: 0
B4: 2 | C4: 0.3493351724 | D4: 0.3100731034 | E4: 0.2914034483 | F4: 0.3369906897 | G4: 0.3813762069 | H4: 0.3246906897 | I4: 0.2149851724 | J4: 0.3922310345 | K4: 0.40648 | L4: 0.2973813793 | M4: 0.3087896552 | N4: 0.2505962069 | O4: 0.2583048276 | P4: 0.4268213793 | Q4: 0.2536889655 | R4: 0.3839313793 | S4: 0.2286934483 | T4: 0.2453962069 | U4: 0.3055413793 | V4: 0.2955193103 | W4: 0.4181368966 | X4: 0.265357931 | Y4: 0.3134386207 | Z4: 0.2141368966 | AA4: 0.2381844828 | AB4: 0.4115544828 | AC4: 0.3610136773 | AH4: 0 | AI4: 0 | AJ4: 0 | AK4: 0 | AL4: 0 | AM4: 0 | AN4: 0 | AO4: 0 | AP4: 0 | AQ4: 0 | AR4: 0 | AS4: 0 | AT4: 0 | AU4: 0 | AV4: 0 | AW4: 0 | AX4: 0 | AY4: 0 | AZ4: 0 | BA4: 0 | BB4: 0 | BC4: 0 | BD4: 0 | BE4: 0 | BF4: 0 | BG4: 0 | BH4: 0
B5: 3 | C5: 0.3530962069 | D5: 0.3045168966 | E5: 0.2854589655 | F5: 0.3427372414 | G5: 0.376337931 | H5: 0.3168755172 | I5: 0.2088617241 | J5: 0.3935237931 | K5: 0.4007882759 | L5: 0.2947255172 | M5: 0.3078803448 | N5: 0.2522334483 | O5: 0.2635944828 | P5: 0.4289213793 | Q5: 0.2502889655 | R5: 0.3875655172 | S5: 0.2264758621 | T5: 0.2501989655 | U5: 0.300642069 | V5: 0.2943731034 | W5: 0.4195786207 | X5: 0.2628310345 | Y5: 0.3119286207 | Z5: 0.2195968966 | AA5: 0.2370951724 | AB5: 0.4046486207 | AC5: 0.3652335418 | AH5: 0 | AI5: 0 | AJ5: 0 | AK5: 0 | AL5: 0 | AM5: 0 | AN5: 0 | AO5: 0 | AP5: 0 | AQ5: 0 | AR5: 0 | AS5: 0 | AT5: 0 | AU5: 0 | AV5: 0 | AW5: 0 | AX5: 0 | AY5: 0 | AZ5: 0 | BA5: 0 | BB5: 0 | BC5: 0 | BD5: 0 | BE5: 0 | BF5: 0 | BG5: 0 | BH5: 0
B6: 4 | C6: 0.361507931 | D6: 0.2977975862 | E6: 0.2794793103 | F6: 0.3364917241 | G6: 0.3740265517 | H6: 0.3093375862 | I6: 0.2027275862 | J6: 0.3950503448 | K6: 0.3981358621 | L6: 0.2884258621 | M6: 0.3059103448 | N6: 0.2567958621 | O6: 0.2660448276 | P6: 0.4302358621 | Q6: 0.2506903448 | R6: 0.3944196552 | S6: 0.2211986207 | T6: 0.2544603448 | U6: 0.2975327586 | V6: 0.2927510345 | W6: 0.416297931 | X6: 0.2620431034 | Y6: 0.3107144828 | Z6: 0.2414955172 | AA6: 0.2333610345 | AB6: 0.3939886207 | AC6: 0.3683176256 | AH6: 0 | AI6: 0 | AJ6: 0 | AK6: 0 | AL6: 0 | AM6: 0 | AN6: 0 | AO6: 0 | AP6: 0 | AQ6: 0 | AR6: 0 | AS6: 0 | AT6: 0 | AU6: 0 | AV6: 0 | AW6: 0 | AX6: 0 | AY6: 0 | AZ6: 0 | BA6: 0 | BB6: 0 | BC6: 0 | BD6: 0 | BE6: 0 | BF6: 0 | BG6: 0 | BH6: 0
B7: 5 | C7: 0.3653603448 | D7: 0.2924155172 | E7: 0.2784158621 | F7: 0.3280317241 | G7: 0.3725793103 | H7: 0.3038510345 | I7: 0.1963531034 | J7: 0.3947289655 | K7: 0.3969662069 | L7: 0.2836041379 | M7: 0.3058758621 | N7: 0.2631 | O7: 0.26897 | P7: 0.4297517241 | Q7: 0.2505965517 | R7: 0.4017268966 | S7: 0.21325 | T7: 0.2578796552 | U7: 0.2982910345 | V7: 0.2926903448 | W7: 0.4093775862 | X7: 0.2645217241 | Y7: 0.3131296552 | Z7: 0.2407986207 | AA7: 0.229137931 | AB7: 0.3859006897 | AC7: 0.3722552969 | AH7: 0 | AI7: 0 | AJ7: 0 | AK7: 0 | AL7: 0 | AM7: 0 | AN7: 0 | AO7: 0 | AP7: 0 | AQ7: 0 | AR7: 0 | AS7: 0 | AT7: 0 | AU7: 0 | AV7: 0 | AW7: 0 | AX7: 0 | AY7: 0 | AZ7: 0 | BA7: 0 | BB7: 0 | BC7: 0 | BD7: 0 | BE7: 0 | BF7: 0 | BG7: 0 | BH7: 0
B8: 6 | C8: 0.3612231034 | D8: 0.2896582759 | E8: 0.2760606897 | F8: 0.3164306897 | G8: 0.373232069 | H8: 0.3008106897 | I8: 0.1883041379 | J8: 0.3973834483 | K8: 0.391582069 | L8: 0.2810196552 | M8: 0.3065796552 | N8: 0.2654337931 | O8: 0.2691331034 | P8: 0.4293206897 | Q8: 0.2493558621 | R8: 0.4118727586 | S8: 0.2056306897 | T8: 0.2633506897 | U8: 0.2994131034 | V8: 0.2890634483 | W8: 0.4036493103 | X8: 0.2717351724 | Y8: 0.3206658621 | Z8: 0.2445675862 | AA8: 0.2215124138 | AB8: 0.3770755172 | AC8: 0.376458351 | AH8: 0 | AI8: 0 | AJ8: 0 | AK8: 0 | AL8: 0 | AM8: 0 | AN8: 0 | AO8: 0 | AP8: 0 | AQ8: 0 | AR8: 0 | AS8: 0 | AT8: 0 | AU8: 0 | AV8: 0 | AW8: 0 | AX8: 0 | AY8: 0 | AZ8: 0 | BA8: 0 | BB8: 0 | BC8: 0 | BD8: 0 | BE8: 0 | BF8: 0 | BG8: 0 | BH8: 0
B9: 7 | C9: 0.3617034483 | D9: 0.2889841379 | E9: 0.2732593103 | F9: 0.3128927586 | G9: 0.373587931 | H9: 0.2995148276 | I9: 0.1799706897 | J9: 0.3985044828 | K9: 0.3843272414 | L9: 0.279947931 | M9: 0.3092551724 | N9: 0.2678193103 | O9: 0.2677689655 | P9: 0.4273748276 | Q9: 0.2482751724 | R9: 0.4207234483 | S9: 0.2023896552 | T9: 0.2685148276 | U9: 0.3028624138 | V9: 0.2878172414 | W9: 0.39897 | X9: 0.2808348276 | Y9: 0.3222596552 | Z9: 0.2472968966 | AA9: 0.2177544828 | AB9: 0.37088 | AC9: 0.3813023544 | AH9: 0 | AI9: 0 | AJ9: 0.006993478544 | AK9: 0 | AL9: 0 | AM9: 0 | AN9: 0 | AO9: 0 | AP9: 0 | AQ9: 0 | AR9: 0 | AS9: 0 | AT9: 0 | AU9: 0 | AV9: 0 | AW9: 0 | AX9: 0 | AY9: 0 | AZ9: 0 | BA9: 0 | BB9: 0 | BC9: 0 | BD9: 0.00976101848 | BE9: 0 | BF9: 0 | BG9: 0 | BH9: 0
B10: 8 | C10: 0.3618731034 | D10: 0.2897906897 | E10: 0.2607303448 | F10: 0.3093475862 | G10: 0.3704337931 | H10: 0.2988072414 | I10: 0.17334 | J10: 0.3985627586 | K10: 0.3788110345 | L10: 0.2793134483 | M10: 0.3151596552 | N10: 0.2731768966 | O10: 0.2593827586 | P10: 0.4245031034 | Q10: 0.2440172414 | R10: 0.4264796552 | S10: 0.1991555172 | T10: 0.27508 | U10: 0.3073072414 | V10: 0.2856265517 | W10: 0.3912958621 | X10: 0.2919486207 | Y10: 0.3150131034 | Z10: 0.2541793103 | AA10: 0.2105927586 | AB10: 0.3648896552 | AC10: 0.386726463 | AH10: 0.009743589744 | AI10: 0 | AJ10: 0.1058259874 | AK10: 0.005323951519 | AL10: 0.007603612321 | AM10: 0.001276900769 | AN10: 0 | AO10: 0.006764478456 | AP10: 0 | AQ10: 0 | AR10: 0 | AS10: 0.0250768135 | AT10: 0.03918898984 | AU10: 0 | AV10: 0.02124894906 | AW10: 0.01004082404 | AX10: 0 | AY10: 0.009238405821 | AZ10: 0 | BA10: 0 | BB10: 0.01700871058 | BC10: 0 | BD10: 0.10343704 | BE10: 0.007287144811 | BF10: 0.02770769681 | BG10: 0 | BH10: 0
B11: 9 | C11: 0.3461434483 | D11: 0.2920672414 | E11: 0.2582555172 | F11: 0.3040406897 | G11: 0.3537410345 | H11: 0.2963182759 | I11: 0.1710141379 | J11: 0.3947224138 | K11: 0.3663410345 | L11: 0.2810006897 | M11: 0.3192448276 | N11: 0.2640258621 | O11: 0.24221 | P11: 0.419127931 | Q11: 0.2420172414 | R11: 0.4255041379 | S11: 0.1994313793 | T11: 0.2795672414 | U11: 0.3112689655 | V11: 0.2854441379 | W11: 0.375352069 | X11: 0.2962193103 | Y11: 0.3119124138 | Z11: 0.2299010345 | AA11: 0.1971527586 | AB11: 0.3569937931 | AC11: 0.392289201 | AH11: 0.1160776418 | AI11: 0.007176415635 | AJ11: 0.2087919576 | AK11: 0.08650842923 | AL11: 0.0745889417 | AM11: 0.03115622638 | AN11: 0.01200470046 | AO11: 0.02840157914 | AP11: 0.06421028846 | AQ11: 0.006210479436 | AR11: 0.04334095099 | AS11: 0.1023260569 | AT11: 0.128142713 | AU11: 0 | AV11: 0.1131127235 | AW11: 0.04728263168 | AX11: 0.01050040136 | AY11: 0.03675977621 | AZ11: 0.002643040569 | BA11: 0 | BB11: 0.06877887111 | BC11: 0.01086380819 | BD11: 0.1933849598 | BE11: 0.09123526278 | BF11: 0.1155256538 | BG11: 0.008320141541 | BH11: 0.004307738642
B12: 10 | C12: 0.3296027586 | D12: 0.2888037931 | E12: 0.2588575862 | F12: 0.296277931 | G12: 0.33626 | H12: 0.2902693103 | I12: 0.1696672414 | J12: 0.3870827586 | K12: 0.3487344828 | L12: 0.2802517241 | M12: 0.3149658621 | N12: 0.2456413793 | O12: 0.2322051724 | P12: 0.4145937931 | Q12: 0.2564006897 | R12: 0.423482069 | S12: 0.1981148276 | T12: 0.2793003448 | U12: 0.3151603448 | V12: 0.2866031034 | W12: 0.360272069 | X12: 0.2785248276 | Y12: 0.3114134483 | Z12: 0.2037158621 | AA12: 0.1802482759 | AB12: 0.3447248276 | AC12: 0.3935047756 | AH12: 0.1935232669 | AI12: 0.09167232746 | AJ12: 0.2751819041 | AK12: 0.166571395 | AL12: 0.1492351248 | AM12: 0.09295400138 | AN12: 0.04291385104 | AO12: 0.05434772223 | AP12: 0.2074558593 | AQ12: 0.02348402731 | AR12: 0.1349239749 | AS12: 0.1732095258 | AT12: 0.1893275319 | AU12: 0.006542775654 | AV12: 0.1981139105 | AW12: 0.07850702207 | AX12: 0.1016967208 | AY12: 0.06755317176 | AZ12: 0.08256011561 | BA12: 0.0171777596 | BB12: 0.1096221357 | BC12: 0.1970819323 | BD12: 0.2533329809 | BE12: 0.1642167133 | BF12: 0.1755821583 | BG12: 0.03436365917 | BH12: 0.03559400664
B13: 11 | C13: 0.3326506897 | D13: 0.2897517241 | E13: 0.2614317241 | F13: 0.2925703448 | G13: 0.3309306897 | H13: 0.2907893103 | I13: 0.1692075862 | J13: 0.3831055172 | K13: 0.359582069 | L13: 0.2790668966 | M13: 0.3151851724 | N13: 0.2313158621 | O13: 0.2329151724 | P13: 0.4059068966 | Q13: 0.2683210345 | R13: 0.4206534483 | S13: 0.1994431034 | T13: 0.2773427586 | U13: 0.3225306897 | V13: 0.2844334483 | W13: 0.3573668966 | X13: 0.2744106897 | Y13: 0.3106024138 | Z13: 0.1880441379 | AA13: 0.1765013793 | AB13: 0.3310103448 | AC13: 0.3916126447 | AH13: 0.220276682 | AI13: 0.1389475892 | AJ13: 0.2976027081 | AK13: 0.2042566907 | AL13: 0.1793591417 | AM13: 0.1235671286 | AN13: 0.07119517297 | AO13: 0.06529981696 | AP13: 0.3016831955 | AQ13: 0.03078991541 | AR13: 0.205169338 | AS13: 0.2031343735 | AT13: 0.2023732727 | AU13: 0.05190218345 | AV13: 0.2464420446 | AW13: 0.09087020395 | AX13: 0.1396135012 | AY13: 0.08158498859 | AZ13: 0.1365977969 | BA13: 0.02499523005 | BB13: 0.1223110781 | BC13: 0.3431551027 | BD13: 0.2663397769 | BE13: 0.2009544869 | BF13: 0.1923849234 | BG13: 0.04926491313 | BH13: 0.08248046157
B14: 12 | C14: 0.3396572414 | D14: 0.2977417241 | E14: 0.2589775862 | F14: 0.3077913793 | G14: 0.3362886207 | H14: 0.2930541379 | I14: 0.1694962069 | J14: 0.3789996552 | K14: 0.3828868966 | L14: 0.2817724138 | M14: 0.3218462069 | N14: 0.2257593103 | O14: 0.2369358621 | P14: 0.39863 | Q14: 0.2752296552 | R14: 0.4144841379 | S14: 0.2038093103 | T14: 0.2719803448 | U14: 0.3355117241 | V14: 0.2822565517 | W14: 0.3572237931 | X14: 0.2809482759 | Y14: 0.3060734483 | Z14: 0.1769724138 | AA14: 0.1769068966 | AB14: 0.3228931034 | AC14: 0.391034963 | AH14: 0.2357575758 | AI14: 0.1564703093 | AJ14: 0.3044888509 | AK14: 0.2273195121 | AL14: 0.1953899038 | AM14: 0.1395774166 | AN14: 0.08423023029 | AO14: 0.069043032 | AP14: 0.370323994 | AQ14: 0.03479262981 | AR14: 0.2539235261 | AS14: 0.2242819001 | AT14: 0.2082509177 | AU14: 0.09973231642 | AV14: 0.2699849975 | AW14: 0.09769998521 | AX14: 0.1614824975 | AY14: 0.08353022147 | AZ14: 0.1661355111 | BA14: 0.0265431506 | BB14: 0.1284660601 | BC14: 0.4396973517 | BD14: 0.2629899401 | BE14: 0.2203117519 | BF14: 0.1964960156 | BG14: 0.05383716276 | BH14: 0.1206150386
B15: 13 | C15: 0.3422806897 | D15: 0.3079624138 | E15: 0.2511293103 | F15: 0.321252069 | G15: 0.3355041379 | H15: 0.2952758621 | I15: 0.1701293103 | J15: 0.3779803448 | K15: 0.4014024138 | L15: 0.2880686207 | M15: 0.3260751724 | N15: 0.2220713793 | O15: 0.2355551724 | P15: 0.3949651724 | Q15: 0.2774296552 | R15: 0.4068858621 | S15: 0.2080344828 | T15: 0.2658993103 | U15: 0.3493244828 | V15: 0.2787658621 | W15: 0.3581982759 | X15: 0.294392069 | Y15: 0.296367931 | Z15: 0.1696975862 | AA15: 0.174567931 | AB15: 0.3211665517 | AC15: 0.3910231522 | AH15: 0.2196058215 | AI15: 0.1464352577 | AJ15: 0.2484676908 | AK15: 0.2239246873 | AL15: 0.1705115382 | AM15: 0.1326786204 | AN15: 0.07521775402 | AO15: 0.04935296313 | AP15: 0.3896477793 | AQ15: 0.04874788608 | AR15: 0.2594987951 | AS15: 0.1959795513 | AT15: 0.176081889 | AU15: 0.1261867598 | AV15: 0.2500273623 | AW15: 0.07774705762 | AX15: 0.1491071684 | AY15: 0.06060544134 | AZ15: 0.1637474134 | BA15: 0.02473095426 | BB15: 0.1137434611 | BC15: 0.4883952434 | BD15: 0.2199808807 | BE15: 0.1956855478 | BF15: 0.1737277875 | BG15: 0.04702111964 | BH15: 0.1238474306
B16: 14 | C16: 0.3398648276 | D16: 0.3203006897 | E16: 0.2395051724 | F16: 0.3085889655 | G16: 0.3327458621 | H16: 0.2981324138 | I16: 0.1711 | J16: 0.37688 | K16: 0.4074444828 | L16: 0.2929372414 | M16: 0.3260089655 | N16: 0.2159603448 | O16: 0.2327796552 | P16: 0.3927662069 | Q16: 0.2722603448 | R16: 0.4012662069 | S16: 0.2127341379 | T16: 0.2593431034 | U16: 0.3611917241 | V16: 0.2756165517 | W16: 0.3636917241 | X16: 0.3044117241 | Y16: 0.2904751724 | Z16: 0.1679693103 | AA16: 0.1707117241 | AB16: 0.324012069 | AC16: 0.3899782559 | AH16: 0.1900724269 | AI16: 0.1242423582 | AJ16: 0.2013773068 | AK16: 0.1974854741 | AL16: 0.1357311461 | AM16: 0.1094932742 | AN16: 0.0622576196 | AO16: 0.07640788556 | AP16: 0.3857138928 | AQ16: 0.01204499926 | AR16: 0.2466472465 | AS16: 0.1610114848 | AT16: 0.1462511352 | AU16: 0.1393192443 | AV16: 0.2144341136 | AW16: 0.04515756826 | AX16: 0.1163987622 | AY16: 0.04229921543 | AZ16: 0.1329841639 | BA16: 0.02507083888 | BB16: 0.08763022975 | BC16: 0.4939197685 | BD16: 0.1761720826 | BE16: 0.1744849101 | BF16: 0.1399026396 | BG16: 0.04018529934 | BH16: 0.120647999
B17: 15 | C17: 0.3495331034 | D17: 0.3296586207 | E17: 0.2390086207 | F17: 0.2949617241 | G17: 0.342687931 | H17: 0.3061882759 | I17: 0.1753896552 | J17: 0.3716706897 | K17: 0.4065351724 | L17: 0.2927310345 | M17: 0.3233851724 | N17: 0.2216875862 | O17: 0.2359372414 | P17: 0.3892734483 | Q17: 0.2554748276 | R17: 0.3975193103 | S17: 0.2194737931 | T17: 0.2507831034 | U17: 0.3731189655 | V17: 0.2750551724 | W17: 0.3733772414 | X17: 0.3035227586 | Y17: 0.2944055172 | Z17: 0.1718386207 | AA17: 0.1760013793 | AB17: 0.3278251724 | AC17: 0.3889714117 | AH17: 0.1340056118 | AI17: 0.0975768089 | AJ17: 0.1007741334 | AK17: 0.1531817595 | AL17: 0.07765785826 | AM17: 0.07042634847 | AN17: 0.0383171096 | AO17: 0 | AP17: 0.3394388995 | AQ17: 0 | AR17: 0.1943838098 | AS17: 0.1022326419 | AT17: 0.08670710038 | AU17: 0.112345573 | AV17: 0.1541378847 | AW17: 0 | AX17: 0.0905266092 | AY17: 0 | AZ17: 0.08657274367 | BA17: 0.01821076459 | BB17: 0.05175824551 | BC17: 0.4577571092 | BD17: 0.08794850531 | BE17: 0.1121656645 | BF17: 0.082209117 | BG17: 0.01882620474 | BH17: 0.09206864305
B18: 16 | C18: 0.3719696552 | D18: 0.3364048276 | E18: 0.2482065517 | F18: 0.2899082759 | G18: 0.3546075862 | H18: 0.318717931 | I18: 0.1837158621 | J18: 0.3653555172 | K18: 0.3934489655 | L18: 0.2902872414 | M18: 0.32353 | N18: 0.2482248276 | O18: 0.2431851724 | P18: 0.3886413793 | Q18: 0.2476848276 | R18: 0.3910672414 | S18: 0.2297410345 | T18: 0.2488206897 | U18: 0.3866296552 | V18: 0.2736641379 | W18: 0.3767944828 | X18: 0.2878441379 | Y18: 0.3020365517 | Z18: 0.1976182759 | AA18: 0.1843362069 | AB18: 0.3292193103 | AC18: 0.3918969337 | AH18: 0.07999155979 | AI18: 0.04944608012 | AJ18: 0 | AK18: 0.0887154048 | AL18: 0.007964414342 | AM18: 0.02617839625 | AN18: 0 | AO18: 0 | AP18: 0.2657444906 | AQ18: 0 | AR18: 0.1206284899 | AS18: 0.04897218753 | AT18: 0.01824741132 | AU18: 0.07002182771 | AV18: 0.07260675883 | AW18: 0 | AX18: 0.04284656183 | AY18: 0 | AZ18: 0.03212143792 | BA18: 0 | BB18: 0 | BC18: 0.3911833338 | BD18: 0 | BE18: 0.05231383059 | BF18: 0 | BG18: 0 | BH18: 0.0550566659
B19: 17 | C19: 0.3829086207 | D19: 0.3429796552 | E19: 0.2530213793 | F19: 0.2944355172 | G19: 0.3594482759 | H19: 0.3284203448 | I19: 0.1930544828 | J19: 0.3585913793 | K19: 0.3927993103 | L19: 0.2878368966 | M19: 0.3283482759 | N19: 0.2723655172 | O19: 0.2458865517 | P19: 0.3907655172 | Q19: 0.2560882759 | R19: 0.3873217241 | S19: 0.2314989655 | T19: 0.2503334483 | U19: 0.3952127586 | V19: 0.2730934483 | W19: 0.3748382759 | X19: 0.2727355172 | Y19: 0.3073658621 | Z19: 0.2304482759 | AA19: 0.1921458621 | AB19: 0.3312662069 | AC19: 0.395539444 | AH19: 0 | AI19: 0 | AJ19: 0 | AK19: 0 | AL19: 0 | AM19: 0 | AN19: 0 | AO19: 0 | AP19: 0.1644225181 | AQ19: 0 | AR19: 0.04368549746 | AS19: 0 | AT19: 0 | AU19: 0.03979228543 | AV19: 0 | AW19: 0 | AX19: 0 | AY19: 0 | AZ19: 0 | BA19: 0 | BB19: 0 | BC19: 0.2696771142 | BD19: 0 | BE19: 0 | BF19: 0 | BG19: 0 | BH19: 0.008614614894
B20: 18 | C20: 0.3871034483 | D20: 0.3496058621 | E20: 0.2550403448 | F20: 0.2962844828 | G20: 0.35829 | H20: 0.334327931 | I20: 0.2016572414 | J20: 0.3534131034 | K20: 0.4079275862 | L20: 0.2851872414 | M20: 0.3301206897 | N20: 0.2822834483 | O20: 0.2453786207 | P20: 0.3905417241 | Q20: 0.2626858621 | R20: 0.3845468966 | S20: 0.227032069 | T20: 0.2522972414 | U20: 0.3994162069 | V20: 0.2735455172 | W20: 0.3696558621 | X20: 0.2742451724 | Y20: 0.3117344828 | Z20: 0.2296096552 | AA20: 0.1995510345 | AB20: 0.3346103448 | AC20: 0.3964774318 | AH20: 0 | AI20: 0 | AJ20: 0 | AK20: 0 | AL20: 0 | AM20: 0 | AN20: 0 | AO20: 0 | AP20: 0.02251757468 | AQ20: 0 | AR20: 0 | AS20: 0 | AT20: 0 | AU20: 0 | AV20: 0 | AW20: 0 | AX20: 0 | AY20: 0 | AZ20: 0 | BA20: 0 | BB20: 0 | BC20: 0.09371056743 | BD20: 0 | BE20: 0 | BF20: 0 | BG20: 0 | BH20: 0
B21: 19 | C21: 0.3815251724 | D21: 0.3546710345 | E21: 0.2527772414 | F21: 0.2835510345 | G21: 0.3581258621 | H21: 0.3397537931 | I21: 0.2109827586 | J21: 0.3486527586 | K21: 0.4146175862 | L21: 0.2824610345 | M21: 0.3282931034 | N21: 0.28802 | O21: 0.2406086207 | P21: 0.3924713793 | Q21: 0.26829 | R21: 0.3781231034 | S21: 0.2234113793 | T21: 0.25008 | U21: 0.4010941379 | V21: 0.2762717241 | W21: 0.3630493103 | X21: 0.2740068966 | Y21: 0.3134658621 | Z21: 0.2282072414 | AA21: 0.197482069 | AB21: 0.3386151724 | AC21: 0.3941693684 | AH21: 0 | AI21: 0 | AJ21: 0 | AK21: 0 | AL21: 0 | AM21: 0 | AN21: 0 | AO21: 0 | AP21: 0 | AQ21: 0 | AR21: 0 | AS21: 0 | AT21: 0 | AU21: 0 | AV21: 0 | AW21: 0 | AX21: 0 | AY21: 0 | AZ21: 0 | BA21: 0 | BB21: 0 | BC21: 0 | BD21: 0 | BE21: 0 | BF21: 0 | BG21: 0 | BH21: 0
B22: 20 | C22: 0.3677927586 | D22: 0.3572310345 | E22: 0.2463806897 | F22: 0.2702927586 | G22: 0.3576062069 | H22: 0.3441893103 | I22: 0.219752069 | J22: 0.3467506897 | K22: 0.4120727586 | L22: 0.2828993103 | M22: 0.3254086207 | N22: 0.2896055172 | O22: 0.2307048276 | P22: 0.3942344828 | Q22: 0.2763155172 | R22: 0.3721524138 | S22: 0.2194965517 | T22: 0.2476786207 | U22: 0.4048641379 | V22: 0.2782310345 | W22: 0.3562551724 | X22: 0.2722417241 | Y22: 0.3133303448 | Z22: 0.2209703448 | AA22: 0.1944217241 | AB22: 0.34247 | AC22: 0.3901718352 | AH22: 0 | AI22: 0 | AJ22: 0 | AK22: 0 | AL22: 0 | AM22: 0 | AN22: 0 | AO22: 0 | AP22: 0 | AQ22: 0 | AR22: 0 | AS22: 0 | AT22: 0 | AU22: 0 | AV22: 0 | AW22: 0 | AX22: 0 | AY22: 0 | AZ22: 0 | BA22: 0 | BB22: 0 | BC22: 0 | BD22: 0 | BE22: 0 | BF22: 0 | BG22: 0 | BH22: 0
B23: 21 | C23: 0.3558496552 | D23: 0.3568141379 | E23: 0.2383689655 | F23: 0.262737931 | G23: 0.3580917241 | H23: 0.3481175862 | I23: 0.2263262069 | J23: 0.3532289655 | K23: 0.4064748276 | L23: 0.283962069 | M23: 0.3225817241 | N23: 0.2928686207 | O23: 0.2183241379 | P23: 0.3880175862 | Q23: 0.2828489655 | R23: 0.3651065517 | S23: 0.2119689655 | T23: 0.2468531034 | U23: 0.4068155172 | V23: 0.2783003448 | W23: 0.3510548276 | X23: 0.2696541379 | Y23: 0.3123837931 | Z23: 0.2172510345 | AA23: 0.1920717241 | AB23: 0.3452924138 | AC23: 0.3857202737 | AH23: 0 | AI23: 0 | AJ23: 0 | AK23: 0 | AL23: 0 | AM23: 0 | AN23: 0 | AO23: 0 | AP23: 0 | AQ23: 0 | AR23: 0 | AS23: 0 | AT23: 0 | AU23: 0 | AV23: 0 | AW23: 0 | AX23: 0 | AY23: 0 | AZ23: 0 | BA23: 0 | BB23: 0 | BC23: 0 | BD23: 0 | BE23: 0 | BF23: 0 | BG23: 0 | BH23: 0
B24: 22 | C24: 0.3447810345 | D24: 0.3515624138 | E24: 0.2262082759 | F24: 0.2568855172 | G24: 0.3570913793 | H24: 0.3497268966 | I24: 0.2275137931 | J24: 0.3620855172 | K24: 0.3975196552 | L24: 0.2827982759 | M24: 0.3200541379 | N24: 0.2879448276 | O24: 0.2058158621 | P24: 0.3817331034 | Q24: 0.2851924138 | R24: 0.3602441379 | S24: 0.2033865517 | T24: 0.2463972414 | U24: 0.4082634483 | V24: 0.2750713793 | W24: 0.34985 | X24: 0.2635648276 | Y24: 0.2985637931 | Z24: 0.2055824138 | AA24: 0.1902244828 | AB24: 0.3433434483 | AC24: 0.3775581535 | AH24: 0 | AI24: 0 | AJ24: 0 | AK24: 0 | AL24: 0 | AM24: 0 | AN24: 0 | AO24: 0 | AP24: 0 | AQ24: 0 | AR24: 0 | AS24: 0 | AT24: 0 | AU24: 0 | AV24: 0 | AW24: 0 | AX24: 0 | AY24: 0 | AZ24: 0 | BA24: 0 | BB24: 0 | BC24: 0 | BD24: 0 | BE24: 0 | BF24: 0 | BG24: 0 | BH24: 0
B25: 23 | C25: 0.3359155172 | D25: 0.3452103448 | E25: 0.2147168966 | F25: 0.2514972414 | G25: 0.3583789655 | H25: 0.3507655172 | I25: 0.2264386207 | J25: 0.3655786207 | K25: 0.3903503448 | L25: 0.2790606897 | M25: 0.3179065517 | N25: 0.2851951724 | O25: 0.1956586207 | P25: 0.3783593103 | Q25: 0.2857103448 | R25: 0.3515186207 | S25: 0.1987248276 | T25: 0.2440251724 | U25: 0.4079493103 | V25: 0.272657931 | W25: 0.3501172414 | X25: 0.2583065517 | Y25: 0.2839772414 | Z25: 0.2066837931 | AA25: 0.1893303448 | AB25: 0.3398672414 | AC25: 0.3689884402 | AH25: 0 | AI25: 0 | AJ25: 0 | AK25: 0 | AL25: 0 | AM25: 0 | AN25: 0 | AO25: 0 | AP25: 0 | AQ25: 0 | AR25: 0 | AS25: 0 | AT25: 0 | AU25: 0 | AV25: 0 | AW25: 0 | AX25: 0 | AY25: 0 | AZ25: 0 | BA25: 0 | BB25: 0 | BC25: 0 | BD25: 0 | BE25: 0 | BF25: 0 | BG25: 0 | BH25: 0
B26: 24 | C26: 0.3241975862 | D26: 0.3366693103 | E26: 0.20822 | F26: 0.2510855172 | G26: 0.3579855172 | H26: 0.3513037931 | I26: 0.2253641379 | J26: 0.3696044828 | K26: 0.3830841379 | L26: 0.2765686207 | M26: 0.3171644828 | N26: 0.2810817241 | O26: 0.1879517241 | P26: 0.3799034483 | Q26: 0.285317931 | R26: 0.341217931 | S26: 0.1932372414 | T26: 0.2362241379 | U26: 0.4046082759 | V26: 0.2705637931 | W26: 0.3502506897 | X26: 0.2536341379 | Y26: 0.2743831034 | Z26: 0.2032655172 | AA26: 0.1848872414 | AB26: 0.3359327586 | AC26: 0.3619665978 | AH26: 0 | AI26: 0 | AJ26: 0 | AK26: 0 | AL26: 0 | AM26: 0 | AN26: 0 | AO26: 0 | AP26: 0 | AQ26: 0 | AR26: 0 | AS26: 0 | AT26: 0 | AU26: 0 | AV26: 0 | AW26: 0 | AX26: 0 | AY26: 0 | AZ26: 0 | BA26: 0 | BB26: 0 | BC26: 0 | BD26: 0 | BE26: 0 | BF26: 0 | BG26: 0 | BH26: 0
B27: 25 | C27: 0.3122448276 | D27: 0.3285444828 | E27: 0.2053458621 | F27: 0.2483931034 | G27: 0.3509331034 | H27: 0.3506113793 | I27: 0.2247189655 | J27: 0.3720058621 | K27: 0.37888 | L27: 0.2751324138 | M27: 0.3172310345 | N27: 0.2794258621 | O27: 0.1811996552 | P27: 0.3844262069 | Q27: 0.2834672414 | R27: 0.3269534483 | S27: 0.1886255172 | T27: 0.2244934483 | U27: 0.3992586207 | V27: 0.2693244828 | W27: 0.3501375862 | X27: 0.2516255172 | Y27: 0.2680572414 | Z27: 0.2139955172 | AA27: 0.1759517241 | AB27: 0.3303734483 | AC27: 0.3570277151 | AH27: 0 | AI27: 0 | AJ27: 0 | AK27: 0 | AL27: 0 | AM27: 0 | AN27: 0 | AO27: 0 | AP27: 0 | AQ27: 0 | AR27: 0 | AS27: 0 | AT27: 0 | AU27: 0 | AV27: 0 | AW27: 0 | AX27: 0 | AY27: 0 | AZ27: 0 | BA27: 0 | BB27: 0 | BC27: 0 | BD27: 0 | BE27: 0 | BF27: 0 | BG27: 0 | BH27: 0
B28: 26 | C28: 0.3015034483 | D28: 0.3205310345 | E28: 0.2043786207 | F28: 0.2470086207 | G28: 0.3461551724 | H28: 0.3485193103 | I28: 0.2253803448 | J28: 0.3697648276 | K28: 0.3777710345 | L28: 0.2749213793 | M28: 0.3192693103 | N28: 0.2817624138 | O28: 0.173537931 | P28: 0.3901858621 | Q28: 0.2812217241 | R28: 0.3123475862 | S28: 0.1860365517 | T28: 0.2132255172 | U28: 0.3934006897 | V28: 0.2670682759 | W28: 0.3520472414 | X28: 0.2490372414 | Y28: 0.2623027586 | Z28: 0.2167631034 | AA28: 0.1683124138 | AB28: 0.3244013793 | AC28: 0.3528251848 | AH28: 0 | AI28: 0 | AJ28: 0 | AK28: 0 | AL28: 0 | AM28: 0 | AN28: 0 | AO28: 0 | AP28: 0 | AQ28: 0 | AR28: 0 | AS28: 0 | AT28: 0 | AU28: 0 | AV28: 0 | AW28: 0 | AX28: 0 | AY28: 0 | AZ28: 0 | BA28: 0 | BB28: 0 | BC28: 0 | BD28: 0 | BE28: 0 | BF28: 0 | BG28: 0 | BH28: 0
B29: 27 | C29: 0.2952206897 | D29: 0.3133468966 | E29: 0.2030803448 | F29: 0.2417193103 | G29: 0.3447648276 | H29: 0.3464968966 | I29: 0.2270948276 | J29: 0.3623010345 | K29: 0.3745768966 | L29: 0.2718344828 | M29: 0.3225162069 | N29: 0.289047931 | O29: 0.1688134483 | P29: 0.3966434483 | Q29: 0.2783027586 | R29: 0.2998627586 | S29: 0.1870451724 | T29: 0.2068475862 | U29: 0.3876041379 | V29: 0.2670844828 | W29: 0.354822069 | X29: 0.2458106897 | Y29: 0.257267931 | Z29: 0.2130444828 | AA29: 0.1645789655 | AB29: 0.3180775862 | AC29: 0.3498318543 | AH29: 0 | AI29: 0 | AJ29: 0 | AK29: 0 | AL29: 0 | AM29: 0 | AN29: 0 | AO29: 0 | AP29: 0 | AQ29: 0 | AR29: 0 | AS29: 0 | AT29: 0 | AU29: 0 | AV29: 0 | AW29: 0 | AX29: 0 | AY29: 0 | AZ29: 0 | BA29: 0 | BB29: 0 | BC29: 0 | BD29: 0 | BE29: 0 | BF29: 0 | BG29: 0 | BH29: 0
B30: 28 | C30: 0.2927544828 | D30: 0.3075658621 | E30: 0.20562 | F30: 0.2361303448 | G30: 0.3413541379 | H30: 0.3418824138 | I30: 0.2313406897 | J30: 0.3538282759 | K30: 0.3648872414 | L30: 0.2654075862 | M30: 0.3265489655 | N30: 0.2946651724 | O30: 0.1593948276 | P30: 0.4044482759 | Q30: 0.2767762069 | R30: 0.2901258621 | S30: 0.1878824138 | T30: 0.2027182759 | U30: 0.3848655172 | V30: 0.2674727586 | W30: 0.3515003448 | X30: 0.2392675862 | Y30: 0.2530824138 | Z30: 0.2134824138 | AA30: 0.1590575862 | AB30: 0.3137396552 | AC30: 0.349716366 | AH30: 0 | AI30: 0 | AJ30: 0 | AK30: 0 | AL30: 0 | AM30: 0 | AN30: 0 | AO30: 0 | AP30: 0 | AQ30: 0 | AR30: 0 | AS30: 0 | AT30: 0 | AU30: 0 | AV30: 0 | AW30: 0 | AX30: 0 | AY30: 0 | AZ30: 0 | BA30: 0 | BB30: 0 | BC30: 0 | BD30: 0 | BE30: 0 | BF30: 0 | BG30: 0 | BH30: 0
B31: 29 | C31: 0.2944396552 | D31: 0.3044451724 | E31: 0.2101310345 | F31: 0.2434193103 | G31: 0.3400427586 | H31: 0.3370351724 | I31: 0.2345586207 | J31: 0.3443951724 | K31: 0.3570472414 | L31: 0.2595372414 | M31: 0.3298672414 | N31: 0.304012069 | O31: 0.1527317241 | P31: 0.4135810345 | Q31: 0.2787903448 | R31: 0.2835234483 | S31: 0.1881989655 | T31: 0.1996475862 | U31: 0.3829910345 | V31: 0.2678582759 | W31: 0.3484527586 | X31: 0.2344224138 | Y31: 0.2539127586 | Z31: 0.2109031034 | AA31: 0.1572582759 | AB31: 0.3121962069 | AC31: 0.3494776391 | AH31: 0 | AI31: 0 | AJ31: 0 | AK31: 0 | AL31: 0 | AM31: 0 | AN31: 0 | AO31: 0 | AP31: 0 | AQ31: 0 | AR31: 0 | AS31: 0 | AT31: 0 | AU31: 0 | AV31: 0 | AW31: 0 | AX31: 0 | AY31: 0 | AZ31: 0 | BA31: 0 | BB31: 0 | BC31: 0 | BD31: 0 | BE31: 0 | BF31: 0 | BG31: 0 | BH31: 0
B32: 30 | C32: 0.3028844828 | D32: 0.3030568966 | E32: 0.2190913793 | F32: 0.2523975862 | G32: 0.3374734483 | H32: 0.33295 | I32: 0.2360075862 | J32: 0.33604 | K32: 0.3495024138 | L32: 0.2565834483 | M32: 0.3335227586 | N32: 0.3097731034 | O32: 0.1522524138 | P32: 0.4197024138 | Q32: 0.2818082759 | R32: 0.2814375862 | S32: 0.1859637931 | T32: 0.196017931 | U32: 0.3820731034 | V32: 0.265277931 | W32: 0.346357931 | X32: 0.2288468966 | Y32: 0.2568617241 | Z32: 0.2096758621 | AA32: 0.1603431034 | AB32: 0.3138068966 | AC32: 0.3477827554 | AH32: 0 | AI32: 0 | AJ32: 0 | AK32: 0 | AL32: 0 | AM32: 0 | AN32: 0 | AO32: 0 | AP32: 0 | AQ32: 0 | AR32: 0 | AS32: 0 | AT32: 0 | AU32: 0 | AV32: 0 | AW32: 0 | AX32: 0 | AY32: 0 | AZ32: 0 | BA32: 0 | BB32: 0 | BC32: 0 | BD32: 0 | BE32: 0 | BF32: 0 | BG32: 0 | BH32: 0
B33: 31 | C33: 0.3167893103 | D33: 0.3017541379 | E33: 0.2268786207 | F33: 0.2490968966 | G33: 0.3384031034 | H33: 0.3308434483 | I33: 0.2360048276 | J33: 0.3288234483 | K33: 0.3451465517 | L33: 0.2544113793 | M33: 0.3376768966 | N33: 0.3123327586 | O33: 0.15814 | P33: 0.423722069 | Q33: 0.2844958621 | R33: 0.2835610345 | S33: 0.1839006897 | T33: 0.1942934483 | U33: 0.3787289655 | V33: 0.2639696552 | W33: 0.3445948276 | X33: 0.2250496552 | Y33: 0.2585786207 | Z33: 0.2082986207 | AA33: 0.1654848276 | AB33: 0.3154968966 | AC33: 0.3461648492 | AH33: 0 | AI33: 0 | AJ33: 0.005724719547 | AK33: 0 | AL33: 0 | AM33: 0 | AN33: 0 | AO33: 0 | AP33: 0 | AQ33: 0 | AR33: 0 | AS33: 0 | AT33: 0 | AU33: 0 | AV33: 0 | AW33: 0 | AX33: 0 | AY33: 0 | AZ33: 0 | BA33: 0 | BB33: 0 | BC33: 0 | BD33: 0.009263508339 | BE33: 0 | BF33: 0 | BG33: 0 | BH33: 0
B34: 32 | C34: 0.3126331034 | D34: 0.3020044828 | E34: 0.2247862069 | F34: 0.2509872414 | G34: 0.3409124138 | H34: 0.3289341379 | I34: 0.2351589655 | J34: 0.3247313793 | K34: 0.3451024138 | L34: 0.2527289655 | M34: 0.340232069 | N34: 0.3077724138 | O34: 0.1645924138 | P34: 0.4275637931 | Q34: 0.2832217241 | R34: 0.2874751724 | S34: 0.1835051724 | T34: 0.1950082759 | U34: 0.3720955172 | V34: 0.2643034483 | W34: 0.3412910345 | X34: 0.2226172414 | Y34: 0.2531834483 | Z34: 0.2035289655 | AA34: 0.1685817241 | AB34: 0.3171806897 | AC34: 0.3459364924 | AH34: 0.009417249417 | AI34: 0 | AJ34: 0.0824182955 | AK34: 0.005058278099 | AL34: 0.007818642126 | AM34: 0.001267199127 | AN34: 0 | AO34: 0.006749365958 | AP34: 0 | AQ34: 0 | AR34: 0 | AS34: 0.02004935175 | AT34: 0.03324125448 | AU34: 0 | AV34: 0.02101347378 | AW34: 0.01022190482 | AX34: 0 | AY34: 0.009250669845 | AZ34: 0 | BA34: 0 | BB34: 0.01568155917 | BC34: 0 | BD34: 0.08341303505 | BE34: 0.008901716652 | BF34: 0.0246438717 | BG34: 0 | BH34: 0
B35: 33 | C35: 0.29613 | D35: 0.300342069 | E35: 0.2268658621 | F35: 0.2529124138 | G35: 0.3385027586 | H35: 0.3247544828 | I35: 0.2328413793 | J35: 0.3204596552 | K35: 0.3360427586 | L35: 0.2477289655 | M35: 0.3399127586 | N35: 0.2926286207 | O35: 0.1627358621 | P35: 0.4324189655 | Q35: 0.2840244828 | R35: 0.2872103448 | S35: 0.1838186207 | T35: 0.1959393103 | U35: 0.36288 | V35: 0.2626551724 | W35: 0.3328882759 | X35: 0.2205124138 | Y35: 0.2539286207 | Z35: 0.1756696552 | AA35: 0.1657048276 | AB35: 0.3167334483 | AC35: 0.3474928338 | AH35: 0.1023683079 | AI35: 0.004116136096 | AJ35: 0.1580782393 | AK35: 0.07267251264 | AL35: 0.06103274455 | AM35: 0.02312585336 | AN35: 0.01260549045 | AO35: 0.02615344036 | AP35: 0.0675868036 | AQ35: 0.006203538225 | AR35: 0.04251923234 | AS35: 0.08499562142 | AT35: 0.106030353 | AU35: 0 | AV35: 0.1143672026 | AW35: 0.04068663528 | AX35: 0.007334964417 | AY35: 0.03250481664 | AZ35: 0.002634108251 | BA35: 0 | BB35: 0.06022227089 | BC35: 0.01033641247 | BD35: 0.1576663495 | BE35: 0.07982567754 | BF35: 0.09797808961 | BG35: 0.008208286107 | BH35: 0.004279006075
B36: 34 | C36: 0.2859793103 | D36: 0.2935996552 | E36: 0.2312593103 | F36: 0.2530658621 | G36: 0.3310372414 | H36: 0.3189544828 | I36: 0.2290813793 | J36: 0.3153762069 | K36: 0.3078913793 | L36: 0.2411803448 | M36: 0.3324013793 | N36: 0.26905 | O36: 0.1610331034 | P36: 0.4343234483 | Q36: 0.2950696552 | R36: 0.2833675862 | S36: 0.181177931 | T36: 0.1947324138 | U36: 0.3504086207 | V36: 0.2621858621 | W36: 0.3275375862 | X36: 0.2045055172 | Y36: 0.2591751724 | Z36: 0.1710241379 | AA36: 0.1581531034 | AB36: 0.3130610345 | AC36: 0.3464468677 | AH36: 0.1734422719 | AI36: 0.07883450967 | AJ36: 0.2104851348 | AK36: 0.1501657703 | AL36: 0.1202893141 | AM36: 0.07496064708 | AN36: 0.03941981791 | AO36: 0.03732871627 | AP36: 0.2159630699 | AQ36: 0.02246873456 | AR36: 0.1238980646 | AS36: 0.1433911248 | AT36: 0.1548696052 | AU36: 0.006450379989 | AV36: 0.2015616832 | AW36: 0.06112573303 | AX36: 0.0712868688 | AY36: 0.05200060331 | AZ36: 0.06859139083 | BA36: 0.01577182708 | BB36: 0.09334132547 | BC36: 0.1919813267 | BD36: 0.2031739724 | BE36: 0.1395078674 | BF36: 0.1413167748 | BG36: 0.03105094725 | BH36: 0.03251913704
B37: 35 | C37: 0.2965189655 | D37: 0.2915286207 | E37: 0.2325068966 | F37: 0.260532069 | G37: 0.329362069 | H37: 0.3173144828 | I37: 0.2238368966 | J37: 0.310592069 | K37: 0.3114455172 | L37: 0.2323410345 | M37: 0.3326486207 | N37: 0.2525044828 | O37: 0.1667844828 | P37: 0.4305886207 | Q37: 0.307112069 | R37: 0.2824175862 | S37: 0.1799848276 | T37: 0.198082069 | U37: 0.3429734483 | V37: 0.2651475862 | W37: 0.3277386207 | X37: 0.2015989655 | Y37: 0.2655996552 | Z37: 0.1629475862 | AA37: 0.1599644828 | AB37: 0.3077258621 | AC37: 0.345709489 | AH37: 0.2162806329 | AI37: 0.1357466962 | AJ37: 0.2397551305 | AK37: 0.2076159975 | AL37: 0.1445343801 | AM37: 0.111400303 | AN37: 0.07186078875 | AO37: 0.03995221984 | AP37: 0.3312116333 | AQ37: 0.03282416731 | AR37: 0.1868768181 | AS37: 0.1819944744 | AT37: 0.1749033303 | AU37: 0.05782179268 | AV37: 0.2588657194 | AW37: 0.06692238818 | AX37: 0.1168585817 | AY37: 0.06093488792 | AZ37: 0.1375229474 | BA37: 0.02428924623 | BB37: 0.1051919164 | BC37: 0.3389080137 | BD37: 0.2263909301 | BE37: 0.1863968882 | BF37: 0.1661908578 | BG37: 0.04458460846 | BH37: 0.07643848343
B38: 36 | C38: 0.3101324138 | D38: 0.2941806897 | E38: 0.2322513793 | F38: 0.2739672414 | G38: 0.3315682759 | H38: 0.3157755172 | I38: 0.2188262069 | J38: 0.3109341379 | K38: 0.3370151724 | L38: 0.2270889655 | M38: 0.341307931 | N38: 0.2419951724 | O38: 0.1762734483 | P38: 0.4270944828 | Q38: 0.3150496552 | R38: 0.2841065517 | S38: 0.1761175862 | T38: 0.2033268966 | U38: 0.3403524138 | V38: 0.2645603448 | W38: 0.3315755172 | X38: 0.2152517241 | Y38: 0.2640089655 | Z38: 0.161232069 | AA38: 0.1620086207 | AB38: 0.3054327586 | AC38: 0.3469657139 | AH38: 0.2218046835 | AI38: 0.1600513678 | AJ38: 0.2429561266 | AK38: 0.2333101865 | AL38: 0.1493665564 | AM38: 0.1275983502 | AN38: 0.08710988456 | AO38: 0.03819231427 | AP38: 0.4020973187 | AQ38: 0.03548491172 | AR38: 0.2237168509 | AS38: 0.1936992335 | AT38: 0.1725586044 | AU38: 0.1039496066 | AV38: 0.2732320879 | AW38: 0.06284290647 | AX38: 0.1393417154 | AY38: 0.05847616456 | AZ38: 0.1589122854 | BA38: 0.02589466571 | BB38: 0.1063860468 | BC38: 0.4288556159 | BD38: 0.221164234 | BE38: 0.1951025373 | BF38: 0.1645368754 | BG38: 0.04693997844 | BH38: 0.1030298505
B39: 37 | C39: 0.3184324138 | D39: 0.2951934483 | E39: 0.2291168966 | F39: 0.2810727586 | G39: 0.3274503448 | H39: 0.3103051724 | I39: 0.2141472414 | J39: 0.312937931 | K39: 0.35532 | L39: 0.2240924138 | M39: 0.3498606897 | N39: 0.2342013793 | O39: 0.1812634483 | P39: 0.4262603448 | Q39: 0.3189582759 | R39: 0.2885241379 | S39: 0.173132069 | T39: 0.2072893103 | U39: 0.3359910345 | V39: 0.2638672414 | W39: 0.3356241379 | X39: 0.2365206897 | Y39: 0.2611755172 | Z39: 0.1582403448 | AA39: 0.1641634483 | AB39: 0.3055265517 | AC39: 0.3500014409 | AH39: 0.2095980619 | AI39: 0.1609236568 | AJ39: 0.2177416789 | AK39: 0.2294408992 | AL39: 0.1342511029 | AM39: 0.1276690676 | AN39: 0.08308954322 | AO39: 0.03296553252 | AP39: 0.4291075737 | AQ39: 0.0466270303 | AR39: 0.229718686 | AS39: 0.1857180212 | AT39: 0.1595454075 | AU39: 0.1389780018 | AV39: 0.2581682408 | AW39: 0.0470110237 | AX39: 0.1275156916 | AY39: 0.04431457611 | AZ39: 0.1510195578 | BA39: 0.02523665388 | BB39: 0.09315220146 | BC39: 0.4692407667 | BD39: 0.1958901709 | BE39: 0.184744869 | BF39: 0.1515295265 | BG39: 0.040457035 | BH39: 0.1142422314
B40: 38 | C40: 0.3191934483 | D40: 0.2954693103 | E40: 0.2257910345 | F40: 0.286337931 | G40: 0.3205862069 | H40: 0.3033841379 | I40: 0.2097324138 | J40: 0.3121848276 | K40: 0.37079 | L40: 0.2235165517 | M40: 0.3519672414 | N40: 0.2367631034 | O40: 0.1846434483 | P40: 0.4278631034 | Q40: 0.3133313793 | R40: 0.2978217241 | S40: 0.1734037931 | T40: 0.2112572414 | U40: 0.3316872414 | V40: 0.2635182759 | W40: 0.3431303448 | X40: 0.255522069 | Y40: 0.2624593103 | Z40: 0.1531689655 | AA40: 0.16387 | AB40: 0.3112093103 | AC40: 0.3530456604 | AH40: 0.1860333428 | AI40: 0.1438224269 | AJ40: 0.1709726312 | AK40: 0.2063600457 | AL40: 0.1044706171 | AM40: 0.1128551144 | AN40: 0.07162411278 | AO40: 0.07930143379 | AP40: 0.4199096934 | AQ40: 0.01313523698 | AR40: 0.2135193938 | AS40: 0.1561959959 | AT40: 0.1410523725 | AU40: 0.1508892852 | AV40: 0.2259972042 | AW40: 0.03371987778 | AX40: 0.1170893113 | AY40: 0.03620732144 | AZ40: 0.132939807 | BA40: 0.02521838633 | BB40: 0.07090036877 | BC40: 0.4664903043 | BD40: 0.1515398625 | BE40: 0.1530979735 | BF40: 0.1324526299 | BG40: 0.03706151591 | BH40: 0.1140585899
B41: 39 | C41: 0.3300875862 | D41: 0.297787931 | E41: 0.228862069 | F41: 0.2833 | G41: 0.32139 | H41: 0.2989524138 | I41: 0.2042403448 | J41: 0.3107710345 | K41: 0.3744648276 | L41: 0.2209437931 | M41: 0.3496355172 | N41: 0.2466848276 | O41: 0.1945910345 | P41: 0.4328127586 | Q41: 0.2961327586 | R41: 0.3092482759 | S41: 0.1780744828 | T41: 0.216847931 | U41: 0.3276724138 | V41: 0.2659162069 | W41: 0.3549358621 | X41: 0.2644031034 | Y41: 0.2776217241 | Z41: 0.158777931 | AA41: 0.1642003448 | AB41: 0.3195337931 | AC41: 0.357960354 | AH41: 0.1225943959 | AI41: 0.1105140688 | AJ41: 0.08875654491 | AK41: 0.1555609668 | AL41: 0.06725890643 | AM41: 0.07665725624 | AN41: 0.04490390063 | AO41: 0 | AP41: 0.3622220373 | AQ41: 0 | AR41: 0.1694940921 | AS41: 0.1037883764 | AT41: 0.09071235739 | AU41: 0.1205955871 | AV41: 0.1631133474 | AW41: 0 | AX41: 0.0898978657 | AY41: 0 | AZ41: 0.09523454679 | BA41: 0.01885435895 | BB41: 0.04368751082 | BC41: 0.4141035475 | BD41: 0.07900494359 | BE41: 0.09698976697 | BF41: 0.07474676058 | BG41: 0.02010152281 | BH41: 0.09150414189
B42: 40 | C42: 0.3375906897 | D42: 0.30606 | E42: 0.2438182759 | F42: 0.297787931 | G42: 0.3261241379 | H42: 0.2943303448 | I42: 0.1982351724 | J42: 0.3075513793 | K42: 0.3686827586 | L42: 0.2180210345 | M42: 0.3546082759 | N42: 0.262712069 | O42: 0.2009151724 | P42: 0.4407896552 | Q42: 0.2875465517 | R42: 0.3109948276 | S42: 0.1867444828 | T42: 0.2191717241 | U42: 0.3258331034 | V42: 0.2701941379 | W42: 0.3606044828 | X42: 0.2659624138 | Y42: 0.2898962069 | Z42: 0.1714248276 | AA42: 0.1662068966 | AB42: 0.3241037931 | AC42: 0.3666307103 | AH42: 0.07599067599 | AI42: 0.05257960253 | AJ42: 0 | AK42: 0.08924017047 | AL42: 0.01374126342 | AM42: 0.02886594857 | AN42: 0 | AO42: 0 | AP42: 0.2796113009 | AQ42: 0 | AR42: 0.1083043167 | AS42: 0.04938848632 | AT42: 0.0242333228 | AU42: 0.07779798028 | AV42: 0.07684376408 | AW42: 0 | AX42: 0.05101225345 | AY42: 0 | AZ42: 0.03711067599 | BA42: 0 | BB42: 0 | BC42: 0.3519570146 | BD42: 0 | BE42: 0.03755066949 | BF42: 0 | BG42: 0 | BH42: 0.05517866573
B43: 41 | C43: 0.3362872414 | D43: 0.3197234483 | E43: 0.2601606897 | F43: 0.31184 | G43: 0.319502069 | H43: 0.2878444828 | I43: 0.1930482759 | J43: 0.3047603448 | K43: 0.3749682759 | L43: 0.2183703448 | M43: 0.3694986207 | N43: 0.2777596552 | O43: 0.2007637931 | P43: 0.4482672414 | Q43: 0.2913713793 | R43: 0.3070703448 | S43: 0.1976375862 | T43: 0.2174472414 | U43: 0.3273196552 | V43: 0.2709024138 | W43: 0.3603358621 | X43: 0.2719855172 | Y43: 0.2957751724 | Z43: 0.1783358621 | AA43: 0.1619962069 | AB43: 0.3257351724 | AC43: 0.3766744822 | AH43: 0 | AI43: 0 | AJ43: 0 | AK43: 0 | AL43: 0 | AM43: 0 | AN43: 0 | AO43: 0 | AP43: 0.1668752756 | AQ43: 0 | AR43: 0.04164772447 | AS43: 0 | AT43: 0 | AU43: 0.04263423457 | AV43: 0 | AW43: 0 | AX43: 0 | AY43: 0 | AZ43: 0 | BA43: 0 | BB43: 0 | BC43: 0.2531407137 | BD43: 0 | BE43: 0 | BF43: 0 | BG43: 0 | BH43: 0.01187223876
B44: 42 | C44: 0.3370006897 | D44: 0.3339206897 | E44: 0.27201 | F44: 0.3227875862 | G44: 0.3056293103 | H44: 0.2812444828 | I44: 0.1913789655 | J44: 0.3034641379 | K44: 0.39722 | L44: 0.2212206897 | M44: 0.3808255172 | N44: 0.2853603448 | O44: 0.2017417241 | P44: 0.4501441379 | Q44: 0.2954989655 | R44: 0.29969 | S44: 0.2051962069 | T44: 0.2158203448 | U44: 0.3294110345 | V44: 0.27302 | W44: 0.3559593103 | X44: 0.2923706897 | Y44: 0.3006131034 | Z44: 0.1811034483 | AA44: 0.1527537931 | AB44: 0.3260472414 | AC44: 0.386392573 | AH44: 0 | AI44: 0 | AJ44: 0 | AK44: 0 | AL44: 0 | AM44: 0 | AN44: 0 | AO44: 0 | AP44: 0.02471031685 | AQ44: 0 | AR44: 0 | AS44: 0 | AT44: 0 | AU44: 0 | AV44: 0 | AW44: 0 | AX44: 0 | AY44: 0 | AZ44: 0 | BA44: 0 | BB44: 0 | BC44: 0.1002329218 | BD44: 0 | BE44: 0 | BF44: 0 | BG44: 0 | BH44: 0
B45: 43 | C45: 0.3351665517 | D45: 0.3467610345 | E45: 0.2822227586 | F45: 0.3390468966 | G45: 0.2914096552 | H45: 0.2753582759 | I45: 0.1917813793 | J45: 0.3038362069 | K45: 0.4071206897 | L45: 0.2265803448 | M45: 0.3871089655 | N45: 0.2879562069 | O45: 0.20184 | P45: 0.4467868966 | Q45: 0.2974382759 | R45: 0.2921596552 | S45: 0.2103562069 | T45: 0.2133489655 | U45: 0.336167931 | V45: 0.2718755172 | W45: 0.3488551724 | X45: 0.3069072414 | Y45: 0.3051341379 | Z45: 0.1845965517 | AA45: 0.1451648276 | AB45: 0.3252968966 | AC45: 0.3943483207 | AH45: 0 | AI45: 0 | AJ45: 0 | AK45: 0 | AL45: 0 | AM45: 0 | AN45: 0 | AO45: 0 | AP45: 0 | AQ45: 0 | AR45: 0 | AS45: 0 | AT45: 0 | AU45: 0 | AV45: 0 | AW45: 0 | AX45: 0 | AY45: 0 | AZ45: 0 | BA45: 0 | BB45: 0 | BC45: 0 | BD45: 0 | BE45: 0 | BF45: 0 | BG45: 0 | BH45: 0
B46: 44 | C46: 0.3336027586 | D46: 0.3552944828 | E46: 0.2870682759 | F46: 0.3458365517 | G46: 0.2830386207 | H46: 0.2706648276 | I46: 0.1916803448 | J46: 0.3050831034 | K46: 0.4131855172 | L46: 0.2327037931 | M46: 0.3904617241 | N46: 0.2824024138 | O46: 0.2066289655 | P46: 0.4430431034 | Q46: 0.2989996552 | R46: 0.2868724138 | S46: 0.2141834483 | T46: 0.2104455172 | U46: 0.3445541379 | V46: 0.2720431034 | W46: 0.3374510345 | X46: 0.3137241379 | Y46: 0.3084596552 | Z46: 0.1749934483 | AA46: 0.1410034483 | AB46: 0.3244058621 | AC46: 0.3999293753 | AH46: 0 | AI46: 0 | AJ46: 0 | AK46: 0 | AL46: 0 | AM46: 0 | AN46: 0 | AO46: 0 | AP46: 0 | AQ46: 0 | AR46: 0 | AS46: 0 | AT46: 0 | AU46: 0 | AV46: 0 | AW46: 0 | AX46: 0 | AY46: 0 | AZ46: 0 | BA46: 0 | BB46: 0 | BC46: 0 | BD46: 0 | BE46: 0 | BF46: 0 | BG46: 0 | BH46: 0
B47: 45 | C47: 0.3290362069 | D47: 0.3620913793 | E47: 0.2911368966 | F47: 0.3668710345 | G47: 0.2815058621 | H47: 0.267022069 | I47: 0.1916068966 | J47: 0.30632 | K47: 0.4194344828 | L47: 0.237292069 | M47: 0.3895710345 | N47: 0.2717148276 | O47: 0.2050986207 | P47: 0.4412458621 | Q47: 0.3006703448 | R47: 0.2815372414 | S47: 0.2185534483 | T47: 0.2089024138 | U47: 0.3510055172 | V47: 0.2783586207 | W47: 0.3234572414 | X47: 0.3187117241 | Y47: 0.3085731034 | Z47: 0.1883527586 | AA47: 0.1449686207 | AB47: 0.3232782759 | AC47: 0.4030450274 | AH47: 0 | AI47: 0 | AJ47: 0 | AK47: 0 | AL47: 0 | AM47: 0 | AN47: 0 | AO47: 0 | AP47: 0 | AQ47: 0 | AR47: 0 | AS47: 0 | AT47: 0 | AU47: 0 | AV47: 0 | AW47: 0 | AX47: 0 | AY47: 0 | AZ47: 0 | BA47: 0 | BB47: 0 | BC47: 0 | BD47: 0 | BE47: 0 | BF47: 0 | BG47: 0 | BH47: 0
B48: 46 | C48: 0.3280268966 | D48: 0.3714537931 | E48: 0.2819682759 | F48: 0.3669482759 | G48: 0.2856475862 | H48: 0.2652682759 | I48: 0.1907582759 | J48: 0.3068368966 | K48: 0.4186513793 | L48: 0.2415958621 | M48: 0.3872586207 | N48: 0.2637693103 | O48: 0.2076203448 | P48: 0.4395531034 | Q48: 0.3004686207 | R48: 0.2806727586 | S48: 0.2276258621 | T48: 0.2077293103 | U48: 0.3576727586 | V48: 0.2795096552 | W48: 0.3086017241 | X48: 0.3214472414 | Y48: 0.3052958621 | Z48: 0.2033658621 | AA48: 0.1479427586 | AB48: 0.3212586207 | AC48: 0.40366611 | AH48: 0 | AI48: 0 | AJ48: 0 | AK48: 0 | AL48: 0 | AM48: 0 | AN48: 0 | AO48: 0 | AP48: 0 | AQ48: 0 | AR48: 0 | AS48: 0 | AT48: 0 | AU48: 0 | AV48: 0 | AW48: 0 | AX48: 0 | AY48: 0 | AZ48: 0 | BA48: 0 | BB48: 0 | BC48: 0 | BD48: 0 | BE48: 0 | BF48: 0 | BG48: 0 | BH48: 0
B49: 47 | C49: 0.3373441379 | D49: 0.3808203448 | E49: 0.2740631034 | F49: 0.3626672414 | G49: 0.2911841379 | H49: 0.2662596552 | I49: 0.1915282759 | J49: 0.3103796552 | K49: 0.4191948276 | L49: 0.2433624138 | M49: 0.3845006897 | N49: 0.255602069 | O49: 0.2116886207 | P49: 0.4365048276 | Q49: 0.3007310345 | R49: 0.2790058621 | S49: 0.238187931 | T49: 0.2088572414 | U49: 0.3646372414 | V49: 0.2825182759 | W49: 0.295987931 | X49: 0.3212306897 | Y49: 0.2973944828 | Z49: 0.2146510345 | AA49: 0.1553134483 | AB49: 0.3186565517 | AC49: 0.4024286602 | AH49: 0 | AI49: 0 | AJ49: 0 | AK49: 0 | AL49: 0 | AM49: 0 | AN49: 0 | AO49: 0 | AP49: 0 | AQ49: 0 | AR49: 0 | AS49: 0 | AT49: 0 | AU49: 0 | AV49: 0 | AW49: 0 | AX49: 0 | AY49: 0 | AZ49: 0 | BA49: 0 | BB49: 0 | BC49: 0 | BD49: 0 | BE49: 0 | BF49: 0 | BG49: 0 | BH49: 0
B50: 48 | C50: 0.342312069 | D50: 0.3887772414 | E50: 0.269197931 | F50: 0.3580082759 | G50: 0.2957572414 | H50: 0.2689562069 | I50: 0.1936641379 | J50: 0.3106306897 | K50: 0.4217324138 | L50: 0.2458434483 | M50: 0.3820031034 | N50: 0.2534631034 | O50: 0.2126762069 | P50: 0.4364613793 | Q50: 0.3004244828 | R50: 0.27532 | S50: 0.2464382759 | T50: 0.2064813793 | U50: 0.3723003448 | V50: 0.2841086207 | W50: 0.2859589655 | X50: 0.3210968966 | Y50: 0.2894558621 | Z50: 0.2189741379 | AA50: 0.1606855172 | AB50: 0.3154503448 | AC50: 0.4014529696 | AH50: 0 | AI50: 0 | AJ50: 0 | AK50: 0 | AL50: 0 | AM50: 0 | AN50: 0 | AO50: 0 | AP50: 0 | AQ50: 0 | AR50: 0 | AS50: 0 | AT50: 0 | AU50: 0 | AV50: 0 | AW50: 0 | AX50: 0 | AY50: 0 | AZ50: 0 | BA50: 0 | BB50: 0 | BC50: 0 | BD50: 0 | BE50: 0 | BF50: 0 | BG50: 0 | BH50: 0
B51: 49 | C51: 0.3463875862 | D51: 0.3959158621 | E51: 0.2628210345 | F51: 0.346847931 | G51: 0.3034565517 | H51: 0.2741093103 | I51: 0.1966303448 | J51: 0.3100293103 | K51: 0.423512069 | L51: 0.2478196552 | M51: 0.3786103448 | N51: 0.2565762069 | O51: 0.213922069 | P51: 0.4366310345 | Q51: 0.2986951724 | R51: 0.2682089655 | S51: 0.2515086207 | T51: 0.2025968966 | U51: 0.3762706897 | V51: 0.2866965517 | W51: 0.2757710345 | X51: 0.3230024138 | Y51: 0.2828937931 | Z51: 0.2199389655 | AA51: 0.1621303448 | AB51: 0.3127296552 | AC51: 0.4007731386 | AH51: 0 | AI51: 0 | AJ51: 0 | AK51: 0 | AL51: 0 | AM51: 0 | AN51: 0 | AO51: 0 | AP51: 0 | AQ51: 0 | AR51: 0 | AS51: 0 | AT51: 0 | AU51: 0 | AV51: 0 | AW51: 0 | AX51: 0 | AY51: 0 | AZ51: 0 | BA51: 0 | BB51: 0 | BC51: 0 | BD51: 0 | BE51: 0 | BF51: 0 | BG51: 0 | BH51: 0
B52: 50 | C52: 0.3632113793 | D52: 0.4019575862 | E52: 0.2566796552 | F52: 0.3308858621 | G52: 0.3143324138 | H52: 0.2805531034 | I52: 0.2009765517 | J52: 0.3099244828 | K52: 0.4259893103 | L52: 0.25075 | M52: 0.3753689655 | N52: 0.2711427586 | O52: 0.2168662069 | P52: 0.4361441379 | Q52: 0.2980610345 | R52: 0.2615813793 | S52: 0.2542106897 | T52: 0.1995003448 | U52: 0.3780493103 | V52: 0.2869758621 | W52: 0.2674982759 | X52: 0.3273458621 | Y52: 0.2773034483 | Z52: 0.2240575862 | AA52: 0.1626458621 | AB52: 0.3089796552 | AC52: 0.4003089585 | AH52: 0 | AI52: 0 | AJ52: 0 | AK52: 0 | AL52: 0 | AM52: 0 | AN52: 0 | AO52: 0 | AP52: 0 | AQ52: 0 | AR52: 0 | AS52: 0 | AT52: 0 | AU52: 0 | AV52: 0 | AW52: 0 | AX52: 0 | AY52: 0 | AZ52: 0 | BA52: 0 | BB52: 0 | BC52: 0 | BD52: 0 | BE52: 0 | BF52: 0 | BG52: 0 | BH52: 0
B53: 51 | C53: 0.3800662069 | D53: 0.4052275862 | E53: 0.2516403448 | F53: 0.3336696552 | G53: 0.3259117241 | H53: 0.2908448276 | I53: 0.2062648276 | J53: 0.3106982759 | K53: 0.4274751724 | L53: 0.2571962069 | M53: 0.3725872414 | N53: 0.2855965517 | O53: 0.2193910345 | P53: 0.4390413793 | Q53: 0.2968658621 | R53: 0.2543110345 | S53: 0.2588313793 | T53: 0.1946506897 | U53: 0.3812293103 | V53: 0.286332069 | W53: 0.2619031034 | X53: 0.3357313793 | Y53: 0.2730262069 | Z53: 0.22721 | AA53: 0.1674196552 | AB53: 0.3060817241 | AC53: 0.3996551507 | AH53: 0 | AI53: 0 | AJ53: 0 | AK53: 0 | AL53: 0 | AM53: 0 | AN53: 0 | AO53: 0 | AP53: 0 | AQ53: 0 | AR53: 0 | AS53: 0 | AT53: 0 | AU53: 0 | AV53: 0 | AW53: 0 | AX53: 0 | AY53: 0 | AZ53: 0 | BA53: 0 | BB53: 0 | BC53: 0 | BD53: 0 | BE53: 0 | BF53: 0 | BG53: 0 | BH53: 0
B54: 52 | C54: 0.3823037931 | D54: 0.4043727586 | E54: 0.2580924138 | F54: 0.3356803448 | G54: 0.3294810345 | H54: 0.299507931 | I54: 0.2107696552 | J54: 0.3080886207 | K54: 0.4307527586 | L54: 0.2588872414 | M54: 0.3706406897 | N54: 0.2926134483 | O54: 0.220722069 | P54: 0.4438258621 | Q54: 0.2979910345 | R54: 0.24569 | S54: 0.2612337931 | T54: 0.187717931 | U54: 0.3850672414 | V54: 0.283362069 | W54: 0.2565851724 | X54: 0.3473668966 | Y54: 0.2722217241 | Z54: 0.2324427586 | AA54: 0.1626951724 | AB54: 0.3029289655 | AC54: 0.3995502723 | AH54: 0 | AI54: 0 | AJ54: 0 | AK54: 0 | AL54: 0 | AM54: 0 | AN54: 0 | AO54: 0 | AP54: 0 | AQ54: 0 | AR54: 0 | AS54: 0 | AT54: 0 | AU54: 0 | AV54: 0 | AW54: 0 | AX54: 0 | AY54: 0 | AZ54: 0 | BA54: 0 | BB54: 0 | BC54: 0 | BD54: 0 | BE54: 0 | BF54: 0 | BG54: 0 | BH54: 0
B55: 53 | C55: 0.3808551724 | D55: 0.3993365517 | E55: 0.2689996552 | F55: 0.3394431034 | G55: 0.3372544828 | H55: 0.3097596552 | I55: 0.2150372414 | J55: 0.3046468966 | K55: 0.4331203448 | L55: 0.2612872414 | M55: 0.3697 | N55: 0.3087651724 | O55: 0.2139162069 | P55: 0.4503062069 | Q55: 0.2958775862 | R55: 0.2369189655 | S55: 0.2643693103 | T55: 0.18433 | U55: 0.3874886207 | V55: 0.2793013793 | W55: 0.2542127586 | X55: 0.3587372414 | Y55: 0.2762906897 | Z55: 0.2403813793 | AA55: 0.1604789655 | AB55: 0.3030389655 | AC55: 0.4000094312 | AH55: 0 | AI55: 0 | AJ55: 0 | AK55: 0 | AL55: 0 | AM55: 0 | AN55: 0 | AO55: 0 | AP55: 0 | AQ55: 0 | AR55: 0 | AS55: 0 | AT55: 0 | AU55: 0 | AV55: 0 | AW55: 0 | AX55: 0 | AY55: 0 | AZ55: 0 | BA55: 0 | BB55: 0 | BC55: 0 | BD55: 0 | BE55: 0 | BF55: 0 | BG55: 0 | BH55: 0
B56: 54 | C56: 0.3794372414 | D56: 0.3908334483 | E56: 0.2774948276 | F56: 0.3617313793 | G56: 0.3510382759 | H56: 0.3207237931 | I56: 0.2198848276 | J56: 0.3050675862 | K56: 0.4337706897 | L56: 0.2646096552 | M56: 0.3681024138 | N56: 0.3187193103 | O56: 0.2097662069 | P56: 0.4557393103 | Q56: 0.2879393103 | R56: 0.2328234483 | S56: 0.2638651724 | T56: 0.184492069 | U56: 0.3885889655 | V56: 0.2770644828 | W56: 0.256832069 | X56: 0.3637562069 | Y56: 0.2807382759 | Z56: 0.2365534483 | AA56: 0.1731348276 | AB56: 0.3058227586 | AC56: 0.3997146193 | AH56: 0 | AI56: 0 | AJ56: 0 | AK56: 0 | AL56: 0 | AM56: 0 | AN56: 0 | AO56: 0 | AP56: 0 | AQ56: 0 | AR56: 0 | AS56: 0 | AT56: 0 | AU56: 0 | AV56: 0 | AW56: 0 | AX56: 0 | AY56: 0 | AZ56: 0 | BA56: 0 | BB56: 0 | BC56: 0 | BD56: 0 | BE56: 0 | BF56: 0 | BG56: 0 | BH56: 0
B57: 55 | C57: 0.3787803448 | D57: 0.3800765517 | E57: 0.2787717241 | F57: 0.3733137931 | G57: 0.3676682759 | H57: 0.3308493103 | I57: 0.2265462069 | J57: 0.3050475862 | K57: 0.4319134483 | L57: 0.2694058621 | M57: 0.3641827586 | N57: 0.3269944828 | O57: 0.209252069 | P57: 0.4604093103 | Q57: 0.27914 | R57: 0.2306024138 | S57: 0.25574 | T57: 0.186527931 | U57: 0.3877265517 | V57: 0.2755210345 | W57: 0.263387931 | X57: 0.3658731034 | Y57: 0.28252 | Z57: 0.2334365517 | AA57: 0.1827931034 | AB57: 0.3103837931 | AC57: 0.4000266999 | AH57: 0 | AI57: 0 | AJ57: 0.007103301858 | AK57: 0 | AL57: 0 | AM57: 0 | AN57: 0 | AO57: 0 | AP57: 0 | AQ57: 0 | AR57: 0 | AS57: 0 | AT57: 0 | AU57: 0 | AV57: 0 | AW57: 0 | AX57: 0 | AY57: 0 | AZ57: 0 | BA57: 0 | BB57: 0 | BC57: 0 | BD57: 0.009215702601 | BE57: 0 | BF57: 0 | BG57: 0 | BH57: 0
B58: 56 | C58: 0.3753262069 | D58: 0.3655455172 | E58: 0.2752482759 | F58: 0.3742455172 | G58: 0.3770003448 | H58: 0.3382482759 | I58: 0.2337765517 | J58: 0.3046617241 | K58: 0.4259486207 | L58: 0.2752596552 | M58: 0.3592782759 | N58: 0.3241093103 | O58: 0.2087589655 | P58: 0.4637203448 | Q58: 0.2653768966 | R58: 0.2311006897 | S58: 0.2459927586 | T58: 0.188847931 | U58: 0.3856913793 | V58: 0.2755255172 | W58: 0.2699441379 | X58: 0.3645441379 | Y58: 0.2760865517 | Z58: 0.2229062069 | AA58: 0.1900648276 | AB58: 0.3149431034 | AC58: 0.4004452522 | AH58: 0.009780885781 | AI58: 0 | AJ58: 0.08073974733 | AK58: 0.004762138881 | AL58: 0.008047089179 | AM58: 0.001231856771 | AN58: 0 | AO58: 0.006734073819 | AP58: 0 | AQ58: 0 | AR58: 0 | AS58: 0.0275891491 | AT58: 0.03948773792 | AU58: 0 | AV58: 0.02427337632 | AW58: 0.009919171715 | AX58: 0 | AY58: 0.009215046355 | AZ58: 0 | BA58: 0 | BB58: 0.01573921322 | BC58: 0 | BD58: 0.0739029494 | BE58: 0.008924771448 | BF58: 0.02718356479 | BG58: 0 | BH58: 0
B59: 57 | C59: 0.3509362069 | D59: 0.3469058621 | E59: 0.2788665517 | F59: 0.3663944828 | G59: 0.3760686207 | H59: 0.3389975862 | I59: 0.2396310345 | J59: 0.3052289655 | K59: 0.4125634483 | L59: 0.2804786207 | M59: 0.3516596552 | N59: 0.3031534483 | O59: 0.1942651724 | P59: 0.4645286207 | Q59: 0.252112069 | R59: 0.2265896552 | S59: 0.2315806897 | T59: 0.190142069 | U59: 0.3839344828 | V59: 0.2790048276 | W59: 0.2730837931 | X59: 0.3539782759 | Y59: 0.2730944828 | Z59: 0.1989703448 | AA59: 0.19097 | AB59: 0.3175062069 | AC59: 0.400342972 | AH59: 0.1133011764 | AI59: 0.005447100957 | AJ59: 0.1694502121 | AK59: 0.07697849739 | AL59: 0.06945554887 | AM59: 0.03008858721 | AN59: 0.01168871899 | AO59: 0.030535136 | AP59: 0.06535663967 | AQ59: 0.006257989934 | AR59: 0.04233091403 | AS59: 0.1127407991 | AT59: 0.1260670952 | AU59: 0 | AV59: 0.1299118776 | AW59: 0.05089158173 | AX59: 0.007288799443 | AY59: 0.04576699989 | AZ59: 0.002296232672 | BA59: 0 | BB59: 0.0652609494 | BC59: 0.008443167527 | BD59: 0.1503293151 | BE59: 0.07619908995 | BF59: 0.1175060024 | BG59: 0.008006601425 | BH59: 0.004257071651
B60: 58 | C60: 0.3323844828 | D60: 0.3302403448 | E60: 0.2866431034 | F60: 0.3404431034 | G60: 0.3733348276 | H60: 0.3330417241 | I60: 0.2403406897 | J60: 0.3032851724 | K60: 0.3914596552 | L60: 0.2839962069 | M60: 0.3390182759 | N60: 0.2788768966 | O60: 0.1867482759 | P60: 0.4609144828 | Q60: 0.2549396552 | R60: 0.2209568966 | S60: 0.2148568966 | T60: 0.1903696552 | U60: 0.3787213793 | V60: 0.2768717241 | W60: 0.2745193103 | X60: 0.3314 | Y60: 0.2768044828 | Z60: 0.1687486207 | AA60: 0.1916431034 | AB60: 0.3111793103 | AC60: 0.3956339741 | AH60: 0.1939011492 | AI60: 0.08405593686 | AJ60: 0.2249865786 | AK60: 0.1568607547 | AL60: 0.1446762778 | AM60: 0.1002253785 | AN60: 0.03734168191 | AO60: 0.05885435509 | AP60: 0.2165084278 | AQ60: 0.02588657633 | AR60: 0.12340229 | AS60: 0.1813301749 | AT60: 0.1827458857 | AU60: 0.00748263932 | AV60: 0.2252432384 | AW60: 0.0845732556 | AX60: 0.09688308772 | AY60: 0.07433293815 | AZ60: 0.07534064583 | BA60: 0.01501684785 | BB60: 0.1084911486 | BC60: 0.1841437237 | BD60: 0.1953992072 | BE60: 0.1327132643 | BF60: 0.1785194808 | BG60: 0.02911634765 | BH60: 0.03763551903
B61: 59 | C61: 0.331117931 | D61: 0.3212655172 | E61: 0.2937617241 | F61: 0.321417931 | G61: 0.3857941379 | H61: 0.3302348276 | I61: 0.2360596552 | J61: 0.2996031034 | K61: 0.3993537931 | L61: 0.2856589655 | M61: 0.3330934483 | N61: 0.2679848276 | O61: 0.191667931 | P61: 0.4543806897 | Q61: 0.2618458621 | R61: 0.2210648276 | S61: 0.2033058621 | T61: 0.1915527586 | U61: 0.3690596552 | V61: 0.2735441379 | W61: 0.2853710345 | X61: 0.3234472414 | Y61: 0.2830517241 | Z61: 0.1667958621 | AA61: 0.2043855172 | AB61: 0.3039306897 | AC61: 0.3886440055 | AH61: 0.2135980362 | AI61: 0.1279446147 | AJ61: 0.2250354954 | AK61: 0.1830128566 | AL61: 0.1753873214 | AM61: 0.1339505093 | AN61: 0.06203272926 | AO61: 0.06202244117 | AP61: 0.3096997006 | AQ61: 0.03250156086 | AR61: 0.179588189 | AS61: 0.2074058017 | AT61: 0.1896566639 | AU61: 0.05619999489 | AV61: 0.2704805602 | AW61: 0.09099934706 | AX61: 0.1330661989 | AY61: 0.0810359639 | AZ61: 0.1327706882 | BA61: 0.02308620654 | BB61: 0.1212027048 | BC61: 0.3268725064 | BD61: 0.1947704288 | BE61: 0.1686794138 | BF61: 0.1948594823 | BG61: 0.0397573124 | BH61: 0.08678531424
B62: 60 | C62: 0.3457768966 | D62: 0.3179365517 | E62: 0.3001255172 | F62: 0.3092917241 | G62: 0.4016355172 | H62: 0.3293865517 | I62: 0.2320596552 | J62: 0.2963465517 | K62: 0.4228827586 | L62: 0.286047931 | M62: 0.33467 | N62: 0.2590810345 | O62: 0.2010758621 | P62: 0.4493555172 | Q62: 0.2669058621 | R62: 0.2276241379 | S62: 0.2013513793 | T62: 0.1912672414 | U62: 0.360272069 | V62: 0.2684813793 | W62: 0.3000506897 | X62: 0.3359662069 | Y62: 0.2886406897 | Z62: 0.1681724138 | AA62: 0.2160031034 | AB62: 0.3016589655 | AC62: 0.3836921329 | AH62: 0.2323150366 | AI62: 0.15801667 | AJ62: 0.2280491406 | AK62: 0.2053990319 | AL62: 0.1999782817 | AM62: 0.1584402642 | AN62: 0.0789289751 | AO62: 0.05339440212 | AP62: 0.3789469847 | AQ62: 0.03200896367 | AR62: 0.2231890972 | AS62: 0.22465799 | AT62: 0.2001723209 | AU62: 0.1019129943 | AV62: 0.2965999961 | AW62: 0.08864315879 | AX62: 0.1574883792 | AY62: 0.07600160555 | AZ62: 0.1602685661 | BA62: 0.02486135993 | BB62: 0.130147277 | BC62: 0.4296986298 | BD62: 0.1964152405 | BE62: 0.2019850011 | BF62: 0.2009118827 | BG62: 0.04337609783 | BH62: 0.1274790311
B63: 61 | C63: 0.3626586207 | D63: 0.3180006897 | E63: 0.2994641379 | F63: 0.2953603448 | G63: 0.3994113793 | H63: 0.3265765517 | I63: 0.2293706897 | J63: 0.2915182759 | K63: 0.4460075862 | L63: 0.28742 | M63: 0.3348331034 | N63: 0.2447293103 | O63: 0.2095255172 | P63: 0.448817931 | Q63: 0.2639251724 | R63: 0.2372168966 | S63: 0.2022027586 | T63: 0.1882096552 | U63: 0.3528403448 | V63: 0.2719431034 | W63: 0.3132968966 | X63: 0.3433410345 | Y63: 0.2916575862 | Z63: 0.1672837931 | AA63: 0.2243272414 | AB63: 0.3042731034 | AC63: 0.3819395269 | AH63: 0.2213037365 | AI63: 0.1592911412 | AJ63: 0.1994000459 | AK63: 0.210030364 | AL63: 0.1910985906 | AM63: 0.1539437106 | AN63: 0.08432289879 | AO63: 0.03746179192 | AP63: 0.4058749698 | AQ63: 0.04296704469 | AR63: 0.235493034 | AS63: 0.2082494633 | AT63: 0.1916471931 | AU63: 0.132458296 | AV63: 0.2800743945 | AW63: 0.06785479828 | AX63: 0.168969597 | AY63: 0.05192538619 | AZ63: 0.165890239 | BA63: 0.02365755305 | BB63: 0.1156833159 | BC63: 0.4766588215 | BD63: 0.1683152067 | BE63: 0.1991735845 | BF63: 0.1848487501 | BG63: 0.0397266571 | BH63: 0.1434111891
B64: 62 | C64: 0.3690655172 | D64: 0.3196589655 | E64: 0.3015013793 | F64: 0.2806837931 | G64: 0.3923110345 | H64: 0.3229955172 | I64: 0.2272148276 | J64: 0.2873268966 | K64: 0.4607272414 | L64: 0.2878410345 | M64: 0.3320351724 | N64: 0.2315313793 | O64: 0.2175089655 | P64: 0.4503134483 | Q64: 0.2561344828 | R64: 0.2525496552 | S64: 0.2070917241 | T64: 0.1878203448 | U64: 0.3473162069 | V64: 0.2709868966 | W64: 0.3262082759 | X64: 0.3467196552 | Y64: 0.3014965517 | Z64: 0.1708227586 | AA64: 0.2323451724 | AB64: 0.3120486207 | AC64: 0.3822869524 | AH64: 0.1979062761 | AI64: 0.1456986589 | AJ64: 0.1525723475 | AK64: 0.2024200583 | AL64: 0.1572007556 | AM64: 0.1311572315 | AN64: 0.07319454156 | AO64: 0.05466930308 | AP64: 0.3868788324 | AQ64: 0.01509790654 | AR64: 0.2211371377 | AS64: 0.1544511456 | AT64: 0.1499126646 | AU64: 0.1335928411 | AV64: 0.2346816021 | AW64: 0.04041971521 | AX64: 0.1484302511 | AY64: 0.03622190611 | AZ64: 0.1459310535 | BA64: 0.02359740967 | BB64: 0.0863041702 | BC64: 0.4698932972 | BD64: 0.1284186467 | BE64: 0.1630971416 | BF64: 0.1522915035 | BG64: 0.03290988652 | BH64: 0.1372282634
B65: 63 | C65: 0.3814134483 | D65: 0.3209675862 | E65: 0.3133531034 | F65: 0.2682903448 | G65: 0.3911613793 | H65: 0.3244468966 | I65: 0.2248848276 | J65: 0.2840765517 | K65: 0.4640748276 | L65: 0.2860496552 | M65: 0.3271486207 | N65: 0.2262958621 | O65: 0.2300734483 | P65: 0.4507689655 | Q65: 0.2394010345 | R65: 0.2694668966 | S65: 0.2145751724 | T65: 0.1894013793 | U65: 0.3454044828 | V65: 0.2699993103 | W65: 0.3414624138 | X65: 0.3471603448 | Y65: 0.3211582759 | Z65: 0.1966044828 | AA65: 0.2428724138 | AB65: 0.3235313793 | AC65: 0.3854788835 | AH65: 0.1468948595 | AI65: 0.112315037 | AJ65: 0.08014763557 | AK65: 0.1613364194 | AL65: 0.09616521512 | AM65: 0.08800728457 | AN65: 0.03998168247 | AO65: 0 | AP65: 0.3500701749 | AQ65: 0 | AR65: 0.1748115361 | AS65: 0.1054480304 | AT65: 0.1062821179 | AU65: 0.1150590111 | AV65: 0.1744113705 | AW65: 0 | AX65: 0.1038075985 | AY65: 0 | AZ65: 0.09873550481 | BA65: 0.01983722878 | BB65: 0.05389342608 | BC65: 0.4575547117 | BD65: 0.0730062424 | BE65: 0.1086262466 | BF65: 0.09706162229 | BG65: 0.02017551562 | BH65: 0.1145427503
B66: 64 | C66: 0.4001437931 | D66: 0.3256203448 | E66: 0.3280637931 | F66: 0.2657565517 | G66: 0.3958544828 | H66: 0.329427931 | I66: 0.2250575862 | J66: 0.2819196552 | K66: 0.4514603448 | L66: 0.282512069 | M66: 0.3315648276 | N66: 0.2407048276 | O66: 0.2481144828 | P66: 0.4514389655 | Q66: 0.2356037931 | R66: 0.2819041379 | S66: 0.2194906897 | T66: 0.1950489655 | U66: 0.3491806897 | V66: 0.2737644828 | W66: 0.3527141379 | X66: 0.3386565517 | Y66: 0.3411041379 | Z66: 0.227747931 | AA66: 0.2540606897 | AB66: 0.3337551724 | AC66: 0.3929206755 | AH66: 0.08172494172 | AI66: 0.05319309171 | AJ66: 0 | AK66: 0.09501586414 | AL66: 0.01616955514 | AM66: 0.02842492458 | AN66: 0 | AO66: 0 | AP66: 0.2710133043 | AQ66: 0 | AR66: 0.1085452506 | AS66: 0.04727922071 | AT66: 0.03081563544 | AU66: 0.07373881452 | AV66: 0.08317829441 | AW66: 0 | AX66: 0.06346603408 | AY66: 0 | AZ66: 0.04012820743 | BA66: 0 | BB66: 0 | BC66: 0.3770932016 | BD66: 0 | BE66: 0.04462808508 | BF66: 0 | BG66: 0 | BH66: 0.06570170361
B67: 65 | C67: 0.406802069 | D67: 0.3290537931 | E67: 0.3369431034 | F67: 0.2776003448 | G67: 0.3958024138 | H67: 0.3311696552 | I67: 0.2253248276 | J67: 0.2848868966 | K67: 0.4547882759 | L67: 0.28111 | M67: 0.3454786207 | N67: 0.257197931 | O67: 0.2618793103 | P67: 0.4490496552 | Q67: 0.2453489655 | R67: 0.2909489655 | S67: 0.2220648276 | T67: 0.1988431034 | U67: 0.3559031034 | V67: 0.277977931 | W67: 0.3547689655 | X67: 0.3369368966 | Y67: 0.3536631034 | Z67: 0.2464913793 | AA67: 0.2507434483 | AB67: 0.3416024138 | AC67: 0.4020076629 | AH67: 0 | AI67: 0 | AJ67: 0 | AK67: 0 | AL67: 0 | AM67: 0 | AN67: 0 | AO67: 0 | AP67: 0.1694237738 | AQ67: 0 | AR67: 0.04131302198 | AS67: 0 | AT67: 0 | AU67: 0.03718399917 | AV67: 0.0003621740819 | AW67: 0 | AX67: 0 | AY67: 0 | AZ67: 0 | BA67: 0 | BB67: 0 | BC67: 0.2681754973 | BD67: 0 | BE67: 0 | BF67: 0 | BG67: 0 | BH67: 0.01264621719
B68: 66 | C68: 0.4026762069 | D68: 0.3292875862 | E68: 0.3431696552 | F68: 0.2883331034 | G68: 0.3901051724 | H68: 0.3288989655 | I68: 0.2236203448 | J68: 0.2892010345 | K68: 0.4775486207 | L68: 0.2809875862 | M68: 0.3541034483 | N68: 0.2654589655 | O68: 0.2627641379 | P68: 0.441492069 | Q68: 0.253887931 | R68: 0.2976158621 | S68: 0.221912069 | T68: 0.2018403448 | U68: 0.3624634483 | V68: 0.2819437931 | W68: 0.3516086207 | X68: 0.349542069 | Y68: 0.3582182759 | Z68: 0.2537910345 | AA68: 0.2368262069 | AB68: 0.3461448276 | AC68: 0.4088601805 | AH68: 0 | AI68: 0 | AJ68: 0 | AK68: 0 | AL68: 0 | AM68: 0 | AN68: 0 | AO68: 0 | AP68: 0.02653495921 | AQ68: 0 | AR68: 0 | AS68: 0 | AT68: 0 | AU68: 0 | AV68: 0 | AW68: 0 | AX68: 0 | AY68: 0 | AZ68: 0 | BA68: 0 | BB68: 0 | BC68: 0.1150446097 | BD68: 0 | BE68: 0 | BF68: 0 | BG68: 0 | BH68: 0
B69: 67 | C69: 0.3909489655 | D69: 0.326972069 | E69: 0.3476531034 | F69: 0.2957575862 | G69: 0.3816172414 | H69: 0.3255896552 | I69: 0.2192255172 | J69: 0.2924506897 | K69: 0.4898155172 | L69: 0.2811731034 | M69: 0.3563037931 | N69: 0.273742069 | O69: 0.2569717241 | P69: 0.434382069 | Q69: 0.2606403448 | R69: 0.3009351724 | S69: 0.2218175862 | T69: 0.2028441379 | U69: 0.3656948276 | V69: 0.2837124138 | W69: 0.345552069 | X69: 0.3541348276 | Y69: 0.3571734483 | Z69: 0.2443882759 | AA69: 0.2183782759 | AB69: 0.349657931 | AC69: 0.4130716835 | AH69: 0 | AI69: 0 | AJ69: 0 | AK69: 0 | AL69: 0 | AM69: 0 | AN69: 0 | AO69: 0 | AP69: 0 | AQ69: 0 | AR69: 0 | AS69: 0 | AT69: 0 | AU69: 0 | AV69: 0 | AW69: 0 | AX69: 0 | AY69: 0 | AZ69: 0 | BA69: 0 | BB69: 0 | BC69: 0 | BD69: 0 | BE69: 0 | BF69: 0 | BG69: 0 | BH69: 0
B70: 68 | C70: 0.3794948276 | D70: 0.3264251724 | E70: 0.3437786207 | F70: 0.3047293103 | G70: 0.3780075862 | H70: 0.3220189655 | I70: 0.2137044828 | J70: 0.2982410345 | K70: 0.4941803448 | L70: 0.2811351724 | M70: 0.3542765517 | N70: 0.2825748276 | O70: 0.2467706897 | P70: 0.4277762069 | Q70: 0.2663093103 | R70: 0.3043965517 | S70: 0.2200093103 | T70: 0.2008241379 | U70: 0.364692069 | V70: 0.2860889655 | W70: 0.3383737931 | X70: 0.3504410345 | Y70: 0.3516482759 | Z70: 0.2580989655 | AA70: 0.2069082759 | AB70: 0.351432069 | AC70: 0.4158339719 | AH70: 0 | AI70: 0 | AJ70: 0 | AK70: 0 | AL70: 0 | AM70: 0 | AN70: 0 | AO70: 0 | AP70: 0 | AQ70: 0 | AR70: 0 | AS70: 0 | AT70: 0 | AU70: 0 | AV70: 0 | AW70: 0 | AX70: 0 | AY70: 0 | AZ70: 0 | BA70: 0 | BB70: 0 | BC70: 0 | BD70: 0 | BE70: 0 | BF70: 0 | BG70: 0 | BH70: 0
B71: 69 | C71: 0.3696493103 | D71: 0.3271937931 | E71: 0.3345031034 | F71: 0.3138548276 | G71: 0.3738062069 | H71: 0.3185065517 | I71: 0.2075968966 | J71: 0.3034589655 | K71: 0.4933537931 | L71: 0.2802910345 | M71: 0.3490868966 | N71: 0.2901286207 | O71: 0.2316634483 | P71: 0.4218727586 | Q71: 0.2744586207 | R71: 0.3063734483 | S71: 0.2130548276 | T71: 0.2039544828 | U71: 0.3627231034 | V71: 0.28741 | W71: 0.3314206897 | X71: 0.3413689655 | Y71: 0.343637931 | Z71: 0.2531655172 | AA71: 0.19457 | AB71: 0.3525827586 | AC71: 0.4174103983 | AH71: 0 | AI71: 0 | AJ71: 0 | AK71: 0 | AL71: 0 | AM71: 0 | AN71: 0 | AO71: 0 | AP71: 0 | AQ71: 0 | AR71: 0 | AS71: 0 | AT71: 0 | AU71: 0 | AV71: 0 | AW71: 0 | AX71: 0 | AY71: 0 | AZ71: 0 | BA71: 0 | BB71: 0 | BC71: 0 | BD71: 0 | BE71: 0 | BF71: 0 | BG71: 0 | BH71: 0
B72: 70 | C72: 0.3641182759 | D72: 0.3279096552 | E72: 0.3241865517 | F72: 0.3102241379 | G72: 0.3702031034 | H72: 0.3148137931 | I72: 0.199887931 | J72: 0.3118034483 | K72: 0.4913275862 | L72: 0.2792386207 | M72: 0.3420572414 | N72: 0.2926327586 | O72: 0.2198513793 | P72: 0.4128910345 | Q72: 0.2796075862 | R72: 0.3101451724 | S72: 0.2118144828 | T72: 0.2126734483 | U72: 0.3585924138 | V72: 0.289 | W72: 0.3270837931 | X72: 0.3307996552 | Y72: 0.3311406897 | Z72: 0.2524855172 | AA72: 0.1867965517 | AB72: 0.3517093103 | AC72: 0.4175231578 | AH72: 0 | AI72: 0 | AJ72: 0 | AK72: 0 | AL72: 0 | AM72: 0 | AN72: 0 | AO72: 0 | AP72: 0 | AQ72: 0 | AR72: 0 | AS72: 0 | AT72: 0 | AU72: 0 | AV72: 0 | AW72: 0 | AX72: 0 | AY72: 0 | AZ72: 0 | BA72: 0 | BB72: 0 | BC72: 0 | BD72: 0 | BE72: 0 | BF72: 0 | BG72: 0 | BH72: 0
B73: 71 | C73: 0.3654768966 | D73: 0.3258458621 | E73: 0.3099472414 | F73: 0.3154755172 | G73: 0.361797931 | H73: 0.3108082759 | I73: 0.1937444828 | J73: 0.3199206897 | K73: 0.4862444828 | L73: 0.2789534483 | M73: 0.337002069 | N73: 0.2934555172 | O73: 0.2082134483 | P73: 0.4103358621 | Q73: 0.2869127586 | R73: 0.3120334483 | S73: 0.2121568966 | T73: 0.2167996552 | U73: 0.3535051724 | V73: 0.2922431034 | W73: 0.3258296552 | X73: 0.3181496552 | Y73: 0.32266 | Z73: 0.2546886207 | AA73: 0.1841031034 | AB73: 0.3514555172 | AC73: 0.4164995251 | AH73: 0 | AI73: 0 | AJ73: 0 | AK73: 0 | AL73: 0 | AM73: 0 | AN73: 0 | AO73: 0 | AP73: 0 | AQ73: 0 | AR73: 0 | AS73: 0 | AT73: 0 | AU73: 0 | AV73: 0 | AW73: 0 | AX73: 0 | AY73: 0 | AZ73: 0 | BA73: 0 | BB73: 0 | BC73: 0 | BD73: 0 | BE73: 0 | BF73: 0 | BG73: 0 | BH73: 0
B74: 72 | C74: 0.3753396552 | D74: 0.3249058621 | E74: 0.2985696552 | F74: 0.3157948276 | G74: 0.3535306897 | H74: 0.3049382759 | I74: 0.190472069 | J74: 0.3283513793 | K74: 0.4820468966 | L74: 0.2774813793 | M74: 0.3343906897 | N74: 0.2976124138 | O74: 0.2027989655 | P74: 0.412532069 | Q74: 0.2942641379 | R74: 0.3104562069 | S74: 0.2075686207 | T74: 0.2169737931 | U74: 0.3473448276 | V74: 0.2967613793 | W74: 0.3260868966 | X74: 0.3056510345 | Y74: 0.3151058621 | Z74: 0.250332069 | AA74: 0.1833675862 | AB74: 0.35079 | AC74: 0.4148296383 | AH74: 0 | AI74: 0 | AJ74: 0 | AK74: 0 | AL74: 0 | AM74: 0 | AN74: 0 | AO74: 0 | AP74: 0 | AQ74: 0 | AR74: 0 | AS74: 0 | AT74: 0 | AU74: 0 | AV74: 0 | AW74: 0 | AX74: 0 | AY74: 0 | AZ74: 0 | BA74: 0 | BB74: 0 | BC74: 0 | BD74: 0 | BE74: 0 | BF74: 0 | BG74: 0 | BH74: 0
B75: 73 | C75: 0.378692069 | D75: 0.3239927586 | E75: 0.287802069 | F75: 0.3265072414 | G75: 0.3438662069 | H75: 0.2985913793 | I75: 0.1898310345 | J75: 0.3357772414 | K75: 0.479887931 | L75: 0.2780172414 | M75: 0.3327396552 | N75: 0.302477931 | O75: 0.2015786207 | P75: 0.4193675862 | Q75: 0.3002503448 | R75: 0.307127931 | S75: 0.2045893103 | T75: 0.2191834483 | U75: 0.3429641379 | V75: 0.3007503448 | W75: 0.3257241379 | X75: 0.2969772414 | Y75: 0.3119575862 | Z75: 0.2456617241 | AA75: 0.1907372414 | AB75: 0.3497758621 | AC75: 0.4119265372 | AH75: 0 | AI75: 0 | AJ75: 0 | AK75: 0 | AL75: 0 | AM75: 0 | AN75: 0 | AO75: 0 | AP75: 0 | AQ75: 0 | AR75: 0 | AS75: 0 | AT75: 0 | AU75: 0 | AV75: 0 | AW75: 0 | AX75: 0 | AY75: 0 | AZ75: 0 | BA75: 0 | BB75: 0 | BC75: 0 | BD75: 0 | BE75: 0 | BF75: 0 | BG75: 0 | BH75: 0
B76: 74 | C76: 0.3883641379 | D76: 0.3222162069 | E76: 0.2782448276 | F76: 0.3313948276 | G76: 0.3372058621 | H76: 0.2929631034 | I76: 0.1916693103 | J76: 0.3438703448 | K76: 0.4740044828 | L76: 0.2796486207 | M76: 0.3311672414 | N76: 0.3012017241 | O76: 0.2038555172 | P76: 0.4262158621 | Q76: 0.3019989655 | R76: 0.3033106897 | S76: 0.2035144828 | T76: 0.2184362069 | U76: 0.3425189655 | V76: 0.3031017241 | W76: 0.3245455172 | X76: 0.29018 | Y76: 0.3089717241 | Z76: 0.2503686207 | AA76: 0.2000037931 | AB76: 0.3522524138 | AC76: 0.4101188721 | AH76: 0 | AI76: 0 | AJ76: 0 | AK76: 0 | AL76: 0 | AM76: 0 | AN76: 0 | AO76: 0 | AP76: 0 | AQ76: 0 | AR76: 0 | AS76: 0 | AT76: 0 | AU76: 0 | AV76: 0 | AW76: 0 | AX76: 0 | AY76: 0 | AZ76: 0 | BA76: 0 | BB76: 0 | BC76: 0 | BD76: 0 | BE76: 0 | BF76: 0 | BG76: 0 | BH76: 0
B77: 75 | C77: 0.389347931 | D77: 0.3215506897 | E77: 0.2669848276 | F77: 0.3337251724 | G77: 0.3351217241 | H77: 0.2900537931 | I77: 0.1926617241 | J77: 0.3526924138 | K77: 0.4667493103 | L77: 0.2829789655 | M77: 0.3321768966 | N77: 0.2977113793 | O77: 0.2090048276 | P77: 0.4308296552 | Q77: 0.3016768966 | R77: 0.2983172414 | S77: 0.2051117241 | T77: 0.2210744828 | U77: 0.3483910345 | V77: 0.3059348276 | W77: 0.3230493103 | X77: 0.285077931 | Y77: 0.3033282759 | Z77: 0.2506993103 | AA77: 0.2043862069 | AB77: 0.35701 | AC77: 0.4086196854 | AH77: 0 | AI77: 0 | AJ77: 0 | AK77: 0 | AL77: 0 | AM77: 0 | AN77: 0 | AO77: 0 | AP77: 0 | AQ77: 0 | AR77: 0 | AS77: 0 | AT77: 0 | AU77: 0 | AV77: 0 | AW77: 0 | AX77: 0 | AY77: 0 | AZ77: 0 | BA77: 0 | BB77: 0 | BC77: 0 | BD77: 0 | BE77: 0 | BF77: 0 | BG77: 0 | BH77: 0
B78: 76 | C78: 0.38119 | D78: 0.3223813793 | E78: 0.2533589655 | F78: 0.3267931034 | G78: 0.3330117241 | H78: 0.2872734483 | I78: 0.1950282759 | J78: 0.3590862069 | K78: 0.4497468966 | L78: 0.2798824138 | M78: 0.3327617241 | N78: 0.2943213793 | O78: 0.2023713793 | P78: 0.4356958621 | Q78: 0.3012506897 | R78: 0.2925031034 | S78: 0.2038544828 | T78: 0.2265968966 | U78: 0.3573251724 | V78: 0.3105541379 | W78: 0.3180217241 | X78: 0.277867931 | Y78: 0.2926293103 | Z78: 0.2356237931 | AA78: 0.2021827586 | AB78: 0.3592172414 | AC78: 0.4065385816 | AH78: 0 | AI78: 0 | AJ78: 0 | AK78: 0 | AL78: 0 | AM78: 0 | AN78: 0 | AO78: 0 | AP78: 0 | AQ78: 0 | AR78: 0 | AS78: 0 | AT78: 0 | AU78: 0 | AV78: 0 | AW78: 0 | AX78: 0 | AY78: 0 | AZ78: 0 | BA78: 0 | BB78: 0 | BC78: 0 | BD78: 0 | BE78: 0 | BF78: 0 | BG78: 0 | BH78: 0
B79: 77 | C79: 0.3734496552 | D79: 0.3225889655 | E79: 0.2411296552 | F79: 0.3262048276 | G79: 0.3382765517 | H79: 0.2865831034 | I79: 0.1970751724 | J79: 0.3639013793 | K79: 0.4327362069 | L79: 0.2772986207 | M79: 0.3322131034 | N79: 0.2966844828 | O79: 0.1930924138 | P79: 0.4392817241 | Q79: 0.2994555172 | R79: 0.2894744828 | S79: 0.2027837931 | T79: 0.2371382759 | U79: 0.3650796552 | V79: 0.3173175862 | W79: 0.3115051724 | X79: 0.27185 | Y79: 0.2804348276 | Z79: 0.2367624138 | AA79: 0.1979731034 | AB79: 0.358412069 | AC79: 0.4072659833 | AH79: 0 | AI79: 0 | AJ79: 0 | AK79: 0 | AL79: 0 | AM79: 0 | AN79: 0 | AO79: 0 | AP79: 0 | AQ79: 0 | AR79: 0 | AS79: 0 | AT79: 0 | AU79: 0 | AV79: 0 | AW79: 0 | AX79: 0 | AY79: 0 | AZ79: 0 | BA79: 0 | BB79: 0 | BC79: 0 | BD79: 0 | BE79: 0 | BF79: 0 | BG79: 0 | BH79: 0
B80: 78 | C80: 0.3630558621 | D80: 0.3245458621 | E80: 0.233187931 | F80: 0.3345513793 | G80: 0.3462044828 | H80: 0.2860548276 | I80: 0.1976406897 | J80: 0.3673041379 | K80: 0.4117806897 | L80: 0.2768672414 | M80: 0.3316582759 | N80: 0.3070410345 | O80: 0.1831782759 | P80: 0.4412017241 | Q80: 0.2973941379 | R80: 0.2924751724 | S80: 0.1986275862 | T80: 0.2413982759 | U80: 0.374527931 | V80: 0.3254824138 | W80: 0.3044344828 | X80: 0.2643306897 | Y80: 0.2706437931 | Z80: 0.2312193103 | AA80: 0.1938341379 | AB80: 0.3569144828 | AC80: 0.409937453 | AH80: 0 | AI80: 0 | AJ80: 0 | AK80: 0 | AL80: 0 | AM80: 0 | AN80: 0 | AO80: 0 | AP80: 0 | AQ80: 0 | AR80: 0 | AS80: 0 | AT80: 0 | AU80: 0 | AV80: 0 | AW80: 0 | AX80: 0 | AY80: 0 | AZ80: 0 | BA80: 0 | BB80: 0 | BC80: 0 | BD80: 0 | BE80: 0 | BF80: 0 | BG80: 0 | BH80: 0
B81: 79 | C81: 0.3597689655 | D81: 0.3276993103 | E81: 0.2271568966 | F81: 0.3493434483 | G81: 0.3563068966 | H81: 0.2855910345 | I81: 0.1968689655 | J81: 0.3673717241 | K81: 0.3938782759 | L81: 0.2784503448 | M81: 0.330922069 | N81: 0.3193193103 | O81: 0.176272069 | P81: 0.4432444828 | Q81: 0.2974075862 | R81: 0.2972644828 | S81: 0.1968717241 | T81: 0.2428541379 | U81: 0.3838906897 | V81: 0.3308989655 | W81: 0.2978227586 | X81: 0.2568124138 | Y81: 0.262442069 | Z81: 0.2139775862 | AA81: 0.2019389655 | AB81: 0.357122069 | AC81: 0.4125420964 | AH81: 0 | AI81: 0 | AJ81: 0.00692710812 | AK81: 0 | AL81: 0 | AM81: 0 | AN81: 0 | AO81: 0 | AP81: 0 | AQ81: 0 | AR81: 0 | AS81: 0 | AT81: 0 | AU81: 0 | AV81: 0 | AW81: 0 | AX81: 0 | AY81: 0 | AZ81: 0 | BA81: 0 | BB81: 0 | BC81: 0 | BD81: 0.009279709382 | BE81: 0 | BF81: 0 | BG81: 0 | BH81: 0
B82: 80 | C82: 0.3563034483 | D82: 0.332887931 | E82: 0.217632069 | F82: 0.34955 | G82: 0.3635027586 | H82: 0.2855468966 | I82: 0.1956424138 | J82: 0.3679275862 | K82: 0.3800534483 | L82: 0.2800493103 | M82: 0.3312755172 | N82: 0.3200103448 | O82: 0.166402069 | P82: 0.4456724138 | Q82: 0.2930131034 | R82: 0.3031127586 | S82: 0.1943482759 | T82: 0.2445648276 | U82: 0.3896168966 | V82: 0.3391437931 | W82: 0.2898362069 | X82: 0.2500634483 | Y82: 0.2455013793 | Z82: 0.2051386207 | AA82: 0.2128565517 | AB82: 0.35828 | AC82: 0.4166290292 | AH82: 0.009511525512 | AI82: 0 | AJ82: 0.08785306501 | AK82: 0.004420332181 | AL82: 0.007986509181 | AM82: 0.001206955452 | AN82: 0 | AO82: 0.006766457533 | AP82: 0 | AQ82: 0 | AR82: 0 | AS82: 0.02364314574 | AT82: 0.04190350054 | AU82: 0 | AV82: 0.0232368874 | AW82: 0.009602713292 | AX82: 0 | AY82: 0.009225147677 | AZ82: 0 | BA82: 0 | BB82: 0.01616445246 | BC82: 0 | BD82: 0.08446602721 | BE82: 0.00661878555 | BF82: 0.02940774603 | BG82: 0 | BH82: 0
B83: 81 | C83: 0.3450265517 | D83: 0.3377424138 | E83: 0.2143558621 | F83: 0.323967931 | G83: 0.3551913793 | H83: 0.2822855172 | I83: 0.19564 | J83: 0.366227931 | K83: 0.3555172414 | L83: 0.2816655172 | M83: 0.3292055172 | N83: 0.3064931034 | O83: 0.1571624138 | P83: 0.4494617241 | Q83: 0.292377931 | R83: 0.3035082759 | S83: 0.1933289655 | T83: 0.2445668966 | U83: 0.3909196552 | V83: 0.3446568966 | W83: 0.2785762069 | X83: 0.24129 | Y83: 0.2338231034 | Z83: 0.1881603448 | AA83: 0.2117803448 | AB83: 0.3595882759 | AC83: 0.4209213522 | AH83: 0.1152908943 | AI83: 0.005517592022 | AJ83: 0.1822196729 | AK83: 0.08177319239 | AL83: 0.07839429883 | AM83: 0.03065980743 | AN83: 0.01308854066 | AO83: 0.02556369919 | AP83: 0.06547465272 | AQ83: 0.005966315163 | AR83: 0.04127513174 | AS83: 0.1067524974 | AT83: 0.1456395901 | AU83: 0 | AV83: 0.1272878141 | AW83: 0.04814852402 | AX83: 0.006351663336 | AY83: 0.03705533019 | AZ83: 0.002599584818 | BA83: 0 | BB83: 0.07560893722 | BC83: 0.008265702046 | BD83: 0.1642881165 | BE83: 0.08729767279 | BF83: 0.1317052055 | BG83: 0.008034804525 | BH83: 0.004207671276
B84: 82 | C84: 0.3386244828 | D84: 0.3340913793 | E84: 0.2105562069 | F84: 0.3045562069 | G84: 0.3456255172 | H84: 0.2750389655 | I84: 0.1942813793 | J84: 0.3624893103 | K84: 0.3264882759 | L84: 0.2825227586 | M84: 0.3223675862 | N84: 0.2900913793 | O84: 0.1581913793 | P84: 0.4506562069 | Q84: 0.3003551724 | R84: 0.3061462069 | S84: 0.1911027586 | T84: 0.2440675862 | U84: 0.3816575862 | V84: 0.3491162069 | W84: 0.2708624138 | X84: 0.2221427586 | Y84: 0.2323637931 | Z84: 0.1698793103 | AA84: 0.2095893103 | AB84: 0.3540296552 | AC84: 0.421788235 | AH84: 0.1915428364 | AI84: 0.08821842822 | AJ84: 0.2418209567 | AK84: 0.1653379661 | AL84: 0.1582225653 | AM84: 0.09509441976 | AN84: 0.05654338985 | AO84: 0.04321441525 | AP84: 0.22282969 | AQ84: 0.02153907722 | AR84: 0.1243903138 | AS84: 0.1773539605 | AT84: 0.2171266144 | AU84: 0.006460883368 | AV84: 0.222401107 | AW84: 0.08309650654 | AX84: 0.09022341346 | AY84: 0.06304649774 | AZ84: 0.07757257324 | BA84: 0.01652876731 | BB84: 0.1302812883 | BC84: 0.1955077658 | BD84: 0.2179825661 | BE84: 0.1517593338 | BF84: 0.1998983857 | BG84: 0.03306814645 | BH84: 0.03571302163
B85: 83 | C85: 0.3476668966 | D85: 0.329432069 | E85: 0.2057444828 | F85: 0.2986837931 | G85: 0.3514793103 | H85: 0.2742406897 | I85: 0.1929689655 | J85: 0.357887931 | K85: 0.3325775862 | L85: 0.2810082759 | M85: 0.3244548276 | N85: 0.2703468966 | O85: 0.1661751724 | P85: 0.4477593103 | Q85: 0.3075682759 | R85: 0.3153165517 | S85: 0.1962165517 | T85: 0.2487413793 | U85: 0.3706655172 | V85: 0.3462282759 | W85: 0.2727382759 | X85: 0.2201189655 | Y85: 0.2320089655 | Z85: 0.168902069 | AA85: 0.2191851724 | AB85: 0.3459410345 | AC85: 0.4205713068 | AH85: 0.2246153846 | AI85: 0.1269773509 | AJ85: 0.254163921 | AK85: 0.2059583082 | AL85: 0.1912840881 | AM85: 0.1242089275 | AN85: 0.1008010428 | AO85: 0.04944065366 | AP85: 0.332544749 | AQ85: 0.02693612748 | AR85: 0.1886983196 | AS85: 0.2068750432 | AT85: 0.2473472302 | AU85: 0.05062584935 | AV85: 0.2833851467 | AW85: 0.08788218167 | AX85: 0.1275060591 | AY85: 0.06718032542 | AZ85: 0.1303045503 | BA85: 0.02368510314 | BB85: 0.1515830798 | BC85: 0.3494295179 | BD85: 0.2288727805 | BE85: 0.1870113378 | BF85: 0.2264376252 | BG85: 0.04651772352 | BH85: 0.08628552463
B86: 84 | C86: 0.3622658621 | D86: 0.3280889655 | E86: 0.1978996552 | F86: 0.2897924138 | G86: 0.3652341379 | H86: 0.2771717241 | I86: 0.1925951724 | J86: 0.3545751724 | K86: 0.3530351724 | L86: 0.2795875862 | M86: 0.3358158621 | N86: 0.255142069 | O86: 0.1761372414 | P86: 0.4475537931 | Q86: 0.3133724138 | R86: 0.3266893103 | S86: 0.2041224138 | T86: 0.2540289655 | U86: 0.3679682759 | V86: 0.3404527586 | W86: 0.2787372414 | X86: 0.2335472414 | Y86: 0.2296072414 | Z86: 0.1573462069 | AA86: 0.2358948276 | AB86: 0.3396910345 | AC86: 0.4216533604 | AH86: 0.2368395633 | AI86: 0.1383803124 | AJ86: 0.2557463153 | AK86: 0.2400481792 | AL86: 0.1994547451 | AM86: 0.1369154945 | AN86: 0.1258717458 | AO86: 0.04865644161 | AP86: 0.4134131527 | AQ86: 0.02783962717 | AR86: 0.2337288715 | AS86: 0.2273544408 | AT86: 0.2651681205 | AU86: 0.09279650742 | AV86: 0.3169407404 | AW86: 0.08513261777 | AX86: 0.1435154707 | AY86: 0.06573651975 | AZ86: 0.1659979439 | BA86: 0.02617616213 | BB86: 0.1616434449 | BC86: 0.4509058193 | BD86: 0.2324190518 | BE86: 0.2244229576 | BF86: 0.2374770848 | BG86: 0.05180039218 | BH86: 0.1248547364
B87: 85 | C87: 0.3719982759 | D87: 0.3282741379 | E87: 0.1893075862 | F87: 0.2945293103 | G87: 0.3716175862 | H87: 0.280042069 | I87: 0.1926237931 | J87: 0.3544093103 | K87: 0.3681717241 | L87: 0.2802875862 | M87: 0.3454948276 | N87: 0.2456972414 | O87: 0.1856389655 | P87: 0.4507289655 | Q87: 0.3151768966 | R87: 0.3363344828 | S87: 0.2127051724 | T87: 0.2579065517 | U87: 0.3687348276 | V87: 0.3359744828 | W87: 0.2844475862 | X87: 0.24319 | Y87: 0.2263613793 | Z87: 0.1534772414 | AA87: 0.2450024138 | AB87: 0.3371396552 | AC87: 0.4224041435 | AH87: 0.2259959007 | AI87: 0.1497506882 | AJ87: 0.2250777787 | AK87: 0.2405922747 | AL87: 0.1802762309 | AM87: 0.1297192662 | AN87: 0.1221756662 | AO87: 0.03378757625 | AP87: 0.448230042 | AQ87: 0.03763969843 | AR87: 0.2479739598 | AS87: 0.2189944227 | AT87: 0.2468805974 | AU87: 0.1206168961 | AV87: 0.3056085252 | AW87: 0.06371644128 | AX87: 0.1428683498 | AY87: 0.04978494083 | AZ87: 0.1707468551 | BA87: 0.02587062836 | BB87: 0.1449217986 | BC87: 0.4957637773 | BD87: 0.209195686 | BE87: 0.2237362431 | BF87: 0.2183412342 | BG87: 0.04534942037 | BH87: 0.1375456667
B88: 86 | C88: 0.3847341379 | D88: 0.3290958621 | E88: 0.1872034483 | F88: 0.2928465517 | G88: 0.3767541379 | H88: 0.2836441379 | I88: 0.1944568966 | J88: 0.3549096552 | K88: 0.3716558621 | L88: 0.2800893103 | M88: 0.3508924138 | N88: 0.2455272414 | O88: 0.1939113793 | P88: 0.4541675862 | Q88: 0.3085858621 | R88: 0.3470893103 | S88: 0.2194744828 | T88: 0.261342069 | U88: 0.3685589655 | V88: 0.3342437931 | W88: 0.2920441379 | X88: 0.248827931 | Y88: 0.2263793103 | Z88: 0.1504972414 | AA88: 0.2472793103 | AB88: 0.3383462069 | AC88: 0.4206745478 | AH88: 0.1931839054 | AI88: 0.1361185985 | AJ88: 0.1694753957 | AK88: 0.2191630205 | AL88: 0.1445732697 | AM88: 0.1101682266 | AN88: 0.09412938451 | AO88: 0.0416883253 | AP88: 0.4403552133 | AQ88: 0.01149830954 | AR88: 0.233724069 | AS88: 0.1799164474 | AT88: 0.2025910223 | AU88: 0.1229559679 | AV88: 0.2571862114 | AW88: 0.04146293446 | AX88: 0.1241361319 | AY88: 0.03767909461 | AZ88: 0.1572273867 | BA88: 0.02538829266 | BB88: 0.1065690424 | BC88: 0.4975746392 | BD88: 0.1626706427 | BE88: 0.1819952284 | BF88: 0.1750108835 | BG88: 0.03705638573 | BH88: 0.1251789619
B89: 87 | C89: 0.4080182759 | D89: 0.3344351724 | E89: 0.1899324138 | F89: 0.2876296552 | G89: 0.3868768966 | H89: 0.2908113793 | I89: 0.1987644828 | J89: 0.3564475862 | K89: 0.3622703448 | L89: 0.2775972414 | M89: 0.3567272414 | N89: 0.2561027586 | O89: 0.2088158621 | P89: 0.4558734483 | Q89: 0.2913768966 | R89: 0.3562917241 | S89: 0.2283241379 | T89: 0.2632586207 | U89: 0.371647931 | V89: 0.3363624138 | W89: 0.3054751724 | X89: 0.2432741379 | Y89: 0.2353613793 | Z89: 0.1576186207 | AA89: 0.2549537931 | AB89: 0.340727931 | AC89: 0.4182946371 | AH89: 0.1398852204 | AI89: 0.1042141995 | AJ89: 0.08845822121 | AK89: 0.1787241754 | AL89: 0.08460005767 | AM89: 0.07392462741 | AN89: 0.04727073473 | AO89: 0 | AP89: 0.3868874825 | AQ89: 0 | AR89: 0.1892471464 | AS89: 0.1116996918 | AT89: 0.1238834234 | AU89: 0.10114383 | AV89: 0.1852653592 | AW89: 0 | AX89: 0.09570224322 | AY89: 0 | AZ89: 0.1137372326 | BA89: 0.02001460493 | BB89: 0.05542856611 | BC89: 0.4512461005 | BD89: 0.08108205906 | BE89: 0.1177086502 | BF89: 0.1054943042 | BG89: 0.01820942469 | BH89: 0.09451337315
B90: 88 | C90: 0.4307637931 | D90: 0.3419958621 | E90: 0.19481 | F90: 0.3162775862 | G90: 0.396297931 | H90: 0.2999668966 | I90: 0.2023665517 | J90: 0.3553358621 | K90: 0.3369113793 | L90: 0.2725448276 | M90: 0.3705744828 | N90: 0.2762175862 | O90: 0.2276037931 | P90: 0.4635351724 | Q90: 0.2832168966 | R90: 0.3571117241 | S90: 0.2442855172 | T90: 0.2653372414 | U90: 0.3814737931 | V90: 0.3406296552 | W90: 0.3148413793 | X90: 0.2261406897 | Y90: 0.2450413793 | Z90: 0.1842868966 | AA90: 0.2718717241 | AB90: 0.33814 | AC90: 0.4179137003 | AH90: 0.0741495079 | AI90: 0.05540548236 | AJ90: 0 | AK90: 0.1080186582 | AL90: 0.01738068384 | AM90: 0.02688090451 | AN90: 0 | AO90: 0 | AP90: 0.3069686881 | AQ90: 0 | AR90: 0.1207437031 | AS90: 0.04700452453 | AT90: 0.0371879134 | AU90: 0.0694710372 | AV90: 0.091777274 | AW90: 0 | AX90: 0.04978849676 | AY90: 0 | AZ90: 0.04004906824 | BA90: 0 | BB90: 0 | BC90: 0.3804850121 | BD90: 0 | BE90: 0.04692095518 | BF90: 0 | BG90: 0 | BH90: 0.05762936886
B91: 89 | C91: 0.4312817241 | D91: 0.3522889655 | E91: 0.1985665517 | F91: 0.3526044828 | G91: 0.3953448276 | H91: 0.3058048276 | I91: 0.2020868966 | J91: 0.3554713793 | K91: 0.3240441379 | L91: 0.2690713793 | M91: 0.3893555172 | N91: 0.2967544828 | O91: 0.2395217241 | P91: 0.4717593103 | Q91: 0.2851448276 | R91: 0.3553303448 | S91: 0.2591662069 | T91: 0.2661344828 | U91: 0.3880196552 | V91: 0.3446358621 | W91: 0.3167044828 | X91: 0.2240465517 | Y91: 0.2494093103 | Z91: 0.2103089655 | AA91: 0.2817986207 | AB91: 0.3331048276 | AC91: 0.4194641692 | AH91: 0 | AI91: 0 | AJ91: 0 | AK91: 0 | AL91: 0 | AM91: 0 | AN91: 0 | AO91: 0 | AP91: 0.186292603 | AQ91: 0 | AR91: 0.04637897092 | AS91: 0 | AT91: 0 | AU91: 0.03809377963 | AV91: 0.0007340403645 | AW91: 0 | AX91: 0 | AY91: 0 | AZ91: 0 | BA91: 0 | BB91: 0 | BC91: 0.2575409679 | BD91: 0 | BE91: 0 | BF91: 0 | BG91: 0 | BH91: 0.01278181108
B92: 90 | C92: 0.4194303448 | D92: 0.3602351724 | E92: 0.1980796552 | F92: 0.38252 | G92: 0.3898768966 | H92: 0.3103082759 | I92: 0.1995286207 | J92: 0.3564606897 | K92: 0.3384789655 | L92: 0.2677658621 | M92: 0.3992041379 | N92: 0.3087062069 | O92: 0.2424951724 | P92: 0.4767710345 | Q92: 0.2837768966 | R92: 0.353172069 | S92: 0.2679627586 | T92: 0.2663903448 | U92: 0.3941851724 | V92: 0.3500989655 | W92: 0.3151844828 | X92: 0.2439513793 | Y92: 0.2501762069 | Z92: 0.2303772414 | AA92: 0.2735841379 | AB92: 0.3272137931 | AC92: 0.4199182194 | AH92: 0 | AI92: 0 | AJ92: 0 | AK92: 0 | AL92: 0 | AM92: 0 | AN92: 0 | AO92: 0 | AP92: 0.0277330455 | AQ92: 0 | AR92: 0 | AS92: 0 | AT92: 0 | AU92: 0 | AV92: 0 | AW92: 0 | AX92: 0 | AY92: 0 | AZ92: 0 | BA92: 0 | BB92: 0 | BC92: 0.103366804 | BD92: 0 | BE92: 0 | BF92: 0 | BG92: 0 | BH92: 0
B93: 91 | C93: 0.3998351724 | D93: 0.3648993103 | E93: 0.1978544828 | F93: 0.4030172414 | G93: 0.382957931 | H93: 0.3146155172 | I93: 0.1949803448 | J93: 0.3567168966 | K93: 0.3473772414 | L93: 0.2668782759 | M93: 0.4028851724 | N93: 0.3168144828 | O93: 0.2368234483 | P93: 0.4835610345 | Q93: 0.2764665517 | R93: 0.3517889655 | S93: 0.2728293103 | T93: 0.2673251724 | U93: 0.39919 | V93: 0.3534734483 | W93: 0.3125472414 | X93: 0.2600468966 | Y93: 0.2485537931 | Z93: 0.2485951724 | AA93: 0.2547093103 | AB93: 0.3207841379 | AC93: 0.420295685 | AH93: 0 | AI93: 0 | AJ93: 0 | AK93: 0 | AL93: 0 | AM93: 0 | AN93: 0 | AO93: 0 | AP93: 0 | AQ93: 0 | AR93: 0 | AS93: 0 | AT93: 0 | AU93: 0 | AV93: 0 | AW93: 0 | AX93: 0 | AY93: 0 | AZ93: 0 | BA93: 0 | BB93: 0 | BC93: 0 | BD93: 0 | BE93: 0 | BF93: 0 | BG93: 0 | BH93: 0
B94: 92 | C94: 0.3788931034 | D94: 0.3680413793 | E94: 0.196677931 | F94: 0.407347931 | G94: 0.3756327586 | H94: 0.3219562069 | I94: 0.1897696552 | J94: 0.3580141379 | K94: 0.34922 | L94: 0.2652106897 | M94: 0.4027831034 | N94: 0.3156937931 | O94: 0.2277872414 | P94: 0.4916434483 | Q94: 0.2695506897 | R94: 0.35254 | S94: 0.2764296552 | T94: 0.2693855172 | U94: 0.4015472414 | V94: 0.3568275862 | W94: 0.310342069 | X94: 0.2696627586 | Y94: 0.2441727586 | Z94: 0.2647006897 | AA94: 0.2324544828 | AB94: 0.3128644828 | AC94: 0.422226654 | AH94: 0 | AI94: 0 | AJ94: 0 | AK94: 0 | AL94: 0 | AM94: 0 | AN94: 0 | AO94: 0 | AP94: 0 | AQ94: 0 | AR94: 0 | AS94: 0 | AT94: 0 | AU94: 0 | AV94: 0 | AW94: 0 | AX94: 0 | AY94: 0 | AZ94: 0 | BA94: 0 | BB94: 0 | BC94: 0 | BD94: 0 | BE94: 0 | BF94: 0 | BG94: 0 | BH94: 0
B95: 93 | C95: 0.3598506897 | D95: 0.3683265517 | E95: 0.1972068966 | F95: 0.4166341379 | G95: 0.368772069 | H95: 0.3305031034 | I95: 0.1854551724 | J95: 0.3600689655 | K95: 0.3496596552 | L95: 0.2625203448 | M95: 0.3998341379 | N95: 0.3152334483 | O95: 0.2152410345 | P95: 0.4977689655 | Q95: 0.2643817241 | R95: 0.3539803448 | S95: 0.2802606897 | T95: 0.2671882759 | U95: 0.4025665517 | V95: 0.3624624138 | W95: 0.3084241379 | X95: 0.281087931 | Y95: 0.2395337931 | Z95: 0.2724641379 | AA95: 0.2173013793 | AB95: 0.3036972414 | AC95: 0.4255230922 | AH95: 0 | AI95: 0 | AJ95: 0 | AK95: 0 | AL95: 0 | AM95: 0 | AN95: 0 | AO95: 0 | AP95: 0 | AQ95: 0 | AR95: 0 | AS95: 0 | AT95: 0 | AU95: 0 | AV95: 0 | AW95: 0 | AX95: 0 | AY95: 0 | AZ95: 0 | BA95: 0 | BB95: 0 | BC95: 0 | BD95: 0 | BE95: 0 | BF95: 0 | BG95: 0 | BH95: 0
B96: 94 | C96: 0.3471558621 | D96: 0.3673751724 | E96: 0.1980913793 | F96: 0.4100448276 | G96: 0.3716837931 | H96: 0.3405875862 | I96: 0.1828327586 | J96: 0.3611234483 | K96: 0.3491286207 | L96: 0.260212069 | M96: 0.3936765517 | N96: 0.3169306897 | O96: 0.2028265517 | P96: 0.5012103448 | Q96: 0.2599941379 | R96: 0.3544351724 | S96: 0.2808496552 | T96: 0.2614896552 | U96: 0.4044062069 | V96: 0.3613348276 | W96: 0.3087410345 | X96: 0.2944841379 | Y96: 0.2314748276 | Z96: 0.2728013793 | AA96: 0.2008006897 | AB96: 0.2939503448 | AC96: 0.4287458056 | AH96: 0 | AI96: 0 | AJ96: 0 | AK96: 0 | AL96: 0 | AM96: 0 | AN96: 0 | AO96: 0 | AP96: 0 | AQ96: 0 | AR96: 0 | AS96: 0 | AT96: 0 | AU96: 0 | AV96: 0 | AW96: 0 | AX96: 0 | AY96: 0 | AZ96: 0 | BA96: 0 | BB96: 0 | BC96: 0 | BD96: 0 | BE96: 0 | BF96: 0 | BG96: 0 | BH96: 0
B97: 95 | C97: 0.3298603448 | D97: 0.3691155172 | E97: 0.2027806897 | F97: 0.3987037931 | G97: 0.3758786207 | H97: 0.3474282759 | I97: 0.181427931 | J97: 0.3578658621 | K97: 0.3523689655 | L97: 0.2576903448 | M97: 0.3883306897 | N97: 0.3221941379 | O97: 0.1958037931 | P97: 0.5035868966 | Q97: 0.2580334483 | R97: 0.3525831034 | S97: 0.27851 | T97: 0.2548744828 | U97: 0.4063831034 | V97: 0.3588793103 | W97: 0.3107893103 | X97: 0.3045789655 | Y97: 0.2270058621 | Z97: 0.2697834483 | AA97: 0.1935044828 | AB97: 0.2848196552 | AC97: 0.4313361932 | AH97: 0 | AI97: 0 | AJ97: 0 | AK97: 0 | AL97: 0 | AM97: 0 | AN97: 0 | AO97: 0 | AP97: 0 | AQ97: 0 | AR97: 0 | AS97: 0 | AT97: 0 | AU97: 0 | AV97: 0 | AW97: 0 | AX97: 0 | AY97: 0 | AZ97: 0 | BA97: 0 | BB97: 0 | BC97: 0 | BD97: 0 | BE97: 0 | BF97: 0 | BG97: 0 | BH97: 0
B98: 96 | C98: 0.3101772414 | D98: 0.3713768966 | E98: 0.2089906897 | F98: 0.3905851724 | G98: 0.3771472414 | H98: 0.3517837931 | I98: 0.1807031034 | J98: 0.3525768966 | K98: 0.3576610345 | L98: 0.2555803448 | M98: 0.3842075862 | N98: 0.3237506897 | O98: 0.1914593103 | P98: 0.5042324138 | Q98: 0.2581734483 | R98: 0.3484017241 | S98: 0.2766413793 | T98: 0.2489875862 | U98: 0.4045237931 | V98: 0.3537968966 | W98: 0.3146072414 | X98: 0.3118555172 | Y98: 0.227652069 | Z98: 0.2632851724 | AA98: 0.1883513793 | AB98: 0.2759303448 | AC98: 0.4329845542 | AH98: 0 | AI98: 0 | AJ98: 0 | AK98: 0 | AL98: 0 | AM98: 0 | AN98: 0 | AO98: 0 | AP98: 0 | AQ98: 0 | AR98: 0 | AS98: 0 | AT98: 0 | AU98: 0 | AV98: 0 | AW98: 0 | AX98: 0 | AY98: 0 | AZ98: 0 | BA98: 0 | BB98: 0 | BC98: 0 | BD98: 0 | BE98: 0 | BF98: 0 | BG98: 0 | BH98: 0
B99: 97 | C99: 0.2998955172 | D99: 0.3692348276 | E99: 0.2153593103 | F99: 0.3837693103 | G99: 0.3802237931 | H99: 0.3532041379 | I99: 0.1800703448 | J99: 0.3440382759 | K99: 0.3649431034 | L99: 0.2532213793 | M99: 0.379732069 | N99: 0.3265355172 | O99: 0.1861913793 | P99: 0.5002968966 | Q99: 0.258327931 | R99: 0.3402696552 | S99: 0.2754172414 | T99: 0.2393348276 | U99: 0.3943665517 | V99: 0.3502727586 | W99: 0.317852069 | X99: 0.3166624138 | Y99: 0.2324362069 | Z99: 0.2611951724 | AA99: 0.1830389655 | AB99: 0.2695313793 | AC99: 0.4331771077 | AH99: 0 | AI99: 0 | AJ99: 0 | AK99: 0 | AL99: 0 | AM99: 0 | AN99: 0 | AO99: 0 | AP99: 0 | AQ99: 0 | AR99: 0 | AS99: 0 | AT99: 0 | AU99: 0 | AV99: 0 | AW99: 0 | AX99: 0 | AY99: 0 | AZ99: 0 | BA99: 0 | BB99: 0 | BC99: 0 | BD99: 0 | BE99: 0 | BF99: 0 | BG99: 0 | BH99: 0
B100: 98 | C100: 0.294127931 | D100: 0.3643406897 | E100: 0.2218155172 | F100: 0.3891768966 | G100: 0.3865058621 | H100: 0.3531224138 | I100: 0.1818765517 | J100: 0.3380206897 | K100: 0.3703993103 | L100: 0.2518482759 | M100: 0.37487 | N100: 0.3270041379 | O100: 0.1872051724 | P100: 0.4927641379 | Q100: 0.2570896552 | R100: 0.33167 | S100: 0.2698824138 | T100: 0.229812069 | U100: 0.384977931 | V100: 0.3420396552 | W100: 0.3224372414 | X100: 0.3185496552 | Y100: 0.2393965517 | Z100: 0.2569127586 | AA100: 0.1767951724 | AB100: 0.2633703448 | AC100: 0.4306574975 | AH100: 0 | AI100: 0 | AJ100: 0 | AK100: 0 | AL100: 0 | AM100: 0 | AN100: 0 | AO100: 0 | AP100: 0 | AQ100: 0 | AR100: 0 | AS100: 0 | AT100: 0 | AU100: 0 | AV100: 0 | AW100: 0 | AX100: 0 | AY100: 0 | AZ100: 0 | BA100: 0 | BB100: 0 | BC100: 0 | BD100: 0 | BE100: 0 | BF100: 0 | BG100: 0 | BH100: 0
B101: 99 | C101: 0.3006824138 | D101: 0.36016 | E101: 0.2292403448 | F101: 0.3963658621 | G101: 0.3963910345 | H101: 0.3514655172 | I101: 0.1864434483 | J101: 0.33485 | K101: 0.3739217241 | L101: 0.2521948276 | M101: 0.3711275862 | N101: 0.3268903448 | O101: 0.1934813793 | P101: 0.4838296552 | Q101: 0.2551834483 | R101: 0.3241624138 | S101: 0.2596231034 | T101: 0.2197755172 | U101: 0.3837006897 | V101: 0.3336058621 | W101: 0.3255865517 | X101: 0.3186944828 | Y101: 0.2456017241 | Z101: 0.2510493103 | AA101: 0.1732089655 | AB101: 0.2590644828 | AC101: 0.4251913634 | AH101: 0 | AI101: 0 | AJ101: 0 | AK101: 0 | AL101: 0 | AM101: 0 | AN101: 0 | AO101: 0 | AP101: 0 | AQ101: 0 | AR101: 0 | AS101: 0 | AT101: 0 | AU101: 0 | AV101: 0 | AW101: 0 | AX101: 0 | AY101: 0 | AZ101: 0 | BA101: 0 | BB101: 0 | BC101: 0 | BD101: 0 | BE101: 0 | BF101: 0 | BG101: 0 | BH101: 0
B102: 100 | C102: 0.2979086207 | D102: 0.3574917241 | E102: 0.2359296552 | F102: 0.386902069 | G102: 0.3999158621 | H102: 0.3484727586 | I102: 0.19534 | J102: 0.3263003448 | K102: 0.3709351724 | L102: 0.2525658621 | M102: 0.3692262069 | N102: 0.3244041379 | O102: 0.1904889655 | P102: 0.4743793103 | Q102: 0.25474 | R102: 0.3158644828 | S102: 0.2479137931 | T102: 0.2148541379 | U102: 0.3834089655 | V102: 0.3349251724 | W102: 0.3251537931 | X102: 0.3179313793 | Y102: 0.2484748276 | Z102: 0.2444255172 | AA102: 0.1621062069 | AB102: 0.2575362069 | AC102: 0.4184747028 | AH102: 0 | AI102: 0 | AJ102: 0 | AK102: 0 | AL102: 0 | AM102: 0 | AN102: 0 | AO102: 0 | AP102: 0 | AQ102: 0 | AR102: 0 | AS102: 0 | AT102: 0 | AU102: 0 | AV102: 0 | AW102: 0 | AX102: 0 | AY102: 0 | AZ102: 0 | BA102: 0 | BB102: 0 | BC102: 0 | BD102: 0 | BE102: 0 | BF102: 0 | BG102: 0 | BH102: 0
B103: 101 | C103: 0.2939582759 | D103: 0.3556806897 | E103: 0.2437031034 | F103: 0.3835013793 | G103: 0.4068096552 | H103: 0.3453096552 | I103: 0.2062965517 | J103: 0.3191182759 | K103: 0.371202069 | L103: 0.2538762069 | M103: 0.3703793103 | N103: 0.3243131034 | O103: 0.1837093103 | P103: 0.4672603448 | Q103: 0.2534686207 | R103: 0.3098668966 | S103: 0.2381324138 | T103: 0.211237931 | U103: 0.3827003448 | V103: 0.3365489655 | W103: 0.3246948276 | X103: 0.3214758621 | Y103: 0.2488686207 | Z103: 0.2396427586 | AA103: 0.1533548276 | AB103: 0.2579917241 | AC103: 0.4102888081 | AH103: 0 | AI103: 0 | AJ103: 0 | AK103: 0 | AL103: 0 | AM103: 0 | AN103: 0 | AO103: 0 | AP103: 0 | AQ103: 0 | AR103: 0 | AS103: 0 | AT103: 0 | AU103: 0 | AV103: 0 | AW103: 0 | AX103: 0 | AY103: 0 | AZ103: 0 | BA103: 0 | BB103: 0 | BC103: 0 | BD103: 0 | BE103: 0 | BF103: 0 | BG103: 0 | BH103: 0
B104: 102 | C104: 0.2967610345 | D104: 0.3551296552 | E104: 0.2497044828 | F104: 0.3811482759 | G104: 0.4121927586 | H104: 0.3429910345 | I104: 0.2184917241 | J104: 0.3118386207 | K104: 0.3727906897 | L104: 0.2567768966 | M104: 0.3734903448 | N104: 0.3250251724 | O104: 0.1810831034 | P104: 0.4651562069 | Q104: 0.2520896552 | R104: 0.3075241379 | S104: 0.23101 | T104: 0.20871 | U104: 0.3831193103 | V104: 0.34003 | W104: 0.3253258621 | X104: 0.3264548276 | Y104: 0.247742069 | Z104: 0.2341844828 | AA104: 0.1538065517 | AB104: 0.2612348276 | AC104: 0.4004195784 | AH104: 0 | AI104: 0 | AJ104: 0 | AK104: 0 | AL104: 0 | AM104: 0 | AN104: 0 | AO104: 0 | AP104: 0 | AQ104: 0 | AR104: 0 | AS104: 0 | AT104: 0 | AU104: 0 | AV104: 0 | AW104: 0 | AX104: 0 | AY104: 0 | AZ104: 0 | BA104: 0 | BB104: 0 | BC104: 0 | BD104: 0 | BE104: 0 | BF104: 0 | BG104: 0 | BH104: 0
B105: 103 | C105: 0.3077203448 | D105: 0.3607617241 | E105: 0.2512275862 | F105: 0.3751506897 | G105: 0.419422069 | H105: 0.34094 | I105: 0.2283410345 | J105: 0.3047893103 | K105: 0.3747796552 | L105: 0.2570389655 | M105: 0.3762955172 | N105: 0.3263248276 | O105: 0.1767948276 | P105: 0.46839 | Q105: 0.250632069 | R105: 0.306927931 | S105: 0.2352172414 | T105: 0.2115175862 | U105: 0.3803082759 | V105: 0.3466089655 | W105: 0.3247617241 | X105: 0.3288968966 | Y105: 0.2455731034 | Z105: 0.2281986207 | AA105: 0.1550675862 | AB105: 0.2682134483 | AC105: 0.3916287783 | AH105: 0 | AI105: 0 | AJ105: 0.007543070125 | AK105: 0 | AL105: 0 | AM105: 0 | AN105: 0 | AO105: 0 | AP105: 0 | AQ105: 0 | AR105: 0 | AS105: 0 | AT105: 0 | AU105: 0 | AV105: 0 | AW105: 0 | AX105: 0 | AY105: 0 | AZ105: 0 | BA105: 0 | BB105: 0 | BC105: 0 | BD105: 0.008309742809 | BE105: 0 | BF105: 0 | BG105: 0 | BH105: 0
B106: 104 | C106: 0.3155044828 | D106: 0.3705844828 | E106: 0.2436762069 | F106: 0.3700431034 | G106: 0.4230872414 | H106: 0.3381031034 | I106: 0.2355962069 | J106: 0.3006775862 | K106: 0.3788575862 | L106: 0.2539844828 | M106: 0.3794403448 | N106: 0.3220693103 | O106: 0.1675431034 | P106: 0.4733237931 | Q106: 0.2442496552 | R106: 0.30422 | S106: 0.2471137931 | T106: 0.2092634483 | U106: 0.3757841379 | V106: 0.3553296552 | W106: 0.3218931034 | X106: 0.330577931 | Y106: 0.2364551724 | Z106: 0.2120206897 | AA106: 0.1525458621 | AB106: 0.2782510345 | AC106: 0.3849782012 | AH106: 0.01034422915 | AI106: 0 | AJ106: 0.1020579086 | AK106: 0.004332494938 | AL106: 0.008047089179 | AM106: 0.00119398205 | AN106: 0 | AO106: 0.006834882725 | AP106: 0 | AQ106: 0 | AR106: 0 | AS106: 0.02634226236 | AT106: 0.04289041299 | AU106: 0 | AV106: 0.02368469006 | AW106: 0.009868937711 | AX106: 0 | AY106: 0.009243873307 | AZ106: 0 | BA106: 0 | BB106: 0.01650041435 | BC106: 0 | BD106: 0.09127654466 | BE106: 0.007379027449 | BF106: 0.02756390824 | BG106: 0 | BH106: 0
B107: 105 | C107: 0.3143596552 | D107: 0.3762658621 | E107: 0.2371934483 | F107: 0.3467889655 | G107: 0.4082486207 | H107: 0.3311 | I107: 0.2389296552 | J107: 0.2969455172 | K107: 0.3703331034 | L107: 0.2465517241 | M107: 0.3781517241 | N107: 0.3046886207 | O107: 0.1513406897 | P107: 0.4794234483 | Q107: 0.2392586207 | R107: 0.29575 | S107: 0.2525231034 | T107: 0.2059862069 | U107: 0.372347931 | V107: 0.3605386207 | W107: 0.3143944828 | X107: 0.3279851724 | Y107: 0.2319937931 | Z107: 0.1751096552 | AA107: 0.1435372414 | AB107: 0.2878406897 | AC107: 0.3817380446 | AH107: 0.1243784909 | AI107: 0.004989714731 | AJ107: 0.2029470055 | AK107: 0.08975368942 | AL107: 0.08506506629 | AM107: 0.02820040429 | AN107: 0.01226805439 | AO107: 0.02800953489 | AP107: 0.06854164543 | AQ107: 0.006029913218 | AR107: 0.0447949288 | AS107: 0.1157699996 | AT107: 0.1586828881 | AU107: 0 | AV107: 0.1331926275 | AW107: 0.04228918539 | AX107: 0.0101545888 | AY107: 0.03689863605 | AZ107: 0.002742068662 | BA107: 0 | BB107: 0.0716674907 | BC107: 0.00866969288 | BD107: 0.1878584987 | BE107: 0.09845210364 | BF107: 0.1344393382 | BG107: 0.008152394585 | BH107: 0.004186969146
B108: 106 | C108: 0.3110548276 | D108: 0.3743448276 | E108: 0.2348658621 | F108: 0.3165944828 | G108: 0.3880551724 | H108: 0.3234586207 | I108: 0.2389124138 | J108: 0.2924972414 | K108: 0.3489941379 | L108: 0.2341706897 | M108: 0.3691889655 | N108: 0.2847575862 | O108: 0.1509375862 | P108: 0.4806668966 | Q108: 0.2473003448 | R108: 0.288887931 | S108: 0.2533741379 | T108: 0.2032244828 | U108: 0.3688837931 | V108: 0.3630103448 | W108: 0.3086096552 | X108: 0.3133693103 | Y108: 0.2388124138 | Z108: 0.1527582759 | AA108: 0.1395951724 | AB108: 0.2903255172 | AC108: 0.3780513476 | AH108: 0.2063869464 | AI108: 0.07300387325 | AJ108: 0.2659334974 | AK108: 0.1867835401 | AL108: 0.1622149517 | AM108: 0.08711760169 | AN108: 0.06282047669 | AO108: 0.04685510776 | AP108: 0.2232213759 | AQ108: 0.02440278504 | AR108: 0.1278773883 | AS108: 0.1970734253 | AT108: 0.2297192409 | AU108: 0.006194295145 | AV108: 0.2360274821 | AW108: 0.06852084957 | AX108: 0.08448854708 | AY108: 0.05488646119 | AZ108: 0.0771381517 | BA108: 0.01708720382 | BB108: 0.1147954534 | BC108: 0.1879185757 | BD108: 0.2473526864 | BE108: 0.1784876614 | BF108: 0.2019600323 | BG108: 0.03384215041 | BH108: 0.03497481198
B109: 107 | C109: 0.327187931 | D109: 0.3704548276 | E109: 0.2325424138 | F109: 0.3026255172 | G109: 0.3830410345 | H109: 0.3215510345 | I109: 0.2358341379 | J109: 0.2939444828 | K109: 0.3602793103 | L109: 0.2235631034 | M109: 0.3695048276 | N109: 0.2700651724 | O109: 0.1643144828 | P109: 0.480857931 | Q109: 0.2548189655 | R109: 0.288202069 | S109: 0.2584217241 | T109: 0.2051296552 | U109: 0.367047931 | V109: 0.3673044828 | W109: 0.3106196552 | X109: 0.3056865517 | Y109: 0.248787931 | Z109: 0.1515334483 | AA109: 0.1506 | AB109: 0.2925268966 | AC109: 0.3766174368 | AH109: 0.2426357754 | AI109: 0.1117934591 | AJ109: 0.285593507 | AK109: 0.2322812722 | AL109: 0.1842854374 | AM109: 0.1165276649 | AN109: 0.1090248041 | AO109: 0.0514401076 | AP109: 0.3275872853 | AQ109: 0.03431468519 | AR109: 0.1882873337 | AS109: 0.2464581396 | AT109: 0.2504088096 | AU109: 0.04674338841 | AV109: 0.3008210752 | AW109: 0.07046251143 | AX109: 0.1094767934 | AY109: 0.05947630331 | AZ109: 0.1269982127 | BA109: 0.02594457182 | BB109: 0.1293973102 | BC109: 0.3229116733 | BD109: 0.258477997 | BE109: 0.216279501 | BF109: 0.2196843661 | BG109: 0.05098820711 | BH109: 0.08083956532
B110: 108 | C110: 0.3386493103 | D110: 0.3706693103 | E110: 0.2321582759 | F110: 0.3107506897 | G110: 0.3822513793 | H110: 0.3236917241 | I110: 0.2302913793 | J110: 0.2961396552 | K110: 0.3861793103 | L110: 0.2195282759 | M110: 0.3775865517 | N110: 0.2520472414 | O110: 0.1676627586 | P110: 0.4840393103 | Q110: 0.2565782759 | R110: 0.2947593103 | S110: 0.2662165517 | T110: 0.2118093103 | U110: 0.3690175862 | V110: 0.3681110345 | W110: 0.3175817241 | X110: 0.3061248276 | Y110: 0.2523827586 | Z110: 0.1460606897 | AA110: 0.1561082759 | AB110: 0.29884 | AC110: 0.3793052581 | AH110: 0.2721181507 | AI110: 0.135316035 | AJ110: 0.2734132537 | AK110: 0.262052277 | AL110: 0.2129443014 | AM110: 0.1428012203 | AN110: 0.1286628717 | AO110: 0.04276983584 | AP110: 0.3970184749 | AQ110: 0.02921865977 | AR110: 0.2342832375 | AS110: 0.2606138271 | AT110: 0.2625295157 | AU110: 0.08499152018 | AV110: 0.3310834622 | AW110: 0.06244340446 | AX110: 0.1356499502 | AY110: 0.05035488225 | AZ110: 0.1594860762 | BA110: 0.02978173638 | BB110: 0.1407440938 | BC110: 0.4236698974 | BD110: 0.256919821 | BE110: 0.2357506517 | BF110: 0.2398870459 | BG110: 0.06090477802 | BH110: 0.1190595811
B111: 109 | C111: 0.3476137931 | D111: 0.3718596552 | E111: 0.2322006897 | F111: 0.331507931 | G111: 0.379032069 | H111: 0.3254224138 | I111: 0.2229010345 | J111: 0.2986241379 | K111: 0.4132944828 | L111: 0.2203931034 | M111: 0.3842544828 | N111: 0.23236 | O111: 0.1668813793 | P111: 0.4923268966 | Q111: 0.2576482759 | R111: 0.3042748276 | S111: 0.2721472414 | T111: 0.2156034483 | U111: 0.3732537931 | V111: 0.367572069 | W111: 0.3236217241 | X111: 0.3141396552 | Y111: 0.2519434483 | Z111: 0.1405896552 | AA111: 0.163427931 | AB111: 0.3067989655 | AC111: 0.3848572769 | AH111: 0.2688215221 | AI111: 0.1305843114 | AJ111: 0.2702010077 | AK111: 0.2636974171 | AL111: 0.1993410411 | AM111: 0.1486787195 | AN111: 0.124904025 | AO111: 0.03623070904 | AP111: 0.4295526407 | AQ111: 0.03589284683 | AR111: 0.2470439924 | AS111: 0.2616617438 | AT111: 0.260088681 | AU111: 0.1210777504 | AV111: 0.3339430186 | AW111: 0.05431483061 | AX111: 0.132895902 | AY111: 0.04015353754 | AZ111: 0.1414023624 | BA111: 0.02925874211 | BB111: 0.1254273784 | BC111: 0.4819858504 | BD111: 0.2453510837 | BE111: 0.2507244126 | BF111: 0.2252113789 | BG111: 0.05459365123 | BH111: 0.144991636
B112: 110 | C112: 0.3506541379 | D112: 0.3698431034 | E112: 0.2338113793 | F112: 0.3467248276 | G112: 0.3787782759 | H112: 0.33087 | I112: 0.2179558621 | J112: 0.3012258621 | K112: 0.4254551724 | L112: 0.2231096552 | M112: 0.3845948276 | N112: 0.2149644828 | O112: 0.1654462069 | P112: 0.4988817241 | Q112: 0.2507572414 | R112: 0.3155903448 | S112: 0.2775175862 | T112: 0.2171427586 | U112: 0.3765575862 | V112: 0.3667006897 | W112: 0.3319406897 | X112: 0.318447931 | Y112: 0.2550282759 | Z112: 0.129457931 | AA112: 0.1722658621 | AB112: 0.3170344828 | AC112: 0.3909149774 | AH112: 0.2265382762 | AI112: 0.1239671933 | AJ112: 0.1985724371 | AK112: 0.2311774793 | AL112: 0.1486399246 | AM112: 0.1188507154 | AN112: 0.09675186744 | AO112: 0.02964298602 | AP112: 0.4310656184 | AQ112: 0.01149243098 | AR112: 0.2299594848 | AS112: 0.1976301184 | AT112: 0.2018578275 | AU112: 0.1163664625 | AV112: 0.281005297 | AW112: 0.03764311836 | AX112: 0.1150362693 | AY112: 0.03194529247 | AZ112: 0.1311397847 | BA112: 0.02829021317 | BB112: 0.08686777745 | BC112: 0.4791890993 | BD112: 0.1766380855 | BE112: 0.2069772053 | BF112: 0.1718006229 | BG112: 0.03840598394 | BH112: 0.1373432464
B113: 111 | C113: 0.3577444828 | D113: 0.3643858621 | E113: 0.2446513793 | F113: 0.3512006897 | G113: 0.3917134483 | H113: 0.3424341379 | I113: 0.2175051724 | J113: 0.3066489655 | K113: 0.423357931 | L113: 0.2283882759 | M113: 0.3826075862 | N113: 0.1942351724 | O113: 0.1696903448 | P113: 0.5021865517 | Q113: 0.2328548276 | R113: 0.324657931 | S113: 0.2808862069 | T113: 0.2246682759 | U113: 0.3761382759 | V113: 0.3658803448 | W113: 0.3448003448 | X113: 0.31192 | Y113: 0.2712534483 | Z113: 0.1233231034 | AA113: 0.1856582759 | AB113: 0.3268772414 | AC113: 0.3973526978 | AH113: 0.158458205 | AI113: 0.09207975003 | AJ113: 0.1098552737 | AK113: 0.1793449175 | AL113: 0.09452105675 | AM113: 0.08242838717 | AN113: 0.04804223919 | AO113: 0 | AP113: 0.3745486633 | AQ113: 0 | AR113: 0.1780037062 | AS113: 0.1290345059 | AT113: 0.1289092912 | AU113: 0.09988927909 | AV113: 0.2017663008 | AW113: 0 | AX113: 0.08769995354 | AY113: 0 | AZ113: 0.08847446332 | BA113: 0.01924157358 | BB113: 0.05273853967 | BC113: 0.4271406406 | BD113: 0.09593497946 | BE113: 0.1390145609 | BF113: 0.1131043962 | BG113: 0.02109996967 | BH113: 0.1120778492
B114: 112 | C114: 0.3692886207 | D114: 0.3587224138 | E114: 0.2628693103 | F114: 0.3615182759 | G114: 0.4147851724 | H114: 0.3557686207 | I114: 0.2184975862 | J114: 0.310017931 | K114: 0.4027875862 | L114: 0.2318448276 | M114: 0.3852503448 | N114: 0.1997010345 | O114: 0.1754265517 | P114: 0.5049855172 | Q114: 0.2252903448 | R114: 0.3279327586 | S114: 0.2830831034 | T114: 0.22973 | U114: 0.3735 | V114: 0.3636234483 | W114: 0.3542889655 | X114: 0.2986668966 | Y114: 0.2862689655 | Z114: 0.1267158621 | AA114: 0.200592069 | AB114: 0.3323875862 | AC114: 0.4047556516 | AH114: 0.08506570724 | AI114: 0.04678007247 | AJ114: 0 | AK114: 0.1019310948 | AL114: 0.02105274343 | AM114: 0.02640958703 | AN114: 0 | AO114: 0 | AP114: 0.2946728708 | AQ114: 0 | AR114: 0.1146023845 | AS114: 0.04997355147 | AT114: 0.0434308423 | AU114: 0.06927117963 | AV114: 0.09761738496 | AW114: 0 | AX114: 0.05166450067 | AY114: 0 | AZ114: 0.03197868881 | BA114: 0 | BB114: 0 | BC114: 0.3618511154 | BD114: 0 | BE114: 0.04781731494 | BF114: 0 | BG114: 0 | BH114: 0.06885894408
B115: 113 | C115: 0.3796627586 | D115: 0.3543682759 | E115: 0.2757606897 | F115: 0.3792582759 | G115: 0.4364848276 | H115: 0.3646044828 | I115: 0.2179717241 | J115: 0.3130124138 | K115: 0.3996537931 | L115: 0.2343865517 | M115: 0.3930686207 | N115: 0.2145096552 | O115: 0.1827965517 | P115: 0.5086427586 | Q115: 0.2305048276 | R115: 0.3281206897 | S115: 0.2815668966 | T115: 0.2268237931 | U115: 0.3718958621 | V115: 0.3619327586 | W115: 0.3561931034 | X115: 0.2957627586 | Y115: 0.2938568966 | Z115: 0.1463496552 | AA115: 0.2139717241 | AB115: 0.3353344828 | AC115: 0.4151582015 | AH115: 0 | AI115: 0 | AJ115: 0 | AK115: 0 | AL115: 0 | AM115: 0 | AN115: 0 | AO115: 0 | AP115: 0.1822366967 | AQ115: 0 | AR115: 0.04804698769 | AS115: 0 | AT115: 0 | AU115: 0.0360563068 | AV115: 0.001333915602 | AW115: 0 | AX115: 0 | AY115: 0 | AZ115: 0 | BA115: 0 | BB115: 0 | BC115: 0.2636652053 | BD115: 0 | BE115: 0 | BF115: 0 | BG115: 0 | BH115: 0.0151811373
B116: 114 | C116: 0.3904155172 | D116: 0.3491875862 | E116: 0.280292069 | F116: 0.3877065517 | G116: 0.4503841379 | H116: 0.3705631034 | I116: 0.216762069 | J116: 0.3096148276 | K116: 0.4150306897 | L116: 0.2387996552 | M116: 0.3963293103 | N116: 0.2284106897 | O116: 0.1960572414 | P116: 0.5097893103 | Q116: 0.2347682759 | R116: 0.3260758621 | S116: 0.2802255172 | T116: 0.2221093103 | U116: 0.3690713793 | V116: 0.3603341379 | W116: 0.3535168966 | X116: 0.3023341379 | Y116: 0.2927668966 | Z116: 0.1582813793 | AA116: 0.2263834483 | AB116: 0.3365562069 | AC116: 0.4250069097 | AH116: 0 | AI116: 0 | AJ116: 0 | AK116: 0 | AL116: 0 | AM116: 0 | AN116: 0 | AO116: 0 | AP116: 0.02687453048 | AQ116: 0 | AR116: 0 | AS116: 0 | AT116: 0 | AU116: 0 | AV116: 0 | AW116: 0 | AX116: 0 | AY116: 0 | AZ116: 0 | BA116: 0 | BB116: 0 | BC116: 0.09880647821 | BD116: 0 | BE116: 0 | BF116: 0 | BG116: 0 | BH116: 0
B117: 115 | C117: 0.3982917241 | D117: 0.3430875862 | E117: 0.2763334483 | F117: 0.3925382759 | G117: 0.46404 | H117: 0.3733672414 | I117: 0.2150072414 | J117: 0.3082834483 | K117: 0.4207713793 | L117: 0.2447868966 | M117: 0.3962055172 | N117: 0.2479327586 | O117: 0.2073344828 | P117: 0.5080265517 | Q117: 0.2384289655 | R117: 0.3250775862 | S117: 0.2734234483 | T117: 0.2244051724 | U117: 0.366272069 | V117: 0.3608175862 | W117: 0.3500189655 | X117: 0.3062696552 | Y117: 0.2861186207 | Z117: 0.1683610345 | AA117: 0.2419782759 | AB117: 0.3355151724 | AC117: 0.4334052024 | AH117: 0 | AI117: 0 | AJ117: 0 | AK117: 0 | AL117: 0 | AM117: 0 | AN117: 0 | AO117: 0 | AP117: 0 | AQ117: 0 | AR117: 0 | AS117: 0 | AT117: 0 | AU117: 0 | AV117: 0 | AW117: 0 | AX117: 0 | AY117: 0 | AZ117: 0 | BA117: 0 | BB117: 0 | BC117: 0 | BD117: 0 | BE117: 0 | BF117: 0 | BG117: 0 | BH117: 0
B118: 116 | C118: 0.4119093103 | D118: 0.3353251724 | E118: 0.2695868966 | F118: 0.3970286207 | G118: 0.4721562069 | H118: 0.3737172414 | I118: 0.21485 | J118: 0.3073586207 | K118: 0.4173686207 | L118: 0.2510382759 | M118: 0.3964151724 | N118: 0.2611386207 | O118: 0.2196955172 | P118: 0.5051562069 | Q118: 0.2427093103 | R118: 0.3206606897 | S118: 0.2624624138 | T118: 0.2253113793 | U118: 0.3639051724 | V118: 0.3601313793 | W118: 0.3473562069 | X118: 0.3065451724 | Y118: 0.2775841379 | Z118: 0.181507931 | AA118: 0.2582344828 | AB118: 0.3360744828 | AC118: 0.4385098515 | AH118: 0 | AI118: 0 | AJ118: 0 | AK118: 0 | AL118: 0 | AM118: 0 | AN118: 0 | AO118: 0 | AP118: 0 | AQ118: 0 | AR118: 0 | AS118: 0 | AT118: 0 | AU118: 0 | AV118: 0 | AW118: 0 | AX118: 0 | AY118: 0 | AZ118: 0 | BA118: 0 | BB118: 0 | BC118: 0 | BD118: 0 | BE118: 0 | BF118: 0 | BG118: 0 | BH118: 0
B119: 117 | C119: 0.4260586207 | D119: 0.3284082759 | E119: 0.2633841379 | F119: 0.4047289655 | G119: 0.4714206897 | H119: 0.3723782759 | I119: 0.2163286207 | J119: 0.3053234483 | K119: 0.4161837931 | L119: 0.2583172414 | M119: 0.396232069 | N119: 0.2636341379 | O119: 0.2317124138 | P119: 0.5004265517 | Q119: 0.2486662069 | R119: 0.3142975862 | S119: 0.2510127586 | T119: 0.2253075862 | U119: 0.3684110345 | V119: 0.3583962069 | W119: 0.3468562069 | X119: 0.309057931 | Y119: 0.2685555172 | Z119: 0.194592069 | AA119: 0.2800844828 | AB119: 0.3355086207 | AC119: 0.4413826943 | AH119: 0 | AI119: 0 | AJ119: 0 | AK119: 0 | AL119: 0 | AM119: 0 | AN119: 0 | AO119: 0 | AP119: 0 | AQ119: 0 | AR119: 0 | AS119: 0 | AT119: 0 | AU119: 0 | AV119: 0 | AW119: 0 | AX119: 0 | AY119: 0 | AZ119: 0 | BA119: 0 | BB119: 0 | BC119: 0 | BD119: 0 | BE119: 0 | BF119: 0 | BG119: 0 | BH119: 0
B120: 118 | C120: 0.4382648276 | D120: 0.3273 | E120: 0.2531975862 | F120: 0.4089396552 | G120: 0.475732069 | H120: 0.3725103448 | I120: 0.2183168966 | J120: 0.3077568966 | K120: 0.4135362069 | L120: 0.2672124138 | M120: 0.3971441379 | N120: 0.2673558621 | O120: 0.2421903448 | P120: 0.4891041379 | Q120: 0.2499506897 | R120: 0.3051258621 | S120: 0.2424037931 | T120: 0.2175058621 | U120: 0.37167 | V120: 0.3569775862 | W120: 0.3485658621 | X120: 0.3102693103 | Y120: 0.257752069 | Z120: 0.2044837931 | AA120: 0.28372 | AB120: 0.3391589655 | AC120: 0.4433677833 | AH120: 0 | AI120: 0 | AJ120: 0 | AK120: 0 | AL120: 0 | AM120: 0 | AN120: 0 | AO120: 0 | AP120: 0 | AQ120: 0 | AR120: 0 | AS120: 0 | AT120: 0 | AU120: 0 | AV120: 0 | AW120: 0 | AX120: 0 | AY120: 0 | AZ120: 0 | BA120: 0 | BB120: 0 | BC120: 0 | BD120: 0 | BE120: 0 | BF120: 0 | BG120: 0 | BH120: 0
B121: 119 | C121: 0.4514831034 | D121: 0.3270182759 | E121: 0.2461668966 | F121: 0.4049951724 | G121: 0.4787713793 | H121: 0.3719824138 | I121: 0.2185444828 | J121: 0.3115868966 | K121: 0.4126841379 | L121: 0.274582069 | M121: 0.395812069 | N121: 0.261382069 | O121: 0.2521813793 | P121: 0.4722634483 | Q121: 0.2513065517 | R121: 0.2957324138 | S121: 0.2368003448 | T121: 0.20694 | U121: 0.372817931 | V121: 0.3550413793 | W121: 0.3503941379 | X121: 0.3148368966 | Y121: 0.2483431034 | Z121: 0.2138996552 | AA121: 0.2947731034 | AB121: 0.3429268966 | AC121: 0.4437569069 | AH121: 0 | AI121: 0 | AJ121: 0 | AK121: 0 | AL121: 0 | AM121: 0 | AN121: 0 | AO121: 0 | AP121: 0 | AQ121: 0 | AR121: 0 | AS121: 0 | AT121: 0 | AU121: 0 | AV121: 0 | AW121: 0 | AX121: 0 | AY121: 0 | AZ121: 0 | BA121: 0 | BB121: 0 | BC121: 0 | BD121: 0 | BE121: 0 | BF121: 0 | BG121: 0 | BH121: 0
B122: 120 | C122: 0.4636137931 | D122: 0.3271272414 | E122: 0.2415110345 | F122: 0.3906793103 | G122: 0.4804351724 | H122: 0.3692462069 | I122: 0.21771 | J122: 0.3159062069 | K122: 0.4159565517 | L122: 0.2792972414 | M122: 0.395077931 | N122: 0.2578551724 | O122: 0.2615782759 | P122: 0.4571513793 | Q122: 0.2532806897 | R122: 0.2890110345 | S122: 0.2315913793 | T122: 0.2001210345 | U122: 0.3725172414 | V122: 0.3517013793 | W122: 0.3533644828 | X122: 0.3200441379 | Y122: 0.2410017241 | Z122: 0.2155896552 | AA122: 0.306317931 | AB122: 0.3469837931 | AC122: 0.4425324251 | AH122: 0 | AI122: 0 | AJ122: 0 | AK122: 0 | AL122: 0 | AM122: 0 | AN122: 0 | AO122: 0 | AP122: 0 | AQ122: 0 | AR122: 0 | AS122: 0 | AT122: 0 | AU122: 0 | AV122: 0 | AW122: 0 | AX122: 0 | AY122: 0 | AZ122: 0 | BA122: 0 | BB122: 0 | BC122: 0 | BD122: 0 | BE122: 0 | BF122: 0 | BG122: 0 | BH122: 0
B123: 121 | C123: 0.4684113793 | D123: 0.3303148276 | E123: 0.2392768966 | F123: 0.3833865517 | G123: 0.4751013793 | H123: 0.3646310345 | I123: 0.2161310345 | J123: 0.3212917241 | K123: 0.4181775862 | L123: 0.2841562069 | M123: 0.3952713793 | N123: 0.252867931 | O123: 0.2704065517 | P123: 0.448007931 | Q123: 0.2546537931 | R123: 0.2825872414 | S123: 0.2301837931 | T123: 0.1985182759 | U123: 0.370922069 | V123: 0.3503268966 | W123: 0.3579875862 | X123: 0.3234844828 | Y123: 0.2353862069 | Z123: 0.2147893103 | AA123: 0.3119972414 | AB123: 0.34979 | AC123: 0.441258255 | AH123: 0 | AI123: 0 | AJ123: 0 | AK123: 0 | AL123: 0 | AM123: 0 | AN123: 0 | AO123: 0 | AP123: 0 | AQ123: 0 | AR123: 0 | AS123: 0 | AT123: 0 | AU123: 0 | AV123: 0 | AW123: 0 | AX123: 0 | AY123: 0 | AZ123: 0 | BA123: 0 | BB123: 0 | BC123: 0 | BD123: 0 | BE123: 0 | BF123: 0 | BG123: 0 | BH123: 0
B124: 122 | C124: 0.4712089655 | D124: 0.3345931034 | E124: 0.2379455172 | F124: 0.3642086207 | G124: 0.4635131034 | H124: 0.3596227586 | I124: 0.2135413793 | J124: 0.3271424138 | K124: 0.4230855172 | L124: 0.2869348276 | M124: 0.3954486207 | N124: 0.2519058621 | O124: 0.2726886207 | P124: 0.4424341379 | Q124: 0.2579227586 | R124: 0.2767610345 | S124: 0.2301717241 | T124: 0.1991248276 | U124: 0.372692069 | V124: 0.3505131034 | W124: 0.3642 | X124: 0.3241175862 | Y124: 0.2326575862 | Z124: 0.2079282759 | AA124: 0.3110424138 | AB124: 0.3538589655 | AC124: 0.4397908984 | AH124: 0 | AI124: 0 | AJ124: 0 | AK124: 0 | AL124: 0 | AM124: 0 | AN124: 0 | AO124: 0 | AP124: 0 | AQ124: 0 | AR124: 0 | AS124: 0 | AT124: 0 | AU124: 0 | AV124: 0 | AW124: 0 | AX124: 0 | AY124: 0 | AZ124: 0 | BA124: 0 | BB124: 0 | BC124: 0 | BD124: 0 | BE124: 0 | BF124: 0 | BG124: 0 | BH124: 0
B125: 123 | C125: 0.4608151724 | D125: 0.3382975862 | E125: 0.2358334483 | F125: 0.3495813793 | G125: 0.4567775862 | H125: 0.3549493103 | I125: 0.2100127586 | J125: 0.3345089655 | K125: 0.4271672414 | L125: 0.2887334483 | M125: 0.3967003448 | N125: 0.2488948276 | O125: 0.2732965517 | P125: 0.4379024138 | Q125: 0.2622334483 | R125: 0.2731144828 | S125: 0.2271862069 | T125: 0.1978772414 | U125: 0.3778913793 | V125: 0.3485365517 | W125: 0.3702196552 | X125: 0.3235644828 | Y125: 0.23059 | Z125: 0.2022544828 | AA125: 0.2991075862 | AB125: 0.3541737931 | AC125: 0.4386736308 | AH125: 0 | AI125: 0 | AJ125: 0 | AK125: 0 | AL125: 0 | AM125: 0 | AN125: 0 | AO125: 0 | AP125: 0 | AQ125: 0 | AR125: 0 | AS125: 0 | AT125: 0 | AU125: 0 | AV125: 0 | AW125: 0 | AX125: 0 | AY125: 0 | AZ125: 0 | BA125: 0 | BB125: 0 | BC125: 0 | BD125: 0 | BE125: 0 | BF125: 0 | BG125: 0 | BH125: 0
B126: 124 | C126: 0.4500641379 | D126: 0.3393844828 | E126: 0.2370606897 | F126: 0.3474406897 | G126: 0.4479513793 | H126: 0.3489013793 | I126: 0.2074937931 | J126: 0.3393755172 | K126: 0.4305706897 | L126: 0.2883403448 | M126: 0.4018010345 | N126: 0.2423831034 | O126: 0.2648434483 | P126: 0.4332393103 | Q126: 0.26262 | R126: 0.2738844828 | S126: 0.2226793103 | T126: 0.2050203448 | U126: 0.3814924138 | V126: 0.3446541379 | W126: 0.3708872414 | X126: 0.3203765517 | Y126: 0.2293624138 | Z126: 0.2016162069 | AA126: 0.2896817241 | AB126: 0.3514372414 | AC126: 0.4337477596 | AH126: 0 | AI126: 0 | AJ126: 0 | AK126: 0 | AL126: 0 | AM126: 0 | AN126: 0 | AO126: 0 | AP126: 0 | AQ126: 0 | AR126: 0 | AS126: 0 | AT126: 0 | AU126: 0 | AV126: 0 | AW126: 0 | AX126: 0 | AY126: 0 | AZ126: 0 | BA126: 0 | BB126: 0 | BC126: 0 | BD126: 0 | BE126: 0 | BF126: 0 | BG126: 0 | BH126: 0
B127: 125 | C127: 0.4419172414 | D127: 0.3434889655 | E127: 0.2382196552 | F127: 0.3484186207 | G127: 0.4431203448 | H127: 0.3427896552 | I127: 0.20513 | J127: 0.3429582759 | K127: 0.4310544828 | L127: 0.2877913793 | M127: 0.4066265517 | N127: 0.2462593103 | O127: 0.2630724138 | P127: 0.4284162069 | Q127: 0.2615889655 | R127: 0.2791327586 | S127: 0.2187434483 | T127: 0.2125717241 | U127: 0.38783 | V127: 0.3431613793 | W127: 0.3662596552 | X127: 0.3170668966 | Y127: 0.2297186207 | Z127: 0.2088158621 | AA127: 0.2850910345 | AB127: 0.3487310345 | AC127: 0.4268772308 | AH127: 0 | AI127: 0 | AJ127: 0 | AK127: 0 | AL127: 0 | AM127: 0 | AN127: 0 | AO127: 0 | AP127: 0 | AQ127: 0 | AR127: 0 | AS127: 0 | AT127: 0 | AU127: 0 | AV127: 0 | AW127: 0 | AX127: 0 | AY127: 0 | AZ127: 0 | BA127: 0 | BB127: 0 | BC127: 0 | BD127: 0 | BE127: 0 | BF127: 0 | BG127: 0 | BH127: 0
B128: 126 | C128: 0.432467931 | D128: 0.3496568966 | E128: 0.2354048276 | F128: 0.3498889655 | G128: 0.4407706897 | H128: 0.3407031034 | I128: 0.2033689655 | J128: 0.3456024138 | K128: 0.4305768966 | L128: 0.286897931 | M128: 0.4111955172 | N128: 0.2532482759 | O128: 0.2595993103 | P128: 0.422982069 | Q128: 0.25906 | R128: 0.2847686207 | S128: 0.2138972414 | T128: 0.2175613793 | U128: 0.3951568966 | V128: 0.3421468966 | W128: 0.3587568966 | X128: 0.3131993103 | Y128: 0.2329858621 | Z128: 0.2124465517 | AA128: 0.2790558621 | AB128: 0.34954 | AC128: 0.4190245496 | AH128: 0 | AI128: 0 | AJ128: 0 | AK128: 0 | AL128: 0 | AM128: 0 | AN128: 0 | AO128: 0 | AP128: 0 | AQ128: 0 | AR128: 0 | AS128: 0 | AT128: 0 | AU128: 0 | AV128: 0 | AW128: 0 | AX128: 0 | AY128: 0 | AZ128: 0 | BA128: 0 | BB128: 0 | BC128: 0 | BD128: 0 | BE128: 0 | BF128: 0 | BG128: 0 | BH128: 0
B129: 127 | C129: 0.4237951724 | D129: 0.3578627586 | E129: 0.228402069 | F129: 0.3564034483 | G129: 0.4328496552 | H129: 0.3404362069 | I129: 0.2053172414 | J129: 0.3479917241 | K129: 0.4297782759 | L129: 0.2831713793 | M129: 0.4179962069 | N129: 0.2628941379 | O129: 0.2526855172 | P129: 0.4195982759 | Q129: 0.2581903448 | R129: 0.2906806897 | S129: 0.2184317241 | T129: 0.2235251724 | U129: 0.3991568966 | V129: 0.3422393103 | W129: 0.3489217241 | X129: 0.3086462069 | Y129: 0.2336486207 | Z129: 0.2129986207 | AA129: 0.2741724138 | AB129: 0.3492627586 | AC129: 0.4115867091 | AH129: 0 | AI129: 0 | AJ129: 0.00806212224 | AK129: 0 | AL129: 0 | AM129: 0 | AN129: 0 | AO129: 0 | AP129: 0 | AQ129: 0 | AR129: 0 | AS129: 0 | AT129: 0 | AU129: 0 | AV129: 0 | AW129: 0 | AX129: 0 | AY129: 0 | AZ129: 0 | BA129: 0 | BB129: 0 | BC129: 0 | BD129: 0.009902939019 | BE129: 0 | BF129: 0 | BG129: 0 | BH129: 0
B130: 128 | C130: 0.4023 | D130: 0.3716382759 | E130: 0.2143424138 | F130: 0.3564637931 | G130: 0.4161565517 | H130: 0.3402827586 | I130: 0.2096817241 | J130: 0.3546951724 | K130: 0.4289582759 | L130: 0.280922069 | M130: 0.4239410345 | N130: 0.2657224138 | O130: 0.2388127586 | P130: 0.4209017241 | Q130: 0.2539075862 | R130: 0.2983693103 | S130: 0.2285544828 | T130: 0.22922 | U130: 0.3988317241 | V130: 0.3461037931 | W130: 0.3400082759 | X130: 0.3026589655 | Y130: 0.2231251724 | Z130: 0.2144462069 | AA130: 0.2611972414 | AB130: 0.35084 | AC130: 0.4063410507 | AH130: 0.009877604007 | AI130: 0 | AJ130: 0.1053195816 | AK130: 0.004757806184 | AL130: 0.008691138526 | AM130: 0.001242826996 | AN130: 0 | AO130: 0.007655476452 | AP130: 0 | AQ130: 0 | AR130: 0 | AS130: 0.02516916252 | AT130: 0.04019902799 | AU130: 0 | AV130: 0.02478044573 | AW130: 0.01053563465 | AX130: 0 | AY130: 0.01010301769 | AZ130: 0 | BA130: 0 | BB130: 0.01719561406 | BC130: 0 | BD130: 0.1043246118 | BE130: 0.00794537408 | BF130: 0.0282248508 | BG130: 0 | BH130: 0
B131: 129 | C131: 0.3584737931 | D131: 0.3877206897 | E131: 0.2060396552 | F131: 0.3490537931 | G131: 0.3901427586 | H131: 0.33563 | I131: 0.2156951724 | J131: 0.3639537931 | K131: 0.4111689655 | L131: 0.2780344828 | M131: 0.4236827586 | N131: 0.265522069 | O131: 0.2177051724 | P131: 0.4218844828 | Q131: 0.2527965517 | R131: 0.2990565517 | S131: 0.2505044828 | T131: 0.2379834483 | U131: 0.3961713793 | V131: 0.3511141379 | W131: 0.3287517241 | X131: 0.2964975862 | Y131: 0.2165389655 | Z131: 0.1914451724 | AA131: 0.2320137931 | AB131: 0.3484737931 | AC131: 0.4033277882 | AH131: 0.1105929114 | AI131: 0.003775445003 | AJ131: 0.2068441954 | AK131: 0.07424491872 | AL131: 0.07036293043 | AM131: 0.029369934 | AN131: 0.012494464 | AO131: 0.02768362982 | AP131: 0.06750557455 | AQ131: 0.006537379689 | AR131: 0.04371524137 | AS131: 0.1072232261 | AT131: 0.1282707688 | AU131: 0 | AV131: 0.1366048435 | AW131: 0.04282745213 | AX131: 0.01092294822 | AY131: 0.0355201413 | AZ131: 0.002615132929 | BA131: 0 | BB131: 0.07224165317 | BC131: 0.01079622132 | BD131: 0.2048435253 | BE131: 0.08918395839 | BF131: 0.1211727265 | BG131: 0.008564837913 | BH131: 0.004573451552
B132: 130 | C132: 0.3258268966 | D132: 0.3929362069 | E132: 0.2027851724 | F132: 0.3181751724 | G132: 0.3680231034 | H132: 0.3296717241 | I132: 0.2189627586 | J132: 0.3661796552 | K132: 0.3790589655 | L132: 0.2758062069 | M132: 0.4142210345 | N132: 0.2608351724 | O132: 0.2100024138 | P132: 0.4235168966 | Q132: 0.2629582759 | R132: 0.299562069 | S132: 0.26901 | T132: 0.2422934483 | U132: 0.3934817241 | V132: 0.3515648276 | W132: 0.3188034483 | X132: 0.2751631034 | Y132: 0.2176068966 | Z132: 0.1712624138 | AA132: 0.2126131034 | AB132: 0.3379982759 | AC132: 0.40094314 | AH132: 0.1836042687 | AI132: 0.071957688 | AJ132: 0.2649356258 | AK132: 0.1551972063 | AL132: 0.1394070411 | AM132: 0.09301433181 | AN132: 0.05357952711 | AO132: 0.05208213501 | AP132: 0.2266023303 | AQ132: 0.02797373596 | AR132: 0.1266338248 | AS132: 0.164247986 | AT132: 0.1784290854 | AU132: 0.007430912316 | AV132: 0.2367309421 | AW132: 0.07085554903 | AX132: 0.06467361277 | AY132: 0.06368401877 | AZ132: 0.07132408235 | BA132: 0.0161070108 | BB132: 0.1127743274 | BC132: 0.1996579343 | BD132: 0.2605383366 | BE132: 0.1551499016 | BF132: 0.1720728596 | BG132: 0.03740069826 | BH132: 0.03176709199
B133: 131 | C133: 0.311327931 | D133: 0.39493 | E133: 0.2027010345 | F133: 0.3140158621 | G133: 0.3626224138 | H133: 0.3292472414 | I133: 0.2202331034 | J133: 0.3633886207 | K133: 0.3830551724 | L133: 0.2734358621 | M133: 0.4123282759 | N133: 0.254822069 | O133: 0.2078868966 | P133: 0.4244675862 | Q133: 0.2782637931 | R133: 0.3002682759 | S133: 0.2833193103 | T133: 0.2452944828 | U133: 0.3944537931 | V133: 0.3539051724 | W133: 0.3154072414 | X133: 0.2719293103 | Y133: 0.2223144828 | Z133: 0.1582186207 | AA133: 0.1981558621 | AB133: 0.3232393103 | AC133: 0.397752497 | AH133: 0.2159577645 | AI133: 0.1175505151 | AJ133: 0.2903878001 | AK133: 0.1936661826 | AL133: 0.171578475 | AM133: 0.1249531284 | AN133: 0.08926499871 | AO133: 0.05634218147 | AP133: 0.3349288348 | AQ133: 0.03349699432 | AR133: 0.1882883593 | AS133: 0.1930142372 | AT133: 0.1927245759 | AU133: 0.05266242915 | AV133: 0.3033616635 | AW133: 0.07754322215 | AX133: 0.1032005484 | AY133: 0.0709074586 | AZ133: 0.1154528604 | BA133: 0.02388048689 | BB133: 0.1234942362 | BC133: 0.3430722058 | BD133: 0.2646694069 | BE133: 0.1930101384 | BF133: 0.1824413667 | BG133: 0.05613795238 | BH133: 0.0714347805
B134: 132 | C134: 0.306877931 | D134: 0.3973289655 | E134: 0.2032934483 | F134: 0.329572069 | G134: 0.359072069 | H134: 0.334532069 | I134: 0.2208175862 | J134: 0.3605906897 | K134: 0.4077137931 | L134: 0.2730027586 | M134: 0.418807931 | N134: 0.2489758621 | O134: 0.2064510345 | P134: 0.4274482759 | Q134: 0.2878096552 | R134: 0.3012613793 | S134: 0.2926965517 | T134: 0.244062069 | U134: 0.3962986207 | V134: 0.3533889655 | W134: 0.314607931 | X134: 0.2873113793 | Y134: 0.2261206897 | Z134: 0.1537324138 | AA134: 0.1874327586 | AB134: 0.3165582759 | AC134: 0.398936023 | AH134: 0.2359743876 | AI134: 0.1534567133 | AJ134: 0.2867394511 | AK134: 0.2131063848 | AL134: 0.1841642789 | AM134: 0.1420080877 | AN134: 0.1045074186 | AO134: 0.05593757216 | AP134: 0.415815299 | AQ134: 0.03323255565 | AR134: 0.2339099018 | AS134: 0.2031326654 | AT134: 0.2060435548 | AU134: 0.09047287347 | AV134: 0.3230288231 | AW134: 0.0770538524 | AX134: 0.1125528837 | AY134: 0.07311737206 | AZ134: 0.1364931347 | BA134: 0.02858905196 | BB134: 0.1316614061 | BC134: 0.4420409062 | BD134: 0.2635700241 | BE134: 0.2117525654 | BF134: 0.2016553199 | BG134: 0.06167978914 | BH134: 0.1033476233
B135: 133 | C135: 0.3034737931 | D135: 0.397132069 | E135: 0.2013451724 | F135: 0.3306358621 | G135: 0.3564065517 | H135: 0.3412789655 | I135: 0.2221937931 | J135: 0.3588558621 | K135: 0.4230217241 | L135: 0.2740989655 | M135: 0.4245427586 | N135: 0.2419703448 | O135: 0.2004506897 | P135: 0.43275 | Q135: 0.289452069 | R135: 0.3047862069 | S135: 0.2963803448 | T135: 0.242742069 | U135: 0.396382069 | V135: 0.3499737931 | W135: 0.3126996552 | X135: 0.3029324138 | Y135: 0.2259451724 | Z135: 0.1497258621 | AA135: 0.178937931 | AB135: 0.3143762069 | AC135: 0.4036217266 | AH135: 0.2196546433 | AI135: 0.1605074995 | AJ135: 0.2562768015 | AK135: 0.2182608408 | AL135: 0.1659724687 | AM135: 0.136136856 | AN135: 0.09960420587 | AO135: 0.04227364733 | AP135: 0.4431451864 | AQ135: 0.04011222813 | AR135: 0.2447305344 | AS135: 0.1941126525 | AT135: 0.1939773741 | AU135: 0.1123271248 | AV135: 0.3187296484 | AW135: 0.05876105024 | AX135: 0.1213261877 | AY135: 0.05643485921 | AZ135: 0.1415721815 | BA135: 0.0282261298 | BB135: 0.1173135144 | BC135: 0.4839487997 | BD135: 0.2261921189 | BE135: 0.2130763728 | BF135: 0.1837992715 | BG135: 0.05526285232 | BH135: 0.1145837474
B136: 134 | C136: 0.2974834483 | D136: 0.3985968966 | E136: 0.2034610345 | F136: 0.3362117241 | G136: 0.3567962069 | H136: 0.34933 | I136: 0.2254717241 | J136: 0.3593468966 | K136: 0.4230096552 | L136: 0.2768686207 | M136: 0.4235437931 | N136: 0.2351144828 | O136: 0.1908637931 | P136: 0.4419096552 | Q136: 0.2810589655 | R136: 0.3117172414 | S136: 0.2948768966 | T136: 0.2431037931 | U136: 0.3982858621 | V136: 0.3517093103 | W136: 0.3137041379 | X136: 0.3063558621 | Y136: 0.230612069 | Z136: 0.1476386207 | AA136: 0.1699644828 | AB136: 0.3202151724 | AC136: 0.4096546921 | AH136: 0.185207002 | AI136: 0.1313516871 | AJ136: 0.1887893738 | AK136: 0.199600372 | AL136: 0.138276411 | AM136: 0.1141143933 | AN136: 0.0776145162 | AO136: 0.03131564854 | AP136: 0.4352144102 | AQ136: 0.01305982994 | AR136: 0.2249434351 | AS136: 0.1532922765 | AT136: 0.1636810479 | AU136: 0.1131636602 | AV136: 0.2657919599 | AW136: 0.04290772947 | AX136: 0.1133470567 | AY136: 0.04383396678 | AZ136: 0.1226552556 | BA136: 0.02630415532 | BB136: 0.09290328973 | BC136: 0.4817397082 | BD136: 0.1695662521 | BE136: 0.177062033 | BF136: 0.1501542107 | BG136: 0.04005909563 | BH136: 0.1143017831
B137: 135 | C137: 0.2975586207 | D137: 0.4043286207 | E137: 0.2137734483 | F137: 0.3438741379 | G137: 0.370427931 | H137: 0.3611262069 | I137: 0.2293062069 | J137: 0.3596251724 | K137: 0.4053406897 | L137: 0.2787572414 | M137: 0.4191237931 | N137: 0.2387355172 | O137: 0.1860986207 | P137: 0.4536448276 | Q137: 0.2625458621 | R137: 0.3186406897 | S137: 0.2944913793 | T137: 0.241572069 | U137: 0.4016448276 | V137: 0.3519744828 | W137: 0.3218506897 | X137: 0.2972155172 | Y137: 0.2456124138 | Z137: 0.1509693103 | AA137: 0.1694017241 | AB137: 0.3294327586 | AC137: 0.4150002946 | AH137: 0.1272203675 | AI137: 0.1002239314 | AJ137: 0.1026338234 | AK137: 0.1602371611 | AL137: 0.08038976267 | AM137: 0.07511168356 | AN137: 0.04236961261 | AO137: 0 | AP137: 0.3776769416 | AQ137: 0 | AR137: 0.1813500749 | AS137: 0.09935270702 | AT137: 0.1001858884 | AU137: 0.09002983968 | AV137: 0.1900553721 | AW137: 0 | AX137: 0.08362909993 | AY137: 0 | AZ137: 0.08238762251 | BA137: 0.0197163967 | BB137: 0.05218849804 | BC137: 0.4326231098 | BD137: 0.08737381465 | BE137: 0.1120057246 | BF137: 0.08900573934 | BG137: 0.02030576111 | BH137: 0.0901517466
B138: 136 | C138: 0.3190744828 | D138: 0.4156844828 | E138: 0.2312144828 | F138: 0.3641051724 | G138: 0.386452069 | H138: 0.3738755172 | I138: 0.2308362069 | J138: 0.3577672414 | K138: 0.3743803448 | L138: 0.2774634483 | M138: 0.4241617241 | N138: 0.2557737931 | O138: 0.1926796552 | P138: 0.4624082759 | Q138: 0.2547475862 | R138: 0.3149175862 | S138: 0.2946844828 | T138: 0.2387424138 | U138: 0.4095068966 | V138: 0.3573403448 | W138: 0.3280272414 | X138: 0.2817941379 | Y138: 0.2649703448 | Z138: 0.1624634483 | AA138: 0.1792806897 | AB138: 0.3365496552 | AC138: 0.4212782962 | AH138: 0.06499616714 | AI138: 0.05130638966 | AJ138: 0 | AK138: 0.09812870008 | AL138: 0.01969066639 | AM138: 0.02666808075 | AN138: 0 | AO138: 0 | AP138: 0.2994834796 | AQ138: 0 | AR138: 0.1183595869 | AS138: 0.03914125691 | AT138: 0.03026119529 | AU138: 0.06721990238 | AV138: 0.09300382727 | AW138: 0 | AX138: 0.04396664534 | AY138: 0 | AZ138: 0.03098134469 | BA138: 0 | BB138: 0 | BC138: 0.3786856418 | BD138: 0 | BE138: 0.0418814755 | BF138: 0 | BG138: 0 | BH138: 0.06113785526
B139: 137 | C139: 0.3348310345 | D139: 0.4286382759 | E139: 0.2442441379 | F139: 0.374552069 | G139: 0.3960541379 | H139: 0.3826358621 | I139: 0.2303834483 | J139: 0.35829 | K139: 0.3697641379 | L139: 0.2785465517 | M139: 0.436447931 | N139: 0.2809544828 | O139: 0.2017062069 | P139: 0.4716331034 | Q139: 0.2624565517 | R139: 0.3101086207 | S139: 0.2933362069 | T139: 0.2365131034 | U139: 0.4202303448 | V139: 0.3630382759 | W139: 0.3302258621 | X139: 0.2777596552 | Y139: 0.2786741379 | Z139: 0.1780693103 | AA139: 0.1874324138 | AB139: 0.3410137931 | AC139: 0.4275774962 | AH139: 0 | AI139: 0 | AJ139: 0 | AK139: 0 | AL139: 0 | AM139: 0 | AN139: 0 | AO139: 0 | AP139: 0.1841194017 | AQ139: 0 | AR139: 0.04592952314 | AS139: 0 | AT139: 0 | AU139: 0.03495927922 | AV139: 0.002123854831 | AW139: 0 | AX139: 0 | AY139: 0 | AZ139: 0 | BA139: 0 | BB139: 0 | BC139: 0.2700075244 | BD139: 0 | BE139: 0 | BF139: 0 | BG139: 0 | BH139: 0.01386888407
B140: 138 | C140: 0.3451672414 | D140: 0.4351324138 | E140: 0.2507631034 | F140: 0.3714624138 | G140: 0.4033865517 | H140: 0.3866731034 | I140: 0.2306917241 | J140: 0.3600003448 | K140: 0.3871993103 | L140: 0.2785406897 | M140: 0.442972069 | N140: 0.3014927586 | O140: 0.2087086207 | P140: 0.4811924138 | Q140: 0.2679906897 | R140: 0.3094034483 | S140: 0.291932069 | T140: 0.2402044828 | U140: 0.4298051724 | V140: 0.3639310345 | W140: 0.3327810345 | X140: 0.2912131034 | Y140: 0.2843682759 | Z140: 0.1850882759 | AA140: 0.1957693103 | AB140: 0.3446582759 | AC140: 0.4326052766 | AH140: 0 | AI140: 0 | AJ140: 0 | AK140: 0 | AL140: 0 | AM140: 0 | AN140: 0 | AO140: 0 | AP140: 0.03008988959 | AQ140: 0 | AR140: 0 | AS140: 0 | AT140: 0 | AU140: 0 | AV140: 0 | AW140: 0 | AX140: 0 | AY140: 0 | AZ140: 0 | BA140: 0 | BB140: 0 | BC140: 0.1099474469 | BD140: 0 | BE140: 0 | BF140: 0 | BG140: 0 | BH140: 0
B141: 139 | C141: 0.3535875862 | D141: 0.4375768966 | E141: 0.2595858621 | F141: 0.3796741379 | G141: 0.4054868966 | H141: 0.38741 | I141: 0.2313903448 | J141: 0.3638406897 | K141: 0.3980768966 | L141: 0.2826796552 | M141: 0.4432544828 | N141: 0.311387931 | O141: 0.2155410345 | P141: 0.486307931 | Q141: 0.2716882759 | R141: 0.3117706897 | S141: 0.2930175862 | T141: 0.2427162069 | U141: 0.4370855172 | V141: 0.3694137931 | W141: 0.3356741379 | X141: 0.3000334483 | Y141: 0.2866289655 | Z141: 0.1890572414 | AA141: 0.2004937931 | AB141: 0.3470793103 | AC141: 0.4351616728 | AH141: 0 | AI141: 0 | AJ141: 0 | AK141: 0 | AL141: 0 | AM141: 0 | AN141: 0 | AO141: 0 | AP141: 0 | AQ141: 0 | AR141: 0 | AS141: 0 | AT141: 0 | AU141: 0 | AV141: 0 | AW141: 0 | AX141: 0 | AY141: 0 | AZ141: 0 | BA141: 0 | BB141: 0 | BC141: 0 | BD141: 0 | BE141: 0 | BF141: 0 | BG141: 0 | BH141: 0
B142: 140 | C142: 0.3533306897 | D142: 0.4370372414 | E142: 0.2631341379 | F142: 0.3810968966 | G142: 0.4065044828 | H142: 0.3858027586 | I142: 0.2316593103 | J142: 0.36467 | K142: 0.4024486207 | L142: 0.2852675862 | M142: 0.4401055172 | N142: 0.317857931 | O142: 0.2189662069 | P142: 0.4901 | Q142: 0.2750165517 | R142: 0.3148193103 | S142: 0.2933289655 | T142: 0.2447534483 | U142: 0.4415248276 | V142: 0.3722806897 | W142: 0.3367886207 | X142: 0.2983803448 | Y142: 0.2871396552 | Z142: 0.1882434483 | AA142: 0.2011062069 | AB142: 0.351377931 | AC142: 0.4380880898 | AH142: 0 | AI142: 0 | AJ142: 0 | AK142: 0 | AL142: 0 | AM142: 0 | AN142: 0 | AO142: 0 | AP142: 0 | AQ142: 0 | AR142: 0 | AS142: 0 | AT142: 0 | AU142: 0 | AV142: 0 | AW142: 0 | AX142: 0 | AY142: 0 | AZ142: 0 | BA142: 0 | BB142: 0 | BC142: 0 | BD142: 0 | BE142: 0 | BF142: 0 | BG142: 0 | BH142: 0
B143: 141 | C143: 0.3454489655 | D143: 0.4326010345 | E143: 0.2654931034 | F143: 0.3827813793 | G143: 0.4041944828 | H143: 0.3833034483 | I143: 0.23252 | J143: 0.3671551724 | K143: 0.4042265517 | L143: 0.2871231034 | M143: 0.4357762069 | N143: 0.319472069 | O143: 0.2184568966 | P143: 0.4929031034 | Q143: 0.274252069 | R143: 0.318847931 | S143: 0.2910948276 | T143: 0.2466948276 | U143: 0.4427817241 | V143: 0.3747762069 | W143: 0.3352165517 | X143: 0.2969927586 | Y143: 0.2875010345 | Z143: 0.1908989655 | AA143: 0.201387931 | AB143: 0.3533351724 | AC143: 0.4424659048 | AH143: 0 | AI143: 0 | AJ143: 0 | AK143: 0 | AL143: 0 | AM143: 0 | AN143: 0 | AO143: 0 | AP143: 0 | AQ143: 0 | AR143: 0 | AS143: 0 | AT143: 0 | AU143: 0 | AV143: 0 | AW143: 0 | AX143: 0 | AY143: 0 | AZ143: 0 | BA143: 0 | BB143: 0 | BC143: 0 | BD143: 0 | BE143: 0 | BF143: 0 | BG143: 0 | BH143: 0
B144: 142 | C144: 0.3483389655 | D144: 0.4287224138 | E144: 0.25832 | F144: 0.3711217241 | G144: 0.4053765517 | H144: 0.3828796552 | I144: 0.2315993103 | J144: 0.3685165517 | K144: 0.40013 | L144: 0.2919075862 | M144: 0.4325937931 | N144: 0.3140527586 | O144: 0.2186875862 | P144: 0.4966324138 | Q144: 0.2712096552 | R144: 0.3242362069 | S144: 0.2921534483 | T144: 0.2481275862 | U144: 0.4397972414 | V144: 0.3744434483 | W144: 0.338522069 | X144: 0.2935572414 | Y144: 0.2822624138 | Z144: 0.1838865517 | AA144: 0.1963934483 | AB144: 0.3507586207 | AC144: 0.4488962461 | AH144: 0 | AI144: 0 | AJ144: 0 | AK144: 0 | AL144: 0 | AM144: 0 | AN144: 0 | AO144: 0 | AP144: 0 | AQ144: 0 | AR144: 0 | AS144: 0 | AT144: 0 | AU144: 0 | AV144: 0 | AW144: 0 | AX144: 0 | AY144: 0 | AZ144: 0 | BA144: 0 | BB144: 0 | BC144: 0 | BD144: 0 | BE144: 0 | BF144: 0 | BG144: 0 | BH144: 0
B145: 143 | C145: 0.3696686207 | D145: 0.4265196552 | E145: 0.2496789655 | F145: 0.3607310345 | G145: 0.4086989655 | H145: 0.3840324138 | I145: 0.2314796552 | J145: 0.3655975862 | K145: 0.3985365517 | L145: 0.2940224138 | M145: 0.4306341379 | N145: 0.3075824138 | O145: 0.2157586207 | P145: 0.5012027586 | Q145: 0.2703006897 | R145: 0.3268727586 | S145: 0.2920162069 | T145: 0.2439196552 | U145: 0.4341534483 | V145: 0.3752344828 | W145: 0.3416844828 | X145: 0.2881017241 | Y145: 0.2788689655 | Z145: 0.1870210345 | AA145: 0.1898824138 | AB145: 0.3500844828 | AC145: 0.456587353 | AH145: 0 | AI145: 0 | AJ145: 0 | AK145: 0 | AL145: 0 | AM145: 0 | AN145: 0 | AO145: 0 | AP145: 0 | AQ145: 0 | AR145: 0 | AS145: 0 | AT145: 0 | AU145: 0 | AV145: 0 | AW145: 0 | AX145: 0 | AY145: 0 | AZ145: 0 | BA145: 0 | BB145: 0 | BC145: 0 | BD145: 0 | BE145: 0 | BF145: 0 | BG145: 0 | BH145: 0
B146: 144 | C146: 0.377767931 | D146: 0.4194303448 | E146: 0.2458096552 | F146: 0.3426672414 | G146: 0.414717931 | H146: 0.3857789655 | I146: 0.2321327586 | J146: 0.3614296552 | K146: 0.3993706897 | L146: 0.2927203448 | M146: 0.4290489655 | N146: 0.3036955172 | O146: 0.2149755172 | P146: 0.5056041379 | Q146: 0.2699744828 | R146: 0.3256351724 | S146: 0.2948413793 | T146: 0.2376493103 | U146: 0.4192282759 | V146: 0.3737137931 | W146: 0.3431175862 | X146: 0.2826265517 | Y146: 0.2771341379 | Z146: 0.1978634483 | AA146: 0.186747931 | AB146: 0.3507158621 | AC146: 0.4628050998 | AH146: 0 | AI146: 0 | AJ146: 0 | AK146: 0 | AL146: 0 | AM146: 0 | AN146: 0 | AO146: 0 | AP146: 0 | AQ146: 0 | AR146: 0 | AS146: 0 | AT146: 0 | AU146: 0 | AV146: 0 | AW146: 0 | AX146: 0 | AY146: 0 | AZ146: 0 | BA146: 0 | BB146: 0 | BC146: 0 | BD146: 0 | BE146: 0 | BF146: 0 | BG146: 0 | BH146: 0
B147: 145 | C147: 0.3724051724 | D147: 0.4161965517 | E147: 0.2427837931 | F147: 0.3308331034 | G147: 0.4140868966 | H147: 0.3863227586 | I147: 0.2322644828 | J147: 0.3571017241 | K147: 0.3992493103 | L147: 0.2915834483 | M147: 0.4261768966 | N147: 0.2989068966 | O147: 0.2073124138 | P147: 0.5071382759 | Q147: 0.2679958621 | R147: 0.3224817241 | S147: 0.2974213793 | T147: 0.231622069 | U147: 0.4085448276 | V147: 0.3729203448 | W147: 0.3444258621 | X147: 0.2754113793 | Y147: 0.2786813793 | Z147: 0.2148024138 | AA147: 0.2015831034 | AB147: 0.3519151724 | AC147: 0.4668726899 | AH147: 0 | AI147: 0 | AJ147: 0 | AK147: 0 | AL147: 0 | AM147: 0 | AN147: 0 | AO147: 0 | AP147: 0 | AQ147: 0 | AR147: 0 | AS147: 0 | AT147: 0 | AU147: 0 | AV147: 0 | AW147: 0 | AX147: 0 | AY147: 0 | AZ147: 0 | BA147: 0 | BB147: 0 | BC147: 0 | BD147: 0 | BE147: 0 | BF147: 0 | BG147: 0 | BH147: 0
B148: 146 | C148: 0.3638358621 | D148: 0.4160841379 | E148: 0.2407975862 | F148: 0.3331334483 | G148: 0.4148858621 | H148: 0.3845296552 | I148: 0.2326106897 | J148: 0.3549258621 | K148: 0.3968103448 | L148: 0.29046 | M148: 0.4220368966 | N148: 0.2992341379 | O148: 0.1985582759 | P148: 0.5054858621 | Q148: 0.2674713793 | R148: 0.3216103448 | S148: 0.2949341379 | T148: 0.2287044828 | U148: 0.4026365517 | V148: 0.3705024138 | W148: 0.3481048276 | X148: 0.2654658621 | Y148: 0.2805217241 | Z148: 0.22349 | AA148: 0.2137151724 | AB148: 0.3548706897 | AC148: 0.4694849309 | AH148: 0 | AI148: 0 | AJ148: 0 | AK148: 0 | AL148: 0 | AM148: 0 | AN148: 0 | AO148: 0 | AP148: 0 | AQ148: 0 | AR148: 0 | AS148: 0 | AT148: 0 | AU148: 0 | AV148: 0 | AW148: 0 | AX148: 0 | AY148: 0 | AZ148: 0 | BA148: 0 | BB148: 0 | BC148: 0 | BD148: 0 | BE148: 0 | BF148: 0 | BG148: 0 | BH148: 0
B149: 147 | C149: 0.3566 | D149: 0.4164193103 | E149: 0.23993 | F149: 0.3344968966 | G149: 0.4178368966 | H149: 0.3832537931 | I149: 0.2328724138 | J149: 0.3544562069 | K149: 0.3957596552 | L149: 0.2922162069 | M149: 0.41983 | N149: 0.2993410345 | O149: 0.1928493103 | P149: 0.5028310345 | Q149: 0.2679148276 | R149: 0.3215510345 | S149: 0.2950124138 | T149: 0.2268068966 | U149: 0.396872069 | V149: 0.3688506897 | W149: 0.3526444828 | X149: 0.2564196552 | Y149: 0.2804358621 | Z149: 0.2303386207 | AA149: 0.2138610345 | AB149: 0.3567513793 | AC149: 0.4726415169 | AH149: 0 | AI149: 0 | AJ149: 0 | AK149: 0 | AL149: 0 | AM149: 0 | AN149: 0 | AO149: 0 | AP149: 0 | AQ149: 0 | AR149: 0 | AS149: 0 | AT149: 0 | AU149: 0 | AV149: 0 | AW149: 0 | AX149: 0 | AY149: 0 | AZ149: 0 | BA149: 0 | BB149: 0 | BC149: 0 | BD149: 0 | BE149: 0 | BF149: 0 | BG149: 0 | BH149: 0
B150: 148 | C150: 0.3469386207 | D150: 0.4136631034 | E150: 0.2418331034 | F150: 0.3276068966 | G150: 0.4201248276 | H150: 0.3776010345 | I150: 0.2318368966 | J150: 0.3538058621 | K150: 0.3939668966 | L150: 0.2907893103 | M150: 0.4166996552 | N150: 0.3015068966 | O150: 0.1840293103 | P150: 0.5020013793 | Q150: 0.2705182759 | R150: 0.3211155172 | S150: 0.2961393103 | T150: 0.2280451724 | U150: 0.3949796552 | V150: 0.3655524138 | W150: 0.3545651724 | X150: 0.2569465517 | Y150: 0.2818496552 | Z150: 0.23362 | AA150: 0.2047534483 | AB150: 0.3605389655 | AC150: 0.4777319973 | AH150: 0 | AI150: 0 | AJ150: 0 | AK150: 0 | AL150: 0 | AM150: 0 | AN150: 0 | AO150: 0 | AP150: 0 | AQ150: 0 | AR150: 0 | AS150: 0 | AT150: 0 | AU150: 0 | AV150: 0 | AW150: 0 | AX150: 0 | AY150: 0 | AZ150: 0 | BA150: 0 | BB150: 0 | BC150: 0 | BD150: 0 | BE150: 0 | BF150: 0 | BG150: 0 | BH150: 0
B151: 149 | C151: 0.3447893103 | D151: 0.4121948276 | E151: 0.2450165517 | F151: 0.3436582759 | G151: 0.4194193103 | H151: 0.372237931 | I151: 0.2322203448 | J151: 0.3552613793 | K151: 0.39441 | L151: 0.2919327586 | M151: 0.412657931 | N151: 0.3044610345 | O151: 0.1831972414 | P151: 0.502142069 | Q151: 0.2720344828 | R151: 0.3193555172 | S151: 0.2977048276 | T151: 0.2249948276 | U151: 0.3955365517 | V151: 0.3636437931 | W151: 0.3553903448 | X151: 0.2680027586 | Y151: 0.2840893103 | Z151: 0.2319172414 | AA151: 0.202537931 | AB151: 0.3638237931 | AC151: 0.4835588957 | AH151: 0 | AI151: 0 | AJ151: 0 | AK151: 0 | AL151: 0 | AM151: 0 | AN151: 0 | AO151: 0 | AP151: 0 | AQ151: 0 | AR151: 0 | AS151: 0 | AT151: 0 | AU151: 0 | AV151: 0 | AW151: 0 | AX151: 0 | AY151: 0 | AZ151: 0 | BA151: 0 | BB151: 0 | BC151: 0 | BD151: 0 | BE151: 0 | BF151: 0 | BG151: 0 | BH151: 0
B152: 150 | C152: 0.3500624138 | D152: 0.4091075862 | E152: 0.24847 | F152: 0.3382127586 | G152: 0.4210237931 | H152: 0.3687293103 | I152: 0.2345831034 | J152: 0.3581010345 | K152: 0.3933986207 | L152: 0.2927248276 | M152: 0.4059844828 | N152: 0.3068262069 | O152: 0.184987931 | P152: 0.5004251724 | Q152: 0.2702231034 | R152: 0.3193862069 | S152: 0.2903913793 | T152: 0.2253027586 | U152: 0.398222069 | V152: 0.3611227586 | W152: 0.3546782759 | X152: 0.2760734483 | Y152: 0.28931 | Z152: 0.2360872414 | AA152: 0.2075075862 | AB152: 0.3673813793 | AC152: 0.4881243082 | AH152: 0 | AI152: 0 | AJ152: 0 | AK152: 0 | AL152: 0 | AM152: 0 | AN152: 0 | AO152: 0 | AP152: 0 | AQ152: 0 | AR152: 0 | AS152: 0 | AT152: 0 | AU152: 0 | AV152: 0 | AW152: 0 | AX152: 0 | AY152: 0 | AZ152: 0 | BA152: 0 | BB152: 0 | BC152: 0 | BD152: 0 | BE152: 0 | BF152: 0 | BG152: 0 | BH152: 0
B153: 151 | C153: 0.3579337931 | D153: 0.40624 | E153: 0.2484796552 | F153: 0.3419524138 | G153: 0.4237658621 | H153: 0.3664624138 | I153: 0.238787931 | J153: 0.3583103448 | K153: 0.392867931 | L153: 0.2938 | M153: 0.399442069 | N153: 0.3094503448 | O153: 0.1911865517 | P153: 0.4961793103 | Q153: 0.2680193103 | R153: 0.3191886207 | S153: 0.27611 | T153: 0.2251541379 | U153: 0.4035275862 | V153: 0.3591982759 | W153: 0.3508917241 | X153: 0.2816475862 | Y153: 0.2909141379 | Z153: 0.2421972414 | AA153: 0.2106662069 | AB153: 0.371097931 | AC153: 0.4908063879 | AH153: 0 | AI153: 0 | AJ153: 0.00542501708 | AK153: 0 | AL153: 0 | AM153: 0 | AN153: 0 | AO153: 0 | AP153: 0 | AQ153: 0 | AR153: 0 | AS153: 0 | AT153: 0 | AU153: 0 | AV153: 0 | AW153: 0 | AX153: 0 | AY153: 0 | AZ153: 0 | BA153: 0 | BB153: 0 | BC153: 0 | BD153: 0.008514781427 | BE153: 0 | BF153: 0 | BG153: 0 | BH153: 0
B154: 152 | C154: 0.3602375862 | D154: 0.4044055172 | E154: 0.2352731034 | F154: 0.3393362069 | G154: 0.4202644828 | H154: 0.3640975862 | I154: 0.2435948276 | J154: 0.354547931 | K154: 0.39214 | L154: 0.2940451724 | M154: 0.3944082759 | N154: 0.307572069 | O154: 0.1926234483 | P154: 0.4880586207 | Q154: 0.259897931 | R154: 0.3187782759 | S154: 0.2695544828 | T154: 0.2247010345 | U154: 0.409097931 | V154: 0.3613468966 | W154: 0.3441910345 | X154: 0.2841544828 | Y154: 0.2796282759 | Z154: 0.2538037931 | AA154: 0.2138124138 | AB154: 0.3776368966 | AC154: 0.4913742018 | AH154: 0.008811188811 | AI154: 0 | AJ154: 0.08210140621 | AK154: 0.004005864571 | AL154: 0.007627801967 | AM154: 0.0009992077119 | AN154: 0 | AO154: 0.006704308059 | AP154: 0 | AQ154: 0 | AR154: 0 | AS154: 0.024285702 | AT154: 0.03684579985 | AU154: 0 | AV154: 0.02278637906 | AW154: 0.009255788131 | AX154: 0 | AY154: 0.008719409002 | AZ154: 0 | BA154: 0 | BB154: 0.01652656312 | BC154: 0 | BD154: 0.08431071839 | BE154: 0.005593632488 | BF154: 0.02627946513 | BG154: 0 | BH154: 0
B155: 153 | C155: 0.3490127586 | D155: 0.4001286207 | E155: 0.2256696552 | F155: 0.3288044828 | G155: 0.4028741379 | H155: 0.3583058621 | I155: 0.2470534483 | J155: 0.350302069 | K155: 0.3813113793 | L155: 0.293392069 | M155: 0.3860575862 | N155: 0.2908655172 | O155: 0.1830631034 | P155: 0.4742341379 | Q155: 0.2557065517 | R155: 0.3072124138 | S155: 0.2620003448 | T155: 0.2237044828 | U155: 0.4161613793 | V155: 0.3669282759 | W155: 0.3263596552 | X155: 0.2808941379 | Y155: 0.2734296552 | Z155: 0.2308989655 | AA155: 0.2060265517 | AB155: 0.3832475862 | AC155: 0.4904568011 | AH155: 0.110035444 | AI155: 0.004165991539 | AJ155: 0.1583015445 | AK155: 0.08152725493 | AL155: 0.07607920026 | AM155: 0.02552416155 | AN155: 0.01123245148 | AO155: 0.03055017639 | AP155: 0.06665673823 | AQ155: 0.006050833498 | AR155: 0.04177182763 | AS155: 0.109504849 | AT155: 0.1318573228 | AU155: 0 | AV155: 0.1284062396 | AW155: 0.05145015945 | AX155: 0.005592642153 | AY155: 0.04579407977 | AZ155: 0.00229368856 | BA155: 0 | BB155: 0.07554552126 | BC155: 0.007524639104 | BD155: 0.1631592886 | BE155: 0.08359358688 | BF155: 0.1164777632 | BG155: 0.007838038791 | BH155: 0.003934580795
B156: 154 | C156: 0.330307931 | D156: 0.393957931 | E156: 0.2223375862 | F156: 0.2986362069 | G156: 0.3800868966 | H156: 0.3490575862 | I156: 0.2456968966 | J156: 0.3475572414 | K156: 0.3577234483 | L156: 0.2895037931 | M156: 0.3717365517 | N156: 0.2603217241 | O156: 0.17557 | P156: 0.4522331034 | Q156: 0.2675127586 | R156: 0.3007182759 | S156: 0.2562410345 | T156: 0.2212024138 | U156: 0.4188186207 | V156: 0.3717572414 | W156: 0.3103096552 | X156: 0.2568568966 | Y156: 0.2773024138 | Z156: 0.2031403448 | AA156: 0.1895744828 | AB156: 0.3807496552 | AC156: 0.4843870496 | AH156: 0.1906715962 | AI156: 0.08472561417 | AJ156: 0.2315366021 | AK156: 0.1773302697 | AL156: 0.1447637915 | AM156: 0.08828492745 | AN156: 0.05248969009 | AO156: 0.06195784008 | AP156: 0.2199080121 | AQ156: 0.02716745486 | AR156: 0.1281599056 | AS156: 0.1815875489 | AT156: 0.1884791175 | AU156: 0.00750364567 | AV156: 0.2401216066 | AW156: 0.09085226378 | AX156: 0.08699254715 | AY156: 0.08148840699 | AZ156: 0.06474599471 | BA156: 0.01656056133 | BB156: 0.123920559 | BC156: 0.1813639803 | BD156: 0.2130237162 | BE156: 0.1620787232 | BF156: 0.1729967722 | BG156: 0.03766052224 | BH156: 0.03471469403
B157: 155 | C157: 0.3312586207 | D157: 0.3925637931 | E157: 0.2194582759 | F157: 0.2815210345 | G157: 0.3744624138 | H157: 0.3459810345 | I157: 0.2427513793 | J157: 0.3465651724 | K157: 0.3653362069 | L157: 0.2832903448 | M157: 0.3696034483 | N157: 0.2376331034 | O157: 0.1727282759 | P157: 0.431467931 | Q157: 0.2809827586 | R157: 0.2986203448 | S157: 0.2565348276 | T157: 0.2217013793 | U157: 0.4176086207 | V157: 0.375027931 | W157: 0.3046024138 | X157: 0.25118 | Y157: 0.282407931 | Z157: 0.1936251724 | AA157: 0.1844206897 | AB157: 0.3759210345 | AC157: 0.4767670913 | AH157: 0.2224207442 | AI157: 0.1379798327 | AJ157: 0.2433214177 | AK157: 0.2162278414 | AL157: 0.163453485 | AM157: 0.1211364234 | AN157: 0.08565397007 | AO157: 0.07275201457 | AP157: 0.3163711104 | AQ157: 0.03794920104 | AR157: 0.1939616935 | AS157: 0.2184636609 | AT157: 0.2100648778 | AU157: 0.05807987537 | AV157: 0.3001165103 | AW157: 0.09954516519 | AX157: 0.1248070123 | AY157: 0.08822974242 | AZ157: 0.1134733377 | BA157: 0.02361962009 | BB157: 0.1370470672 | BC157: 0.3178377894 | BD157: 0.2194267607 | BE157: 0.2164631825 | BF157: 0.2039143902 | BG157: 0.05716020019 | BH157: 0.07808097749
B158: 156 | C158: 0.3350558621 | D158: 0.3992296552 | E158: 0.2193348276 | F158: 0.2770075862 | G158: 0.3786562069 | H158: 0.3480237931 | I158: 0.2396482759 | J158: 0.3489831034 | K158: 0.3932306897 | L158: 0.2791993103 | M158: 0.3765113793 | N158: 0.2213248276 | O158: 0.1722986207 | P158: 0.41498 | Q158: 0.2897582759 | R158: 0.3017824138 | S158: 0.2618965517 | T158: 0.2237124138 | U158: 0.4206796552 | V158: 0.3743486207 | W158: 0.3062668966 | X158: 0.2642889655 | Y158: 0.2831141379 | Z158: 0.1906317241 | AA158: 0.1855841379 | AB158: 0.3779862069 | AC158: 0.4690296143 | AH158: 0.2465618511 | AI158: 0.1707481533 | AJ158: 0.2438468981 | AK158: 0.2486305325 | AL158: 0.1722814062 | AM158: 0.1372929868 | AN158: 0.1064560891 | AO158: 0.06706359947 | AP158: 0.3914534295 | AQ158: 0.03412203736 | AR158: 0.2432034754 | AS158: 0.2455701928 | AT158: 0.2305323704 | AU158: 0.1057497867 | AV158: 0.3350530861 | AW158: 0.09701436765 | AX158: 0.1532439703 | AY158: 0.08407401683 | AZ158: 0.151804248 | BA158: 0.02623964366 | BB158: 0.1395032906 | BC158: 0.4181089566 | BD158: 0.2196845819 | BE158: 0.2470685412 | BF158: 0.2118738297 | BG158: 0.06072898339 | BH158: 0.1136834118
B159: 157 | C159: 0.3340765517 | D159: 0.4064806897 | E159: 0.2162551724 | F159: 0.2793355172 | G159: 0.3780013793 | H159: 0.3512537931 | I159: 0.2369213793 | J159: 0.3568344828 | K159: 0.4186031034 | L159: 0.2784041379 | M159: 0.3776048276 | N159: 0.2105875862 | O159: 0.1696868966 | P159: 0.4020168966 | Q159: 0.2899403448 | R159: 0.3082875862 | S159: 0.2619331034 | T159: 0.2257148276 | U159: 0.4247403448 | V159: 0.3735165517 | W159: 0.3109127586 | X159: 0.2785344828 | Y159: 0.2803941379 | Z159: 0.1866006897 | AA159: 0.1872362069 | AB159: 0.3835072414 | AC159: 0.4614022115 | AH159: 0.246810995 | AI159: 0.1757003831 | AJ159: 0.2138711634 | AK159: 0.2565269587 | AL159: 0.155762718 | AM159: 0.1317881512 | AN159: 0.09767172365 | AO159: 0.04421983121 | AP159: 0.419037686 | AQ159: 0.03484256379 | AR159: 0.2565665758 | AS159: 0.2381897939 | AT159: 0.2262548993 | AU159: 0.141153132 | AV159: 0.325726562 | AW159: 0.07705129324 | AX159: 0.1440838289 | AY159: 0.05979207812 | AZ159: 0.1607958346 | BA159: 0.0250800494 | BB159: 0.1213862515 | BC159: 0.4604805314 | BD159: 0.1929948535 | BE159: 0.2409484741 | BF159: 0.2112300637 | BG159: 0.05210701193 | BH159: 0.1326664434
B160: 158 | C160: 0.3302962069 | D160: 0.4084044828 | E160: 0.2143306897 | F160: 0.2661306897 | G160: 0.3762365517 | H160: 0.3577393103 | I160: 0.2378255172 | J160: 0.3710958621 | K160: 0.4303793103 | L160: 0.2790303448 | M160: 0.3707713793 | N160: 0.2043934483 | O160: 0.1676648276 | P160: 0.3876465517 | Q160: 0.2798696552 | R160: 0.3218531034 | S160: 0.2639586207 | T160: 0.2310424138 | U160: 0.4294448276 | V160: 0.3729472414 | W160: 0.3214124138 | X160: 0.2862206897 | Y160: 0.2807689655 | Z160: 0.1748675862 | AA160: 0.1891834483 | AB160: 0.3952537931 | AC160: 0.4535534379 | AH160: 0.2187780704 | AI160: 0.1504732016 | AJ160: 0.1586579531 | AK160: 0.245456083 | AL160: 0.1228255661 | AM160: 0.1085392429 | AN160: 0.07120858482 | AO160: 0.03004242122 | AP160: 0.4058416554 | AQ160: 0.01224285439 | AR160: 0.237408328 | AS160: 0.2032370751 | AT160: 0.1918366937 | AU160: 0.1425852406 | AV160: 0.2803686456 | AW160: 0.04087143621 | AX160: 0.1320102105 | AY160: 0.0355841932 | AZ160: 0.1457270464 | BA160: 0.02391056029 | BB160: 0.08801001732 | BC160: 0.4487204206 | BD160: 0.1480790444 | BE160: 0.2080377768 | BF160: 0.176627159 | BG160: 0.03346450844 | BH160: 0.1203266976
B161: 159 | C161: 0.3343644828 | D161: 0.4056734483 | E161: 0.2242665517 | F161: 0.2664013793 | G161: 0.3805055172 | H161: 0.3694827586 | I161: 0.2437793103 | J161: 0.3813037931 | K161: 0.4257086207 | L161: 0.2782493103 | M161: 0.3616862069 | N161: 0.2050506897 | O161: 0.1672458621 | P161: 0.3738848276 | Q161: 0.2605444828 | R161: 0.3406086207 | S161: 0.2660155172 | T161: 0.2418417241 | U161: 0.4373534483 | V161: 0.3715975862 | W161: 0.3359444828 | X161: 0.286562069 | Y161: 0.2914575862 | Z161: 0.1651637931 | AA161: 0.1860734483 | AB161: 0.4056837931 | AC161: 0.4456445625 | AH161: 0.1525430088 | AI161: 0.1147472323 | AJ161: 0.08000098149 | AK161: 0.190254687 | AL161: 0.08072475091 | AM161: 0.07490545455 | AN161: 0.03859235946 | AO161: 0 | AP161: 0.3593532505 | AQ161: 0 | AR161: 0.1883951327 | AS161: 0.1368066913 | AT161: 0.1305944911 | AU161: 0.1255156479 | AV161: 0.2006746793 | AW161: 0.0003617718972 | AX161: 0.0904201498 | AY161: 0 | AZ161: 0.1063219199 | BA161: 0.01992448853 | BB161: 0.05038456289 | BC161: 0.4045103323 | BD161: 0.07407980231 | BE161: 0.1305901305 | BF161: 0.110330047 | BG161: 0.01667602012 | BH161: 0.09883190309
B162: 160 | C162: 0.3545093103 | D162: 0.4087744828 | E162: 0.2447151724 | F162: 0.2793324138 | G162: 0.3958817241 | H162: 0.3874686207 | I162: 0.2534075862 | J162: 0.3881658621 | K162: 0.4001986207 | L162: 0.2754448276 | M162: 0.3612934483 | N162: 0.2144755172 | O162: 0.1733072414 | P162: 0.3651617241 | Q162: 0.2540724138 | R162: 0.3511551724 | S162: 0.2655831034 | T162: 0.255492069 | U162: 0.4462493103 | V162: 0.3719441379 | W162: 0.3447889655 | X162: 0.2824058621 | Y162: 0.3069448276 | Z162: 0.1801765517 | AA162: 0.1834296552 | AB162: 0.4131737931 | AC162: 0.4390966369 | AH162: 0.07789090909 | AI162: 0.05740392046 | AJ162: 0.0003043933636 | AK162: 0.1117931394 | AL162: 0.02180565453 | AM162: 0.02678809864 | AN162: 0 | AO162: 0 | AP162: 0.2840979103 | AQ162: 0 | AR162: 0.1167901428 | AS162: 0.05344424259 | AT162: 0.04750437856 | AU162: 0.08163748219 | AV162: 0.1007120095 | AW162: 0 | AX162: 0.04727887869 | AY162: 0 | AZ162: 0.03596263783 | BA162: 0 | BB162: 0 | BC162: 0.3483749246 | BD162: 0 | BE162: 0.04772026209 | BF162: 0 | BG162: 0 | BH162: 0.05720772603
B163: 161 | C163: 0.3729958621 | D163: 0.4126058621 | E163: 0.2591351724 | F163: 0.3108475862 | G163: 0.4134334483 | H163: 0.4009506897 | I163: 0.2631306897 | J163: 0.39108 | K163: 0.3847155172 | L163: 0.2696203448 | M163: 0.3685658621 | N163: 0.2207568966 | O163: 0.1831148276 | P163: 0.3639355172 | Q163: 0.2603731034 | R163: 0.3544886207 | S163: 0.2656806897 | T163: 0.2640951724 | U163: 0.4555444828 | V163: 0.3709313793 | W163: 0.3477227586 | X163: 0.2845141379 | Y163: 0.3159389655 | Z163: 0.20468 | AA163: 0.1822658621 | AB163: 0.4151986207 | AC163: 0.4318764122 | AH163: 0 | AI163: 0 | AJ163: 0 | AK163: 0 | AL163: 0 | AM163: 0 | AN163: 0 | AO163: 0 | AP163: 0.1759816582 | AQ163: 0 | AR163: 0.04582041419 | AS163: 0 | AT163: 0 | AU163: 0.03799389384 | AV163: 0.002554038525 | AW163: 0 | AX163: 0 | AY163: 0 | AZ163: 0 | BA163: 0 | BB163: 0 | BC163: 0.2432783237 | BD163: 0 | BE163: 0 | BF163: 0 | BG163: 0 | BH163: 0.01474775383
B164: 162 | C164: 0.39574 | D164: 0.4100337931 | E164: 0.2675372414 | F164: 0.3290717241 | G164: 0.4305893103 | H164: 0.4086465517 | I164: 0.2730165517 | J164: 0.3915137931 | K164: 0.3957058621 | L164: 0.2641006897 | M164: 0.3691541379 | N164: 0.2336093103 | O164: 0.1956755172 | P164: 0.3642368966 | Q164: 0.2667541379 | R164: 0.3574451724 | S164: 0.2646827586 | T164: 0.2703572414 | U164: 0.4604544828 | V164: 0.3709731034 | W164: 0.3479175862 | X164: 0.3058506897 | Y164: 0.3160382759 | Z164: 0.2209568966 | AA164: 0.1896972414 | AB164: 0.4163506897 | AC164: 0.4238073812 | AH164: 0 | AI164: 0 | AJ164: 0 | AK164: 0 | AL164: 0 | AM164: 0 | AN164: 0 | AO164: 0 | AP164: 0.03009313401 | AQ164: 0 | AR164: 0 | AS164: 0 | AT164: 0 | AU164: 0 | AV164: 0 | AW164: 0 | AX164: 0 | AY164: 0 | AZ164: 0 | BA164: 0 | BB164: 0 | BC164: 0.1056371154 | BD164: 0 | BE164: 0 | BF164: 0 | BG164: 0 | BH164: 0
B165: 163 | C165: 0.4150082759 | D165: 0.4056610345 | E165: 0.2775458621 | F165: 0.3329503448 | G165: 0.4442037931 | H165: 0.4129855172 | I165: 0.2808372414 | J165: 0.39023 | K165: 0.3991255172 | L165: 0.2585982759 | M165: 0.3639351724 | N165: 0.2511862069 | O165: 0.2028141379 | P165: 0.3693451724 | Q165: 0.272012069 | R165: 0.3574889655 | S165: 0.2605048276 | T165: 0.2755134483 | U165: 0.4612706897 | V165: 0.3706117241 | W165: 0.3453862069 | X165: 0.3215010345 | Y165: 0.3140027586 | Z165: 0.2236751724 | AA165: 0.2031989655 | AB165: 0.4152241379 | AC165: 0.4144654244 | AH165: 0 | AI165: 0 | AJ165: 0 | AK165: 0 | AL165: 0 | AM165: 0 | AN165: 0 | AO165: 0 | AP165: 0 | AQ165: 0 | AR165: 0 | AS165: 0 | AT165: 0 | AU165: 0 | AV165: 0 | AW165: 0 | AX165: 0 | AY165: 0 | AZ165: 0 | BA165: 0 | BB165: 0 | BC165: 0 | BD165: 0 | BE165: 0 | BF165: 0 | BG165: 0 | BH165: 0
B166: 164 | C166: 0.4313824138 | D166: 0.4007355172 | E166: 0.28467 | F166: 0.3434382759 | G166: 0.4506037931 | H166: 0.4151803448 | I166: 0.286207931 | J166: 0.3881065517 | K166: 0.3966403448 | L166: 0.2525813793 | M166: 0.3551458621 | N166: 0.2563693103 | O166: 0.2103686207 | P166: 0.3786293103 | Q166: 0.2759313793 | R166: 0.35589 | S166: 0.2547617241 | T166: 0.2785668966 | U166: 0.4574510345 | V166: 0.3692875862 | W166: 0.3421844828 | X166: 0.3311048276 | Y166: 0.3113696552 | Z166: 0.2200682759 | AA166: 0.2206431034 | AB166: 0.4120972414 | AC166: 0.4058244752 | AH166: 0 | AI166: 0 | AJ166: 0 | AK166: 0 | AL166: 0 | AM166: 0 | AN166: 0 | AO166: 0 | AP166: 0 | AQ166: 0 | AR166: 0 | AS166: 0 | AT166: 0 | AU166: 0 | AV166: 0 | AW166: 0 | AX166: 0 | AY166: 0 | AZ166: 0 | BA166: 0 | BB166: 0 | BC166: 0 | BD166: 0 | BE166: 0 | BF166: 0 | BG166: 0 | BH166: 0
B167: 165 | C167: 0.4404641379 | D167: 0.3941072414 | E167: 0.2899396552 | F167: 0.3503310345 | G167: 0.4490006897 | H167: 0.4137313793 | I167: 0.2900989655 | J167: 0.384727931 | K167: 0.3930806897 | L167: 0.2468868966 | M167: 0.3432789655 | N167: 0.2601075862 | O167: 0.2163996552 | P167: 0.3888658621 | Q167: 0.2791451724 | R167: 0.3533062069 | S167: 0.2500358621 | T167: 0.2755558621 | U167: 0.4550644828 | V167: 0.3659955172 | W167: 0.3424382759 | X167: 0.3363948276 | Y167: 0.3081127586 | Z167: 0.2140082759 | AA167: 0.2289537931 | AB167: 0.4072258621 | AC167: 0.3966049491 | AH167: 0 | AI167: 0 | AJ167: 0 | AK167: 0 | AL167: 0 | AM167: 0 | AN167: 0 | AO167: 0 | AP167: 0 | AQ167: 0 | AR167: 0 | AS167: 0 | AT167: 0 | AU167: 0 | AV167: 0 | AW167: 0 | AX167: 0 | AY167: 0 | AZ167: 0 | BA167: 0 | BB167: 0 | BC167: 0 | BD167: 0 | BE167: 0 | BF167: 0 | BG167: 0 | BH167: 0
B168: 166 | C168: 0.4365113793 | D168: 0.3872472414 | E168: 0.2829286207 | F168: 0.3566772414 | G168: 0.4360668966 | H168: 0.41232 | I168: 0.2915010345 | J168: 0.3814113793 | K168: 0.3928231034 | L168: 0.2444717241 | M168: 0.3322758621 | N168: 0.257212069 | O168: 0.2217617241 | P168: 0.3989903448 | Q168: 0.2809986207 | R168: 0.3510324138 | S168: 0.2482693103 | T168: 0.2668717241 | U168: 0.4556541379 | V168: 0.3613424138 | W168: 0.3461265517 | X168: 0.3412706897 | Y168: 0.2995324138 | Z168: 0.2073224138 | AA168: 0.2260162069 | AB168: 0.4033765517 | AC168: 0.3887342568 | AH168: 0 | AI168: 0 | AJ168: 0 | AK168: 0 | AL168: 0 | AM168: 0 | AN168: 0 | AO168: 0 | AP168: 0 | AQ168: 0 | AR168: 0 | AS168: 0 | AT168: 0 | AU168: 0 | AV168: 0 | AW168: 0 | AX168: 0 | AY168: 0 | AZ168: 0 | BA168: 0 | BB168: 0 | BC168: 0 | BD168: 0 | BE168: 0 | BF168: 0 | BG168: 0 | BH168: 0
B169: 167 | C169: 0.4227406897 | D169: 0.3798217241 | E169: 0.2736968966 | F169: 0.3723144828 | G169: 0.4242289655 | H169: 0.4097096552 | I169: 0.2903996552 | J169: 0.3815896552 | K169: 0.393292069 | L169: 0.2445441379 | M169: 0.32175 | N169: 0.2505593103 | O169: 0.2211934483 | P169: 0.4082110345 | Q169: 0.2840131034 | R169: 0.3485041379 | S169: 0.2430286207 | T169: 0.2609703448 | U169: 0.4524275862 | V169: 0.3563913793 | W169: 0.3509927586 | X169: 0.3429182759 | Y169: 0.2901255172 | Z169: 0.2009993103 | AA169: 0.2240941379 | AB169: 0.4028396552 | AC169: 0.3819180666 | AH169: 0 | AI169: 0 | AJ169: 0 | AK169: 0 | AL169: 0 | AM169: 0 | AN169: 0 | AO169: 0 | AP169: 0 | AQ169: 0 | AR169: 0 | AS169: 0 | AT169: 0 | AU169: 0 | AV169: 0 | AW169: 0 | AX169: 0 | AY169: 0 | AZ169: 0 | BA169: 0 | BB169: 0 | BC169: 0 | BD169: 0 | BE169: 0 | BF169: 0 | BG169: 0 | BH169: 0
B170: 168 | C170: 0.4161603448 | D170: 0.3681862069 | E170: 0.2701062069 | F170: 0.3817265517 | G170: 0.4134944828 | H170: 0.4042344828 | I170: 0.2867358621 | J170: 0.3826189655 | K170: 0.3961772414 | L170: 0.2467141379 | M170: 0.3095341379 | N170: 0.2455251724 | O170: 0.2207089655 | P170: 0.4145758621 | Q170: 0.2856151724 | R170: 0.3457303448 | S170: 0.2352389655 | T170: 0.2554634483 | U170: 0.4413696552 | V170: 0.3505693103 | W170: 0.3563206897 | X170: 0.3421686207 | Y170: 0.2801889655 | Z170: 0.1899193103 | AA170: 0.2180713793 | AB170: 0.4029734483 | AC170: 0.3772940804 | AH170: 0 | AI170: 0 | AJ170: 0 | AK170: 0 | AL170: 0 | AM170: 0 | AN170: 0 | AO170: 0 | AP170: 0 | AQ170: 0 | AR170: 0 | AS170: 0 | AT170: 0 | AU170: 0 | AV170: 0 | AW170: 0 | AX170: 0 | AY170: 0 | AZ170: 0 | BA170: 0 | BB170: 0 | BC170: 0 | BD170: 0 | BE170: 0 | BF170: 0 | BG170: 0 | BH170: 0
B171: 169 | C171: 0.4018310345 | D171: 0.3537948276 | E171: 0.2643034483 | F171: 0.3798924138 | G171: 0.4014596552 | H171: 0.3945317241 | I171: 0.283182069 | J171: 0.381417931 | K171: 0.3954875862 | L171: 0.2473006897 | M171: 0.2977668966 | N171: 0.2460396552 | O171: 0.2124965517 | P171: 0.4178544828 | Q171: 0.2841968966 | R171: 0.3441037931 | S171: 0.224432069 | T171: 0.25319 | U171: 0.426142069 | V171: 0.3415465517 | W171: 0.3644475862 | X171: 0.3420382759 | Y171: 0.2715110345 | Z171: 0.1879017241 | AA171: 0.2101524138 | AB171: 0.400852069 | AC171: 0.3736705199 | AH171: 0 | AI171: 0 | AJ171: 0 | AK171: 0 | AL171: 0 | AM171: 0 | AN171: 0 | AO171: 0 | AP171: 0 | AQ171: 0 | AR171: 0 | AS171: 0 | AT171: 0 | AU171: 0 | AV171: 0 | AW171: 0 | AX171: 0 | AY171: 0 | AZ171: 0 | BA171: 0 | BB171: 0 | BC171: 0 | BD171: 0 | BE171: 0 | BF171: 0 | BG171: 0 | BH171: 0
B172: 170 | C172: 0.3937396552 | D172: 0.3388906897 | E172: 0.2598996552 | F172: 0.37912 | G172: 0.3952251724 | H172: 0.3831344828 | I172: 0.2797844828 | J172: 0.3826044828 | K172: 0.3992358621 | L172: 0.2462282759 | M172: 0.287707931 | N172: 0.2470668966 | O172: 0.2054313793 | P172: 0.4196617241 | Q172: 0.2815086207 | R172: 0.3434537931 | S172: 0.2122437931 | T172: 0.2526327586 | U172: 0.4089917241 | V172: 0.3320837931 | W172: 0.3744537931 | X172: 0.3380013793 | Y172: 0.2653710345 | Z172: 0.183707931 | AA172: 0.2091975862 | AB172: 0.3995331034 | AC172: 0.3714513323 | AH172: 0 | AI172: 0 | AJ172: 0 | AK172: 0 | AL172: 0 | AM172: 0 | AN172: 0 | AO172: 0 | AP172: 0 | AQ172: 0 | AR172: 0 | AS172: 0 | AT172: 0 | AU172: 0 | AV172: 0 | AW172: 0 | AX172: 0 | AY172: 0 | AZ172: 0 | BA172: 0 | BB172: 0 | BC172: 0 | BD172: 0 | BE172: 0 | BF172: 0 | BG172: 0 | BH172: 0
B173: 171 | C173: 0.386142069 | D173: 0.3245837931 | E173: 0.2534593103 | F173: 0.3737155172 | G173: 0.3885582759 | H173: 0.3721710345 | I173: 0.2768751724 | J173: 0.3827006897 | K173: 0.4038372414 | L173: 0.2430565517 | M173: 0.2810517241 | N173: 0.252352069 | O173: 0.2058234483 | P173: 0.4196144828 | Q173: 0.2778372414 | R173: 0.3429655172 | S173: 0.2019437931 | T173: 0.2475682759 | U173: 0.3910131034 | V173: 0.3258451724 | W173: 0.3837575862 | X173: 0.3330944828 | Y173: 0.2618841379 | Z173: 0.181642069 | AA173: 0.2063334483 | AB173: 0.396537931 | AC173: 0.3719199223 | AH173: 0 | AI173: 0 | AJ173: 0 | AK173: 0 | AL173: 0 | AM173: 0 | AN173: 0 | AO173: 0 | AP173: 0 | AQ173: 0 | AR173: 0 | AS173: 0 | AT173: 0 | AU173: 0 | AV173: 0 | AW173: 0 | AX173: 0 | AY173: 0 | AZ173: 0 | BA173: 0 | BB173: 0 | BC173: 0 | BD173: 0 | BE173: 0 | BF173: 0 | BG173: 0 | BH173: 0
B174: 172 | C174: 0.3878958621 | D174: 0.3100313793 | E174: 0.2469965517 | F174: 0.3580534483 | G174: 0.3802644828 | H174: 0.3603134483 | I174: 0.2763944828 | J174: 0.380057931 | K174: 0.4056134483 | L174: 0.235757931 | M174: 0.27738 | N174: 0.2633855172 | O174: 0.2028686207 | P174: 0.4174317241 | Q174: 0.2748389655 | R174: 0.3419872414 | S174: 0.1879537931 | T174: 0.2439717241 | U174: 0.3712655172 | V174: 0.3285858621 | W174: 0.3896427586 | X174: 0.3277458621 | Y174: 0.2544875862 | Z174: 0.1839082759 | AA174: 0.2080341379 | AB174: 0.397212069 | AC174: 0.3747662181 | AH174: 0 | AI174: 0 | AJ174: 0 | AK174: 0 | AL174: 0 | AM174: 0 | AN174: 0 | AO174: 0 | AP174: 0 | AQ174: 0 | AR174: 0 | AS174: 0 | AT174: 0 | AU174: 0 | AV174: 0 | AW174: 0 | AX174: 0 | AY174: 0 | AZ174: 0 | BA174: 0 | BB174: 0 | BC174: 0 | BD174: 0 | BE174: 0 | BF174: 0 | BG174: 0 | BH174: 0
B175: 173 | C175: 0.39087 | D175: 0.2994741379 | E175: 0.2420417241 | F175: 0.3445955172 | G175: 0.3725437931 | H175: 0.3485544828 | I175: 0.2751148276 | J175: 0.3750486207 | K175: 0.4051737931 | L175: 0.2275906897 | M175: 0.275657931 | N175: 0.2754362069 | O175: 0.1966941379 | P175: 0.4134003448 | Q175: 0.26915 | R175: 0.3419141379 | S175: 0.1737996552 | T175: 0.2376955172 | U175: 0.3586331034 | V175: 0.3313534483 | W175: 0.3934193103 | X175: 0.3212044828 | Y175: 0.2453196552 | Z175: 0.1880775862 | AA175: 0.2078137931 | AB175: 0.3975017241 | AC175: 0.3791556036 | AH175: 0 | AI175: 0 | AJ175: 0 | AK175: 0 | AL175: 0 | AM175: 0 | AN175: 0 | AO175: 0 | AP175: 0 | AQ175: 0 | AR175: 0 | AS175: 0 | AT175: 0 | AU175: 0 | AV175: 0 | AW175: 0 | AX175: 0 | AY175: 0 | AZ175: 0 | BA175: 0 | BB175: 0 | BC175: 0 | BD175: 0 | BE175: 0 | BF175: 0 | BG175: 0 | BH175: 0
B176: 174 | C176: 0.3979482759 | D176: 0.2932955172 | E176: 0.23879 | F176: 0.3383206897 | G176: 0.3694337931 | H176: 0.3373613793 | I176: 0.2712417241 | J176: 0.3676313793 | K176: 0.4010362069 | L176: 0.2213610345 | M176: 0.2765027586 | N176: 0.2847962069 | O176: 0.1985703448 | P176: 0.4101296552 | Q176: 0.2619165517 | R176: 0.3457193103 | S176: 0.1636803448 | T176: 0.2362196552 | U176: 0.3548093103 | V176: 0.3321644828 | W176: 0.3957868966 | X176: 0.3135106897 | Y176: 0.2373924138 | Z176: 0.1933734483 | AA176: 0.2114737931 | AB176: 0.3957765517 | AC176: 0.3834036524 | AH176: 0 | AI176: 0 | AJ176: 0 | AK176: 0 | AL176: 0 | AM176: 0 | AN176: 0 | AO176: 0 | AP176: 0 | AQ176: 0 | AR176: 0 | AS176: 0 | AT176: 0 | AU176: 0 | AV176: 0 | AW176: 0 | AX176: 0 | AY176: 0 | AZ176: 0 | BA176: 0 | BB176: 0 | BC176: 0 | BD176: 0 | BE176: 0 | BF176: 0 | BG176: 0 | BH176: 0
B177: 175 | C177: 0.4066196552 | D177: 0.2931441379 | E177: 0.2304034483 | F177: 0.3308503448 | G177: 0.3659427586 | H177: 0.3286989655 | I177: 0.2659244828 | J177: 0.3585672414 | K177: 0.3996148276 | L177: 0.2181131034 | M177: 0.2810489655 | N177: 0.2857882759 | O177: 0.2031031034 | P177: 0.4086717241 | Q177: 0.2555262069 | R177: 0.3509472414 | S177: 0.1588293103 | T177: 0.234822069 | U177: 0.3581213793 | V177: 0.3349489655 | W177: 0.3981872414 | X177: 0.3050103448 | Y177: 0.2294913793 | Z177: 0.1939375862 | AA177: 0.2145951724 | AB177: 0.3917148276 | AC177: 0.3877169772 | AH177: 0 | AI177: 0 | AJ177: 0.007531837543 | AK177: 0 | AL177: 0 | AM177: 0 | AN177: 0 | AO177: 0 | AP177: 0 | AQ177: 0 | AR177: 0 | AS177: 0 | AT177: 0 | AU177: 0 | AV177: 0 | AW177: 0 | AX177: 0 | AY177: 0 | AZ177: 0 | BA177: 0 | BB177: 0 | BC177: 0 | BD177: 0.008471638493 | BE177: 0 | BF177: 0 | BG177: 0 | BH177: 0
B178: 176 | C178: 0.4096310345 | D178: 0.2971951724 | E178: 0.215877931 | F178: 0.3247241379 | G178: 0.3630931034 | H178: 0.320492069 | I178: 0.2587017241 | J178: 0.3495686207 | K178: 0.3998617241 | L178: 0.2182386207 | M178: 0.2871448276 | N178: 0.2795382759 | O178: 0.20714 | P178: 0.4062682759 | Q178: 0.2454382759 | R178: 0.3512355172 | S178: 0.1510103448 | T178: 0.2338775862 | U178: 0.3658093103 | V178: 0.3350110345 | W178: 0.3987693103 | X178: 0.2965337931 | Y178: 0.2148658621 | Z178: 0.1848724138 | AA178: 0.2162727586 | AB178: 0.3870003448 | AC178: 0.3929032758 | AH178: 0.009184149184 | AI178: 0 | AJ178: 0.1019107773 | AK178: 0.004347430757 | AL178: 0.007287192193 | AM178: 0.001054962722 | AN178: 0 | AO178: 0.007604252462 | AP178: 0 | AQ178: 0 | AR178: 0 | AS178: 0.02763586799 | AT178: 0.04319772183 | AU178: 0 | AV178: 0.02559013898 | AW178: 0.01011772996 | AX178: 0 | AY178: 0.009691529511 | AZ178: 0 | BA178: 0 | BB178: 0.0164314754 | BC178: 0 | BD178: 0.09354441704 | BE178: 0.006635292952 | BF178: 0.03073858458 | BG178: 0 | BH178: 0
B179: 177 | C179: 0.3934172414 | D179: 0.3017106897 | E179: 0.2058827586 | F179: 0.3144589655 | G179: 0.3520434483 | H179: 0.3105510345 | I179: 0.2499658621 | J179: 0.3408393103 | K179: 0.3859213793 | L179: 0.2173934483 | M179: 0.291102069 | N179: 0.2596489655 | O179: 0.2038789655 | P179: 0.4018731034 | Q179: 0.2371206897 | R179: 0.3447975862 | S179: 0.1456351724 | T179: 0.2311034483 | U179: 0.3734055172 | V179: 0.3352996552 | W179: 0.391917931 | X179: 0.2896744828 | Y179: 0.2041775862 | Z179: 0.1616831034 | AA179: 0.2057817241 | AB179: 0.38125 | AC179: 0.3974938818 | AH179: 0.1207026348 | AI179: 0.00610546252 | AJ179: 0.1964512034 | AK179: 0.07655775537 | AL179: 0.0651762274 | AM179: 0.02490894216 | AN179: 0.01500826158 | AO179: 0.02826176158 | AP179: 0.06588892761 | AQ179: 0.006502161629 | AR179: 0.04293362491 | AS179: 0.1219244863 | AT179: 0.1591141068 | AU179: 0 | AV179: 0.1386010865 | AW179: 0.04606231202 | AX179: 0.008245004327 | AY179: 0.03856051763 | AZ179: 0.003238983314 | BA179: 0 | BB179: 0.06843202334 | BC179: 0.007361059993 | BD179: 0.1855915708 | BE179: 0.09935166872 | BF179: 0.1366071836 | BG179: 0.007994351609 | BH179: 0.004323549118
B180: 178 | C180: 0.3848317241 | D180: 0.3021568966 | E180: 0.2029710345 | F180: 0.3018327586 | G180: 0.3429996552 | H180: 0.2980231034 | I180: 0.2391637931 | J180: 0.3327206897 | K180: 0.3623258621 | L180: 0.2157386207 | M180: 0.29191 | N180: 0.2418096552 | O180: 0.2063286207 | P180: 0.3970551724 | Q180: 0.2458465517 | R180: 0.3317503448 | S180: 0.1462396552 | T180: 0.224477931 | U180: 0.3736334483 | V180: 0.330277931 | W180: 0.3839572414 | X180: 0.2762810345 | Y180: 0.2048355172 | Z180: 0.1461817241 | AA180: 0.2026475862 | AB180: 0.3648827586 | AC180: 0.3966865987 | AH180: 0.1975570606 | AI180: 0.08407885508 | AJ180: 0.2560050617 | AK180: 0.1675764036 | AL180: 0.1290919488 | AM180: 0.0818028005 | AN180: 0.0571140803 | AO180: 0.04673480551 | AP180: 0.2112372911 | AQ180: 0.02216582576 | AR180: 0.1267192887 | AS180: 0.1967195521 | AT180: 0.2142339268 | AU180: 0.007045043119 | AV180: 0.2435870706 | AW180: 0.06750174519 | AX180: 0.08487041916 | AY180: 0.05452375027 | AZ180: 0.0816159125 | BA180: 0.01708318275 | BB180: 0.1061036185 | BC180: 0.2028485465 | BD180: 0.2374633123 | BE180: 0.167755661 | BF180: 0.1910247144 | BG180: 0.03622427804 | BH180: 0.03436658428
B181: 179 | C181: 0.3850910345 | D181: 0.30869 | E181: 0.2061934483 | F181: 0.2954417241 | G181: 0.3482668966 | H181: 0.2941082759 | I181: 0.2266441379 | J181: 0.3271006897 | K181: 0.3766406897 | L181: 0.2123455172 | M181: 0.298732069 | N181: 0.231732069 | O181: 0.2132448276 | P181: 0.39036 | Q181: 0.2554582759 | R181: 0.3229651724 | S181: 0.1554510345 | T181: 0.2196962069 | U181: 0.3758548276 | V181: 0.3214913793 | W181: 0.3817982759 | X181: 0.2781041379 | Y181: 0.2136117241 | Z181: 0.135977931 | AA181: 0.2138858621 | AB181: 0.3475817241 | AC181: 0.3938710853 | AH181: 0.2339265438 | AI181: 0.1217473766 | AJ181: 0.2604618362 | AK181: 0.2134979614 | AL181: 0.1602114228 | AM181: 0.1138018839 | AN181: 0.1065446275 | AO181: 0.06029371957 | AP181: 0.31015875 | AQ181: 0.028963496 | AR181: 0.1905738075 | AS181: 0.2487801791 | AT181: 0.2463181645 | AU181: 0.04904388068 | AV181: 0.3081477849 | AW181: 0.08382672143 | AX181: 0.1089813576 | AY181: 0.07281539811 | AZ181: 0.1295088582 | BA181: 0.0266391289 | BB181: 0.120284847 | BC181: 0.3391812865 | BD181: 0.2503034113 | BE181: 0.2253477022 | BF181: 0.2295938607 | BG181: 0.05792637365 | BH181: 0.08227120378
B182: 180 | C182: 0.3861513793 | D182: 0.3184489655 | E182: 0.2117796552 | F182: 0.298172069 | G182: 0.3568486207 | H182: 0.2981110345 | I182: 0.2147175862 | J182: 0.3213751724 | K182: 0.4012624138 | L182: 0.2128137931 | M182: 0.3113710345 | N182: 0.2186265517 | O182: 0.2217665517 | P182: 0.3880496552 | Q182: 0.2622324138 | R182: 0.32129 | S182: 0.1710027586 | T182: 0.2200975862 | U182: 0.3851396552 | V182: 0.3133541379 | W182: 0.3823272414 | X182: 0.2905789655 | Y182: 0.2170717241 | Z182: 0.1273758621 | AA182: 0.2232506897 | AB182: 0.3371217241 | AC182: 0.394331292 | AH182: 0.2608716472 | AI182: 0.1508044111 | AJ182: 0.2683173337 | AK182: 0.2470228982 | AL182: 0.1770556585 | AM182: 0.1360376206 | AN182: 0.1194758487 | AO182: 0.04932269974 | AP182: 0.3873309136 | AQ182: 0.02644770957 | AR182: 0.236119932 | AS182: 0.2733036688 | AT182: 0.2614564368 | AU182: 0.08938537859 | AV182: 0.3419034381 | AW182: 0.07679458398 | AX182: 0.1191781643 | AY182: 0.06829717866 | AZ182: 0.16205826 | BA182: 0.02975160208 | BB182: 0.1275086312 | BC182: 0.4633744315 | BD182: 0.2538019975 | BE182: 0.2615789075 | BF182: 0.2322488785 | BG182: 0.06223578983 | BH182: 0.1189827275
B183: 181 | C183: 0.3866358621 | D183: 0.3253496552 | E183: 0.2107755172 | F183: 0.2930651724 | G183: 0.3624834483 | H183: 0.3036603448 | I183: 0.2052289655 | J183: 0.3168824138 | K183: 0.4142124138 | L183: 0.2161186207 | M183: 0.3207786207 | N183: 0.2067158621 | O183: 0.2283931034 | P183: 0.3930213793 | Q183: 0.2672737931 | R183: 0.325642069 | S183: 0.1838237931 | T183: 0.2206758621 | U183: 0.3950317241 | V183: 0.3058165517 | W183: 0.383552069 | X183: 0.30191 | Y183: 0.2167524138 | Z183: 0.1227303448 | AA183: 0.2253427586 | AB183: 0.33 | AC183: 0.3969654954 | AH183: 0.2417249417 | AI183: 0.1528364488 | AJ183: 0.2325686632 | AK183: 0.2475985155 | AL183: 0.164347888 | AM183: 0.1329829689 | AN183: 0.1216374502 | AO183: 0.03491729079 | AP183: 0.4214642656 | AQ183: 0.0301985286 | AR183: 0.249824817 | AS183: 0.2575129488 | AT183: 0.2357587045 | AU183: 0.1223761563 | AV183: 0.3274056028 | AW183: 0.06246259935 | AX183: 0.106036143 | AY183: 0.0524695248 | AZ183: 0.1695684592 | BA183: 0.02960099266 | BB183: 0.1170952107 | BC183: 0.5028182547 | BD183: 0.2203580167 | BE183: 0.2538553137 | BF183: 0.2080880188 | BG183: 0.05943854081 | BH183: 0.1379820619
B184: 182 | C184: 0.3827382759 | D184: 0.3276027586 | E184: 0.2089527586 | F184: 0.2814331034 | G184: 0.3689958621 | H184: 0.3099041379 | I184: 0.2009348276 | J184: 0.3142244828 | K184: 0.4162148276 | L184: 0.2210865517 | M184: 0.3241334483 | N184: 0.1995148276 | O184: 0.2310665517 | P184: 0.3994437931 | Q184: 0.2641524138 | R184: 0.3297393103 | S184: 0.1892634483 | T184: 0.2210972414 | U184: 0.403437931 | V184: 0.3023865517 | W184: 0.3862258621 | X184: 0.3054344828 | Y184: 0.2194596552 | Z184: 0.1163689655 | AA184: 0.225122069 | AB184: 0.3292272414 | AC184: 0.399789654 | AH184: 0.2086372778 | AI184: 0.1365008557 | AJ184: 0.1820817342 | AK184: 0.2401138514 | AL184: 0.1278193128 | AM184: 0.1116019835 | AN184: 0.08862971892 | AO184: 0.03576551537 | AP184: 0.4155945148 | AQ184: 0.0112135108 | AR184: 0.2327159731 | AS184: 0.2125372361 | AT184: 0.1910903864 | AU184: 0.1289137856 | AV184: 0.2807300208 | AW184: 0.03712720153 | AX184: 0.1015299146 | AY184: 0.03401933831 | AZ184: 0.1444305094 | BA184: 0.02703749908 | BB184: 0.09059528582 | BC184: 0.525588734 | BD184: 0.1672653217 | BE184: 0.223108458 | BF184: 0.1680518537 | BG184: 0.04072728567 | BH184: 0.130203654
B185: 183 | C185: 0.3844962069 | D185: 0.3290586207 | E185: 0.2121510345 | F185: 0.2878693103 | G185: 0.3821424138 | H185: 0.3189993103 | I185: 0.2016675862 | J185: 0.3097958621 | K185: 0.4061675862 | L185: 0.2240186207 | M185: 0.3217851724 | N185: 0.2020134483 | O185: 0.2371713793 | P185: 0.4001744828 | Q185: 0.2490044828 | R185: 0.3324137931 | S185: 0.1916413793 | T185: 0.2197096552 | U185: 0.4069410345 | V185: 0.3011406897 | W185: 0.3935810345 | X185: 0.3058093103 | Y185: 0.2321889655 | Z185: 0.1277634483 | AA185: 0.2281468966 | AB185: 0.3325210345 | AC185: 0.4015073736 | AH185: 0.1442084835 | AI185: 0.09865162123 | AJ185: 0.1015108962 | AK185: 0.1904012454 | AL185: 0.07612999538 | AM185: 0.07345588558 | AN185: 0.04248976936 | AO185: 0 | AP185: 0.3665121304 | AQ185: 0 | AR185: 0.1891364646 | AS185: 0.1368762306 | AT185: 0.1167038831 | AU185: 0.1036457899 | AV185: 0.2000723392 | AW185: 0.002079392781 | AX185: 0.07029247356 | AY185: 0 | AZ185: 0.09890251121 | BA185: 0.02011177689 | BB185: 0.04963191079 | BC185: 0.4821122524 | BD185: 0.0844029636 | BE185: 0.1452073809 | BF185: 0.09752794882 | BG185: 0.01949683768 | BH185: 0.1002052884
B186: 184 | C186: 0.3945431034 | D186: 0.3358382759 | E186: 0.2204555172 | F186: 0.2964972414 | G186: 0.3972358621 | H186: 0.3295982759 | I186: 0.2053196552 | J186: 0.3086675862 | K186: 0.3716286207 | L186: 0.224427931 | M186: 0.3232710345 | N186: 0.2211203448 | O186: 0.2425048276 | P186: 0.396037931 | Q186: 0.2365468966 | R186: 0.3293944828 | S186: 0.1983037931 | T186: 0.221142069 | U186: 0.412322069 | V186: 0.3002548276 | W186: 0.398432069 | X186: 0.2982282759 | Y186: 0.2453651724 | Z186: 0.1451296552 | AA186: 0.2325658621 | AB186: 0.3332468966 | AC186: 0.4021237624 | AH186: 0.07398601399 | AI186: 0.04671611671 | AJ186: 0.001107598246 | AK186: 0.1136698394 | AL186: 0.02382740292 | AM186: 0.02662660015 | AN186: 0 | AO186: 0 | AP186: 0.2939820631 | AQ186: 0 | AR186: 0.1230558976 | AS186: 0.05586985277 | AT186: 0.04917247033 | AU186: 0.07076212467 | AV186: 0.09845438013 | AW186: 0 | AX186: 0.03502243976 | AY186: 0 | AZ186: 0.03118379517 | BA186: 0 | BB186: 0 | BC186: 0.4344418927 | BD186: 0 | BE186: 0.05109656551 | BF186: 0 | BG186: 0 | BH186: 0.0599792932
B187: 185 | C187: 0.4048889655 | D187: 0.3481127586 | E187: 0.2251727586 | F187: 0.3033437931 | G187: 0.4067603448 | H187: 0.3367189655 | I187: 0.2101893103 | J187: 0.3079137931 | K187: 0.3526851724 | L187: 0.2222748276 | M187: 0.3326141379 | N187: 0.2448134483 | O187: 0.2501072414 | P187: 0.3903744828 | Q187: 0.2434868966 | R187: 0.3241027586 | S187: 0.2052362069 | T187: 0.2209255172 | U187: 0.4188372414 | V187: 0.299397931 | W187: 0.3972358621 | X187: 0.2961341379 | Y187: 0.2523341379 | Z187: 0.1639875862 | AA187: 0.2294562069 | AB187: 0.3306941379 | AC187: 0.4014630339 | AH187: 0 | AI187: 0 | AJ187: 0 | AK187: 0 | AL187: 0 | AM187: 0 | AN187: 0 | AO187: 0 | AP187: 0.1840415611 | AQ187: 0 | AR187: 0.04541916861 | AS187: 0 | AT187: 0 | AU187: 0.03347756171 | AV187: 0.002789122147 | AW187: 0 | AX187: 0 | AY187: 0 | AZ187: 0 | BA187: 0 | BB187: 0 | BC187: 0.2948513475 | BD187: 0 | BE187: 0 | BF187: 0 | BG187: 0 | BH187: 0.01478812672
B188: 186 | C188: 0.4097893103 | D188: 0.3561341379 | E188: 0.2261893103 | F188: 0.3039634483 | G188: 0.4082427586 | H188: 0.3398155172 | I188: 0.2153748276 | J188: 0.3063006897 | K188: 0.366632069 | L188: 0.2185355172 | M188: 0.3391141379 | N188: 0.2651206897 | O188: 0.2464217241 | P188: 0.3877168966 | Q188: 0.2497965517 | R188: 0.3180565517 | S188: 0.2070882759 | T188: 0.2183265517 | U188: 0.4223186207 | V188: 0.3009568966 | W188: 0.3922310345 | X188: 0.3125172414 | Y188: 0.2556406897 | Z188: 0.1647268966 | AA188: 0.226897931 | AB188: 0.3283596552 | AC188: 0.3967391034 | AH188: 0 | AI188: 0 | AJ188: 0 | AK188: 0 | AL188: 0 | AM188: 0 | AN188: 0 | AO188: 0 | AP188: 0.03425268667 | AQ188: 0 | AR188: 0 | AS188: 0 | AT188: 0 | AU188: 0 | AV188: 0 | AW188: 0 | AX188: 0 | AY188: 0 | AZ188: 0 | BA188: 0 | BB188: 0 | BC188: 0.1309029443 | BD188: 0 | BE188: 0 | BF188: 0 | BG188: 0 | BH188: 0
B189: 187 | C189: 0.415527931 | D189: 0.3657865517 | E189: 0.2281458621 | F189: 0.3082403448 | G189: 0.4092355172 | H189: 0.3412793103 | I189: 0.2194441379 | J189: 0.3046493103 | K189: 0.3762706897 | L189: 0.2153472414 | M189: 0.3425158621 | N189: 0.280947931 | O189: 0.2435755172 | P189: 0.3855962069 | Q189: 0.2574824138 | R189: 0.3127344828 | S189: 0.2082737931 | T189: 0.2164651724 | U189: 0.4219286207 | V189: 0.3007806897 | W189: 0.385297931 | X189: 0.3215403448 | Y189: 0.2589068966 | Z189: 0.1711617241 | AA189: 0.2254165517 | AB189: 0.3278906897 | AC189: 0.3905072098 | AH189: 0 | AI189: 0 | AJ189: 0 | AK189: 0 | AL189: 0 | AM189: 0 | AN189: 0 | AO189: 0 | AP189: 0 | AQ189: 0 | AR189: 0 | AS189: 0 | AT189: 0 | AU189: 0 | AV189: 0 | AW189: 0 | AX189: 0 | AY189: 0 | AZ189: 0 | BA189: 0 | BB189: 0 | BC189: 0 | BD189: 0 | BE189: 0 | BF189: 0 | BG189: 0 | BH189: 0
B190: 188 | C190: 0.4164158621 | D190: 0.3755051724 | E190: 0.2247634483 | F190: 0.3189886207 | G190: 0.4090637931 | H190: 0.341252069 | I190: 0.2231093103 | J190: 0.2983882759 | K190: 0.3799413793 | L190: 0.2119717241 | M190: 0.3457931034 | N190: 0.2922686207 | O190: 0.2409127586 | P190: 0.3830165517 | Q190: 0.2629306897 | R190: 0.3071 | S190: 0.2126944828 | T190: 0.2120662069 | U190: 0.4187817241 | V190: 0.301097931 | W190: 0.3771158621 | X190: 0.32237 | Y190: 0.2602265517 | Z190: 0.1710734483 | AA190: 0.2261382759 | AB190: 0.3299489655 | AC190: 0.3845579024 | AH190: 0 | AI190: 0 | AJ190: 0 | AK190: 0 | AL190: 0 | AM190: 0 | AN190: 0 | AO190: 0 | AP190: 0 | AQ190: 0 | AR190: 0 | AS190: 0 | AT190: 0 | AU190: 0 | AV190: 0 | AW190: 0 | AX190: 0 | AY190: 0 | AZ190: 0 | BA190: 0 | BB190: 0 | BC190: 0 | BD190: 0 | BE190: 0 | BF190: 0 | BG190: 0 | BH190: 0
B191: 189 | C191: 0.4255289655 | D191: 0.3851141379 | E191: 0.2185241379 | F191: 0.3178044828 | G191: 0.405662069 | H191: 0.3409310345 | I191: 0.2284282759 | J191: 0.2917793103 | K191: 0.3828896552 | L191: 0.2069475862 | M191: 0.3484624138 | N191: 0.3024541379 | O191: 0.2405862069 | P191: 0.3846931034 | Q191: 0.2650782759 | R191: 0.3001137931 | S191: 0.2188451724 | T191: 0.209802069 | U191: 0.4145437931 | V191: 0.3032237931 | W191: 0.3691017241 | X191: 0.3178127586 | Y191: 0.2581213793 | Z191: 0.1707365517 | AA191: 0.2257351724 | AB191: 0.3340606897 | AC191: 0.3800841821 | AH191: 0 | AI191: 0 | AJ191: 0 | AK191: 0 | AL191: 0 | AM191: 0 | AN191: 0 | AO191: 0 | AP191: 0 | AQ191: 0 | AR191: 0 | AS191: 0 | AT191: 0 | AU191: 0 | AV191: 0 | AW191: 0 | AX191: 0 | AY191: 0 | AZ191: 0 | BA191: 0 | BB191: 0 | BC191: 0 | BD191: 0 | BE191: 0 | BF191: 0 | BG191: 0 | BH191: 0
B192: 190 | C192: 0.4429782759 | D192: 0.389522069 | E192: 0.2052317241 | F192: 0.3195813793 | G192: 0.4028893103 | H192: 0.3422213793 | I192: 0.23297 | J192: 0.2820186207 | K192: 0.3832286207 | L192: 0.2008951724 | M192: 0.3476286207 | N192: 0.3053837931 | O192: 0.2444872414 | P192: 0.3863827586 | Q192: 0.2624403448 | R192: 0.295552069 | S192: 0.2292865517 | T192: 0.2030755172 | U192: 0.4106568966 | V192: 0.3035913793 | W192: 0.3625310345 | X192: 0.3080486207 | Y192: 0.2484431034 | Z192: 0.1678937931 | AA192: 0.2257103448 | AB192: 0.3362006897 | AC192: 0.3753032277 | AH192: 0 | AI192: 0 | AJ192: 0 | AK192: 0 | AL192: 0 | AM192: 0 | AN192: 0 | AO192: 0 | AP192: 0 | AQ192: 0 | AR192: 0 | AS192: 0 | AT192: 0 | AU192: 0 | AV192: 0 | AW192: 0 | AX192: 0 | AY192: 0 | AZ192: 0 | BA192: 0 | BB192: 0 | BC192: 0 | BD192: 0 | BE192: 0 | BF192: 0 | BG192: 0 | BH192: 0
B193: 191 | C193: 0.45139 | D193: 0.3878234483 | E193: 0.19777 | F193: 0.3207437931 | G193: 0.3982717241 | H193: 0.3444162069 | I193: 0.2385096552 | J193: 0.2750417241 | K193: 0.3847624138 | L193: 0.1932724138 | M193: 0.3447834483 | N193: 0.3008434483 | O193: 0.2491751724 | P193: 0.3847582759 | Q193: 0.2577672414 | R193: 0.2939634483 | S193: 0.2390337931 | T193: 0.197572069 | U193: 0.4079789655 | V193: 0.3030189655 | W193: 0.3558151724 | X193: 0.2988444828 | Y193: 0.2380434483 | Z193: 0.1619837931 | AA193: 0.229737931 | AB193: 0.3403658621 | AC193: 0.3707890756 | AH193: 0 | AI193: 0 | AJ193: 0 | AK193: 0 | AL193: 0 | AM193: 0 | AN193: 0 | AO193: 0 | AP193: 0 | AQ193: 0 | AR193: 0 | AS193: 0 | AT193: 0 | AU193: 0 | AV193: 0 | AW193: 0 | AX193: 0 | AY193: 0 | AZ193: 0 | BA193: 0 | BB193: 0 | BC193: 0 | BD193: 0 | BE193: 0 | BF193: 0 | BG193: 0 | BH193: 0
B194: 192 | C194: 0.455037931 | D194: 0.3844351724 | E194: 0.1941862069 | F194: 0.3227451724 | G194: 0.3942372414 | H194: 0.3472410345 | I194: 0.2452927586 | J194: 0.2681158621 | K194: 0.3842962069 | L194: 0.1901789655 | M194: 0.3408731034 | N194: 0.2984693103 | O194: 0.2469751724 | P194: 0.3827872414 | Q194: 0.2567144828 | R194: 0.2896413793 | S194: 0.2447313793 | T194: 0.1925706897 | U194: 0.4081086207 | V194: 0.2999313793 | W194: 0.3498365517 | X194: 0.2922737931 | Y194: 0.2277793103 | Z194: 0.1580268966 | AA194: 0.2426886207 | AB194: 0.3458334483 | AC194: 0.367000906 | AH194: 0 | AI194: 0 | AJ194: 0 | AK194: 0 | AL194: 0 | AM194: 0 | AN194: 0 | AO194: 0 | AP194: 0 | AQ194: 0 | AR194: 0 | AS194: 0 | AT194: 0 | AU194: 0 | AV194: 0 | AW194: 0 | AX194: 0 | AY194: 0 | AZ194: 0 | BA194: 0 | BB194: 0 | BC194: 0 | BD194: 0 | BE194: 0 | BF194: 0 | BG194: 0 | BH194: 0
B195: 193 | C195: 0.4486875862 | D195: 0.3808389655 | E195: 0.1927362069 | F195: 0.3273048276 | G195: 0.3941662069 | H195: 0.3500662069 | I195: 0.2517803448 | J195: 0.25859 | K195: 0.3846634483 | L195: 0.1883624138 | M195: 0.3345093103 | N195: 0.2935831034 | O195: 0.2456606897 | P195: 0.3809417241 | Q195: 0.2547744828 | R195: 0.2850848276 | S195: 0.2483186207 | T195: 0.1878141379 | U195: 0.4092762069 | V195: 0.2972762069 | W195: 0.3464482759 | X195: 0.2892406897 | Y195: 0.217032069 | Z195: 0.1539703448 | AA195: 0.2562637931 | AB195: 0.3511510345 | AC195: 0.3631914073 | AH195: 0 | AI195: 0 | AJ195: 0 | AK195: 0 | AL195: 0 | AM195: 0 | AN195: 0 | AO195: 0 | AP195: 0 | AQ195: 0 | AR195: 0 | AS195: 0 | AT195: 0 | AU195: 0 | AV195: 0 | AW195: 0 | AX195: 0 | AY195: 0 | AZ195: 0 | BA195: 0 | BB195: 0 | BC195: 0 | BD195: 0 | BE195: 0 | BF195: 0 | BG195: 0 | BH195: 0
B196: 194 | C196: 0.4445272414 | D196: 0.3735617241 | E196: 0.1885089655 | F196: 0.3290686207 | G196: 0.398487931 | H196: 0.3542306897 | I196: 0.2569348276 | J196: 0.2526331034 | K196: 0.3833255172 | L196: 0.1873131034 | M196: 0.3269206897 | N196: 0.2876658621 | O196: 0.2405093103 | P196: 0.3799531034 | Q196: 0.2528403448 | R196: 0.283607931 | S196: 0.2498168966 | T196: 0.1847262069 | U196: 0.4113534483 | V196: 0.297712069 | W196: 0.3462472414 | X196: 0.2838537931 | Y196: 0.2076744828 | Z196: 0.1536327586 | AA196: 0.2638041379 | AB196: 0.3575755172 | AC196: 0.3596974163 | AH196: 0 | AI196: 0 | AJ196: 0 | AK196: 0 | AL196: 0 | AM196: 0 | AN196: 0 | AO196: 0 | AP196: 0 | AQ196: 0 | AR196: 0 | AS196: 0 | AT196: 0 | AU196: 0 | AV196: 0 | AW196: 0 | AX196: 0 | AY196: 0 | AZ196: 0 | BA196: 0 | BB196: 0 | BC196: 0 | BD196: 0 | BE196: 0 | BF196: 0 | BG196: 0 | BH196: 0
B197: 195 | C197: 0.4504572414 | D197: 0.3635344828 | E197: 0.1805106897 | F197: 0.3283517241 | G197: 0.4065275862 | H197: 0.3609775862 | I197: 0.2614665517 | J197: 0.2470696552 | K197: 0.3801955172 | L197: 0.1863817241 | M197: 0.3193658621 | N197: 0.2825572414 | O197: 0.2449348276 | P197: 0.3797551724 | Q197: 0.2542796552 | R197: 0.2840368966 | S197: 0.2478944828 | T197: 0.1842231034 | U197: 0.4112655172 | V197: 0.3025882759 | W197: 0.3483362069 | X197: 0.2828155172 | Y197: 0.1992713793 | Z197: 0.1542210345 | AA197: 0.2624455172 | AB197: 0.3633031034 | AC197: 0.3573909466 | AH197: 0 | AI197: 0 | AJ197: 0 | AK197: 0 | AL197: 0 | AM197: 0 | AN197: 0 | AO197: 0 | AP197: 0 | AQ197: 0 | AR197: 0 | AS197: 0 | AT197: 0 | AU197: 0 | AV197: 0 | AW197: 0 | AX197: 0 | AY197: 0 | AZ197: 0 | BA197: 0 | BB197: 0 | BC197: 0 | BD197: 0 | BE197: 0 | BF197: 0 | BG197: 0 | BH197: 0
B198: 196 | C198: 0.4376924138 | D198: 0.3524382759 | E198: 0.172707931 | F198: 0.3300762069 | G198: 0.4112765517 | H198: 0.3657734483 | I198: 0.2668958621 | J198: 0.2479368966 | K198: 0.3743044828 | L198: 0.1900065517 | M198: 0.3143534483 | N198: 0.2743555172 | O198: 0.2394913793 | P198: 0.3860772414 | Q198: 0.2530137931 | R198: 0.2848131034 | S198: 0.2416444828 | T198: 0.1876834483 | U198: 0.4065137931 | V198: 0.3063372414 | W198: 0.3473203448 | X198: 0.2843062069 | Y198: 0.1909441379 | Z198: 0.1519544828 | AA198: 0.2595082759 | AB198: 0.3674268966 | AC198: 0.357619871 | AH198: 0 | AI198: 0 | AJ198: 0 | AK198: 0 | AL198: 0 | AM198: 0 | AN198: 0 | AO198: 0 | AP198: 0 | AQ198: 0 | AR198: 0 | AS198: 0 | AT198: 0 | AU198: 0 | AV198: 0 | AW198: 0 | AX198: 0 | AY198: 0 | AZ198: 0 | BA198: 0 | BB198: 0 | BC198: 0 | BD198: 0 | BE198: 0 | BF198: 0 | BG198: 0 | BH198: 0
B199: 197 | C199: 0.424232069 | D199: 0.346292069 | E199: 0.1622541379 | F199: 0.3360624138 | G199: 0.4159096552 | H199: 0.3692855172 | I199: 0.2716782759 | J199: 0.2514541379 | K199: 0.3680482759 | L199: 0.1953065517 | M199: 0.3110486207 | N199: 0.2716358621 | O199: 0.2305724138 | P199: 0.389182069 | Q199: 0.251797931 | R199: 0.2847558621 | S199: 0.2360344828 | T199: 0.1934662069 | U199: 0.4007241379 | V199: 0.3085631034 | W199: 0.3438551724 | X199: 0.2883293103 | Y199: 0.1834213793 | Z199: 0.1567124138 | AA199: 0.2571944828 | AB199: 0.3703437931 | AC199: 0.3588160373 | AH199: 0 | AI199: 0 | AJ199: 0 | AK199: 0 | AL199: 0 | AM199: 0 | AN199: 0 | AO199: 0 | AP199: 0 | AQ199: 0 | AR199: 0 | AS199: 0 | AT199: 0 | AU199: 0 | AV199: 0 | AW199: 0 | AX199: 0 | AY199: 0 | AZ199: 0 | BA199: 0 | BB199: 0 | BC199: 0 | BD199: 0 | BE199: 0 | BF199: 0 | BG199: 0 | BH199: 0
B200: 198 | C200: 0.4195572414 | D200: 0.3455251724 | E200: 0.1522841379 | F200: 0.3508217241 | G200: 0.4200610345 | H200: 0.3727317241 | I200: 0.2757268966 | J200: 0.2555593103 | K200: 0.3622634483 | L200: 0.2015365517 | M200: 0.3075075862 | N200: 0.2712134483 | O200: 0.2244541379 | P200: 0.3906962069 | Q200: 0.2477917241 | R200: 0.2817351724 | S200: 0.2333251724 | T200: 0.1964165517 | U200: 0.3957748276 | V200: 0.3146193103 | W200: 0.3425589655 | X200: 0.2910913793 | Y200: 0.1738468966 | Z200: 0.1692713793 | AA200: 0.2565582759 | AB200: 0.3725158621 | AC200: 0.3607907348 | AH200: 0 | AI200: 0 | AJ200: 0 | AK200: 0 | AL200: 0 | AM200: 0 | AN200: 0 | AO200: 0 | AP200: 0 | AQ200: 0 | AR200: 0 | AS200: 0 | AT200: 0 | AU200: 0 | AV200: 0 | AW200: 0 | AX200: 0 | AY200: 0 | AZ200: 0 | BA200: 0 | BB200: 0 | BC200: 0 | BD200: 0 | BE200: 0 | BF200: 0 | BG200: 0 | BH200: 0
... 925 more rows
